Workbook

Sheet Help+Instructions
A1: 01_HELP + INSTRUCTIONS | C1: Base on Feedback
A2: GENERAL REMARKS
A3: A | B3: Suppression Panel configurator based on current Simplex/Autocall Products, any remarks or issues, report to: alan.ang@jci.com
A4: B | B4: 9th Dec 2021 :Ver. 1.0; initial and test release.
A5: C | B5: 30th Jun 2022 :Ver. 2.0; Improvement base on feedback and Enhancement.(Only for Registered User)
A6: D | B6: Month of Dec:Imrproved with the below:
B7: 1. Help & Instruction with Help Video link to remote NAS | C7: Alan Ang
B8: 2. Fast Access to Function Tab thru Ribbon Icons on the Excel Menu | C8: Alan Ang
B9: 3. Default Value of Typical requirements of Detectors, SPM devices, Notification devices leaving the user to modified as need and focus on getting the Solenoid selection correct. | C9: Alan Ang
B10: 4. Include the RAC maximum distance for 4004R and for 4007ES have two distance consideration, NAC to SPR module and from SPR module to Solenoid. | C10: Dory Okriandi
B11: 5. End user can make the necessary adjustment to align to site requirements by playing about with Wire guage selections and if possible alternate solenoid to minimise additional equipment. | C11: Alan Ang
B12: 6 . Include the Battery AH as well as the Max distance run for both NAC and RAC on the final Configurator. | C12: Dory Okriandi
B13: 7. Change the approach for multi Zone Addressable panel approach to start from Solenoid assignment to panel and built in flexibility to switch solenoid assignment to panel or repeater without having major recalculation. | C13: Alan Ang
B14: 8. Add in Switch for Notification Circuits if end user prefer Relay modules instead of Signal modules | C14: Jerry Sun
B15: 9. Includes switch for ES Network to 4120 Network and Vice versa. | C15: Alan Ang
B16: 10. Add in Solenoid Reference number search sheet to simplified search | C16: Alan Ang
B17: 11. Include Add in Device Tab for end user to include their choice of detectors, Signage display, Solenoid without having to redo the entire spreadsheet. | C17: Alan Ang
B18: 11. Add in Feedback link to MS Forms as well as Registration link for user to share with other friends that might be interested. | C18: Ref to Pawel work on Zetter Tools
B19: 12. Fixed error of unable to Create BOM due to some macro issues | C19: Jerry Sun & Jason Ee
B20: 13. Include Reference Drawiings for easy reference in process of Design | C20: Dory Okriandi
B21: 14. Include PDF link to Datasheet for fast reference without increasing size of tools | C21: Alan Ang
B22: 15. Include Reset or Clear all for the Key input sheet for 4004R and 4007ES to start from Fresh and for new projects | C22: Alan Ang
B23: 16. Fix the problem on 4004RConfigurator Create BOM button with Excel Error as well as Clear BOM on 4004RBOM. Similar issue clear for 4007Configurator and 4007BOM | C23: Alan Ang
A24: INSTRUCTIONS / HOW TO USE
A25: 1 | B25: To Build up more User Interface in Future
A26: 2 | B26: Light Blue cells for Quantity Entry as required
A27: 3 | B27: Darker Blue to select the option as required
A28: 4 | B28: All Other Other colors cells are locked up.
A29: 5 | B29: Use the Filter On and Off to reduce screen clutter and help to focus on items relevant on configurator sheet.
A31: 02_4004R Conventional Panel - Click Here
A32: 1 | B32: This is a Conventional Suppression Releasing Panel Configurator.
A33: 2 | B33: Please follow the steps and if not sure click at below Demo Video
A34: =+A33+1 -> 3 | B34: Revised and touch up interface on formulae mistake and have added Preaction auto 90 hrs switch over.
A35: =+A34+1 -> 4 | B35: Help Video for Design Tool | C35: Work in Progress, Do not need new Version
A36: 03_4007ES Addressable Panel - Click Here
A37: 1 | B37: This is a Addressable Suppresion Releasing Panel Configurator
A38: 2 | B38: The final outcome will be display on the next tab i.e. Coinfgurator
A39: 3 | B39: Revised and touch up interface on formulae mistake and have added Preaction auto 90 hrs switch over.
A40: =+A39+1 -> 4 | B40: Help Video for Design Tool | C40: Work in Progress, Do not need new Version
A41: 04. APAC Language Interface
A42: 1 | B42: Target in Future: Thai, Vietnamese, Indonesian, Bahasa Melayu, Traditional Chinese. | C42: Until Tools Stabilise
A43: 2
A44: 3

Sheet TranslateMain (hidden)
A1: S/No | B1: Tab | C1: ENGLISH | D1: Alternate
A2: 1 | B2: 4004RPanel | C2: 4004R Conventional Suppression Panel with 1/2 Hazards and 2 Conventional NACs, 2 RAC ,02 SPM & 04 IDC | D2: 4004R 常規抑制面板，帶有 1/2 危險和 2 個常規 NAC、2 個 RAC、02 SPM 和 04 IDC
A3: 2 | B3: =+B2 -> 4004RPanel | C3: ** Note: This tools have all the standard default devices requirement and you only have to change the following device and you still can overide all those in Blue highlighted cells. 1. IDC device could be other than smoke detectors. 2. The solenoid and you can customised add or modified as per in the "AddonDevice" tab. 3. Only Blue Color or LIght Blue you can input or use drop down box to input your choice. | D3: ** 筆記： 該工具具有所有標準預設設備要求，您只需更改以下設備，您仍然可以覆蓋藍色突出顯示的單元格中的所有設備。 1. IDC 設備可以不是煙霧偵測器。 2.電磁閥，您可以根據“AddonDevice”選項卡自訂新增或修改。 3. 只能輸入藍色或淺藍色，或使用下拉框輸入您的選擇。
A4: 3 | B4: =+B3 -> 4004RPanel | C4: 4004R with 2 Conventional NACs Configuration | D4: 具有 2 個傳統 NAC 配置的 4004R
A5: 4 | B5: 4004RPanel | C5: Enter Quantity of panel type to be included in BOM | D5: 輸入要包含在 BOM 中的面板類型的數量
A6: 5 | B6: 4004RPanel | C6: Step 1: Select Panel Type: Single or Dual Hazard | D6: 第 1 步：選擇面板類型：單一危險或雙危險
A7: 6 | B7: 4004RPanel | C7: 4004R Conventional Suppression Panel with UL & FM Listing | D7: 具有 UL 和 FM 認證的 4004R 傳統抑制面板
A8: 7 | B8: 4004RPanel | C8: Color | D8: 顏色
A9: 8 | B9: 4004RPanel | C9: For PreAction or Deluge, need to have Class A IDC, add 4004-9864 adapter | D9: 對於 PreAction 或 Deluge，需要有 A 類 IDC，增加 4004-9864 轉接器
A10: 9 | B10: 4004RPanel | C10: Option to add Localised countdown timer? | D10: 新增本地化倒數計時器的選項？
A11: 10 | B11: 4004RPanel | C11: Step 2a: Allocating Conventional Field Devices to IDC 1 & 2 | D11: 步驟 2a：將傳統現場設備分配給 IDC 1 和 2
A12: 11 | B12: 4004RConfigurator | C12: 721P Smoke Detector UL268 7th Edition | D12: 721P 煙霧偵測器 UL268 第 7 版
A13: 12 | B13: 4004RConfigurator | C13: 721H ROR Heat Detector UL Listed | D13: 721H ROR 熱探測器 UL 認證
A14: 13 | B14: 4004RConfigurator | C14: 722H Fixed Temp Heat | D14: 722H 定溫加熱
A15: 14 | B15: 4004RConfigurator | C15: 700 Series Detector Base(Base on nos of Smoke & Heat Det) | D15: 700系列偵測器底座（基於煙熱探測器數量）
A16: 15 | B16: 4004RConfigurator | C16: 723H - HEAT FIX 200F DET UL | D16: 723H - 熱修復 200F DET UL
A17: 16 | B17: 4004RConfigurator | C17: 721PH - OPT&HEAT DET UL | D17: 721PH - 光熱檢測 UL
A18: 17 | B18: 4004RConfigurator | C18: Customised input - 2 Wire Powered Device | D18: 客製化輸入 - 2 線供電設備
A19: 18 | B19: 4004RConfigurator | C19: Customised input - 2 Wire Powered Device | D19: 客製化輸入 - 2 線供電設備
A20: 19 | B20: 4004RConfigurator | C20: Customised input - 2 Wire Powered Device | D20: 客製化輸入 - 2 線供電設備
A21: 20 | B21: 4004RConfigurator | C21: Customised input - 2 Wire Powered Device | D21: 客製化輸入 - 2 線供電設備
A22: 21 | B22: 4004RConfigurator | C22: Zettler Single IR Point Flame Detector | D22: Zettler 單紅外線點火焰偵測器
A23: 22 | B23: 4004RConfigurator | C23: Zettler Triple IR Flame Detector | D23: Zettler 三重紅外線火焰偵測器
A24: 23 | B24: 4004RConfigurator | C24: Zettler Triple IR Flame Detection Optional Camera | D24: Zettler 三重紅外線火焰偵測選購相機
A25: 24 | B25: 4004RConfigurator | C25: Zettler Triple IR Flame Detection Optional Heater | D25: Zettler 三重紅外線火焰偵測選購加熱器
A26: 25 | B26: 4004RConfigurator | C26: Zettler Linear Heat Detector Copper | D26: Zettler 線性熱探測器銅
A27: 26 | B27: 4004RConfigurator | C27: Zettler Linear Heat Detector Fiber Optic | D27: Zettler 線性熱探測器光纖
A28: 27 | B28: 4004RConfigurator | C28: Zettler Beam Detector | D28: 賽特勒光束探測器
A29: 28 | B29: 4004RConfigurator | C29: Customised input Wired Powered by IDC | D29: 客製化輸入 有線 IDC 供電
A30: 29 | B30: 4004RConfigurator | C30: Customised input Wired Powered by IDC | D30: 客製化輸入 有線 IDC 供電
A31: 30 | B31: 4004RConfigurator | C31: Customised input Wired Powered by IDC | D31: 客製化輸入 有線 IDC 供電
A32: 31 | B32: 4004RConfigurator | C32: Customised input Wired Powered by IDC | D32: 客製化輸入 有線 IDC 供電
A33: 32 | B33: 4004RConfigurator | C33: Customised input Wired Powered by IDC | D33: 客製化輸入 有線 IDC 供電
A34: 33 | B34: =+B11 -> 4004RPanel | C34: Monitoring of Compressor for Pneumatic Operation of Actuators | D34: 監測壓縮機的執行器氣動操作
A35: 34 | B35: =+B34 -> 4004RPanel | C35: Monitoring of Pressure Switch Alarm | D35: 壓力開關警報監控
A36: 35 | B36: =+B35 -> 4004RPanel | C36: Monitoring of Supervisory Tamper Switch | D36: 監控防拆開關的監控
A37: 36 | B37: 4004RPanel | C37: Monitoring of Water Flow Switch | D37: 水流開關監控
A38: 37 | B38: 4004RPanel | C38: Monitoring of Supervisory Alert | D38: 監管警報監控
A39: 38 | B39: 4004RPanel | C39: Step 3: Special Purpose Monitoring Input(SPM1 & 2) | D39: 步驟 3：特殊用途監控輸入（SPM1 &amp; 2）
A40: 39 | B40: 4004RPanel | C40: Abort Switch with UL864 Listing | D40: 具有 UL864 認證的中止開關
A41: 40 | B41: 4004RPanel | C41: Manual Overide PullStation - Conventional(UL & FM) | D41: 手動超越拉站 - 傳統（UL 和 FM）
A42: 41 | B42: 4004RPanel | C42: Pull Station Suppression Label Kit for Specific Application | D42: 適用於特定應用的拉站抑制標籤套件
A43: 42 | C43: Step 4:Auxillary Dry Contacts - Output | D43: 步驟4：輔助幹接點-輸出
A44: 43 | C44: Relay Board - Comes with Panel | D44: 繼電器板 - 附面板
A45: 44 | C45: Common Panel Alarm Signal | D45: 公共面板警報信號
A46: 45 | C46: Common Panel Trouble Signal | D46: 公共面板故障訊號
A47: 46 | C47: Pre Release Display Signage | D47: 預發布展示標牌
A48: 47 | C48: Pre Release Display Auxillary Power Supply | D48: 預發布顯示器輔助電源
A49: 48 | C49: Step 5:Optional Auxillary Dry Contacts-Output(Seldom used) | D49: 步驟5：可選輔助幹接點-輸出（很少使用）
A50: 49 | C50: Relay Board - Optional | D50: 繼電器板 - 可選
A51: 50 | C51: Common Panel Alarm Signal | D51: 公共面板警報信號
A52: 51 | C52: Common Panel Trouble Signal | D52: 公共面板故障訊號
A53: 52 | C53: 2nd Zone Alarm | D53: 第二區警報
A54: 53 | C54: Discharge Display Signage | D54: 放電顯示標牌
A55: 54 | C55: Discharge Display Auxillary Power Supply | D55: 放電顯示輔助電源
A56: 55 | C56: Step 6a: RAC Output, Suppression Interface Equipment: Solenoid | D56: 步驟 6a：RAC 輸出，抑制介面設備：電磁閥
A57: 56 | C57: LP CO2 double action 24 VDC solenoid 430948 | D57: LP CO2 雙作用 24 VDC 電磁閥 430948
A58: 57 | C58: The RAC2 is being used for Discharge Display Signal. | D58: RAC2 用於放電顯示訊號。
A59: 58 | C59: Discharge Display Auxillary Power Supply | D59: 放電顯示輔助電源
A60: 59 | C60: Step 6b: RAC Output Related Accessories | D60: 步驟 6b：RAC 輸出相關配件
A61: 60 | C61: Maintenance Switch with Lights(UL) | D61: 帶燈維護開關(UL)
A62: 61 | C62: Maintenance Switch without Lights(UL) | D62: 無燈維護開關(UL)
A63: 62 | C63: Supervisory Coil for Actuator(Mandatory) | D63: 執行器監控線圈（強制）
A64: 63 | C64: Step 7: Conventional Notification Devices | D64: 步驟7：傳統通知設備
A65: 64 | C65: Vibrating Bell 6" - 24 VDC | D65: 振動鈴 6&quot; - 24 VDC
A66: 65 | C66: 15 cd Red Wall Horn Strobe | D66: 15 cd 紅牆喇叭頻閃
A67: 66 | C67: 30 cd Red Wall Horn Strobe | D67: 30 cd 紅牆喇叭頻閃
A68: 67 | C68: 75 cd Red Wall Horn Strobe | D68: 75 cd 紅牆喇叭頻閃
A69: 68 | C69: Red Wall Mounted Horn | D69: 紅色壁掛式喇叭
A70: 69 | C70: Input1B - Notification Device 1 | D70: 輸入 1B - 通知設備 1
A71: 70 | C71: Input2B - Notification Device 2 | D71: Input2B - 通知裝置 2
A72: 71 | C72: Input3B - Notification Device 3 | D72: Input3B - 通知裝置 3
A73: 72 | C73: Input4B - Notification Device 4 | D73: Input4B - 通知設備 4
A74: 73 | C74: Input5B - Notification Device 5 | D74: 輸入 5B - 通知設備 5
A75: 74 | C75: Input6B - Notifiation Device 6 | D75: 輸入 6B - 通知設備 6
A76: 75 | C76: Step 8: Panel Notification Circuits Loading | D76: 第 8 步：面板通知電路負載
A77: 76 | C77: Conventional RAC Circuit 1 | D77: 傳統 RAC 電路 1
A78: 77 | C78: Conventional RAC Circuit 2 | D78: 傳統 RAC 電路 2
A79: 78 | C79: Conventional NAC Circuit 1 | D79: 傳統NAC電路1
A80: 79 | C80: Conventional NAC Circuit 2 | D80: 傳統NAC電路2
A81: 80 | C81: Step 9:Notification or Release Actuator Circuit Cable Length | D81: 第 9 步：通知或釋放執行器電路電纜長度
A82: 81 | C82: Cables Property Selection to match RAC max Length Requirements | D82: 選擇符合 RAC 最大長度要求的電纜屬性
A83: 82 | C83: Wire Gauge | D83: 線規
A84: 83 | C84: Wire Temperature | D84: 線材溫度
A85: 84 | C85: Unit of Measure | D85: 測量單位
A86: 85 | C86: Ohms / Km | D86: 歐姆/公里
A87: 86 | C87: Quick Estimated NAC Circuit Length Calculator | D87: 快速估計 NAC 電路長度計算器
A88: 87 | C88: Est max wire length - Worst Case - RAC1-SRP | D88: 估計最大電線長度 - 最壞情況 - RAC1-SRP
A89: 88 | C89: Est max wire length - Worst Case - RAC2-SRP | D89: 估計最大電線長度 - 最壞情況 - RAC2-SRP
A90: 89 | C90: Cables Property Selection to match RAC max Length Requirements | D90: 選擇符合 RAC 最大長度要求的電纜屬性
A91: 90 | C91: Wire Gauge | D91: 線規
A92: 91 | C92: Wire Temperature | D92: 線材溫度
A93: 92 | C93: Unit of Measure | D93: 測量單位
A94: 93 | C94: Ohms / Km | D94: 歐姆/公里
A95: 94 | C95: Wiorst Case Maximum Cable Length for NAC wiring | D95: 最壞情況下 NAC 接線的最大電纜長度
A96: 95 | C96: Est max wire length - Worst Case - NAC 1 | D96: 估計最大電線長度 - 最壞情況 - NAC 1
A97: 96 | C97: Est max wire length - Worst Case - NAC 2 | D97: 估計最大電線長度 - 最壞情況 - NAC 2
A98: 97 | C98: Mean Case Maximum Cable Length for NAC Wiring | D98: NAC 接線的平均情況最大電纜長度
A99: 98 | C99: Est max wire length - Mean + 20% - NAC 1 | D99: 估計最大導線長度 - 平均值 + 20% - NAC 1
A100: 99 | C100: Est max wire length - Mean + 20% - NAC 2 | D100: 估計最大導線長度 - 平均值 + 20% - NAC 2
A101: 100 | C101: Step 10: Auxillary Power Supply | D101: 第10步：輔助電源
A102: 101 | C102: Aux Power or Simple NAC Load - Max 2000mA | D102: 輔助電源或簡單 NAC 負載 - 最大 2000mA
A103: 102 | C103: Step 11: Battery Calculation | D103: 第11步：電池計算
A104: 103 | C104: Total Standby and Alarm Loads Amps | D104: 總待機和警報負載安培
A105: 104 | C105: Total Standby and Alarm Loads Ampere Hours | D105: 總待機和警報負載安培小時
A106: 105 | C106: Battery Calculation Standby Hours | D106: 電池計算待機時間
A107: 106 | C107: Battery Calculation Alarm Minutes | D107: 電池計算警報分鐘數
A108: 107 | C108: Battery Calculation Battery Factor | D108: 電池計算電池係數
A109: 108 | C109: Step 12: Final Battery Ah requirements and if charger required. | D109: 步驟 12：最終電池 Ah 需求以及是否需要充電器。
A110: 109 | C110: Total Ampere Hours | D110: 總安培小時
A111: 110 | C111: Minimum Calculated Battery Size Required | D111: 計算出的最小所需電池尺寸
A112: 111 | C112: Battery Location and Selected Size | D112: 電池位置和選定尺寸
A113: 112 | C113: Resistance: ® | D113: 電阻：®
A114: 113 | C114: The minimum Operating Voltage to support the proposed Field Devices | D114: 支援建議的現場設備的最低工作電壓
A115: 114 | C115: The Total Operating Current base on individual Devices datasheet and powered by the individual Notification Circuits Source Current | D115: 總工作電流基於各個元件資料表並由各個通知電路源電流供電
A116: 115 | C116: The Total Ohms Per Km or Ohms per Feet base on the proposed Wiring use the Wire Gauge(Thickness) from Typical standards i.e. 1.5mm2 , 2.5 mm2, 18 Awg..etc | D116: 基於建議接線的每公里總歐姆或每英尺歐姆使用典型標準中的線規（厚度），即 1.5mm2、2.5mm2、18 Awg.. 等
A117: 116 | C117: 1. Starting Voltage Source Limit as Per NFPA72 drop of 20% from 24VDC | D117: 1. 根據 NFPA72，啟動電壓源限制從 24VDC 下降 20%
A118: 117 | C118: 2. Minimum Operating Voltage for the notification Circuits | D118: 2. 通知電路的最低工作電壓
A119: 118 | C119: 3. Types of Cables Wire Gauge design to work with the Notification Circuits | D119: 3. 電纜類型 與通知電路搭配使用的線規設計
A120: 119 | C120: 5. Temperature Rating of Proposed Cable used | D120: 5. 建議使用的電纜的溫度等級
A121: 120 | C121: 6. Class A or Class B Notification Circuits Proposed | D121: 6. 提議的 A 類或 B 類通知電路
A122: 121 | C122: 7. Notification Circuits Current Rating | D122: 7. 通知電路額定電流
A123: 122 | C123: Turn this on to see only Calculated Devices | D123: 開啟此選項以僅查看計算的設備
A124: 123 | C124: Turn this on to see entire Spreadsheet | D124: 開啟此選項可查看整個電子表格
A125: 124 | C125: Point to Point Line by Line Calculation of Voltage Drop contributed by Wire length, Wire Gauge, Device Current and Calculated Voltage Drop | D125: 點對點逐線計算由線長、線規、裝置電流和計算出的電壓降所造成的電壓降
A126: 125 | C126: Cable Length | D126: 電纜長度
A127: 126 | C127: Selected | D127: 已選擇
A128: 127 | C128: Device Current | D128: 裝置電流
A129: 128 | C129: Cable Ohm @ km/feet | D129: 電纜歐姆@公里/英尺
A130: 129 | C130: Current Consumed | D130: 消耗電流
A131: 130 | C131: Voltage Drop | D131: 電壓下降
A132: 131 | C132: Voltage Drop % | D132: 電壓下降 ％
A133: 132 | C133: Total %Voltage Drop | D133: 總電壓降百分比
A134: 133 | C134: Voltage at Device | D134: 設備電壓
A135: 134 | C135: Total Current used by all Devices add up | D135: 所有設備使用的總電流加起來
A136: 135 | C136: **Note: Final last Voltage must be > 16Vdc | D136: **注意：最終電壓必須 &gt; 16Vdc
A137: 136 | C137: Conventional Point to Point(EOL) Voltage Drop Engineering Report | D137: 傳統點對點 (EOL) 壓降工程報告
A138: 137 | C138: ** All customised Devices Accuracy will depends on data entry person, All Simplex Products are base on our factory current consumption datasheet. | D138: ** 所有客製化設備的精度將取決於資料輸入人員，所有 Simplex 產品均基於我們工廠的電流消耗資料表。
A139: 138 | C139: 4. The ohm per km or feet for the Wire Gauge selected | D139: 4. 所選線規的歐姆每公里或每英尺
A140: 139 | C140: 8. Estimated Minimum Wire Length per circuit in METRES | D140: 8. 每個電路的估計最小電線長度（以公尺為單位）
A141: 140 | C141: 9. Total numbers of Devices on Notification Circuits | D141: 9. 通知電路上的設備總數
A142: 141 | C142: 10. Calculated Total numbers of notification Circuits to support | D142: 10. 計算支援的通知電路總數
A143: 142 | C143: 11. Cable length possible base on device loading and cable wire gauge | D143: 11. 電纜長度可能取決於設備負載和電纜線規
A144: 143 | C144: Voltage Drop %
A145: 144 | C145: Total %Voltage Drop
A146: 145 | C146: Voltage at Device
A147: 146 | C147: Total Current used by all Devices add up
A148: 147 | C148: **Note: Final last Voltage must be > 16Vdc
A149: 148 | C149: Conventional Point to Point(EOL) Voltage Drop Engineering Report
A150: 149 | C150: ** All customised Devices Accuracy will depends on data entry person, All Simplex Products are base on our factory current consumption datasheet.
A151: 150 | C151: 4. The ohm per km or feet for the Wire Gauge selected
A152: 151 | C152: 8. Estimated Minimum Wire Length per circuit in METRES
A153: 152 | C153: 9. Total numbers of Devices on Notification Circuits
A154: 153 | C154: 10. Calculated Total numbers of notification Circuits to support
A155: 154 | C155: 11. Cable length possible base on device loading and cable wire gauge

Sheet TranslateCompany (hidden)

Sheet TranslateBackup (hidden)

Sheet 4004R(Conventional)
B10: =IF(T12="English",TranslateMain!$C$2,TranslateMain!$D$2) -> 4004R Conventional Suppression Panel with 1/2 Hazards and 2 Conventional NACs, 2 RAC ,02 SPM & 04 IDC | T10: Select Language | AI10: English
AI11: Alternate
B12: =IF(T12="English",TranslateMain!$C$3,TranslateMain!$D$3) -> ** Note: This tools have all the standard default devices requirement and you only have to change the following device and you still can overide all those in Blue highlighted cells. 1. IDC device could be other than smoke detectors. 2. The solenoid and you can customised add or modified as per in the "AddonDevice" tab. 3. Only Blue Color or LIght Blue you can input or use drop down box to input your choice. | T12: English
F13: =IF(T12="English",TranslateMain!$C$4,TranslateMain!$D$4) -> 4004R with 2 Conventional NACs Configuration | R13: Aux PS
F14: Enter custom template name here | T14: PID | U14: Qty | V14: Remarks
G15: Selection
C16: =IF(T12="English",TranslateMain!$C$5,TranslateMain!$D$5) -> Enter Quantity of panel type to be included in BOM | G16: 1 | I16: Quantity
C17: =IF(T12="English",TranslateMain!$C$6,TranslateMain!$D$6) -> Step 1: Select Panel Type: Single or Dual Hazard | G17: 1 | I17: =IF(G17=2,"Dual Hazard","Single Hazard") -> Single Hazard | N17: Standby/Aux | O17: Alarm/Aux | P17: Remarks | R17: =IF(P17="Aux PS",O17,0) -> 0 | T17: Suppression Control Panel | Z17: 1 | AE17: 1
C18: =IF(T12="English",TranslateMain!$C$7,TranslateMain!$D$7) -> 4004R Conventional Suppression Panel with UL & FM Listing | G18: =IF($G$19="Red",'4004RConfigurator'!C9,IF($G$19="Beige",'4004RConfigurator'!C8,0)) -> 4004-9302 | N18: =+'4004RConfigurator'!L8*(U18+U19) -> 100 | O18: =+'4004RConfigurator'!M8*(U18+U19) -> 264 | P18: =+'4004RConfigurator'!P8 -> Panel | R18: 0 | T18: =+'4004RConfigurator'!C8 -> 4004-9301 | U18: =IF(G19="Beige",G16,0) -> 0 | AE18: 1
C19: =IF(T12="English",TranslateMain!$C$8,TranslateMain!$D$8) -> Color | G19: Red | N19: =+'4004RConfigurator'!L11*U20 -> 0 | O19: =+'4004RConfigurator'!M11*U20 -> 0 | P19: =IF(U20>0,'4004RConfigurator'!P11,0) -> 0 | R19: 0 | T19: =+'4004RConfigurator'!C9 -> 4004-9302 | U19: =IF(G19="Red",G16,0) -> 1 | AE19: =IF($G$19="Red",'4004RConfigurator'!AA10,IF($G$19="Beige",'4004RConfigurator'!AA9,0)) -> 0
C20: =IF(T12="English",TranslateMain!$C$9,TranslateMain!$D$9) -> For PreAction or Deluge, need to have Class A IDC, add 4004-9864 adapter | G20: Gas | I20: **Note: Very important Initial Selection will affect Standby and Alarm Batteries | N20: =+'4004RConfigurator'!L12*U21 -> 30 | O20: =+'4004RConfigurator'!M12*U21 -> 120 | P20: =IF(U21>0,V21,"") -> Aux PS | R20: 120 | T20: =+'4004RConfigurator'!C11 -> 4004-9864(Class A) | U20: =IF(G20="PreAction/Deluge",1,0) -> 0 | AE20: Beige
C21: =IF(T12="English",TranslateMain!$C$10,TranslateMain!$D$10) -> Option to add Localised countdown timer? | G21: Yes | R21: 0 | T21: =+'4004RConfigurator'!C12 -> Counter | U21: =IF(G21="Yes",1,0) -> 1 | V21: =+'4004RConfigurator'!P12 -> Aux PS | AE21: Gas
R22: 0 | AE22: Yes
C23: =IF(T12="English",TranslateMain!$C$11,TranslateMain!$D$11) -> Step 2a: Allocating Conventional Field Devices to IDC 1 & 2 | I23: IDC1 | J23: IDC2 | K23: IDC3 | L23: IDC4 | N23: Standby/Aux | O23: Alarm/Aux | P23: =+P17 -> Remarks | R23: 0 | T23: Initiating Devices Circuits - Equipment
C24: =+'4004RConfigurator'!E18 -> 721P Smoke Detector UL268 7th Edition | G24: =SUM(I24:L24) -> 8 | I24: 4 | J24: 4 | N24: =+'4004RConfigurator'!L18*G24 -> 0.4 | O24: =+'4004RConfigurator'!M18*G24 -> 280 | P24: =IF(G24>0,'4004RConfigurator'!P18,"") -> Powered by IDC | R24: 0 | T24: =+'4004RConfigurator'!C18 -> 516.900.201 | U24: =+G24 -> 8 | Z24: 2 | AE24: 4 | AF24: 4
C25: =+'4004RConfigurator'!E19 -> 721H ROR Heat Detector UL Listed | G25: =SUM(I25:L25) -> 0 | I25: 0 | J25: 0 | N25: =+'4004RConfigurator'!L19*G25 -> 0 | O25: =+'4004RConfigurator'!M19*G25 -> 0 | P25: =IF(G25>0,'4004RConfigurator'!P19,"") ->  | R25: 0 | T25: =+'4004RConfigurator'!C19 -> 516.900.203 | U25: 0 | AE25: 0 | AF25: 0
C26: =+'4004RConfigurator'!E20 -> 722H Fixed Temp Heat | G26: 0 | I26: 0 | J26: 0 | N26: =+'4004RConfigurator'!L20*G26 -> 0 | O26: =+'4004RConfigurator'!M20*G26 -> 0 | P26: =IF(G26>0,'4004RConfigurator'!P20,"") ->  | R26: 0 | T26: =+'4004RConfigurator'!C20 -> 516.900.204 | U26: 0 | AE26: 0 | AF26: 0
C27: =+'4004RConfigurator'!E21 -> 700 Series Detector Base(Base on nos of Smoke & Heat Det) | F27: Fix | G27: 8 | I27: =+I26+I25+I24+I28+I29 -> 4 | J27: =+J26+J25+J24+J28+J29 -> 4 | N27: =+'4004RConfigurator'!L21*G27 -> 0 | O27: =+'4004RConfigurator'!M21*G27 -> 0 | P27: =IF(G27>0,'4004RConfigurator'!P21,"") -> Powered by IDC | Q27: =IF(P27="Aux PS",N27,0) -> 0 | R27: 0 | T27: =+'4004RConfigurator'!C21 -> 516.900.206 | U27: 8 | AE27: =+AE26+AE25+AE24+AE28+AE29 -> 4 | AF27: =+AF26+AF25+AF24+AF28+AF29 -> 4
C28: =+'4004RConfigurator'!E23 -> 723H - HEAT FIX 200F DET UL | G28: =SUM(I28:L28) -> 0 | I28: 0 | J28: 0 | N28: =+'4004RConfigurator'!L22*G28 -> 0 | O28: =+'4004RConfigurator'!M22*G28 -> 0 | P28: =IF(G28>0,'4004RConfigurator'!P22,"") ->  | R28: 0 | T28: =+'4004RConfigurator'!C23 -> 516.900.205 | U28: 0 | AE28: 0 | AF28: 0
C29: =+'4004RConfigurator'!E24 -> 721PH - OPT&HEAT DET UL | G29: 0 | I29: 0 | J29: 0 | N29: =+'4004RConfigurator'!L23*G29 -> 0 | O29: =+'4004RConfigurator'!M23*G29 -> 0 | P29: =IF(G29>0,'4004RConfigurator'!P23,"") ->  | R29: 0 | T29: =+'4004RConfigurator'!C24 -> 516.900.202 | U29: 0 | AE29: 0 | AF29: 0
C30: =+'4004RConfigurator'!E25 -> Customised input - 2 Wire Powered Device | G30: 0 | I30: 0 | J30: 0 | N30: =+'4004RConfigurator'!L25*G30 -> 0 | O30: =+'4004RConfigurator'!M25*G30 -> 0 | P30: =IF(G30>0,'4004RConfigurator'!P25,"") ->  | R30: 0 | T30: =+'4004RConfigurator'!C25 -> Customised 1 | U30: =+G30 -> 0 | AE30: 0 | AF30: 0
C31: =+'4004RConfigurator'!E26 -> Customised input - 2 Wire Powered Device | G31: 0 | I31: 0 | J31: 0 | N31: =+'4004RConfigurator'!L26*G31 -> 0 | O31: =+'4004RConfigurator'!M26*G31 -> 0 | P31: =IF(G31>0,'4004RConfigurator'!P26,"") ->  | R31: 0 | T31: =+'4004RConfigurator'!C26 -> Customised 2 | U31: 0 | AE31: 0 | AF31: 0
C32: =+'4004RConfigurator'!E27 -> Customised input - 2 Wire Powered Device | G32: =SUM(I32:L32) -> 0 | I32: 0 | J32: 0 | N32: =+'4004RConfigurator'!L27*G32 -> 0 | O32: =+'4004RConfigurator'!M27*G32 -> 0 | P32: =IF(G32>0,'4004RConfigurator'!P27,"") ->  | R32: 0 | T32: =+'4004RConfigurator'!C27 -> Customised 3 | U32: =+G32 -> 0 | AE32: 0 | AF32: 0
C33: =+'4004RConfigurator'!E28 -> Customised input - 2 Wire Powered Device | G33: 0 | I33: 0 | J33: 0 | N33: =+'4004RConfigurator'!L28*G33 -> 0 | O33: =+'4004RConfigurator'!M28*G33 -> 0 | P33: =IF(G33>0,'4004RConfigurator'!P28,"") ->  | R33: 0 | T33: =+'4004RConfigurator'!C28 -> Customised 4 | U33: 0 | AE33: 0 | AF33: 0
C34: =+'4004RConfigurator'!E31 -> Zettler Single IR Point Flame Detector | G34: 0 | I34: 0 | J34: 0 | N34: =+'4004RConfigurator'!L31 -> 0 | P34: =IF(G34>0,'4004RConfigurator'!P31,"") ->  | Q34: 0 | R34: 0 | T34: =+'4004RConfigurator'!C31 -> 601F | U34: =+G34 -> 0 | AE34: 0 | AF34: 0
C35: =+'4004RConfigurator'!E32 -> Zettler Triple IR Flame Detector | G35: 0 | I35: 0 | J35: 0 | N35: =+'4004RConfigurator'!L32*G35 -> 0 | O35: =+'4004RConfigurator'!M31 -> 0 | P35: =IF(G35>0,'4004RConfigurator'!P32,"") ->  | Q35: 0 | R35: 0 | T35: =+'4004RConfigurator'!C32 -> FV400 | U35: 0 | AE35: 0 | AF35: 0
C36: =+'4004RConfigurator'!E33 -> Zettler Triple IR Flame Detection Optional Camera | G36: =SUM(I36:L36) -> 0 | I36: 0 | J36: 0 | N36: =+'4004RConfigurator'!L33*G36 -> 0 | O36: =+'4004RConfigurator'!M33*G36 -> 0 | P36: =IF(G36>0,'4004RConfigurator'!P33,"") ->  | Q36: 0 | R36: 0 | T36: =+'4004RConfigurator'!C33 -> Option Camera | U36: =+G36 -> 0 | AE36: 0 | AF36: 0
C37: =+'4004RConfigurator'!E34 -> Zettler Triple IR Flame Detection Optional Heater | G37: 0 | I37: 0 | J37: 0 | N37: =+'4004RConfigurator'!L34*G37 -> 0 | O37: =+'4004RConfigurator'!M34*G37 -> 0 | P37: =IF(G37>0,'4004RConfigurator'!P34,"") ->  | Q37: 0 | R37: 0 | T37: =+'4004RConfigurator'!C34 -> Window Heater | U37: =+G37 -> 0 | AE37: 0 | AF37: 0
C38: =+'4004RConfigurator'!E35 -> Zettler Linear Heat Detector Copper | G38: 0 | I38: 0 | J38: 0 | N38: =+'4004RConfigurator'!L35*G38 -> 0 | O38: =+'4004RConfigurator'!M35*G38 -> 0 | P38: =IF(G38>0,'4004RConfigurator'!P35,"") ->  | Q38: 0 | R38: 0 | T38: =+'4004RConfigurator'!C35 -> ProReact | U38: 0 | AE38: 0 | AF38: 0
C39: =+'4004RConfigurator'!E36 -> Zettler Linear Heat Detector Fiber Optic | G39: 0 | I39: 0 | J39: 0 | N39: =+'4004RConfigurator'!L36*G39 -> 0 | O39: =+'4004RConfigurator'!M36*G39 -> 0 | P39: =IF(G39>0,'4004RConfigurator'!P36,"") ->  | Q39: 0 | R39: 0 | T39: =+'4004RConfigurator'!C36 -> APSensing | U39: 0 | AE39: 0 | AF39: 0
C40: =+'4004RConfigurator'!E37 -> Zettler Beam Detector | G40: 0 | I40: 0 | J40: 0 | N40: =+'4004RConfigurator'!L37*G40 -> 0 | O40: =+'4004RConfigurator'!M37*G40 -> 0 | P40: =IF(G40>0,'4004RConfigurator'!P37,"") ->  | Q40: 0 | R40: 0 | T40: =+'4004RConfigurator'!C37 -> FireRay | U40: 0 | AE40: 0 | AF40: 0
C41: =+'4004RConfigurator'!E39 -> Customised input Wired Powered by IDC | G41: =SUM(I41:L41) -> 0 | I41: 0 | J41: 0 | N41: =+'4004RConfigurator'!L39*G41 -> 0 | O41: =+'4004RConfigurator'!M39 -> 0 | P41: =IF(G41>0,'4004RConfigurator'!P38,"") ->  | Q41: 0 | R41: 0 | T41: =+'4004RConfigurator'!C39 -> Customised 1 | U41: =+G41 -> 0 | AE41: 0 | AF41: 0
C42: =+'4004RConfigurator'!E40 -> Customised input Wired Powered by IDC | G42: =SUM(I42:L42) -> 0 | I42: 0 | J42: 0 | N42: =+'4004RConfigurator'!L40*G42 -> 0 | O42: =+'4004RConfigurator'!M40 -> 0 | P42: =IF(G42>0,'4004RConfigurator'!P39,"") ->  | Q42: 0 | R42: 0 | T42: =+'4004RConfigurator'!C40 -> Customised 2 | U42: 0 | AE42: 0 | AF42: 0
C43: =+'4004RConfigurator'!E41 -> Customised input Wired Powered by IDC | G43: 0 | I43: 0 | J43: 0 | N43: =+'4004RConfigurator'!L41*G43 -> 0 | O43: =+'4004RConfigurator'!M41 -> 0 | P43: =IF(G43>0,'4004RConfigurator'!P40,"") ->  | Q43: 0 | R43: 0 | T43: =+'4004RConfigurator'!C41 -> Customised 3 | U43: 0 | AE43: 0 | AF43: 0
C44: =+'4004RConfigurator'!E42 -> Customised input Wired Powered by IDC | G44: 0 | I44: 0 | J44: 0 | N44: =+'4004RConfigurator'!L42*G44 -> 0 | O44: =+'4004RConfigurator'!M42 -> 0 | P44: =IF(G44>0,'4004RConfigurator'!P41,"") ->  | Q44: 0 | R44: 0 | T44: =+'4004RConfigurator'!C42 -> Customised 4 | U44: 0 | AE44: 0 | AF44: 0
C45: =+'4004RConfigurator'!E43 -> Customised input Wired Powered by IDC | G45: 0 | I45: 0 | J45: 0 | N45: =+'4004RConfigurator'!L43*G45 -> 0 | O45: =+'4004RConfigurator'!M43 -> 0 | P45: =IF(G45>0,'4004RConfigurator'!P42,"") ->  | R45: 0 | T45: =+'4004RConfigurator'!C43 -> Customised 5 | U45: 0 | AE45: 0 | AF45: 0
C46: Step 2b: Allocating Conventional Field Devices to IDC 3 & 4 | R46: 0
C47: =IF(T12="English",TranslateMain!$C$34,TranslateMain!$D$34) -> Monitoring of Compressor for Pneumatic Operation of Actuators | G47: 0 | K47: 0 | L47: 0 | P47: Input Monitoring | Q47: =IF(P47="Aux PS",N47,0) -> 0 | R47: 0 | T47: Compressor | U47: 0 | Z47: 3 | AE47: 0 | AF47: 0
C48: =IF(T12="English",TranslateMain!$C$35,TranslateMain!$D$35) -> Monitoring of Pressure Switch Alarm | G48: 1 | K48: 1 | L48: 0 | P48: Input Monitoring | Q48: 0 | R48: 0 | T48: Gas Pressure Sw | U48: 1 | AE48: 1 | AF48: 0
C49: =IF(T12="English",TranslateMain!$C$36,TranslateMain!$D$36) -> Monitoring of Supervisory Tamper Switch | G49: 1 | K49: 0 | L49: 1 | P49: Input Monitoring | Q49: 0 | R49: 0 | T49: Gas Tamper Sw | U49: 1 | AE49: 0 | AF49: 1
C50: =IF(T12="English",TranslateMain!$C$37,TranslateMain!$D$37) -> Monitoring of Water Flow Switch | G50: 0 | K50: 0 | L50: 0 | P50: Input Monitoring | Q50: 0 | R50: 0 | T50: Water Flow Switch | U50: =+G50 -> 0 | AE50: 0 | AF50: 0
C51: =IF(T12="English",TranslateMain!$C$38,TranslateMain!$D$38) -> Monitoring of Supervisory Alert | G51: 0 | K51: 0 | L51: 0 | P51: Input Monitoring | Q51: 0 | R51: 0 | T51: Water Supervissory | U51: =+G51 -> 0 | AE51: 0 | AF51: 0
R52: 0
C53: =IF(T12="English",TranslateMain!$C$39,TranslateMain!$D$39) -> Step 3: Special Purpose Monitoring Input(SPM1 & 2) | I53: SPM1 Input | J53: SPM2 Inputs | N53: Standby/Aux | O53: Alarm/Aux | P53: =+P23 -> Remarks | R53: 0 | T53: Special Purpose Monitoring Devices | Z53: 4 | AE53: 1 | AF53: 0
C54: =IF(T12="English",TranslateMain!$C$40,TranslateMain!$D$40) -> Abort Switch with UL864 Listing | G54: =SUM(I54:L54) -> 1 | I54: 1 | J54: 0 | P54: =+'4004RConfigurator'!P70 -> Input Monitoring | Q54: =IF(P54="Aux PS",N54,0) -> 0 | R54: 0 | T54: =+'4004RConfigurator'!C70 -> 2081-9067 | U54: =+G54 -> 1 | AE54: 0 | AF54: 1
C55: =IF(T12="English",TranslateMain!$C$41,TranslateMain!$D$41) -> Manual Overide PullStation - Conventional(UL & FM) | G55: 1 | I55: 0 | J55: 1 | P55: =+'4004RConfigurator'!P67 -> Input Monitoring | Q55: 0 | R55: 0 | T55: =+'4004RConfigurator'!C67 -> 2099-9149 | U55: =+G55 -> 1 | AE55: =+AE54 -> 0 | AF55: =+AF54 -> 1
C56: =IF(T12="English",TranslateMain!$C$42,TranslateMain!$D$42) -> Pull Station Suppression Label Kit for Specific Application | G56: 1 | I56: =+I55 -> 0 | J56: =+J55 -> 1 | P56: =+'4004RConfigurator'!P68 -> Label Kit | Q56: 0 | R56: 0 | T56: =+'4004RConfigurator'!C68 -> 4099-9802 | U56: 1
R57: 0
C58: =IF(T12="English",TranslateMain!$C$43,TranslateMain!$D$43) -> Step 4:Auxillary Dry Contacts - Output | I58: Aux 1 Contacts | J58: Aux 2 Contacts | K58: Aux3 Contacts | N58: Standby/Aux | O58: Alarm/Aux | P58: =+P53 -> Remarks | R58: 0 | T58: Default Auxillary Dry Contacts
C59: =IF(T12="English",TranslateMain!$C$44,TranslateMain!$D$44) -> Relay Board - Comes with Panel | I59: 1 | N59: =+I59*20 -> 20 | O59: =+I59*70 -> 70 | P59: =+J59*70 -> 0 | Q59: =IF(P59="Aux PS",N59,0) -> 0 | R59: 0 | Z59: 5 | AE59: 1
C60: =IF(T12="English",TranslateMain!$C$45,TranslateMain!$D$45) -> Common Panel Alarm Signal | G60: =+I60 -> 1 | I60: 1 | P60: Dry Contacts | Q60: 0 | R60: 0 | T60: Common Alarm | U60: =+G60 -> 1 | V60: For MFAP | AE60: 1
C61: =IF(T12="English",TranslateMain!$C$46,TranslateMain!$D$46) -> Common Panel Trouble Signal | G61: =+J61 -> 1 | J61: 1 | P61: Dry Contacts | Q61: 0 | R61: 0 | T61: Common Trouble | U61: =+G61 -> 1 | V61: For MFAP | AF61: 1
C62: =IF(T12="English",TranslateMain!$C$47,TranslateMain!$D$47) -> Pre Release Display Signage | G62: =+K62 -> 0 | K62: 0 | P62: Dry Contacts | Q62: 0 | R62: 0 | T62: Pre Release Signal | U62: =+G62 -> 0 | V62: For Signage | AG62: 0
C63: =IF(T12="English",TranslateMain!$C$48,TranslateMain!$D$48) -> Pre Release Display Auxillary Power Supply | G63: =+G62 -> 0 | N63: =+G62*'4004RConfigurator'!L76 -> 0 | O63: =+G62*'4004RConfigurator'!M76 -> 0 | P63: =IF(G63>0,+'4004RConfigurator'!P76,"") ->  | Q63: 0 | R63: 0 | T63: Auxillary PS | U63: =+G63 -> 0 | V63: For Signage
R64: 0
C65: =IF(T12="English",TranslateMain!$C$49,TranslateMain!$D$49) -> Step 5:Optional Auxillary Dry Contacts-Output(Seldom used) | I65: Aux 1 Contacts | J65: Aux 2 Contacts | K65: Aux3 Contacts | L65: Aux4 Contacts | N65: Standby/Aux | O65: Alarm/Aux | P65: =+P58 -> Remarks | R65: 0 | T65: Optional Auxillary Dry Contacts
C66: =IF(T12="English",TranslateMain!$C$50,TranslateMain!$D$50) -> Relay Board - Optional | G66: =SUM(I66:L66) -> 0 | I66: 0 | N66: =+I66*20 -> 0 | O66: =+I66*70 -> 0 | P66: =+J66*70 -> 0 | Q66: =IF(P66="Aux PS",N66,0) -> 0 | R66: 0 | Z66: 6 | AE66: 0
C67: =IF(T12="English",TranslateMain!$C$51,TranslateMain!$D$51) -> Common Panel Alarm Signal | G67: =+I67 -> 0 | I67: 0 | P67: Dry Contact | Q67: 0 | R67: 0 | T67: Common Alarm | U67: =+G67 -> 0 | AE67: 0
C68: =IF(T12="English",TranslateMain!$C$52,TranslateMain!$D$52) -> Common Panel Trouble Signal | G68: =+J68 -> 0 | J68: 0 | P68: Dry Contact | Q68: 0 | R68: 0 | T68: Common Trouble | U68: =+G68 -> 0 | AF68: 0
C69: =IF(T12="English",TranslateMain!$C$53,TranslateMain!$D$53) -> 2nd Zone Alarm | G69: =+K69 -> 0 | K69: 0 | P69: Dry Contact | Q69: 0 | R69: 0 | T69: 2nd Zone Alm | U69: 0 | AG69: 0
C70: =IF(T12="English",TranslateMain!$C$54,TranslateMain!$D$54) -> Discharge Display Signage | G70: =+L70 -> 0 | L70: 0 | P70: Dry Contact | Q70: 0 | R70: 0 | T70: Discharge Signal | U70: 0 | V70: =+P71 ->  | AH70: 0
C71: =IF($T$12="English",TranslateMain!$C$55,TranslateMain!$D$55) -> Discharge Display Auxillary Power Supply | G71: =+G70 -> 0 | N71: =IF(G66>0,G70*'4004RConfigurator'!L75,0) -> 0 | O71: =IF(G66>0,G70*'4004RConfigurator'!M75,0) -> 0 | P71: =IF(G66>0,(IF(G71>0,'4004RConfigurator'!P75,"")),"") ->  | Q71: 0 | R71: 0
R72: 0
B73: S/No | C73: =IF($T$12="English",TranslateMain!$C$56,TranslateMain!$D$56) -> Step 6a: RAC Output, Suppression Interface Equipment: Solenoid | I73: RAC1-Output | J73: RAC1-Total Current | K73: RAC2-Output | L73: RAC2-Total Current | N73: Standby/Aux | O73: Unit Alarm/Aux | P73: =+P65 -> Remarks | R73: 0 | T73: Release Actuating Devices & Accessories
B74: 7 | C74: =IF($T$12="English",TranslateMain!$C$57,TranslateMain!$D$57) -> LP CO2 double action 24 VDC solenoid 430948 | G74: =IF(B77=0,0,+I74) -> 1 | I74: 1 | J74: =+O74*G74 -> 438 | N74: =VLOOKUP($B74,'4004RConfigurator'!B83:P130,11,TRUE)*G74 -> 0 | O74: =VLOOKUP($B74,'4004RConfigurator'!B83:P130,12,TRUE)*G74 -> 438 | P74: Solenoid | Q74: =IF(P74="Aux PS",N74,0) -> 0 | R74: 0 | T74: =VLOOKUP($B74,'4004RConfigurator'!B83:P130,3,TRUE) -> Ansul | U74: =+G74 -> 1 | V74: =VLOOKUP(B74,AddonDevice!B50:F95,5,TRUE) -> UL listed | Z74: 7 | AE74: 1 | AF74: =+AK74*AC74 -> 0
B75: R2 | C75: =IF($T$12="English",TranslateMain!$C$58,TranslateMain!$D$58) -> The RAC2 is being used for Discharge Display Signal. | G75: =+K75 -> 1 | K75: 1 | L75: =+O75*G75 -> 0 | N75: =IF(B75="R2",0,(VLOOKUP($B75,'4004RConfigurator'!$B$83:$M$130,11,TRUE)))*G75 -> 0 | O75: =IF(B75="R2",0,(VLOOKUP($B75,'4004RConfigurator'!$B$83:$M$130,12,TRUE)))*G75 -> 0 | P75: Solenoid/Display | Q75: 0 | R75: 0 | T75: =VLOOKUP($B75,'4004RConfigurator'!B83:P130,3,TRUE) -> RAC2 | U75: 1 | AG75: 1 | AH75: =+AK75*AC75 -> 0
C76: =IF($T$12="English",TranslateMain!$C$59,TranslateMain!$D$59) -> Discharge Display Auxillary Power Supply | G76: =IF(B75="R2",1,0)*G75 -> 1 | N76: =IF(B75="R2",'4004RConfigurator'!L75,0)*G76 -> 0 | O76: =IF(B75="R2",'4004RConfigurator'!M75,0)*G76 -> 180 | P76: =IF(G76>0,'4004RConfigurator'!P75,"") -> Aux PS | Q76: 0 | R76: =IF(P76="Aux PS",O76,0) -> 180 | T76: Auxillary PS | U76: 1 | V76: For Signage
B77: =+B74 -> 7 | C77: =IF($T$12="English",TranslateMain!$C$60,TranslateMain!$D$60) -> Step 6b: RAC Output Related Accessories | K77: **Note: For Preaction/Deluge application you will requied FM Approved released Electric release Solenoid rated 22 watts or less | R77: =IF(P77="Aux PS",O77,0) -> 0
B78: =+B75 -> R2 | C78: =IF($T$12="English",TranslateMain!$C$61,TranslateMain!$D$61) -> Maintenance Switch with Lights(UL) | G78: =+I78 -> 1 | H78: =+G78+G79 -> 1 | I78: 1 | N78: =+'4004RConfigurator'!L72*G78 -> 0 | O78: =+'4004RConfigurator'!M72*G78 -> 83 | P78: =IF(G78>0,'4004RConfigurator'!P72,"") -> Aux PS | Q78: =IF(P78="Aux PS",N78,0) -> 0 | R78: 83 | T78: =+'4004RConfigurator'!C71 -> 2080-9059 | U78: =+G78 -> 1 | V78: =+P78 -> Aux PS | Z78: 8 | AE78: 1
C79: =IF($T$12="English",TranslateMain!$C$62,TranslateMain!$D$62) -> Maintenance Switch without Lights(UL) | G79: =+I79 -> 0 | I79: 0 | P79: =+'4004RConfigurator'!P71 -> RAC Accessories | Q79: 0 | R79: 0 | T79: =+'4004RConfigurator'!C72 -> 2080-9069 | U79: =+G79 -> 0 | AE79: 0
C80: =IF($T$12="English",TranslateMain!$C$63,TranslateMain!$D$63) -> Supervisory Coil for Actuator(Mandatory) | G80: =+I80 -> 1 | I80: 1 | P80: =+'4004RConfigurator'!P69 -> RAC Accessories | Q80: 0 | R80: 0 | T80: =+'4004RConfigurator'!C69 -> 2081-9046 | U80: =+G80 -> 1 | AE80: 1
G81: Total Current @ Cct | I81: =+O74 -> 438 | R81: 0 | AE81: =+AK74 -> 0
R82: 0
C83: =IF($T$12="English",TranslateMain!$C$64,TranslateMain!$D$64) -> Step 7: Conventional Notification Devices | I83: NAC1-Output | J83: NAC1-Total Current | K83: NAC2-Output | L83: NAC1-Total Current | N83: Standby/Aux | O83: Unit Alarm/Aux | P83: =+P73 -> Remarks | R83: 0 | T83: Conventional Notification Devices | Z83: 9 | AE83: 2 | AF83: =+AE83*AK83 -> 0 | AG83: 0 | AH83: =+AG83*AK83 -> 0
C84: =IF($T$12="English",TranslateMain!$C$65,TranslateMain!$D$65) -> Vibrating Bell 6" - 24 VDC | G84: =+I84+K84 -> 2 | I84: 2 | J84: =+I84*O84 -> 54 | K84: 0 | L84: =+K84*O84 -> 0 | N84: =+'4004RConfigurator'!L46 -> 0 | O84: =+'4004RConfigurator'!M46 -> 27 | P84: Bell | Q84: =IF(P84="Aux PS",N84,0) -> 0 | R84: 0 | T84: 43T-G6-24-R | U84: =+G84 -> 2 | AE84: 0 | AF84: =+AE84*AK84 -> 0 | AG84: 2 | AH84: =+AG84*AK84 -> 0
C85: =IF($T$12="English",TranslateMain!$C$66,TranslateMain!$D$66) -> 15 cd Red Wall Horn Strobe | G85: =+I85+K85 -> 2 | I85: 0 | J85: =+I85*O85 -> 0 | K85: 2 | L85: =+K85*O85 -> 150 | N85: =+'4004RConfigurator'!L47 -> 0 | O85: =+'4004RConfigurator'!M47 -> 75 | P85: Strobe 15cd | Q85: 0 | R85: 0 | T85: 4906-9127 | U85: =+G85 -> 2 | AE85: 0 | AF85: 0 | AG85: 0 | AH85: 0
C86: =IF($T$12="English",TranslateMain!$C$67,TranslateMain!$D$67) -> 30 cd Red Wall Horn Strobe | G86: 0 | I86: 0 | J86: 0 | K86: 0 | L86: 0 | N86: =+'4004RConfigurator'!L48*'4004R(Conventional)'!G86 -> 0 | O86: =+'4004RConfigurator'!M48 -> 116 | P86: Strobe 30cd | Q86: 0 | R86: 0 | T86: 4906-9127 | U86: =+G86 -> 0 | AE86: 0 | AF86: 0 | AG86: 0 | AH86: 0
C87: =IF($T$12="English",TranslateMain!$C$68,TranslateMain!$D$68) -> 75 cd Red Wall Horn Strobe | G87: 0 | I87: 0 | J87: 0 | K87: 0 | L87: 0 | N87: =+'4004RConfigurator'!L49*'4004R(Conventional)'!G87 -> 0 | O87: =+'4004RConfigurator'!M49 -> 221 | P87: Strobe 75cd | Q87: 0 | R87: 0 | T87: 4906-9127 | U87: =+G87 -> 0 | AE87: 0 | AF87: 0 | AG87: 0 | AH87: 0
C88: =IF($T$12="English",TranslateMain!$C$69,TranslateMain!$D$69) -> Red Wall Mounted Horn | G88: 0 | I88: 0 | J88: 0 | K88: 0 | L88: 0 | N88: =+'4004RConfigurator'!L50*'4004R(Conventional)'!G88 -> 0 | O88: =+'4004RConfigurator'!M50 -> 41 | P88: Horn | Q88: 0 | R88: 0 | T88: =+'4007ESConfigurator'!C137 -> 4901-9820 | U88: 0 | AE88: 0 | AF88: 0 | AG88: 0 | AH88: 0
C89: =IF($T$12="English",TranslateMain!$C$70,TranslateMain!$D$70) -> Input1B - Notification Device 1 | G89: 0 | I89: 0 | J89: 0 | K89: 0 | L89: 0 | N89: =+'4004RConfigurator'!L52*'4004R(Conventional)'!G89 -> 0 | O89: =+'4004RConfigurator'!M52 -> 0 | P89: =IF(G89>0,AddonDevice!J112,"") ->  | Q89: 0 | R89: 0 | T89: =+'4004RConfigurator'!C52 -> Customised 1 | U89: 0 | AE89: 0 | AF89: 0 | AG89: 0 | AH89: 0
C90: =IF($T$12="English",TranslateMain!$C$71,TranslateMain!$D$71) -> Input2B - Notification Device 2 | G90: 0 | I90: 0 | J90: 0 | K90: 0 | L90: 0 | N90: =+'4004RConfigurator'!L53*'4004R(Conventional)'!G90 -> 0 | O90: =+'4004RConfigurator'!M53 -> 0 | P90: =IF(G90>0,AddonDevice!J113,"") ->  | Q90: 0 | R90: 0 | T90: =+'4004RConfigurator'!C53 -> Customised 2 | U90: 0 | AE90: 0 | AF90: 0 | AG90: 0 | AH90: 0
C91: =IF($T$12="English",TranslateMain!$C$72,TranslateMain!$D$72) -> Input3B - Notification Device 3 | G91: 0 | I91: 0 | J91: 0 | K91: 0 | L91: 0 | N91: =+'4004RConfigurator'!L54*'4004R(Conventional)'!G91 -> 0 | O91: =+'4004RConfigurator'!M54 -> 0 | P91: =IF(G91>0,AddonDevice!J114,"") ->  | Q91: 0 | R91: 0 | T91: =+'4004RConfigurator'!C54 -> Customised 3 | U91: 0 | AE91: 0 | AF91: 0 | AG91: 0 | AH91: 0
C92: =IF($T$12="English",TranslateMain!$C$73,TranslateMain!$D$73) -> Input4B - Notification Device 4 | G92: 0 | I92: 0 | J92: 0 | K92: 0 | L92: 0 | N92: =+'4004RConfigurator'!L55*'4004R(Conventional)'!G92 -> 0 | O92: =+'4004RConfigurator'!M55 -> 0 | P92: =IF(G92>0,AddonDevice!J115,"") ->  | Q92: 0 | R92: 0 | T92: =+'4004RConfigurator'!C55 -> Customised 4 | U92: 0 | AE92: 0 | AF92: 0 | AG92: 0 | AH92: 0
C93: =IF($T$12="English",TranslateMain!$C$74,TranslateMain!$D$74) -> Input5B - Notification Device 5 | G93: 0 | I93: 0 | J93: 0 | K93: 0 | L93: 0 | N93: =+'4004RConfigurator'!L56*'4004R(Conventional)'!G93 -> 0 | O93: =+'4004RConfigurator'!M56 -> 0 | P93: =IF(G93>0,AddonDevice!J116,"") ->  | Q93: 0 | R93: 0 | T93: =+'4004RConfigurator'!C56 -> Customised 5 | U93: 0 | AE93: 0 | AF93: 0 | AG93: 0 | AH93: 0
C94: =IF($T$12="English",TranslateMain!$C$75,TranslateMain!$D$75) -> Input6B - Notifiation Device 6 | G94: 0 | I94: 0 | J94: 0 | K94: 0 | L94: 0 | N94: =+'4004RConfigurator'!L57*'4004R(Conventional)'!G94 -> 0 | O94: =+'4004RConfigurator'!M57 -> 0 | P94: =IF(G94>0,AddonDevice!J117,"") ->  | Q94: 0 | R94: Subtotal | T94: =+'4004RConfigurator'!C57 -> Customised 6 | U94: 0
G95: Total Current @ Cct | J95: =+(I84*O84)+(I85*O85)+(I86*O86)+(I87*O87)+(I88*O88)+(I89*O89)+(I90*O90)+(I91*O91)+(I92*O92)+(I93*O93)+(I94*O94) -> 54 | L95: =+(K84*O84)+(K85*O85)+(K86*O86)+(K87*O87)+(K88*O88)+(K89*O89)+(K90*O90)+(K91*O91)+(K92*O92)+(K93*O93)+(K94*O94) -> 150 | P95: Total Aux | Q95: =SUM(Q24:Q94) -> 0 | R95: =SUM(R17:R94) -> 383
R96: 0
C97: =IF($T$12="English",TranslateMain!$C$76,TranslateMain!$D$76) -> Step 8: Panel Notification Circuits Loading | G97: Circuits Types Selection - RAC or NAC | R97: 0
C98: =IF($T$12="English",TranslateMain!$C$77,TranslateMain!$D$77) -> Conventional RAC Circuit 1 | G98: =+I81 -> 438 | R98: 0
C99: =IF($T$12="English",TranslateMain!$C$78,TranslateMain!$D$78) -> Conventional RAC Circuit 2 | G99: =+J81 -> 0 | R99: 0
C100: =IF($T$12="English",TranslateMain!$C$79,TranslateMain!$D$79) -> Conventional NAC Circuit 1 | G100: =+J95 -> 54 | R100: 0
C101: =IF($T$12="English",TranslateMain!$C$80,TranslateMain!$D$80) -> Conventional NAC Circuit 2 | G101: =+L95 -> 150 | R101: 0
G102: =SUM(G98:G101) -> 642 | R102: 0
C103: =IF($T$12="English",TranslateMain!$C$81,TranslateMain!$D$81) -> Step 9:Notification or Release Actuator Circuit Cable Length | R103: 0
C104: =IF($T$12="English",TranslateMain!$C$82,TranslateMain!$D$82) -> Cables Property Selection to match RAC max Length Requirements | G104: Cables Properties used for RAC Wiring | R104: 0
C105: =IF($T$12="English",TranslateMain!$C$83,TranslateMain!$D$83) -> Wire Gauge | G105: 2.5mm2 | H105: Select the Wire Gauge Required for better Distance coverage. | L105: Cable Thickness | R105: =IF(L105="Aux PS",#REF!,0) -> 0 | Z105: 10 | AE105: 16AWG
C106: =IF($T$12="English",TranslateMain!$C$84,TranslateMain!$D$84) -> Wire Temperature | G106: =IF(G98>250,(IF(G98>749,(IF(G98>999,(IF(G98>1249,(IF(G98>1499,(IF(G98>1749,(IF(G98>1999,'Actuator Cable Distance'!$M22,'Actuator Cable Distance'!$K68)),'Actuator Cable Distance'!$K67)),'Actuator Cable Distance'!$K66)),'Actuator Cable Distance'!$K65)),'Actuator Cable Distance'!$K64)),'Actuator Cable Distance'!$K63)),'Actuator Cable Distance'!$K62) -> 3.1 | H106: Line Resistance Dependant on Solenoid Current Rating | L106: Ohm | R106: =IF(L106="Aux PS",#REF!,0) -> 0
C107: =IF($T$12="English",TranslateMain!$C$85,TranslateMain!$D$85) -> Unit of Measure | G107: =IF(G98<1751,"Vdrop=3.4V","Vdrop=1.2V") -> Vdrop=3.4V | H107: Maximum Voltage Drop Dependant on Solenoid Current Rating | L107: Volts | R107: =IF(L107="Aux PS",#REF!,0) -> 0
C108: =IF($T$12="English",TranslateMain!$C$86,TranslateMain!$D$86) -> Ohms / Km | R108: =IF(L108="Aux PS",#REF!,0) -> 0
C109: =IF($T$12="English",TranslateMain!$C$87,TranslateMain!$D$87) -> Quick Estimated NAC Circuit Length Calculator | G109: RAC Maximum Distance Run to Solenoid base on Wiring Gauge, Max Voltage Drop and Line Resistance. | R109: 0
C110: =IF($T$12="English",TranslateMain!$C$88,TranslateMain!$D$88) -> Est max wire length - Worst Case - RAC1-SRP | G110: RAC1 Usage -Solenoid1 | J110: =IF(J74>0,(_xlfn.IFS($G$105="18AWG",'Actuator Cable Distance'!$C$72,$G$105="16AWG",'Actuator Cable Distance'!$D$72,$G$105="14AWG",'Actuator Cable Distance'!$E$72,$G$105="12AWG",'Actuator Cable Distance'!$H$72,$G$105="1.5mm2",'Actuator Cable Distance'!$G$72,$G$105="2.5mm2",'Actuator Cable Distance'!$H$72)),"Solenoid not Selected") -> 256.985262 | K110: ** Note: RAC Distance reference taken from 4004R installation Guide | R110: 0
C111: =IF($T$12="English",TranslateMain!$C$89,TranslateMain!$D$89) -> Est max wire length - Worst Case - RAC2-SRP | G111: RAC2 Usage -Solenoid2 | J111: =IF(L75>0,(_xlfn.IFS($G$105="18AWG",'Actuator Cable Distance'!$C$36,$G$105="16AWG",'Actuator Cable Distance'!$D$36,$G$105="14AWG",'Actuator Cable Distance'!$E$36,$G$105="12AWG",'Actuator Cable Distance'!$H$36,$G$105="1.5mm2",'Actuator Cable Distance'!$G$36,$G$105="2.5mm2",'Actuator Cable Distance'!$H$36)),"Discharge Display ") -> Discharge Display | R111: 0
C112: =IF($T$12="English",TranslateMain!$C$90,TranslateMain!$D$90) -> Cables Property Selection to match RAC max Length Requirements | G112: Cables Properties used for NAC Wiring | T112: Standby and Alarm Battery AH Calculation
C113: =IF($T$12="English",TranslateMain!$C$91,TranslateMain!$D$91) -> Wire Gauge | G113: 2.5mm2 | H113: Select the Wire Gauge Required for better Distance coverage. | L113: Cable Thickness | U113: Minutes | V113: Hours | Z113: 11 | AE113: 16AWG
C114: =IF($T$12="English",TranslateMain!$C$92,TranslateMain!$D$92) -> Wire Temperature | G114: 75°C (167°F) | H114: Select the type of Temperature properties for cables. | L114: Cable Temp | T114: Standby Hours | V114: =IF(G20="Preaction/Deluge",L134,J133) -> 24 | AE114: 75°C (167°F)
C115: =IF($T$12="English",TranslateMain!$C$93,TranslateMain!$D$93) -> Unit of Measure | G115: Meters | H115: Default at metre | L115: Metric | T115: Alarm Mins | U115: =+J134 -> 5 | V115: =+U115/60 -> 0.08333333333 | AE115: Meters
C116: =IF($T$12="English",TranslateMain!$C$94,TranslateMain!$D$94) -> Ohms / Km | G116: =IF(G114="50°C (122°F)",(_xlfn.IFS($G$113="18AWG",IdnetAddr!$H$3,$G$113="16AWG",IdnetAddr!$I$3,$G$113="14AWG",IdnetAddr!$J$3,$G$113="12AWG",IdnetAddr!$K$3,$G$113="1.5mm2",IdnetAddr!$L$3,$G$113="2.5mm2",IdnetAddr!$M$3)),(_xlfn.IFS($G$113="18AWG",IdnetAddr!$N$3,$G$113="16AWG",IdnetAddr!$O$3,$G$113="14AWG",IdnetAddr!$Q$3,$G$113="12AWG",IdnetAddr!$P$3,$G$113="1.5mm2",IdnetAddr!$Q$3,$G$113="2.5mm2",IdnetAddr!$R$3))) -> 13.58267719 | H116: Automatic from references | L116: ohm/Km | U116: Minutes | V116: Hours | AE116: =IF(AE114="50°C (122°F)",(_xlfn.IFS($G$113="18AWG",IdnetAddr!$H$3,$G$113="16AWG",IdnetAddr!$I$3,$G$113="14AWG",IdnetAddr!$J$3,$G$113="12AWG",IdnetAddr!$K$3,$G$113="1.5mm2",IdnetAddr!$L$3,$G$113="2.5mm2",IdnetAddr!$M$3)),(_xlfn.IFS($G$113="18AWG",IdnetAddr!$N$3,$G$113="16AWG",IdnetAddr!$O$3,$G$113="14AWG",IdnetAddr!$Q$3,$G$113="12AWG",IdnetAddr!$P$3,$G$113="1.5mm2",IdnetAddr!$Q$3,$G$113="2.5mm2",IdnetAddr!$R$3))) -> 13.58267719
C117: =IF($T$12="English",TranslateMain!$C$95,TranslateMain!$D$95) -> Wiorst Case Maximum Cable Length for NAC wiring | G117: Worst Case Only for NAC Wiring | R117: 0
C118: =IF($T$12="English",TranslateMain!$C$96,TranslateMain!$D$96) -> Est max wire length - Worst Case - NAC 1 | G118: NAC1 Notification Circuit 1 - Bells | J118: =(IF(J95>0,((((WorseV/(J95/C_Amp))/Res_CB)*C_Res)/Core_2),"NA")) -> 2726.784752 | R118: 0 | T118: Panel Calculated Value base on loading
C119: =IF($T$12="English",TranslateMain!$C$97,TranslateMain!$D$97) -> Est max wire length - Worst Case - NAC 2 | G119: NAC2 Notification Circuit 1 - Bells | J119: =IF((LEFT(G119,4))="RAC1",(_xlfn.IFS($G$113="18AWG",'Actuator Cable Distance'!$C$38,$G$113="16AWG",'Actuator Cable Distance'!$D$38,$G$113="14AWG",'Actuator Cable Distance'!$E$38,$G$113="12AWG",'Actuator Cable Distance'!$H$38,$G$113="1.5mm2",'Actuator Cable Distance'!$G$38,$G$113="2.5mm2",'Actuator Cable Distance'!$H$38)),(IF(L95>0,((((WorseV/(L95/C_Amp))/Res_CB)*C_Res)/Core_2),"NA"))) -> 981.6425106 | R119: 0 | U119: mA | V119: Amp
C120: =IF($T$12="English",TranslateMain!$C$98,TranslateMain!$D$98) -> Mean Case Maximum Cable Length for NAC Wiring | G120: Mean Case only for NAC Wiring | R120: 0 | T120: Stby Current | U120: =+I128*1000 -> 250.4 | V120: =+U120/1000 -> 0.2504
C121: =IF($T$12="English",TranslateMain!$C$99,TranslateMain!$D$99) -> Est max wire length - Mean + 20% - NAC 1 | G121: =+G118 -> NAC1 Notification Circuit 1 - Bells | J121: =IF((LEFT(G118,4))="RAC3",(_xlfn.IFS($G$113="18AWG",'Actuator Cable Distance'!$C$38,$G$113="16AWG",'Actuator Cable Distance'!$D$38,$G$113="14AWG",'Actuator Cable Distance'!$E$38,$G$113="12AWG",'Actuator Cable Distance'!$H$38,$G$113="1.5mm2",'Actuator Cable Distance'!$G$38,$G$113="2.5mm2",'Actuator Cable Distance'!$H$38)),(IF(J95>0,((((MeanV/(J95/C_Amp))/Res_CB)*C_Res)/Core_2),"NA"))) -> 4546.913573 | R121: 0 | T121: Alarm Current | U121: =+J128*1000 -> 1132 | V121: =+U121/1000 -> 1.132
C122: =IF($T$12="English",TranslateMain!$C$100,TranslateMain!$D$100) -> Est max wire length - Mean + 20% - NAC 2 | G122: =+G119 -> NAC2 Notification Circuit 1 - Bells | J122: =IF((LEFT(G119,4))="RAC3",(_xlfn.IFS($G$113="18AWG",'Actuator Cable Distance'!$C$38,$G$113="16AWG",'Actuator Cable Distance'!$D$38,$G$113="14AWG",'Actuator Cable Distance'!$E$38,$G$113="12AWG",'Actuator Cable Distance'!$H$38,$G$113="1.5mm2",'Actuator Cable Distance'!$G$38,$G$113="2.5mm2",'Actuator Cable Distance'!$H$38)),(IF(L95>0,((((MeanV/(L95/C_Amp))/Res_CB)*C_Res)/Core_2),"NA"))) -> 1636.888886 | R122: 0 | T122: Stby Battery Capacity | U122: =+V120*V114 -> 6.0096
G123: =SUM(G119:G122) -> 0 | R123: 0 | T123: Alarm Battery Capacity | U123: =+V121*V115 -> 0.09433333333
G124: =SUM(G120:G123) -> 0 | R124: 0 | T124: Total Battery Capacity | U124: =+U123+U122 -> 6.103933333
R125: 0 | T125: Typical Safety factor of 20% | U125: =+J135 -> 0.25
C126: =IF($T$12="English",TranslateMain!$C$101,TranslateMain!$D$101) -> Step 10: Auxillary Power Supply | G126: Aux or SNAC | I126: =+Q95 -> 0 | J126: =+R95 -> 383 | R126: 0 | T126: Final Battery Capacity | U126: =+U124*(1+U125) -> 7.629916667
C127: =IF($T$12="English",TranslateMain!$C$102,TranslateMain!$D$102) -> Aux Power or Simple NAC Load - Max 2000mA | H127: Aux Power Remain | I127: =750-I126 -> 750 | J127: =750-J126 -> 367 | K127: (Only those items with "Aux PS" | R127: 0 | T127: Market Standard Batteries offering
G128: 750 | I128: =(((SUM(N18:N94))-I126+(SUM(N18:N19)))/1000) -> 0.2504 | J128: =((SUM(O27:O94)-J126+SUM(O18:O19))/1000) -> 1.132 | K128: **Note: Adds up Panel Current, Auxillary Power, RAC and NAC consumption | R128: 0 | T128: Built in Battery Charger | U128: 6.2
C129: =IF($T$12="English",TranslateMain!$C$103,TranslateMain!$D$103) -> Step 11: Battery Calculation | G129: =3-J128 -> 1.868 | I129: =IF(G129<0,"Error , Exceeded Power of Panel","") ->  | R129: 0 | T129: Built in Battery Charger | U129: 10 | AA129: 4009 NAC Repeater Standard Batteries offering | AD129: Total
C130: =IF($T$12="English",TranslateMain!$C$104,TranslateMain!$D$104) -> Total Standby and Alarm Loads Amps | I130: Panel Power = 3 Amps | K130: Once Exceed you need to use 4007ES addressable panel in place. | R130: 0 | T130: Built in Battery Charger | U130: 12.7 | AA130: Built in Battery Charger | AC130: 6.2 | AD130: =IF($J$139=6.2,1,0) -> 0
C131: =IF($T$12="English",TranslateMain!$C$105,TranslateMain!$D$105) -> Total Standby and Alarm Loads Ampere Hours | I131: =+I128*24 -> 6.0096 | J131: =(J128*I134) -> 0.09433333333 | K131: The calculated Standby and Alarm Ah | R131: 0 | T131: Built in Battery Charger | U131: 18 | AA131: Built in Battery Charger | AC131: 10 | AD131: =IF($J$139=AC131,1,0) -> 1
I132: =+#REF!+#REF! ->  | J132: =+I132*1.2 ->  | K132: =IF(G20="Preaction/Deluge","Warning Auto Standby hrs Changes, cell J114 will be overide","") ->  | R132: 0 | T132: External Battery charger | U132: 25 | AA132: Built in Battery Charger | AC132: 12.7 | AD132: 0
C133: =IF($T$12="English",TranslateMain!$C$106,TranslateMain!$D$106) -> Battery Calculation Standby Hours | J133: 24 | K133: =IF(G20="Preaction/Deluge","** Preaction/Deluge Chosen","") ->  | T133: External Battery charger | U133: 33 | Z133: 12 | AA133: External Battery Charger | AC133: 18 | AD133: 0 | AE133: 24
C134: =IF($T$12="English",TranslateMain!$C$107,TranslateMain!$D$107) -> Battery Calculation Alarm Minutes | I134: =+J134/60 -> 0.08333333333 | J134: 5 | K134: =IF(G20="Preaction/Deluge","Standby","") ->  | L134: =IF(G20="Preaction/Deluge",90,0) -> 0 | T134: External Battery charger | U134: 50 | AA134: External Battery Charger | AC134: 25 | AD134: 0 | AE134: 5
C135: =IF($T$12="English",TranslateMain!$C$108,TranslateMain!$D$108) -> Battery Calculation Battery Factor | J135: 0.25 | K135: ** Above Appear when Preaction is selected | T135: External Battery charger | U135: 110 | AA135: External Battery Charger | AC135: 33 | AD135: 0 | AE135: 0.2
T136: Base on Logic function | U136: =IF(U126<U128,U128,IF(U126<U129,U129,(IF(U126<U129,U129,IF(U126<U132,U132,IF(U126<U133,U133,IF(U126<U134,U134,IF(U126<U135,U135,0)))))))) -> 10 | AA136: External Battery charger | AC136: 50 | AD136: 0
C137: =IF($T$12="English",TranslateMain!$C$109,TranslateMain!$D$109) -> Step 12: Final Battery Ah requirements and if charger required. | I137: Total Stby & Alm | J137: =+I131+J131 -> 6.103933333 | T137: If <12.70=12.70Ah | AA137: External Battery charger | AC137: 110 | AD137: 0
C138: =IF($T$12="English",TranslateMain!$C$110,TranslateMain!$D$110) -> Total Ampere Hours | I138: 20% Safety Factor | J138: =+J137*(1+J135) -> 7.629916667 | T138: If <18=18Ah | AA138: Battery Charger from 18 to 50Ah | AD138: =SUM(AD133:AD136) -> 0
C139: =IF($T$12="English",TranslateMain!$C$111,TranslateMain!$D$111) -> Minimum Calculated Battery Size Required | G139: =IF(J138>U130,"External Charger","Internal Panel") -> Internal Panel | H139: 0 | I139: Nearest BatteryAh | J139: =IF(U126<U128,U128,IF(U126<U129,U129,(IF(U126<U129,U129,IF(U126<U132,U132,IF(U126<U133,U133,IF(U126<U134,U134,IF(U126<U135,U135,0)))))))) -> 10 | T139: If <25=25Ah | AA139: Battery Charger from 110AH | AD139: =+AD137 -> 0
T140: If <50=50Ah
T141: If<110=110Ah

Sheet 4004RConfigurator
D1: Simplex Releasing Fire Detection Solution - Manual Overide
E2: ** Note: Before Clicing Create BOM 1. Goto to 4007ESBOM, Click Clear BOM otherwise old data remains. 2. Next Click Filter off, then Filter on to get the latest configuration. 3. Finally Click Create BOM. | P2: =+'4004R(Conventional)'!T12 -> English
F4: **Note : Filter On is to view all those with>1 on column Qty Setup
F5: **Note: Filter off is to view all including "0" value on Column Qty Setup to allow Qty Manual input | L5: Equipment Current
A6: POS. | B6: No | C6: Part number | D6: Function | E6: Product Description | F6: Listing | G6: Datasheet | H6: Qty Setup | I6: Qty Manual | J6: Qty Final | L6: Stby Current | M6: Alarm Current | O6: 0 | P6: Remarks
A7: A | C7: 4004R Conventional Suppression Panel | H7: =SUM(H8:H15) -> 1 | J7: =SUM(J8:J16) -> 1 | O7: =+O6+1 -> 1
B8: 1 | C8: 4004-9301 | D8: Conventional Panel | E8: 4004R Suppression Panel Biege (Std Offering) - Beige | F8: UL & FM Listed | G8: PDF | H8: =+'4004R(Conventional)'!U18 -> 0 | I8: 0 | J8: =+I8+H8 -> 0 | L8: 100 | M8: 264 | N8: Red | O8: 2 | P8: Panel
B9: =+B8+1 -> 2 | C9: 4004-9302 | D9: Conventional Panel | E9: 4004R Suppression Panel Red (Std Offering) - Red | F9: UL & FM Listed | G9: PDF | H9: =+'4004R(Conventional)'!U19 -> 1 | I9: 0 | J9: =+I9+H9 -> 1 | L9: 100 | M9: 264 | N9: Platinium | O9: 3 | P9: Panel
B10: =+B9+1 -> 3 | C10: 4004-9860 | D10: Panel Option | E10: Auxillary Relay Board - Max 2 | F10: UL & FM Listed | G10: PDF | H10: =+'4004R(Conventional)'!G66 -> 0 | I10: 0 | J10: 0 | N10: Yes | O10: =+O9+1 -> 4 | P10: Panel
B11: =+B10+1 -> 4 | C11: 4004-9864(Class A) | D11: Panel Option | E11: Class A adapter for 2 Cct for IDC or SPM or NAC(Max 4) | F11: UL & FM Listed | G11: PDF | H11: =+'4004R(Conventional)'!U20 -> 0 | I11: 0 | J11: 0 | L11: 20 | M11: 70 | N11: No | O11: 5 | P11: Panel
B12: =+B11+1 -> 5 | C12: =+AddonDevice!C8 -> Counter | D12: =+AddonDevice!D8 -> Countdown Timer | E12: =+AddonDevice!E8 -> Count Down Timer Locally Source | F12: =+AddonDevice!F8 -> Local | H12: 0 | I12: 0 | J12: 0 | L12: =+AddonDevice!H8 -> 30 | M12: =+AddonDevice!I8 -> 120 | N12: Invalid | O12: 6 | P12: =+AddonDevice!J8 -> Aux PS
B13: 6 | C13: =+AddonDevice!C9 -> Customised 2 | D13: =+AddonDevice!D9 -> Input2A | E13: =+AddonDevice!E9 -> 4004R Panel Input2B | F13: =+AddonDevice!F9 -> Input2C | H13: 0 | I13: 0 | J13: 0 | L13: =+AddonDevice!H9 -> 0 | M13: =+AddonDevice!I9 -> 0 | N13: Invalid | O13: 7 | P13: =+AddonDevice!J9 -> Please input "Aux PS" if needed
B14: 7 | C14: =+AddonDevice!C10 -> Customised 3 | D14: =+AddonDevice!D10 -> Input3A | E14: =+AddonDevice!E10 -> 4004R Panel Input3B | F14: =+AddonDevice!F10 -> Input3C | H14: 0 | I14: 0 | J14: 0 | L14: =+AddonDevice!H10 -> 0 | M14: =+AddonDevice!I10 -> 0 | N14: Invalid | O14: 8 | P14: =+AddonDevice!J10 -> Please input "Aux PS" if needed
B15: 8 | C15: =+AddonDevice!C11 -> Customised 4 | D15: =+AddonDevice!D11 -> Input4A | E15: =+AddonDevice!E11 -> 4004R Panel Input4B | F15: =+AddonDevice!F11 -> Input4C | H15: 0 | I15: 0 | J15: 0 | L15: =+AddonDevice!H11 -> 0 | M15: =+AddonDevice!I11 -> 0 | N15: Invalid | O15: 9 | P15: =+AddonDevice!J11 -> Please input "Aux PS" if needed
J16: 0 | N16: Red | O16: 10
A17: B | C17: Conventional Field Devices | H17: =SUM(H18:H28) -> 16 | J17: =SUM(J18:J21) -> 16
B18: 1 | C18: 516.900.201 | D18: Conventional Device | E18: =IF(P2="English",TranslateMain!$C$12,TranslateMain!$D$12) -> 721P Smoke Detector UL268 7th Edition | F18: UL 268 7th Edition | G18: PDF | H18: =+'4004R(Conventional)'!U24 -> 8 | I18: 0 | J18: =+I18+H18 -> 8 | L18: 0.05 | M18: 35 | P18: Powered by IDC
B19: =+B18+1 -> 2 | C19: 516.900.203 | D19: Conventional Device | E19: =IF(P2="English",TranslateMain!$C$13,TranslateMain!$D$13) -> 721H ROR Heat Detector UL Listed | F19: UL & FM | G19: PDF | H19: =+'4004R(Conventional)'!U25 -> 0 | I19: 0 | J19: =+I19+H19 -> 0 | L19: 0.037 | M19: 35 | P19: Powered by IDC
B20: =+B19+1 -> 3 | C20: 516.900.204 | D20: Conventional Device | E20: =IF(P2="English",TranslateMain!$C$14,TranslateMain!$D$14) -> 722H Fixed Temp Heat | F20: UL & FM | G20: PDF | H20: =+'4004R(Conventional)'!U26 -> 0 | I20: 0 | J20: =+I20+H20 -> 0 | L20: 0.037 | M20: 35 | P20: Powered by IDC
B21: =+B20+1 -> 4 | C21: 516.900.206 | D21: Conventional Device | E21: =IF(P2="English",TranslateMain!$C$15,TranslateMain!$D$15) -> 700 Series Detector Base(Base on nos of Smoke & Heat Det) | F21: UL & FM | G21: PDF | H21: =+'4004R(Conventional)'!U27 -> 8 | I21: 0 | J21: =+I21+H21 -> 8 | P21: Powered by IDC
H22: 0 | J22: =SUM(J23:J29) -> 0 | P22: IDC
B23: =+B21+1 -> 5 | C23: 516.900.205 | D23: Conventional Device | E23: =IF(P2="English",TranslateMain!$C$16,TranslateMain!$D$16) -> 723H - HEAT FIX 200F DET UL | F23: UL & FM | G23: PDF | H23: 0 | I23: 0 | J23: =+I23+H23 -> 0 | L23: 0.037 | M23: 35 | P23: Powered by IDC
B24: =+B23+1 -> 6 | C24: 516.900.202 | D24: Conventional Device | E24: =IF(P2="English",TranslateMain!$C$17,TranslateMain!$D$17) -> 721PH - OPT&HEAT DET UL | F24: UL & FM | G24: PDF | H24: 0 | I24: 0 | J24: 0 | L24: 0.06 | M24: 35 | P24: Powered by IDC
B25: 7 | C25: =+AddonDevice!C99 -> Customised 1 | D25: =+AddonDevice!D99 -> Input1A | E25: =IF(P2="English",TranslateMain!$C$18,TranslateMain!$D$18) -> Customised input - 2 Wire Powered Device | F25: =+AddonDevice!F99 -> Input1C | H25: 0 | I25: 0 | J25: 0 | L25: =+AddonDevice!H99 -> 0 | M25: =+AddonDevice!I99 -> 0 | P25: =+AddonDevice!J99 -> Powered by IDC
B26: 8 | C26: =+AddonDevice!C100 -> Customised 2 | D26: =+AddonDevice!D100 -> Input2A | E26: =IF(P2="English",TranslateMain!$C$19,TranslateMain!$D$19) -> Customised input - 2 Wire Powered Device | F26: =+AddonDevice!F100 -> Input2C | H26: 0 | I26: 0 | J26: 0 | L26: =+AddonDevice!H100 -> 0 | M26: =+AddonDevice!I100 -> 0 | P26: =+AddonDevice!J100 -> Powered by IDC
B27: 9 | C27: =+AddonDevice!C101 -> Customised 3 | D27: =+AddonDevice!D101 -> Input3A | E27: =IF(P2="English",TranslateMain!$C$20,TranslateMain!$D$20) -> Customised input - 2 Wire Powered Device | F27: =+AddonDevice!F101 -> Input3C | H27: 0 | I27: 0 | J27: 0 | L27: =+AddonDevice!H101 -> 0 | M27: =+AddonDevice!I101 -> 0 | P27: =+AddonDevice!J101 -> Powered by IDC
B28: 10 | C28: =+AddonDevice!C102 -> Customised 4 | D28: =+AddonDevice!D102 -> Input4A | E28: =IF(P2="English",TranslateMain!$C$21,TranslateMain!$D$21) -> Customised input - 2 Wire Powered Device | F28: =+AddonDevice!F102 -> Input4C | H28: 0 | I28: 0 | J28: 0 | L28: =+AddonDevice!H102 -> 0 | M28: =+AddonDevice!I102 -> 0 | P28: =+AddonDevice!J102 -> Powered by IDC
H29: 0 | J29: 0
A30: C | C30: Conventional Field Devices - Special | H30: =SUM(H31:H43) -> 0 | J30: =IF(SUM(J31:J37)>0,1,0) -> 0
B31: 1 | C31: 601F | D31: Conventional Device | E31: =IF(P2="English",TranslateMain!$C$22,TranslateMain!$D$22) -> Zettler Single IR Point Flame Detector | F31: EN54-10 | G31: PDF | H31: =+'4004R(Conventional)'!U34 -> 0 | I31: 0 | J31: 0 | L31: 0 | M31: 0 | P31: Power by IDC
B32: =+B31+1 -> 2 | C32: FV400 | D32: Conventional Device | E32: =IF(P2="English",TranslateMain!$C$23,TranslateMain!$D$23) -> Zettler Triple IR Flame Detector | F32: EN54 Approval &FM | G32: PDF | H32: =+'4004R(Conventional)'!U35 -> 0 | I32: 0 | J32: 0 | L32: 8 | M32: 20 | P32: Aux PS
C33: Option Camera | D33: Built in | E33: =IF(P2="English",TranslateMain!$C$24,TranslateMain!$D$24) -> Zettler Triple IR Flame Detection Optional Camera | F33: =+F32 -> EN54 Approval &FM | G33: PDF | H33: =+'4004R(Conventional)'!G36 -> 0 | I33: 0 | J33: =+I33+H33 -> 0 | L33: 85 | M33: 85 | P33: Aux PS
C34: Window Heater | D34: Built in | E34: =IF(P2="English",TranslateMain!$C$25,TranslateMain!$D$25) -> Zettler Triple IR Flame Detection Optional Heater | F34: =+F33 -> EN54 Approval &FM | G34: PDF | H34: =+'4004R(Conventional)'!G37 -> 0 | I34: 0 | J34: 0 | L34: 245 | M34: 245 | P34: Aux PS
B35: =+B32+1 -> 3 | C35: ProReact | D35: Conventional Device | E35: =IF(P2="English",TranslateMain!$C$26,TranslateMain!$D$26) -> Zettler Linear Heat Detector Copper | F35: UL 521 | G35: PDF | H35: =+'4004R(Conventional)'!U38 -> 0 | I35: 0 | J35: 0 | L35: 70 | M35: 100 | P35: Aux PS
B36: =+B35+1 -> 4 | C36: APSensing | D36: Conventional Device | E36: =IF(P2="English",TranslateMain!$C$27,TranslateMain!$D$27) -> Zettler Linear Heat Detector Fiber Optic | F36: EN 54/5-A1 & VDS | G36: PDF | H36: =+'4004R(Conventional)'!U39 -> 0 | I36: 0 | J36: =+I36+H36 -> 0 | L36: 0 | M36: 0 | P36: TBA
B37: 5 | C37: FireRay | D37: Conventional Device | E37: =IF(P2="English",TranslateMain!$C$28,TranslateMain!$D$28) -> Zettler Beam Detector | F37: UL268 &VDS | G37: PDF | H37: =+'4004R(Conventional)'!U40 -> 0 | I37: 0 | J37: =+I37+H37 -> 0 | L37: 5.5 | M37: 35 | P37: Aux PS
H38: 0 | J38: 0 | P38: Aux PS*
B39: =+B36+1 -> 5 | C39: =+AddonDevice!C105 -> Customised 1 | D39: =+AddonDevice!D105 -> Input1A | E39: =IF(P2="English",TranslateMain!$C$29,TranslateMain!$D$29) -> Customised input Wired Powered by IDC | F39: =+AddonDevice!F105 -> Input1C | H39: 0 | I39: 0 | J39: 0 | L39: =+AddonDevice!H105 -> 0 | M39: =+AddonDevice!I105 -> 0 | P39: =+AddonDevice!J105 -> Aux PS
B40: =+B39+1 -> 6 | C40: =+AddonDevice!C106 -> Customised 2 | D40: =+AddonDevice!D106 -> Input2A | E40: =IF(P2="English",TranslateMain!$C$30,TranslateMain!$D$30) -> Customised input Wired Powered by IDC | F40: =+AddonDevice!F106 -> Input2C | H40: 0 | I40: 0 | J40: 0 | L40: =+AddonDevice!H106 -> 0 | M40: =+AddonDevice!I106 -> 0 | P40: =+AddonDevice!J106 -> Aux PS
B41: 7 | C41: =+AddonDevice!C107 -> Customised 3 | D41: =+AddonDevice!D107 -> Input3A | E41: =IF(P2="English",TranslateMain!$C$31,TranslateMain!$D$31) -> Customised input Wired Powered by IDC | F41: =+AddonDevice!F107 -> Input3C | H41: 0 | I41: 0 | J41: 0 | L41: =+AddonDevice!H107 -> 0 | M41: =+AddonDevice!I107 -> 0 | P41: =+AddonDevice!J107 -> Aux PS
B42: 8 | C42: =+AddonDevice!C108 -> Customised 4 | D42: =+AddonDevice!D108 -> Input4A | E42: =IF(P2="English",TranslateMain!$C$32,TranslateMain!$D$32) -> Customised input Wired Powered by IDC | F42: =+AddonDevice!F108 -> Input4C | H42: 0 | I42: 0 | J42: 0 | L42: =+AddonDevice!H108 -> 0 | M42: =+AddonDevice!I108 -> 0 | P42: =+AddonDevice!J108 -> Aux PS
B43: 9 | C43: =+AddonDevice!C109 -> Customised 5 | D43: =+AddonDevice!D109 -> Input5A | E43: =IF(P2="English",TranslateMain!$C$33,TranslateMain!$D$33) -> Customised input Wired Powered by IDC | F43: =+AddonDevice!F109 -> Input5C | H43: 0 | I43: 0 | J43: 0 | L43: =+AddonDevice!H109 -> 0 | M43: =+AddonDevice!I109 -> 0 | P43: =+AddonDevice!J109 -> Aux PS
H44: 0 | J44: =IF(SUM(J31:J37)>0,1,0) -> 0
A45: D | C45: Conventional Notification Devices | H45: =SUM(#REF!) ->  | J45: =SUM(J46:J50) -> 4
B46: 1 | C46: 4901-9820 | D46: Horn Only | E46: Red Wall Mounted Horn | F46: UL & FM | G46: PDF | H46: =+'4004R(Conventional)'!U88 -> 0 | I46: 0 | J46: =+I46+H46 -> 0 | L46: 0 | M46: 27 | P46: Powered by NAC
B47: 2 | C47: 4906-9127 | D47: Horn & Strobe | E47: 15 cd Red Wall Horn Strobe | F47: UL & FM | G47: PDF | H47: =+'4004R(Conventional)'!U85 -> 2 | I47: 0 | J47: =+I47+H47 -> 2 | L47: 0 | M47: 75 | P47: Powered by NAC
B48: 3 | C48: 4906-9127 | D48: Horn & Strobe | E48: 30 cd Red Wall Horn Strobe | F48: UL & FM | G48: PDF | H48: =+'4004R(Conventional)'!U86 -> 0 | I48: 0 | J48: =+I48+H48 -> 0 | L48: 0 | M48: 116 | P48: Powered by NAC
B49: 4 | C49: 4906-9127 | D49: Horn & Strobe | E49: 75 cd Red Wall Horn Strobe | F49: UL & FM | G49: PDF | H49: =+'4004R(Conventional)'!U87 -> 0 | I49: 0 | J49: =+I49+H49 -> 0 | L49: 0 | M49: 221 | P49: Powered by NAC
B50: 5 | C50: 43T-G6-24-R | D50: Bell | E50: Vibrating Bell 6" - 24 VDC | F50: UL | G50: PDF | H50: =+'4004R(Conventional)'!U84 -> 2 | I50: 0 | J50: =+I50+H50 -> 2 | L50: 0 | M50: 41 | P50: Powered by NAC
H51: 0 | J51: =SUM(J52:J57) -> 0
B52: =+B50+1 -> 6 | C52: =+AddonDevice!C112 -> Customised 1 | D52: =+AddonDevice!D112 -> Input1A | E52: =+AddonDevice!E112 -> Input1B - Notification Device 1 | F52: =+AddonDevice!F112 -> Input1C | H52: =+'4004R(Conventional)'!U89 -> 0 | I52: 0 | J52: =+I52+H52 -> 0 | L52: 0 | M52: 0 | P52: =+AddonDevice!J112 -> NAC Powered
B53: =+B52+1 -> 7 | C53: =+AddonDevice!C113 -> Customised 2 | D53: =+AddonDevice!D113 -> Input2A | E53: =+AddonDevice!E113 -> Input2B - Notification Device 2 | F53: =+AddonDevice!F113 -> Input2C | H53: =+'4004R(Conventional)'!U90 -> 0 | I53: 0 | J53: 0 | L53: 0 | M53: 0 | P53: =+P52 -> NAC Powered
B54: 8 | C54: =+AddonDevice!C114 -> Customised 3 | D54: =+AddonDevice!D114 -> Input3A | E54: =+AddonDevice!E114 -> Input3B - Notification Device 3 | F54: =+AddonDevice!F114 -> Input3C | H54: =+'4004R(Conventional)'!U91 -> 0 | I54: 0 | J54: 0 | L54: 0 | M54: 0 | P54: =+P53 -> NAC Powered
B55: 9 | C55: =+AddonDevice!C115 -> Customised 4 | D55: =+AddonDevice!D115 -> Input4A | E55: =+AddonDevice!E115 -> Input4B - Notification Device 4 | F55: =+AddonDevice!F115 -> Input4C | H55: =+'4004R(Conventional)'!U92 -> 0 | I55: 0 | J55: 0 | L55: 0 | M55: 0 | P55: =+P54 -> NAC Powered
B56: 10 | C56: =+AddonDevice!C116 -> Customised 5 | D56: =+AddonDevice!D116 -> Input5A | E56: =+AddonDevice!E116 -> Input5B - Notification Device 5 | F56: =+AddonDevice!F116 -> Input5C | H56: =+'4004R(Conventional)'!U93 -> 0 | I56: 0 | J56: 0 | L56: 0 | M56: 0 | P56: =+P55 -> NAC Powered
B57: 11 | C57: =+AddonDevice!C117 -> Customised 6 | D57: =+AddonDevice!D117 -> Input6A | E57: =+AddonDevice!E117 -> Input6B - Notifiation Device 6 | F57: =+AddonDevice!F117 -> Input6C | H57: =+'4004R(Conventional)'!U94 -> 0 | I57: 0 | J57: 0 | L57: 0 | M57: 0 | P57: =+P56 -> NAC Powered
A58: E | C58: NAC Circuits : Installation Info on Max Distance Run from 4004R Panel NAC circuit to Notification Devices | H58: =SUM(H66:H111) -> 14 | J58: =SUM(J59:J65) -> 3926.009939
B59: =+B57+1 -> 12 | C59: Max Cable Distance | D59: Zone 1 | E59: Maximum NAC Distance Run from 4004R Panel NAC Circuit to Notification Zone last Devices. | F59: Worse Case | H59: =+'4004R(Conventional)'!J118 -> 2726.784752 | I59: 0 | J59: =+H59+I59 -> 2726.784752
B60: =+B59+1 -> 13 | C60: Current Loading | D60: Zone 1 | E60: Current Loading Base on Notification Devices Selected | H60: =+'4004R(Conventional)'!G100 -> 54 | I60: 0 | J60: =+H60+I60 -> 54
B61: =+B60+1 -> 14 | C61: Max Cable Distance | D61: Zone 2 | E61: Maximum NAC Distance Run from 4004R Panel NAC Circuit to Notification Zone last Devices. | F61: Worse Case | H61: =+'4004R(Conventional)'!J119 -> 981.6425106 | I61: 0 | J61: =+H61+I61 -> 981.6425106
B62: =+B61+1 -> 15 | C62: Current Loading | D62: Zone 2 | E62: Current Loading Base on Notification Devices Selected | H62: =+'4004R(Conventional)'!G101 -> 150 | I62: 0 | J62: =+H62+I62 -> 150
B63: =+B62+1 -> 16 | C63: Cable Wire Gauge | D63: Common Both Zones | E63: Cable Wire Gauge Selected | H63: =+'4004R(Conventional)'!G113 -> 2.5mm2 | I63: 0 | J63: =+H63 -> 2.5mm2
B64: =+B63+1 -> 17 | C64: Cable Ohm/Km | D64: Ohm per Kilometer | E64: Maximum Ohm per Kilometer for Cables used | H64: =+Res_CB -> 13.58267719 | I64: 0 | J64: =+H64+I64 -> 13.58267719
H65: 0 | P65: =+AddonDevice!J26 -> 0
A66: F | C66: Releasing Peripherals( Conventional) | H66: =SUM(H67:H80) -> 6 | J66: =SUM(J67:J73) -> 5
B67: 1 | C67: 2099-9149 | D67: Conventional Device | E67: Conventional Manual Overide Pullstation | F67: UL268 & FM | G67: PDF | H67: =+'4004R(Conventional)'!U55 -> 1 | I67: 0 | J67: 1 | P67: Input Monitoring
B68: =+B67+1 -> 2 | C68: 4099-9802 | D68: Sticker | E68: Pull Station Suppression Label Kit for Specific Application | F68: NA | H68: =+'4004R(Conventional)'!G56 -> 1 | I68: 0 | J68: =+I68+H68 -> 1 | P68: Label Kit
B69: =+B68+1 -> 3 | C69: 2081-9046 | D69: RAC Accessories | E69: Coil Supervision Module (01 Each RAC) | F69: UL Listed | G69: PDF | H69: =+'4004R(Conventional)'!U80 -> 1 | I69: 0 | J69: 1 | L69: 0 | M69: 0 | P69: RAC Accessories
B70: =+B69+1 -> 4 | C70: 2081-9067 | D70: Accessories | E70: Abort Switch | F70: UL Listed | G70: PDF | H70: =+'4004R(Conventional)'!U54 -> 1 | I70: 0 | J70: 1 | P70: Input Monitoring
B71: 5 | C71: 2080-9059 | D71: Accessories | E71: Maintenance Switch without Lights | F71: UL Listed | G71: PDF | H71: =+'4004R(Conventional)'!U79 -> 0 | I71: 0 | J71: 0 | P71: RAC Accessories
B72: =+B71+1 -> 6 | C72: 2080-9069 | D72: Accessories | E72: Maintenance Switch with Lights | F72: UL Listed | G72: PDF | H72: =+'4004R(Conventional)'!U78 -> 1 | I72: 0 | J72: 1 | L72: 0 | M72: 83 | P72: Aux PS
H74: 0 | J74: =SUM(J75:J81) -> 1
B75: =+B72+1 -> 7 | C75: =+AddonDevice!C42 -> Local | D75: =+AddonDevice!D42 -> Discharge Signage | E75: =AddonDevice!E42 -> Discharge Display Signage | F75: =+AddonDevice!F42 -> Local | H75: =+'4004R(Conventional)'!U70+(IF('4004R(Conventional)'!B75="R2",'4004R(Conventional)'!G75,0)) -> 1 | I75: 0 | J75: =+I75+H75 -> 1 | L75: =+AddonDevice!H42 -> 0 | M75: 180 | P75: Aux PS
B76: =+B75+1 -> 8 | C76: =+AddonDevice!C43 -> Local | D76: =+AddonDevice!D43 -> 1st Alarm Signage | E76: =+AddonDevice!E43 -> Pre Release Display Signage | F76: =+AddonDevice!F43 -> Local | H76: =+'4004R(Conventional)'!U62 -> 0 | I76: 0 | J76: 0 | L76: =+AddonDevice!H43 -> 0 | M76: 180 | P76: Aux PS
B77: 9 | C77: =+AddonDevice!C44 -> Customised 3 | D77: =+AddonDevice!D44 -> Input1A | E77: =+AddonDevice!E44 -> Releasing Peripherals Input3B | F77: =+AddonDevice!F44 -> Input3C | H77: 0 | I77: 0 | J77: 0 | L77: =+AddonDevice!H44 -> 0 | M77: =+AddonDevice!I44 -> 0 | P77: =+AddonDevice!L44 -> 0
B78: 10 | C78: =+AddonDevice!C45 -> Customised 4 | D78: =+AddonDevice!D45 -> Input4A | E78: =+AddonDevice!E45 -> Releasing Peripherals Input4B | F78: =+AddonDevice!F45 -> Input4C | H78: 0 | I78: 0 | J78: 0 | L78: =+AddonDevice!H45 -> 0 | M78: =+AddonDevice!I45 -> 0 | P78: =+AddonDevice!L45 -> 0
B79: 11 | C79: =+AddonDevice!C46 -> Customised 5 | D79: =+AddonDevice!D46 -> Input5A | E79: =+AddonDevice!E46 -> Releasing Peripherals Input5B | F79: =+AddonDevice!F46 -> Input5C | H79: 0 | I79: 0 | J79: 0 | L79: =+AddonDevice!H46 -> 0 | M79: =+AddonDevice!I46 -> 0 | P79: =+AddonDevice!L46 -> 0
B80: 12 | C80: =+AddonDevice!C47 -> Customised 6 | D80: =+AddonDevice!D47 -> Input6A | E80: =+AddonDevice!E47 -> Releasing Peripherals Input6B | F80: =+AddonDevice!F47 -> Input6C | H80: 0 | I80: 0 | J80: 0 | L80: =+AddonDevice!H47 -> 0 | M80: =+AddonDevice!I47 -> 0 | P80: =+AddonDevice!L47 -> 0
H81: 0
A82: G | C82: Releasing Actuators | H82: =SUM(H85:H130) -> 1 | J82: =SUM(J83:J130) -> 1
B83: R2 | D83: RAC2 | E83: The RAC2 is being used for Discharge Display Signal. | H83: =IF('4004R(Conventional)'!B76=R1,0,0) -> 0 | I83: 0 | J83: =+I83+H83 -> 0 | L83: 0 | M83: 0 | P83: For Selection only
B84: 0 | D84: No Selection | E84: No Actuator Selected | H84: =IF('4004R(Conventional)'!B79=0,0,0) -> 0 | I84: 0 | J84: =+I84+H84 -> 0 | L84: 0 | M84: 0 | P84: 0
B85: 1 | D85: =+AddonDevice!D50 -> Ansul | E85: =+AddonDevice!E50 -> AUTOMAN II-C Assembly (solenoid 17728; coil 25924) | H85: =(IF('4004R(Conventional)'!$B$77=1,'4004R(Conventional)'!$G$74,0))+(IF('4004R(Conventional)'!$B$78=1,'4004R(Conventional)'!$G$75,0)) -> 0 | I85: 0 | J85: =+I85+H85 -> 0 | L85: =+AddonDevice!H50 -> 0 | M85: =+AddonDevice!I50 -> 750 | N85: =+AddonDevice!J50 -> RAC Powered | O85: =+AddonDevice!K50 -> 0 | P85: =+AddonDevice!J50 -> RAC Powered
B86: =+B85+1 -> 2 | D86: =+AddonDevice!D51 -> Ansul | E86: =+AddonDevice!E51 -> AUTOMAN II-C Explosion-Proof Releasing Device (solenoid 31492; coil 31438) | H86: =(IF('4004R(Conventional)'!$B$77=2,'4004R(Conventional)'!$G$74,0))+(IF('4004R(Conventional)'!$B$78=2,'4004R(Conventional)'!$G$75,0)) -> 0 | I86: 0 | J86: 0 | L86: =+AddonDevice!H51 -> 0 | M86: =+AddonDevice!I51 -> 750 | N86: =+AddonDevice!J51 -> RAC Powered | O86: =+AddonDevice!K51 -> 0 | P86: =+AddonDevice!J51 -> RAC Powered
B87: =+B86+1 -> 3 | D87: =+AddonDevice!D52 -> Ansul | E87: =+AddonDevice!E52 -> AUTOMAN II-C Assembly (solenoid 68739; coil 25924) | H87: =(IF('4004R(Conventional)'!$B$77=3,'4004R(Conventional)'!$G$74,0))+(IF('4004R(Conventional)'!$B$78=3,'4004R(Conventional)'!$G$75,0)) -> 0 | I87: 0 | J87: 0 | L87: =+AddonDevice!H52 -> 0 | M87: =+AddonDevice!I52 -> 750 | N87: =+AddonDevice!J52 -> RAC Powered | O87: =+AddonDevice!K52 -> 0 | P87: =+AddonDevice!J52 -> RAC Powered
B88: =+B87+1 -> 4 | D88: =+AddonDevice!D53 -> Ansul | E88: =+AddonDevice!E53 -> Solenoid Electric Actuator (solenoid 73111; coil 73097) | H88: =(IF('4004R(Conventional)'!$B$77=4,'4004R(Conventional)'!$G$74,0))+(IF('4004R(Conventional)'!$B$78=4,'4004R(Conventional)'!$G$75,0)) -> 0 | I88: 0 | J88: 0 | L88: =+AddonDevice!H53 -> 0 | M88: =+AddonDevice!I53 -> 1000 | N88: =+AddonDevice!J53 -> RAC Powered | O88: =+AddonDevice!K53 -> 0 | P88: =+AddonDevice!J53 -> RAC Powered
B89: 5 | D89: =+AddonDevice!D54 -> Ansul | E89: =+AddonDevice!E54 -> *CV90 HF Electric Actuator 73327 | H89: =(IF('4004R(Conventional)'!$B$77=5,'4004R(Conventional)'!$G$74,0))+(IF('4004R(Conventional)'!$B$78=5,'4004R(Conventional)'!$G$75,0)) -> 0 | I89: 0 | J89: 0 | L89: =+AddonDevice!H54 -> 0 | M89: =+AddonDevice!I54 -> 570 | N89: =+AddonDevice!J54 -> RAC Powered | O89: =+AddonDevice!K54 -> 0 | P89: =+AddonDevice!J54 -> RAC Powered
B90: 6 | D90: =+AddonDevice!D55 -> Ansul | E90: =+AddonDevice!E55 -> LP CO2 w/ASCO solenoid 422934 | H90: =(IF('4004R(Conventional)'!$B$77=6,'4004R(Conventional)'!$G$74,0))+(IF('4004R(Conventional)'!$B$78=6,'4004R(Conventional)'!$G$75,0)) -> 0 | I90: 0 | J90: 0 | L90: =+AddonDevice!H55 -> 0 | M90: =+AddonDevice!I55 -> 442 | N90: =+AddonDevice!J55 -> RAC Powered | O90: =+AddonDevice!K55 -> 0 | P90: =+AddonDevice!J55 -> RAC Powered
B91: 7 | D91: =+AddonDevice!D56 -> Ansul | E91: =+AddonDevice!E56 -> LP CO2 double action 24 VDC solenoid 430948 | H91: =(IF('4004R(Conventional)'!$B$77=7,'4004R(Conventional)'!$G$74,0))+(IF('4004R(Conventional)'!$B$78=7,'4004R(Conventional)'!$G$75,0)) -> 1 | I91: 0 | J91: 1 | L91: =+AddonDevice!H56 -> 0 | M91: =+AddonDevice!I56 -> 438 | N91: =+AddonDevice!J56 -> RAC Powered | O91: =+AddonDevice!K56 -> 0 | P91: =+AddonDevice!J56 -> RAC Powered
B92: 8 | D92: =+AddonDevice!D57 -> Ansul | E92: =+AddonDevice!E57 -> LP CO2 3-way selector valve solenoid 433419 | H92: =(IF('4004R(Conventional)'!$B$77=8,'4004R(Conventional)'!$G$74,0))+(IF('4004R(Conventional)'!$B$78=8,'4004R(Conventional)'!$G$75,0)) -> 0 | I92: 0 | J92: 0 | L92: =+AddonDevice!H57 -> 0 | M92: =+AddonDevice!I57 -> 438 | N92: =+AddonDevice!J57 -> RAC Powered | O92: =+AddonDevice!K57 -> 0 | P92: =+AddonDevice!J57 -> RAC Powered
B93: 9 | D93: =+AddonDevice!D58 -> Ansul | E93: =+AddonDevice!E58 -> Electric Actuator 24 VDC solenoid 570537 | H93: =(IF('4004R(Conventional)'!$B$77=9,'4004R(Conventional)'!$G$74,0))+(IF('4004R(Conventional)'!$B$78=9,'4004R(Conventional)'!$G$75,0)) -> 0 | I93: 0 | J93: 0 | L93: =+AddonDevice!H58 -> 0 | M93: =+AddonDevice!I58 -> 250 | N93: =+AddonDevice!J58 -> RAC Powered | O93: =+AddonDevice!K58 -> 0 | P93: =+AddonDevice!J58 -> RAC Powered
B94: 10 | D94: =+AddonDevice!D59 -> ASCO | E94: =+AddonDevice!E59 -> 8210A107 (097617-005D coil) | H94: =(IF('4004R(Conventional)'!$B$77=10,'4004R(Conventional)'!$G$74,0))+(IF('4004R(Conventional)'!$B$78=10,'4004R(Conventional)'!$G$75,0)) -> 0 | I94: 0 | J94: 0 | L94: =+AddonDevice!H59 -> 0 | M94: =+AddonDevice!I59 -> 750 | N94: =+AddonDevice!J59 -> RAC Powered | O94: =+AddonDevice!K59 -> 0 | P94: =+AddonDevice!J59 -> RAC Powered
B95: 11 | D95: =+AddonDevice!D60 -> ASCO | E95: =+AddonDevice!E60 -> 8210G207 (238310 coil) | H95: =(IF('4004R(Conventional)'!$B$77=11,'4004R(Conventional)'!$G$74,0))+(IF('4004R(Conventional)'!$B$78=11,'4004R(Conventional)'!$G$75,0)) -> 0 | I95: 0 | J95: 0 | L95: =+AddonDevice!H60 -> 0 | M95: =+'4004R(Conventional)'!J74 -> 438 | N95: =+AddonDevice!J60 -> RAC Powered | O95: =+AddonDevice!K60 -> 0 | P95: =+AddonDevice!J60 -> RAC Powered
B96: 12 | D96: =+AddonDevice!D61 -> ASCO | E96: =+AddonDevice!E61 -> 8211A107 (097617-005D coil) | H96: =(IF('4004R(Conventional)'!$B$77=12,'4004R(Conventional)'!$G$74,0))+(IF('4004R(Conventional)'!$B$78=12,'4004R(Conventional)'!$G$75,0)) -> 0 | I96: 0 | J96: 0 | L96: =+AddonDevice!H61 -> 0 | M96: =+AddonDevice!I61 -> 750 | N96: =+AddonDevice!J61 -> RAC Powered | O96: =+AddonDevice!K61 -> 0 | P96: =+AddonDevice!J61 -> RAC Powered
B97: 13 | D97: =+AddonDevice!D62 -> ASCO | E97: =+AddonDevice!E62 -> 8262H182 (238910 coil) | H97: =(IF('4004R(Conventional)'!$B$77=13,'4004R(Conventional)'!$G$74,0))+(IF('4004R(Conventional)'!$B$78=13,'4004R(Conventional)'!$G$75,0)) -> 0 | I97: 0 | J97: 0 | L97: =+AddonDevice!H62 -> 0 | M97: =+AddonDevice!I62 -> 483 | N97: =+AddonDevice!J62 -> RAC Powered | O97: =+AddonDevice!K62 -> 0 | P97: =+AddonDevice!J62 -> RAC Powered
B98: 14 | D98: =+AddonDevice!D63 -> ASCO | E98: =+AddonDevice!E63 -> EF8210G001MBMO | H98: =(IF('4004R(Conventional)'!$B$77=14,'4004R(Conventional)'!$G$74,0))+(IF('4004R(Conventional)'!$B$78=14,'4004R(Conventional)'!$G$75,0)) -> 0 | I98: 0 | J98: 0 | L98: =+AddonDevice!H63 -> 0 | M98: =+AddonDevice!I63 -> 450 | N98: =+AddonDevice!J63 -> RAC Powered | O98: =+AddonDevice!K63 -> 0 | P98: =+AddonDevice!J63 -> RAC Powered
B99: 15 | D99: =+AddonDevice!D64 -> ASCO | E99: =+AddonDevice!E64 -> HV2628571 (23810 coil) | H99: =(IF('4004R(Conventional)'!$B$77=15,'4004R(Conventional)'!$G$74,0))+(IF('4004R(Conventional)'!$B$78=15,'4004R(Conventional)'!$G$75,0)) -> 0 | I99: 0 | J99: 0 | L99: =+AddonDevice!H64 -> 0 | M99: =+AddonDevice!I64 -> 442 | N99: =+AddonDevice!J64 -> RAC Powered | O99: =+AddonDevice!K64 -> 0 | P99: =+AddonDevice!J64 -> RAC Powered
B100: 16 | D100: =+AddonDevice!D65 -> ASCO | E100: =+AddonDevice!E65 -> HV2648581 (23810 coil) | H100: =(IF('4004R(Conventional)'!$B$77=16,'4004R(Conventional)'!$G$74,0))+(IF('4004R(Conventional)'!$B$78=16,'4004R(Conventional)'!$G$75,0)) -> 0 | I100: 0 | J100: 0 | L100: =+AddonDevice!H65 -> 0 | M100: =+AddonDevice!I65 -> 442 | N100: =+AddonDevice!J65 -> RAC Powered | O100: =+AddonDevice!K65 -> 0 | P100: =+AddonDevice!J65 -> RAC Powered
B101: 17 | D101: =+AddonDevice!D66 -> ASCO | E101: =+AddonDevice!E66 -> R8210A107 (097617-005D coil) | H101: =(IF('4004R(Conventional)'!$B$77=17,'4004R(Conventional)'!$G$74,0))+(IF('4004R(Conventional)'!$B$78=17,'4004R(Conventional)'!$G$75,0)) -> 0 | I101: 0 | J101: 0 | L101: =+AddonDevice!H66 -> 0 | M101: =+AddonDevice!I66 -> 700 | N101: =+AddonDevice!J66 -> RAC Powered | O101: =+AddonDevice!K66 -> 0 | P101: =+AddonDevice!J66 -> RAC Powered
B102: 18 | D102: =+AddonDevice!D67 -> ASCO | E102: =+AddonDevice!E67 -> T8210A107 (097617-005D coil) | H102: =(IF('4004R(Conventional)'!$B$77=18,'4004R(Conventional)'!$G$74,0))+(IF('4004R(Conventional)'!$B$78=18,'4004R(Conventional)'!$G$75,0)) -> 0 | I102: 0 | J102: 0 | L102: =+AddonDevice!H67 -> 0 | M102: =+AddonDevice!I67 -> 700 | N102: =+AddonDevice!J67 -> RAC Powered | O102: =+AddonDevice!K67 -> 0 | P102: =+AddonDevice!J67 -> RAC Powered
B103: 19 | D103: =+AddonDevice!D68 -> Hygood | E103: =+AddonDevice!E68 -> 304.205.010 – Electrical Actuator Suppression Diode | H103: =(IF('4004R(Conventional)'!$B$77=19,'4004R(Conventional)'!$G$74,0))+(IF('4004R(Conventional)'!$B$78=19,'4004R(Conventional)'!$G$75,0)) -> 0 | I103: 0 | J103: 0 | L103: =+AddonDevice!H68 -> 0 | M103: =+AddonDevice!I68 -> 250 | N103: =+AddonDevice!J68 -> RAC Powered | O103: =+AddonDevice!K68 -> 0 | P103: =+AddonDevice!J68 -> RAC Powered
B104: 20 | D104: =+AddonDevice!D69 -> Hygood | E104: =+AddonDevice!E69 -> 304.209.001 – Electrical Actuator Bridge Rectifier | H104: =(IF('4004R(Conventional)'!$B$77=20,'4004R(Conventional)'!$G$74,0))+(IF('4004R(Conventional)'!$B$78=20,'4004R(Conventional)'!$G$75,0)) -> 0 | I104: 0 | J104: 0 | L104: =+AddonDevice!H69 -> 0 | M104: =+AddonDevice!I69 -> 250 | N104: =+AddonDevice!J69 -> RAC Powered | O104: =+AddonDevice!K69 -> 0 | P104: =+AddonDevice!J69 -> RAC Powered
B105: 21 | D105: =+AddonDevice!D70 -> Pyrochem | E105: =+AddonDevice!E70 -> ECH Electrical Control Head (551201) | H105: =(IF('4004R(Conventional)'!$B$77=21,'4004R(Conventional)'!$G$74,0))+(IF('4004R(Conventional)'!$B$78=21,'4004R(Conventional)'!$G$75,0)) -> 0 | I105: 0 | J105: 0 | L105: =+AddonDevice!H70 -> 0 | M105: =+AddonDevice!I70 -> 1700 | N105: =+AddonDevice!J70 -> RAC Powered | O105: =+AddonDevice!K70 -> 0 | P105: =+AddonDevice!J70 -> RAC Powered
B106: 22 | D106: =+AddonDevice!D71 -> Pyrochem | E106: =+AddonDevice!E71 -> Explosion-Proof Electric Actuator (570147) | H106: =(IF('4004R(Conventional)'!$B$77=22,'4004R(Conventional)'!$G$74,0))+(IF('4004R(Conventional)'!$B$78=22,'4004R(Conventional)'!$G$75,0)) -> 0 | I106: 0 | J106: 0 | L106: =+AddonDevice!H71 -> 0 | M106: =+AddonDevice!I71 -> 396 | N106: =+AddonDevice!J71 -> RAC Powered | O106: =+AddonDevice!K71 -> 0 | P106: =+AddonDevice!J71 -> RAC Powered
B107: 23 | D107: =+AddonDevice!D72 -> Pyrochem | E107: =+AddonDevice!E72 -> Removable Electric Actuator (570209) | H107: =(IF('4004R(Conventional)'!$B$77=23,'4004R(Conventional)'!$G$74,0))+(IF('4004R(Conventional)'!$B$78=23,'4004R(Conventional)'!$G$75,0)) -> 0 | I107: 0 | J107: 0 | L107: =+AddonDevice!H72 -> 0 | M107: =+AddonDevice!I72 -> 200 | N107: =+AddonDevice!J72 -> RAC Powered | O107: =+AddonDevice!K72 -> 0 | P107: =+AddonDevice!J72 -> RAC Powered
B108: 24 | D108: =+AddonDevice!D73 -> Skinner | E108: =+AddonDevice!E73 -> 71395SN2ENJ1N0H111C2 (Skinner coil H111C2) | H108: =(IF('4004R(Conventional)'!$B$77=24,'4004R(Conventional)'!$G$74,0))+(IF('4004R(Conventional)'!$B$78=24,'4004R(Conventional)'!$G$75,0)) -> 0 | I108: 0 | J108: 0 | L108: =+AddonDevice!H73 -> 0 | M108: =+AddonDevice!I73 -> 420 | N108: =+AddonDevice!J73 -> RAC Powered | O108: =+AddonDevice!K73 -> 0 | P108: =+AddonDevice!J73 -> RAC Powered
B109: 25 | D109: =+AddonDevice!D74 -> Skinner | E109: =+AddonDevice!E74 -> 73212BN4TN00N0C111C2 (Skinner coil C111C2) | H109: =(IF('4004R(Conventional)'!$B$77=25,'4004R(Conventional)'!$G$74,0))+(IF('4004R(Conventional)'!$B$78=25,'4004R(Conventional)'!$G$75,0)) -> 0 | I109: 0 | J109: 0 | L109: =+AddonDevice!H74 -> 0 | M109: =+AddonDevice!I74 -> 420 | N109: =+AddonDevice!J74 -> RAC Powered | O109: =+AddonDevice!K74 -> 0 | P109: =+AddonDevice!J74 -> RAC Powered
B110: 26 | D110: =+AddonDevice!D75 -> Skinner | E110: =+AddonDevice!E75 -> 73212BN4TNLVN0C322C2 (Skinner coil C322C2) | H110: =(IF('4004R(Conventional)'!$B$77=26,'4004R(Conventional)'!$G$74,0))+(IF('4004R(Conventional)'!$B$78=26,'4004R(Conventional)'!$G$75,0)) -> 0 | I110: 0 | J110: 0 | L110: =+AddonDevice!H75 -> 0 | M110: =+AddonDevice!I75 -> 830 | N110: =+AddonDevice!J75 -> RAC Powered | O110: =+AddonDevice!K75 -> 0 | P110: =+AddonDevice!J75 -> RAC Powered
B111: 27 | D111: =+AddonDevice!D76 -> Skinner | E111: =+AddonDevice!E76 -> 73218BN4UNLVN0H111C2 (Skinner coil H111C2) | H111: =(IF('4004R(Conventional)'!$B$77=27,'4004R(Conventional)'!$G$74,0))+(IF('4004R(Conventional)'!$B$78=27,'4004R(Conventional)'!$G$75,0)) -> 0 | I111: 0 | J111: 0 | L111: =+AddonDevice!H76 -> 0 | M111: =+AddonDevice!I76 -> 410 | N111: =+AddonDevice!J76 -> RAC Powered | O111: =+AddonDevice!K76 -> 0 | P111: =+AddonDevice!J76 -> RAC Powered
B112: 28 | D112: =+AddonDevice!D77 -> Skinner | E112: =+AddonDevice!E77 -> 73218BN4UNLVN0C111C2 (Skinner coil C111C2) | H112: =(IF('4004R(Conventional)'!$B$77=28,'4004R(Conventional)'!$G$74,0))+(IF('4004R(Conventional)'!$B$78=28,'4004R(Conventional)'!$G$75,0)) -> 0 | I112: 0 | J112: 0 | L112: =+AddonDevice!H77 -> 0 | M112: =+AddonDevice!I77 -> 410 | N112: =+AddonDevice!J77 -> RAC Powered | O112: =+AddonDevice!K77 -> 0 | P112: =+AddonDevice!J77 -> RAC Powered
B113: 29 | D113: =+AddonDevice!D78 -> Minimax | E113: =+AddonDevice!E78 -> MX1230 without diode | H113: =(IF('4004R(Conventional)'!$B$77=29,'4004R(Conventional)'!$G$74,0))+(IF('4004R(Conventional)'!$B$78=29,'4004R(Conventional)'!$G$75,0)) -> 0 | I113: 0 | J113: 0 | L113: =+AddonDevice!H78 -> 0 | M113: =+AddonDevice!I78 -> 420 | N113: =+AddonDevice!J78 -> RAC Powered | O113: =+AddonDevice!K78 -> 0 | P113: =+AddonDevice!J78 -> RAC Powered
B114: 30 | D114: =+AddonDevice!D79 -> Burkert | E114: =+AddonDevice!E79 -> 5282 2/2-Way Solenoid Valve | H114: =(IF('4004R(Conventional)'!$B$77=30,'4004R(Conventional)'!$G$74,0))+(IF('4004R(Conventional)'!$B$78=30,'4004R(Conventional)'!$G$75,0)) -> 0 | I114: 0 | J114: 0 | L114: =+AddonDevice!H79 -> 0 | M114: =+AddonDevice!I79 -> 333 | N114: =+AddonDevice!J79 -> RAC Powered | O114: =+AddonDevice!K79 -> 0 | P114: =+AddonDevice!J79 -> RAC Powered
B115: 31 | D115: =+AddonDevice!D80 -> Versa | E115: =+AddonDevice!E80 -> CGS-4292-NB3-S20000 | H115: =(IF('4004R(Conventional)'!$B$77=31,'4004R(Conventional)'!$G$74,0))+(IF('4004R(Conventional)'!$B$78=31,'4004R(Conventional)'!$G$75,0)) -> 0 | I115: 0 | J115: 0 | L115: =+AddonDevice!H80 -> 0 | M115: =+AddonDevice!I80 -> 438 | N115: =+AddonDevice!J80 -> RAC Powered | O115: =+AddonDevice!K80 -> 0 | P115: =+AddonDevice!J80 -> RAC Powered
B116: 32 | D116: =+AddonDevice!D81 -> Tyco | E116: =+AddonDevice!E81 -> Model TSP 304205030 | H116: =(IF('4004R(Conventional)'!$B$77=32,'4004R(Conventional)'!$G$74,0))+(IF('4004R(Conventional)'!$B$78=32,'4004R(Conventional)'!$G$75,0)) -> 0 | I116: 0 | J116: 0 | L116: =+AddonDevice!H81 -> 0 | M116: =+AddonDevice!I81 -> 500 | N116: =+AddonDevice!J81 -> RAC Powered | O116: =+AddonDevice!K81 -> 0 | P116: =+AddonDevice!J81 -> RAC Powered
B117: 33 | D117: =+AddonDevice!D82 -> Tyco | E117: =+AddonDevice!E82 -> Model TSP 304700001 | H117: =(IF('4004R(Conventional)'!$B$77=33,'4004R(Conventional)'!$G$74,0))+(IF('4004R(Conventional)'!$B$78=33,'4004R(Conventional)'!$G$75,0)) -> 0 | I117: 0 | J117: 0 | L117: =+AddonDevice!H82 -> 0 | M117: =+AddonDevice!I82 -> 830 | N117: =+AddonDevice!J82 -> RAC Powered | O117: =+AddonDevice!K82 -> 0 | P117: =+AddonDevice!J82 -> RAC Powered
B118: 34 | D118: =+AddonDevice!D83 -> Masteco | E118: =+AddonDevice!E83 -> Model MSC-01 | H118: =(IF('4004R(Conventional)'!$B$77=34,'4004R(Conventional)'!$G$74,0))+(IF('4004R(Conventional)'!$B$78=34,'4004R(Conventional)'!$G$75,0)) -> 0 | I118: 0 | J118: 0 | L118: =+AddonDevice!H83 -> 0 | M118: =+AddonDevice!I83 -> 1700 | N118: =+AddonDevice!J83 -> RAC Powered | O118: =+AddonDevice!K83 -> 0 | P118: =+AddonDevice!J83 -> RAC Powered
B119: =+B118+1 -> 35 | C119: =+AddonDevice!C84 -> Alan | D119: =+AddonDevice!D84 -> Alan Customised 1 | E119: =+AddonDevice!E84 -> Alan Test Release Actuators'1250mA | F119: =+AddonDevice!F84 -> Input 1C | H119: =(IF('4004R(Conventional)'!$B$77=35,'4004R(Conventional)'!$G$74,0))+(IF('4004R(Conventional)'!$B$78=35,'4004R(Conventional)'!$G$75,0)) -> 0 | I119: 0 | J119: =+I119+H119 -> 0 | L119: 0 | M119: =+AddonDevice!I84 -> 1250 | P119: =+AddonDevice!J84 -> RAC Powered
B120: 36 | C120: =+AddonDevice!C85 -> Alan | D120: =+AddonDevice!D85 -> Test2 | E120: =+AddonDevice!E85 -> Release Actuators'1500mA | F120: =+AddonDevice!F85 -> Input 2C | H120: =(IF('4004R(Conventional)'!$B$77=36,'4004R(Conventional)'!$G$74,0))+(IF('4004R(Conventional)'!$B$78=36,'4004R(Conventional)'!$G$75,0)) -> 0 | I120: 0 | J120: 0 | L120: 0 | M120: =+AddonDevice!I85 -> 1500 | P120: =+AddonDevice!J85 -> RAC Powered
B121: 37 | C121: =+AddonDevice!C86 -> Alan | D121: =+AddonDevice!D86 -> Test2 | E121: =+AddonDevice!E86 -> Release Actuators'1750mA | F121: =+AddonDevice!F86 -> Input 3C | H121: =(IF('4004R(Conventional)'!$B$77=37,'4004R(Conventional)'!$G$74,0))+(IF('4004R(Conventional)'!$B$78=37,'4004R(Conventional)'!$G$75,0)) -> 0 | I121: 0 | J121: 0 | L121: 0 | M121: =+AddonDevice!I86 -> 1750 | P121: =+AddonDevice!J86 -> RAC Powered
B122: 38 | C122: =+AddonDevice!C87 -> Alan | D122: =+AddonDevice!D87 -> Test2 | E122: =+AddonDevice!E87 -> Release Actuators2000mA | F122: =+AddonDevice!F87 -> Input 4C | H122: =(IF('4004R(Conventional)'!$B$77=38,'4004R(Conventional)'!$G$74,0))+(IF('4004R(Conventional)'!$B$78=38,'4004R(Conventional)'!$G$75,0)) -> 0 | I122: 0 | J122: 0 | L122: 0 | M122: =+AddonDevice!I87 -> 2000 | P122: =+AddonDevice!J87 -> RAC Powered
B123: 39 | C123: =+AddonDevice!C88 -> Customised 5 | D123: =+AddonDevice!D88 -> Input5A | E123: =+AddonDevice!E88 -> Release Actuators Input5B | F123: =+AddonDevice!F88 -> Input5C | H123: =(IF('4004R(Conventional)'!$B$77=40,'4004R(Conventional)'!$G$74,0))+(IF('4004R(Conventional)'!$B$78=40,'4004R(Conventional)'!$G$75,0)) -> 0 | I123: 0 | J123: 0 | L123: 0 | M123: =+AddonDevice!I88 -> 0 | P123: =IF(M123>0,"Current Input",AddonDevice!J88) -> RAC Powered
B124: 40 | C124: =+AddonDevice!C89 -> Customised 6 | D124: =+AddonDevice!D89 -> Input6A | E124: =+AddonDevice!E89 -> Release ActuatorsInput6B | F124: =+AddonDevice!F89 -> Input6C | H124: =(IF('4004R(Conventional)'!$B$77=41,'4004R(Conventional)'!$G$74,0))+(IF('4004R(Conventional)'!$B$78=41,'4004R(Conventional)'!$G$75,0)) -> 0 | I124: 0 | J124: 0 | L124: 0 | M124: =+AddonDevice!I89 -> 0 | P124: =IF(M124>0,"Current Input",AddonDevice!J89) -> RAC Powered
B125: 41 | C125: =+AddonDevice!C90 -> Customised 7 | D125: =+AddonDevice!D90 -> Input7A | E125: =+AddonDevice!E90 -> Release ActuatorsInput7B | F125: =+AddonDevice!F90 -> Input7C | H125: =(IF('4004R(Conventional)'!$B$77=42,'4004R(Conventional)'!$G$74,0))+(IF('4004R(Conventional)'!$B$78=42,'4004R(Conventional)'!$G$75,0)) -> 0 | I125: 0 | J125: 0 | L125: 0 | M125: =+AddonDevice!I90 -> 0 | P125: =IF(M125>0,"Current Input",AddonDevice!J90) -> RAC Powered
B126: 42 | C126: =+AddonDevice!C91 -> Customised 8 | D126: =+AddonDevice!D91 -> Input8A | E126: =+AddonDevice!E91 -> Release ActuatorsInput8B | F126: =+AddonDevice!F91 -> Input8C | H126: =(IF('4004R(Conventional)'!$B$77=43,'4004R(Conventional)'!$G$74,0))+(IF('4004R(Conventional)'!$B$78=43,'4004R(Conventional)'!$G$75,0)) -> 0 | I126: 0 | J126: 0 | L126: 0 | M126: =+AddonDevice!I91 -> 0 | P126: =IF(M126>0,"Current Input",AddonDevice!J91) -> RAC Powered
B127: 43 | C127: =+AddonDevice!C92 -> Customised 9 | D127: =+AddonDevice!D92 -> Input9A | E127: =+AddonDevice!E92 -> Release ActuatorsInput9B | F127: =+AddonDevice!F92 -> Input9C | H127: =(IF('4004R(Conventional)'!$B$77=44,'4004R(Conventional)'!$G$74,0))+(IF('4004R(Conventional)'!$B$78=44,'4004R(Conventional)'!$G$75,0)) -> 0 | I127: 0 | J127: 0 | L127: 0 | M127: =+AddonDevice!I92 -> 0 | P127: =IF(M127>0,"Current Input",AddonDevice!J92) -> RAC Powered
B128: 44 | C128: =+AddonDevice!C93 -> Customised 10 | D128: =+AddonDevice!D93 -> Input10A | E128: =+AddonDevice!E93 -> Release ActuatorsInput10B | F128: =+AddonDevice!F93 -> Input10C | H128: =(IF('4004R(Conventional)'!$B$77=45,'4004R(Conventional)'!$G$74,0))+(IF('4004R(Conventional)'!$B$78=45,'4004R(Conventional)'!$G$75,0)) -> 0 | I128: 0 | J128: 0 | L128: 0 | M128: =+AddonDevice!I93 -> 0 | P128: =IF(M128>0,"Current Input",AddonDevice!J93) -> RAC Powered
B129: 45 | C129: =+AddonDevice!C94 -> Customised 11 | D129: =+AddonDevice!D94 -> Input11A | E129: =+AddonDevice!E94 -> Release ActuatorsInput11B | F129: =+AddonDevice!F94 -> Input11C | H129: =(IF('4004R(Conventional)'!$B$77=46,'4004R(Conventional)'!$G$74,0))+(IF('4004R(Conventional)'!$B$78=46,'4004R(Conventional)'!$G$75,0)) -> 0 | I129: 0 | J129: 0 | L129: 0 | M129: =+AddonDevice!I94 -> 0 | P129: =IF(M129>0,"Current Input",AddonDevice!J94) -> RAC Powered
B130: 46 | C130: =+AddonDevice!C95 -> Customised 12 | D130: =+AddonDevice!D95 -> Input12A | E130: =+AddonDevice!E95 -> Release ActuatorsInput12B | F130: =+AddonDevice!F95 -> Input12C | H130: =(IF('4004R(Conventional)'!$B$77=47,'4004R(Conventional)'!$G$74,0))+(IF('4004R(Conventional)'!$B$78=47,'4004R(Conventional)'!$G$75,0)) -> 0 | I130: 0 | J130: 0 | L130: 0 | M130: =+AddonDevice!I95 -> 0 | P130: =IF(M130>0,"Current Input",AddonDevice!J95) -> RAC Powered
A131: H | C131: Installation Info on Max Distance Run from 4004R Panel RAC circuit to Solenoid. | H131: =SUM(H137:H182) -> 1 | J131: =SUM(J132:J136) -> 698.085262
B132: =+B130+1 -> 47 | C132: Max Cable Distance | E132: Maximum RAC Distance Run from 4004R Panel RAC 1 to Solenoid | H132: =+'4004R(Conventional)'!$J$110 -> 256.985262 | I132: 0 | J132: =+$H$132+$I$132 -> 256.985262
B133: =+B132+1 -> 48 | C133: Cable Wire Gauge | E133: Cable Wire Gauge Selected | H133: =+'4004R(Conventional)'!$G$105 -> 2.5mm2 | I133: 0 | J133: =+$H$133 -> 2.5mm2
B134: =+B133 -> 48 | C134: Cable line Resistance | E134: Maximum Line Resistance for Cables Properties | H134: =+'4004R(Conventional)'!$G$106 -> 3.1 | I134: 0 | J134: =+$H$134+$I$134 -> 3.1
B135: =+B134+1 -> 49 | C135: RAC Loading | E135: Current Loading for this RAC Circuits | H135: =+'4004R(Conventional)'!$G$98 -> 438 | I135: 0 | J135: =+$H$135+$I$135 -> 438
H136: 0 | P136: =+AddonDevice!J96 -> 0
A137: I | C137: Batteries and Charger for Reference - Local purchase | J137: =SUM(J138:J148) -> 1
B138: 1 | C138: 2081-9272 | D138: Lead Acid Battery only | E138: 6.2 Ah battery, 12 V | F138: Internal Panel Mounting | H138: =+'4004R(Conventional)'!$AD$130 -> 0 | I138: 0 | J138: =+I138+H138 -> 0 | L138: 0 | M138: 0 | Q138: =+'4004R(Conventional)'!J139 -> 10
B139: 2 | C139: 2081-9274 | D139: Lead Acid Battery only | E139: 10 Ah battery, 12 V | F139: Internal Panel Mounting | H139: =+'4004R(Conventional)'!$AD$131 -> 1 | I139: 0 | J139: 1 | L139: 0 | M139: 0 | P139: 0
B140: 3 | C140: 2081-9288 | D140: Lead Acid Battery only | E140: 12.7 Ah battery, 12 V | F140: Internal Panel Mounting | H140: =+'4004R(Conventional)'!$AD$132 -> 0 | I140: 0 | J140: 0 | L140: 0
B141: 4 | C141: 4081-9301 | D141: Beige | E141: Battery cabinet with charger, 120 VAC input | F141: External Battery Charger from 25 to 50Ah | H141: =+'4004R(Conventional)'!$AD$138 -> 0 | I141: 0 | J141: =+I141+H141 -> 0
B142: 5 | C142: 4081-9302 | D142: Red | E142: Battery cabinet with charger, 120 VAC input | F142: External Battery Charger from 25 to 50Ah | H142: 0 | I142: 0 | J142: 0
B143: 6 | C143: 2081-9275 | D143: Lead Acid Battery only | E143: 18 Ah battery, 12 V | F143: External Panel Charger & Mounting | H143: =+'4004R(Conventional)'!$AD$133 -> 0 | I143: 0 | J143: =+I143+H143 -> 0 | L143: 0
B144: 7 | C144: 2081-9287 | D144: Lead Acid Battery only | E144: 25 Ah battery, 12 V | F144: External Panel Charger & Mounting | H144: =+'4004R(Conventional)'!$AD$134 -> 0 | I144: 0 | J144: 0 | L144: 0 | P144: =+P143 -> 
B145: 8 | C145: 2081-9276 | D145: Lead Acid Battery only | E145: 33 Ah battery, 12 V | F145: External Panel Charger & Mounting | H145: =+'4004R(Conventional)'!$AD$135 -> 0 | I145: 0 | J145: =+I145+H145 -> 0
B146: 9 | C146: 2081-9296 | D146: Lead Acid Battery only | E146: 50 Ah battery, 12 V | F146: External Panel Charger & Mounting | H146: =+'4004R(Conventional)'!$AD$136 -> 0 | I146: 0 | J146: 0
B147: 10 | C147: 2081-9279 | D147: Lead Acid Battery only | E147: 110Ah battery, 12V | F147: External Panel Charger & Mounting | H147: =+'4004R(Conventional)'!$AD$137 -> 0 | I147: 0 | J147: 0
B148: 11 | C148: 4081-9308 | D148: Battery Charger | E148: External Battery Charger up to 110Ah | F148: External Batter Charger | H148: =+'4004R(Conventional)'!$AD$139 -> 0 | I148: 0 | J148: =+I148+H148 -> 0

Sheet 4004RBOM
C3: 4004R Conventional Releasing Fire Detection Solution -Final Bill of Material
A6: POS. | B6: No | C6: Part number | D6: Function | E6: Product Description | F6: Listing | G6: Qty Final | H6: Remarks

Sheet AddonDevice
D1: Suppression Fire Detection Solution - Additional Devices(3rd Party or add on to appear on Configurator Sheet)
H5: Equipment Current
A6: POS. | B6: No | C6: Part number | D6: Function | E6: Product Description | F6: Listing | H6: Stby Current | I6: Alarm Current | J6: Remarks
A7: A | C7: 4004R Conventional Suppression Panel
B8: 1 | C8: Counter | D8: Countdown Timer | E8: Count Down Timer Locally Source | F8: Local | H8: 30 | I8: 120 | J8: Aux PS | K8: Customised | L8: =IF((EXACT((LEFT(C8,10)),K8))=TRUE,0,1) -> 1
B9: =+B8+1 -> 2 | C9: Customised 2 | D9: Input2A | E9: 4004R Panel Input2B | F9: Input2C | H9: 0 | I9: 0 | J9: Please input "Aux PS" if needed | K9: Customised | L9: =IF((EXACT((LEFT(C9,10)),K9))=TRUE,0,1) -> 0
B10: 3 | C10: Customised 3 | D10: Input3A | E10: 4004R Panel Input3B | F10: Input3C | H10: 0 | I10: 0 | J10: Please input "Aux PS" if needed | K10: Customised | L10: 0
B11: 4 | C11: Customised 4 | D11: Input4A | E11: 4004R Panel Input4B | F11: Input4C | H11: 0 | I11: 0 | J11: Please input "Aux PS" if needed | K11: Customised | L11: 0
A13: B | C13: 4007ES Addressable Suppression Panel | H13: 0
B14: 1 | C14: Counter | D14: Countdown Timer | E14: Count Down Timer Locally Source | F14: Local | H14: 50 | I14: 180 | J14: Aux PS | K14: Customised | L14: =IF((EXACT((LEFT(C14,10)),K14))=TRUE,0,1) -> 1
B15: =+B14+1 -> 2 | C15: Customised 2 | D15: Input2A | E15: 4007ES Addr Panel Input2B | F15: Input2C | H15: 0 | I15: 0 | J15: Input "Aux PS" As Reqd | K15: Customised | L15: 0
B16: 3 | C16: Customised 3 | D16: Input3A | E16: 4007ES Addr Panel IInput3B | F16: Input3C | H16: 0 | I16: 0 | J16: Input "Aux PS" As Reqd | K16: Customised | L16: 0
B17: 4 | C17: Customised 4 | D17: Input4A | E17: 4007ES Addr Panel IInput4B | F17: Input4C | H17: 0 | I17: 0 | J17: Input "Aux PS" As Reqd | K17: Customised | L17: 0
B18: 5 | C18: Customised 5 | D18: Input5A | E18: 4007ES Addr Panel IInput5B | F18: Input5C | H18: 0 | I18: 0 | J18: Input "Aux PS" As Reqd | K18: Customised | L18: 0
B19: 6 | C19: Customised 6 | D19: Input6A | E19: 4007ES Addr Panel IInput6B | F19: Input6C | H19: 0 | I19: 0 | J19: Input "Aux PS" As Reqd | K19: Customised | L19: 0
A21: C | C21: 4009 Addressable Notification Circuits Repeater
B22: 1 | C22: 4009-9808 | D22: Class A Adapter | E22: Dual Class A adapter(No Additional Current) | F22: UL Listed | H22: 0 | I22: 0 | J22: Input "Aux PS" As Reqd | K22: Customised | L22: =IF((EXACT((LEFT(C22,10)),K22))=TRUE,0,1) -> 1
B23: =+B22+1 -> 2 | C23: 4009-9809 | D23: Idnet Repeater | E23: IDNet Repeater, output is Class A or Class B(If Required due to distance) | F23: UL Listed | H23: 0 | I23: 0 | J23: Input "Aux PS" As Reqd | K23: Customised | L23: 1
B24: 3 | C24: Customised 3 | D24: Input3A | E24: Input3B | F24: Input3C | H24: 0 | I24: 0 | J24: Input "Aux PS" As Reqd | K24: Customised | L24: 0
A26: D | C26: Addressable Field Devices - Standard
B27: 1 | C27: Customised 1 | D27: Input1A | E27: Addressable Field Devices Input1B | F27: Listing Input1C | H27: 0 | I27: 0 | J27: Input "Aux PS" As Reqd | K27: Customised | L27: =IF((EXACT((LEFT(C27,10)),K27))=TRUE,0,1) -> 0
B28: =+B27+1 -> 2 | C28: Customised 2 | D28: Input2A | E28: Addressable Field Devices Input2B | F28: Listing Input2C | H28: 0 | I28: 0 | J28: Input "Aux PS" As Reqd | K28: Customised | L28: 0
B29: 3 | C29: Customised 3 | D29: Input3A | E29: Addressable Field Devices Input3B | F29: Listing Input3C | H29: 0 | I29: 0 | J29: Input "Aux PS" As Reqd | K29: Customised | L29: 0
B30: 4 | C30: Customised 4 | D30: Input4A | E30: Addressable Field Devices Input4B | F30: Listing Input4C | H30: 0 | I30: 0 | J30: Input "Aux PS" As Reqd | K30: Customised | L30: 0
B31: 5 | C31: Customised 5 | D31: Input5A | E31: Addressable Field Devices Input5B | F31: Listing Input5C | H31: 0 | I31: 0 | J31: Input "Aux PS" As Reqd | K31: Customised | L31: 0
B32: 6 | C32: Customised 6 | D32: Input6A | E32: Addressable Field Devices Input 6B | F32: Listing Input6C | H32: 0 | I32: 0 | J32: Input "Aux PS" As Reqd | K32: Customised | L32: 0
A34: E | C34: Addressable/Conventional Field Devices - Special
B35: 1 | C35: Customised 1 | D35: Input1A | E35: Special Device Input1B | F35: Input1C | H35: 0 | I35: 0 | J35: Input "Aux PS" As Reqd | K35: Customised | L35: =IF((EXACT((LEFT(C35,10)),K35))=TRUE,0,1) -> 0
B36: =+B35+1 -> 2 | C36: Customised 2 | D36: Input2A | E36: Special Device Input2B | F36: Input2C | H36: 0 | I36: 0 | J36: Input "Aux PS" As Reqd | K36: Customised | L36: 0
B37: 3 | C37: Customised 3 | D37: Input3A | E37: Special Device Input3B | F37: Input3C | H37: 0 | I37: 0 | J37: Input "Aux PS" As Reqd | K37: Customised | L37: 0
B38: 4 | C38: Customised 4 | D38: Input4A | E38: Special Device Input4B | F38: Input4C | H38: 0 | I38: 0 | J38: Input "Aux PS" As Reqd | K38: Customised | L38: 0
B39: 5 | C39: Customised 5 | D39: Input5A | E39: Special Device Input5B | F39: Input5C | H39: 0 | I39: 0 | J39: Input "Aux PS" As Reqd | K39: Customised | L39: 0
A41: F | C41: Releasing Peripherals(Addressable and Conventional)
B42: 1 | C42: Local | D42: Discharge Signage | E42: Discharge Display Signage | F42: Local | H42: 0 | I42: 150 | J42: Aux PS | K42: Customised | L42: =IF((EXACT((LEFT(C42,10)),K42))=TRUE,0,1) -> 1
B43: =+B42+1 -> 2 | C43: Local | D43: 1st Alarm Signage | E43: Pre Release Display Signage | F43: Local | H43: 0 | I43: 150 | J43: Aux PS | K43: Customised | L43: 1
B44: 3 | C44: Customised 3 | D44: Input1A | E44: Releasing Peripherals Input3B | F44: Input3C | J44: Input "Aux PS" As Reqd | K44: Customised | L44: 0
B45: 4 | C45: Customised 4 | D45: Input4A | E45: Releasing Peripherals Input4B | F45: Input4C | J45: Input "Aux PS" As Reqd | K45: Customised | L45: 0
B46: 5 | C46: Customised 5 | D46: Input5A | E46: Releasing Peripherals Input5B | F46: Input5C | J46: Input "Aux PS" As Reqd | K46: Customised | L46: 0
B47: 6 | C47: Customised 6 | D47: Input6A | E47: Releasing Peripherals Input6B | F47: Input6C | J47: Input "Aux PS" As Reqd | K47: Customised | L47: 0
A49: F | C49: Releasing Actuators
B50: 1 | D50: Ansul | E50: AUTOMAN II-C Assembly (solenoid 17728; coil 25924) | F50: UL listed | I50: 750 | J50: RAC Powered
B51: =+B50+1 -> 2 | D51: Ansul | E51: AUTOMAN II-C Explosion-Proof Releasing Device (solenoid 31492; coil 31438) | F51: UL listed | I51: 750 | J51: RAC Powered
B52: =+B51+1 -> 3 | D52: Ansul | E52: AUTOMAN II-C Assembly (solenoid 68739; coil 25924) | F52: UL listed | I52: 750 | J52: RAC Powered
B53: 4 | D53: Ansul | E53: Solenoid Electric Actuator (solenoid 73111; coil 73097) | F53: UL listed | I53: 1000 | J53: RAC Powered
B54: 5 | D54: Ansul | E54: *CV90 HF Electric Actuator 73327 | F54: UL listed | I54: 570 | J54: RAC Powered
B55: 6 | D55: Ansul | E55: LP CO2 w/ASCO solenoid 422934 | F55: UL listed | I55: 442 | J55: RAC Powered
B56: 7 | D56: Ansul | E56: LP CO2 double action 24 VDC solenoid 430948 | F56: UL listed | I56: 438 | J56: RAC Powered
B57: 8 | D57: Ansul | E57: LP CO2 3-way selector valve solenoid 433419 | F57: UL listed | I57: 438 | J57: RAC Powered
B58: 9 | D58: Ansul | E58: Electric Actuator 24 VDC solenoid 570537 | F58: UL listed | I58: 250 | J58: RAC Powered
B59: 10 | D59: ASCO | E59: 8210A107 (097617-005D coil) | F59: UL listed | I59: 750 | J59: RAC Powered
B60: 11 | D60: ASCO | E60: 8210G207 (238310 coil) | F60: UL listed | I60: 440 | J60: RAC Powered
B61: 12 | D61: ASCO | E61: 8211A107 (097617-005D coil) | F61: UL listed | I61: 750 | J61: RAC Powered
B62: 13 | D62: ASCO | E62: 8262H182 (238910 coil) | F62: UL listed | I62: 483 | J62: RAC Powered
B63: 14 | D63: ASCO | E63: EF8210G001MBMO | F63: UL listed | I63: 450 | J63: RAC Powered
B64: 15 | D64: ASCO | E64: HV2628571 (23810 coil) | F64: UL listed | I64: 442 | J64: RAC Powered
B65: 16 | D65: ASCO | E65: HV2648581 (23810 coil) | F65: UL listed | I65: 442 | J65: RAC Powered
B66: 17 | D66: ASCO | E66: R8210A107 (097617-005D coil) | F66: UL listed | I66: 700 | J66: RAC Powered
B67: 18 | D67: ASCO | E67: T8210A107 (097617-005D coil) | F67: UL listed | I67: 700 | J67: RAC Powered
B68: 19 | D68: Hygood | E68: 304.205.010 – Electrical Actuator Suppression Diode | F68: UL listed | I68: 250 | J68: RAC Powered
B69: 20 | D69: Hygood | E69: 304.209.001 – Electrical Actuator Bridge Rectifier | F69: UL listed | I69: 250 | J69: RAC Powered
B70: 21 | D70: Pyrochem | E70: ECH Electrical Control Head (551201) | F70: UL listed | I70: 1700 | J70: RAC Powered
B71: 22 | D71: Pyrochem | E71: Explosion-Proof Electric Actuator (570147) | F71: UL listed | I71: 396 | J71: RAC Powered
B72: 23 | D72: Pyrochem | E72: Removable Electric Actuator (570209) | F72: UL listed | I72: 200 | J72: RAC Powered
B73: 24 | D73: Skinner | E73: 71395SN2ENJ1N0H111C2 (Skinner coil H111C2) | F73: UL listed | I73: 420 | J73: RAC Powered
B74: 25 | D74: Skinner | E74: 73212BN4TN00N0C111C2 (Skinner coil C111C2) | F74: UL listed | I74: 420 | J74: RAC Powered
B75: 26 | D75: Skinner | E75: 73212BN4TNLVN0C322C2 (Skinner coil C322C2) | F75: UL listed | I75: 830 | J75: RAC Powered
B76: 27 | D76: Skinner | E76: 73218BN4UNLVN0H111C2 (Skinner coil H111C2) | F76: UL listed | I76: 410 | J76: RAC Powered
B77: 28 | D77: Skinner | E77: 73218BN4UNLVN0C111C2 (Skinner coil C111C2) | F77: UL listed | I77: 410 | J77: RAC Powered
B78: 29 | D78: Minimax | E78: MX1230 without diode | F78: UL listed | I78: 420 | J78: RAC Powered
B79: 30 | D79: Burkert | E79: 5282 2/2-Way Solenoid Valve | F79: UL listed | I79: 333 | J79: RAC Powered
B80: 31 | D80: Versa | E80: CGS-4292-NB3-S20000 | F80: UL listed | I80: 438 | J80: RAC Powered
B81: 32 | D81: Tyco | E81: Model TSP 304205030 | F81: UL listed | I81: 500 | J81: RAC Powered
B82: 33 | D82: Tyco | E82: Model TSP 304700001 | F82: UL listed | I82: 830 | J82: RAC Powered
B83: 34 | D83: Masteco | E83: Model MSC-01 | F83: UL listed | I83: 1700 | J83: RAC Powered
B84: 35 | C84: Alan | D84: Alan Customised 1 | E84: Alan Test Release Actuators'1250mA | F84: Input 1C | H84: 0 | I84: 1250 | J84: RAC Powered | K84: Customised | L84: =IF((EXACT((LEFT(C84,10)),K84))=TRUE,0,1) -> 1
B85: 36 | C85: Alan | D85: Test2 | E85: Release Actuators'1500mA | F85: Input 2C | H85: 0 | I85: 1500 | J85: =+J84 -> RAC Powered | K85: Customised | L85: 1
B86: 37 | C86: Alan | D86: Test2 | E86: Release Actuators'1750mA | F86: Input 3C | H86: 0 | I86: 1750 | J86: =+J85 -> RAC Powered | K86: Customised | L86: 1
B87: 38 | C87: Alan | D87: Test2 | E87: Release Actuators2000mA | F87: Input 4C | H87: 0 | I87: 2000 | J87: RAC Powered | K87: Customised | L87: 1
B88: 39 | C88: Customised 5 | D88: Input5A | E88: Release Actuators Input5B | F88: Input5C | H88: 0 | I88: 0 | J88: RAC Powered | K88: Customised | L88: 0
B89: 40 | C89: Customised 6 | D89: Input6A | E89: Release ActuatorsInput6B | F89: Input6C | H89: 0 | I89: 0 | J89: RAC Powered | K89: Customised | L89: 0
B90: 41 | C90: Customised 7 | D90: Input7A | E90: Release ActuatorsInput7B | F90: Input7C | H90: 0 | I90: 0 | J90: RAC Powered | K90: Customised | L90: 0
B91: 42 | C91: Customised 8 | D91: Input8A | E91: Release ActuatorsInput8B | F91: Input8C | H91: 0 | I91: 0 | J91: RAC Powered | K91: Customised | L91: 0
B92: 43 | C92: Customised 9 | D92: Input9A | E92: Release ActuatorsInput9B | F92: Input9C | H92: 0 | I92: 0 | J92: RAC Powered | K92: Customised | L92: 0
B93: 44 | C93: Customised 10 | D93: Input10A | E93: Release ActuatorsInput10B | F93: Input10C | H93: 0 | I93: 0 | J93: RAC Powered | K93: Customised | L93: 0
B94: 45 | C94: Customised 11 | D94: Input11A | E94: Release ActuatorsInput11B | F94: Input11C | H94: 0 | I94: 0 | J94: RAC Powered | K94: Customised | L94: 0
B95: 46 | C95: Customised 12 | D95: Input12A | E95: Release ActuatorsInput12B | F95: Input12C | H95: 0 | I95: 0 | J95: RAC Powered | K95: Customised | L95: 0
A97: G | C97: Conventional Field Devices
B98: A | C98: 2 Wire Devices Powered by IDC or Zone Addressable Modules
B99: 1 | C99: Customised 1 | D99: Input1A | E99: Input1B - 2 Wire Powered Device | F99: Input1C | J99: Powered by IDC | K99: Customised | L99: =IF((EXACT((LEFT(#REF!,10)),K99))=TRUE,0,1) -> 
B100: =+B99+1 -> 2 | C100: Customised 2 | D100: Input2A | E100: Input2B - 2 Wire Powered Device | F100: Input2C | J100: Powered by IDC | K100: Customised | L100: =IF((EXACT((LEFT(#REF!,10)),K100))=TRUE,0,1) -> 
B101: 3 | C101: Customised 3 | D101: Input3A | E101: Input3B - 2 Wire Powered Device | F101: Input3C | J101: Powered by IDC | K101: Customised | L101: =IF((EXACT((LEFT(C99,10)),K101))=TRUE,0,1) -> 0
B102: 4 | C102: Customised 4 | D102: Input4A | E102: Input4B - 2 Wire Powered Device | F102: Input4C | J102: Powered by IDC | K102: Customised | L102: =IF((EXACT((LEFT(C100,10)),K102))=TRUE,0,1) -> 0
B104: B | C104: 2 Wire Devices Powered by Auxillary Power Supply
B105: =+B97+1 -> 1 | C105: Customised 1 | D105: Input1A | E105: Input1B- 2 Wired Powered by IDC | F105: Input1C | J105: Aux PS | K105: Customised | L105: =IF((EXACT((LEFT(#REF!,10)),K105))=TRUE,0,1) -> 
B106: =+B105+1 -> 2 | C106: Customised 2 | D106: Input2A | E106: Input2B- 2 Wired Powered by IDC | F106: Input2C | J106: Aux PS | K106: Customised | L106: =IF((EXACT((LEFT(#REF!,10)),K106))=TRUE,0,1) -> 
B107: 3 | C107: Customised 3 | D107: Input3A | E107: Input3B- 2 Wired Powered by IDC | F107: Input3C | J107: Aux PS | K107: Customised | L107: =IF((EXACT((LEFT(C105,10)),K107))=TRUE,0,1) -> 0
B108: 4 | C108: Customised 4 | D108: Input4A | E108: Input4B- 2 Wired Powered by IDC | F108: Input4C | J108: Aux PS | K108: Customised | L108: =IF((EXACT((LEFT(C106,10)),K108))=TRUE,0,1) -> 0
B109: 5 | C109: Customised 5 | D109: Input5A | E109: Input5B- 2 Wired Powered by IDC | F109: Input5C | J109: Aux PS | K109: Customised | L109: =IF((EXACT((LEFT(C107,10)),K109))=TRUE,0,1) -> 0
A111: H | C111: Conventional Notification Devices
B112: =+B111+1 -> 1 | C112: Customised 1 | D112: Input1A | E112: Input1B - Notification Device 1 | F112: Input1C | I112: 0 | J112: NAC Powered | K112: Customised | L112: =IF((EXACT((LEFT(C112,10)),K112))=TRUE,0,1) -> 0
B113: 2 | C113: Customised 2 | D113: Input2A | E113: Input2B - Notification Device 2 | F113: Input2C | H113: 0 | I113: 0 | J113: =+J112 -> NAC Powered | K113: Customised | L113: 0
B114: 3 | C114: Customised 3 | D114: Input3A | E114: Input3B - Notification Device 3 | F114: Input3C | H114: 0 | I114: 0 | J114: =+J113 -> NAC Powered | K114: Customised | L114: 0
B115: 4 | C115: Customised 4 | D115: Input4A | E115: Input4B - Notification Device 4 | F115: Input4C | H115: 0 | I115: 0 | J115: =+J114 -> NAC Powered | K115: Customised | L115: 0
B116: 5 | C116: Customised 5 | D116: Input5A | E116: Input5B - Notification Device 5 | F116: Input5C | H116: 0 | I116: 0 | J116: =+J115 -> NAC Powered | K116: Customised | L116: 0
B117: 6 | C117: Customised 6 | D117: Input6A | E117: Input6B - Notifiation Device 6 | F117: Input6C | H117: 0 | I117: 0 | J117: =+J116 -> NAC Powered | K117: Customised | L117: 0

Sheet 4004RDrawing

Sheet IdnetAddr (hidden)
A1: 0 | C1: Notification Circuits Wiring Distance Calculation | H1: 50°C (122°F) | N1: 75°C (167°F)
A2: =+A1+1 -> 1 | C2: Calculation Factors | D2: Voltage Drop | E2: mA to Amp | F2: R@1K | G2: Dual Core | H2: 18AWG | I2: 16AWG | J2: 14AWG | K2: 12AWG | L2: 1.5mm2 | M2: 2.5mm2 | N2: 18AWG | O2: 16AWG | P2: 14AWG | Q2: 12AWG | R2: 1.5mm2 | S2: 2.5mm2
A3: =+A2+1 -> 2 | C3: Worst Scenario | D3: 4 | E3: 1000 | F3: 1000 | G3: 2 | H3: 23.42519689 | I3: 14.76377955 | J3: 9.251968518 | K3: 5.807086623 | L3: 12.50000002 | M3: 7.513123371 | N3: 25.49212602 | O3: 16.04330711 | P3: 10.07217849 | Q3: 6.332021007 | R3: 13.58267719 | S3: 8.14
A4: 3 | C4: Mean Scenario | D4: 6.67 | E4: 1000 | F4: 1000 | G4: 2 | H4: 23.42519689 | I4: 14.76377955 | J4: 9.251968518 | K4: 5.807086623 | L4: 12.50000002 | M4: 7.513123371 | N4: 25.49212602 | O4: 16.04330711 | P4: 10.07217849 | Q4: 6.332021007 | R4: 13.58267719 | S4: =+S3 -> 8.14
A5: 4 | C5: Type of Cables | D5: Deg | E5: Unit
C6: No Selection
A7: =+A5+1 -> 5 | C7: 1.5mm2 | D7: 50°C (122°F) | E7: Meter
A8: 6 | C8: 2.5mm2 | D8: 75°C (167°F) | E8: Feet
A9: 7 | C9: 18AWG
A10: 8 | C10: 16AWG
A11: 9 | C11: 14AWG
A12: 10 | C12: 12AWG
A13: 11
A14: 12 | C14: Release Actuator Circuits Distance Calculation | H14: 50°C (122°F) | N14: 75°C (167°F)
A15: 13 | C15: RAC Actuator Current | E15: mA to Amp | F15: R@1K | G15: Dual Core | H15: 18AWG | I15: 16AWG | J15: 14AWG | K15: 12AWG | L15: 1.5mm2 | M15: 2.5mm2 | N15: 18AWG | O15: 16AWG | P15: 14AWG | Q15: 12AWG | R15: 1.5mm2 | S15: 2.5mm2
A16: 14 | C16: 500 | D16: 3.4 | E16: 1000 | F16: 1000 | G16: 2 | H16: 3.58 | I16: 14.76377955 | J16: 9.251968518 | K16: 5.807086623 | L16: 12.50000002 | M16: 7.513123371 | N16: 25.49212602 | O16: 16.04330711 | P16: 10.07217849 | Q16: 6.332021007 | R16: 13.58267719 | S16: 8.14
A17: 15 | C17: 750 | D17: 3.4 | E17: 1000 | F17: 1000 | G17: 2 | H17: 2.39 | I17: 14.76377955 | J17: 9.251968518 | K17: 5.807086623 | L17: 12.50000002 | M17: 7.513123371 | N17: 25.49212602 | O17: 16.04330711 | P17: 10.07217849 | Q17: 6.332021007 | R17: 13.58267719 | S17: =+S16 -> 8.14
A18: 16 | C18: 1000 | D18: 3.4 | E18: 1000 | F18: 1000 | G18: 2 | H18: 1.79 | I18: 14.76377955 | J18: 9.251968518 | K18: 5.807086623 | L18: 12.50000002 | M18: 7.513123371 | N18: 25.49212602 | O18: 16.04330711 | P18: 10.07217849 | Q18: 6.332021007 | R18: 13.58267719 | S18: =+S17 -> 8.14
A19: 17 | C19: 1250 | D19: 3.4 | E19: 1000 | F19: 1000 | G19: 2 | H19: 1.43 | I19: 14.76377955 | J19: 9.251968518 | K19: 5.807086623 | L19: 12.50000002 | M19: 7.513123371 | N19: 25.49212602 | O19: 16.04330711 | P19: 10.07217849 | Q19: 6.332021007 | R19: 13.58267719 | S19: 8.14
A20: 18 | C20: 1500 | D20: 3.4 | E20: 1000 | F20: 1000 | G20: 2 | H20: 1.19 | I20: 14.76377955 | J20: 9.251968518 | K20: 5.807086623 | L20: 12.50000002 | M20: 7.513123371 | N20: 25.49212602 | O20: 16.04330711 | P20: 10.07217849 | Q20: 6.332021007 | R20: 13.58267719 | S20: 8.14
A21: 19 | C21: 1750 | D21: 3.4 | E21: 1000 | F21: 1000 | G21: 2 | H21: 1.02 | I21: 14.76377955 | J21: 9.251968518 | K21: 5.807086623 | L21: 12.50000002 | M21: 7.513123371 | N21: 25.49212602 | O21: 16.04330711 | P21: 10.07217849 | Q21: 6.332021007 | R21: 13.58267719 | S21: 8.14
A22: 20 | C22: 2000 | D22: 1.2 | E22: 1000 | F22: 1000 | G22: 2 | H22: 0.36 | I22: 14.76377955 | J22: 9.251968518 | K22: 5.807086623 | L22: 12.50000002 | M22: 7.513123371 | N22: 25.49212602 | O22: 16.04330711 | P22: 10.07217849 | Q22: 6.332021007 | R22: 13.58267719 | S22: 8.14
A23: 21
A24: 22 | B24: NAC1 | C24: NAC1 Usage-Notification Device
B25: NAC2 | C25: NAC2 Usage Notification Device
B26: NAC3 | C26: NAC3 Usage Notification Device
B27: NAC4 | C27: NAC4 Usage Notification Device
A28: =+A24+1 -> 23 | B28: RAC1 | C28: RAC1 Usage -Actuator1
A29: 24 | B29: RAC2 | C29: RAC2 Usage-Actuator2
A30: 25 | B30: RAC3 | C30: RAC3 Usage-Actuator3
A31: 26
A32: 27 | B32: NAC1 | C32: NAC1 Usage-Notification Device
A33: 28 | B33: RAC1 | C33: RAC1 Usage -Actuator1
A34: 29 | B34: NAC2 | C34: NAC2 Usage-Notification Device
A35: 30 | B35: RAC2 | C35: RAC2 Usage -Actuator1
A36: 31 | B36: NAC3 | C36: NAC3 Usage-Notification Device
A37: 32 | B37: RAC3 | C37: RAC3 Usage -Actuator1
A38: 33 | B38: NAC4 | C38: NAC4 Usage Notification Device
A39: 34
A40: 35
A41: 36
A42: 37
A43: 38
A44: 39
A45: 40
A46: 41
A47: 42
A48: 43
A49: 44
A50: 45
A51: 46
A52: 47
A53: 48
A54: 49
A55: 50
A56: 51
A57: 52
A58: 53
A59: 54
A60: 55
A61: 56
A62: 57
A63: 58
A64: 59
A65: 60
A66: 61
A67: 62
A68: 63
A69: 64
A70: 65
A71: =+A70+1 -> 66
A72: 67
A73: 68
A74: 69
A75: 70
A76: 71
A77: 72
A78: 73
A79: 74
A80: 75
A81: 76
A82: 77
A83: 78
A84: 79
A85: 80
A86: 81
A87: 82
A88: 83
A89: 84
A90: 85
A91: 86
A92: 87
A93: 88
A94: 89
A95: 90
A96: 91
A97: 92
A98: 93
A99: 94
A100: 95
A101: 96
A102: 97
A103: 98
A104: 99
A105: 100
A106: 101
A107: 102
A108: 103
A109: 104
A110: 105
A111: 106
A112: 107
A113: 108
A114: 109
A115: 110
A116: 111
A117: 112
A118: 113
A119: 114
A120: 115
A121: 116
A122: 117
A123: 118
A124: 119
A125: 120
A126: 121
A127: 122
A128: 123
A129: 124
A130: 125
A131: 126
A132: 127
A133: 128
A134: 129
A135: =+A134+1 -> 130
A136: 131
A137: 132
A138: =+A137+1 -> 133
A139: 134
A140: 135
A141: 136
A142: 137
A143: 138
A144: 139
A145: 140
A146: 141
A147: 142
A148: 143
A149: 144
A150: 145
A151: 146
A152: 147
A153: 148
A154: 149
A155: 150
A156: 151
A157: 152
A158: 153
A159: 154
A160: 155
A161: 156
A162: 157
A163: 158
A164: 159
A165: 160
A166: 161
A167: 162
A168: 163
A169: 164
A170: 165
A171: 166
A172: 167
A173: 168
A174: 169
A175: 170
A176: 171
A177: 172
A178: 173
A179: 174
A180: 175
A181: 176
A182: 177
A183: 178
A184: 179
A185: 180
A186: 181
A187: 182
A188: 183
A189: 184
A190: 185
A191: 186
A192: 187
A193: 188
A194: 189
A195: 190
A196: 191
A197: 192
A198: 193
A199: =+A198+1 -> 194
A200: 195
... 55 more rows

Sheet Aux & `Panel Current (hidden)
A1: Auxillary Current summary
A2: PID | B2: Description | C2: H1 Stby | D2: H1 Alm | E2: H2 Stby | F2: H2 Alm | G2: H3 Stby | H2: H3 Alm | I2: H4 Stby | J2: H4 Alm | K2: H5 Stby | L2: H5 Alm | M2: H6 Stby | N2: H6 Alm | O2: H7 Stby | P2: H7 Alm | Q2: H8 Stby | R2: H8 Alm | S2: H9 Stby | T2: H9 Alm | U2: H10 Stby | V2: H10 Alm | W2: H11 Stby | X2: H11 Alm | Y2: H12 Stby | Z2: H12 Alm | AA2: H13 Stby | AB2: H13 Alm | AC2: H14 Stby | AD2: H14 Alm | AE2: H15 Stby | AF2: H15 Alm | AG2: H16 Stby | AH2: H16 Alm | AI2: H17 Stby | AJ2: H17 Alm | AK2: H18 Stby | AL2: H18 Alm | AM2: H19 Stby | AN2: H19 Alm | AO2: H20 Stby | AP2: H20 Alm
A3: =+'4007ES(Addr)'!I62 -> 2080-9069 | B3: =+'4007ES(Addr)'!C62 -> Maintenance Switch with Lights(UL) | C3: =+'4007ES(Addr)'!$K$62*'4007ES(Addr)'!$AF$62 -> 0 | D3: =+'4007ES(Addr)'!$K$62*'4007ES(Addr)'!$AG$62 -> 0 | E3: =+'4007ES(Addr)'!L$62*'4007ES(Addr)'!$AF$62 -> 0 | F3: =+'4007ES(Addr)'!L$62*'4007ES(Addr)'!$AG$62 -> 0 | G3: =+'4007ES(Addr)'!M$62*'4007ES(Addr)'!$AF$62 -> 0 | H3: =+'4007ES(Addr)'!M$62*'4007ES(Addr)'!$AG$62 -> 0 | I3: =+'4007ES(Addr)'!N$62*'4007ES(Addr)'!$AF$62 -> 0 | J3: =+'4007ES(Addr)'!N$62*'4007ES(Addr)'!$AG$62 -> 0 | K3: =+'4007ES(Addr)'!$O$62*'4007ES(Addr)'!$AF$62 -> 0 | L3: =+'4007ES(Addr)'!$O$62*'4007ES(Addr)'!$AG$62 -> 0 | M3: =+'4007ES(Addr)'!$P$62*'4007ES(Addr)'!$AF$62 -> 0 | N3: =+'4007ES(Addr)'!$P$62*'4007ES(Addr)'!$AG$62 -> 0 | O3: =+'4007ES(Addr)'!$Q$62*'4007ES(Addr)'!$AF$62 -> 0 | P3: =+'4007ES(Addr)'!$Q$62*'4007ES(Addr)'!$AG$62 -> 0 | Q3: =+'4007ES(Addr)'!$R$62*'4007ES(Addr)'!$AF$62 -> 0 | R3: =+'4007ES(Addr)'!$R$62*'4007ES(Addr)'!$AG$62 -> 0 | S3: =+'4007ES(Addr)'!$P$62*'4007ES(Addr)'!$AF$62 -> 0 | T3: =+'4007ES(Addr)'!$P$62*'4007ES(Addr)'!$AG$62 -> 0 | U3: =+'4007ES(Addr)'!$Q$62*'4007ES(Addr)'!$AF$62 -> 0 | V3: =+'4007ES(Addr)'!$Q$62*'4007ES(Addr)'!$AG$62 -> 0 | W3: =+'4007ES(Addr)'!$R$62*'4007ES(Addr)'!$AF$62 -> 0 | X3: =+'4007ES(Addr)'!$R$62*'4007ES(Addr)'!$AG$62 -> 0 | Y3: =+'4007ES(Addr)'!$S$62*'4007ES(Addr)'!$AF$62 -> 0 | Z3: =+'4007ES(Addr)'!$S$62*'4007ES(Addr)'!$AG$62 -> 0 | AA3: =+'4007ES(Addr)'!$T$62*'4007ES(Addr)'!$AF$62 -> 0 | AB3: =+'4007ES(Addr)'!$T$62*'4007ES(Addr)'!$AG$62 -> 0 | AC3: =+'4007ES(Addr)'!$U$62*'4007ES(Addr)'!$AF$62 -> 0 | AD3: =+'4007ES(Addr)'!$U$62*'4007ES(Addr)'!$AG$62 -> 0 | AE3: =+'4007ES(Addr)'!$V$62*'4007ES(Addr)'!$AF$62 -> 0 | AF3: =+'4007ES(Addr)'!$V$62*'4007ES(Addr)'!$AG$62 -> 0 | AG3: =+'4007ES(Addr)'!$W$62*'4007ES(Addr)'!$AF$62 -> 0 | AH3: =+'4007ES(Addr)'!$W$62*'4007ES(Addr)'!$AG$62 -> 0 | AI3: =+'4007ES(Addr)'!$X$62*'4007ES(Addr)'!$AF$62 -> 0 | AJ3: =+'4007ES(Addr)'!$X$62*'4007ES(Addr)'!$AG$62 -> 0 | AK3: =+'4007ES(Addr)'!$Y$62*'4007ES(Addr)'!$AF$62 -> 0 | AL3: =+'4007ES(Addr)'!$Y$62*'4007ES(Addr)'!$AG$62 -> 0 | AM3: =+'4007ES(Addr)'!$Z$62*'4007ES(Addr)'!$AF$62 -> 0 | AN3: =+'4007ES(Addr)'!$Z$62*'4007ES(Addr)'!$AG$62 -> 0 | AO3: =+'4007ES(Addr)'!$AA$62*'4007ES(Addr)'!$AF$62 -> 0 | AP3: =+'4007ES(Addr)'!$AA$62*'4007ES(Addr)'!$AG$62 -> 0
A4: =+'4007ES(Addr)'!I$67 -> Discharge Signage | B4: =+'4007ES(Addr)'!C$67 -> Local Discharge Signage | C4: =+'4007ES(Addr)'!$K$67*'4007ES(Addr)'!$AF$67 -> 0 | D4: =+'4007ES(Addr)'!$K$67*'4007ES(Addr)'!$AG$67 -> 0 | E4: =+'4007ES(Addr)'!L$67*'4007ES(Addr)'!$AF$67 -> 0 | F4: =+'4007ES(Addr)'!L$67*'4007ES(Addr)'!$AG$67 -> 0 | G4: =+'4007ES(Addr)'!M$67*'4007ES(Addr)'!$AF$67 -> 0 | H4: =+'4007ES(Addr)'!M$67*'4007ES(Addr)'!$AG$67 -> 0 | I4: =+'4007ES(Addr)'!N$67*'4007ES(Addr)'!$AF$67 -> 0 | J4: =+'4007ES(Addr)'!N$67*'4007ES(Addr)'!$AG$67 -> 0 | K4: =+'4007ES(Addr)'!$O$67*'4007ES(Addr)'!$AF$67 -> 0 | L4: =+'4007ES(Addr)'!$O$67*'4007ES(Addr)'!$AG$67 -> 0 | M4: =+'4007ES(Addr)'!$P$67*'4007ES(Addr)'!$AF$67 -> 0 | N4: =+'4007ES(Addr)'!$P$67*'4007ES(Addr)'!$AG$67 -> 0 | O4: =+'4007ES(Addr)'!$Q$67*'4007ES(Addr)'!$AF$67 -> 0 | P4: =+'4007ES(Addr)'!$Q$67*'4007ES(Addr)'!$AG$67 -> 0 | Q4: =+'4007ES(Addr)'!$R$67*'4007ES(Addr)'!$AF$67 -> 0 | R4: =+'4007ES(Addr)'!$R$67*'4007ES(Addr)'!$AG$67 -> 0 | S4: =+'4007ES(Addr)'!$P$67*'4007ES(Addr)'!$AF$67 -> 0 | T4: =+'4007ES(Addr)'!$P$67*'4007ES(Addr)'!$AG$67 -> 0 | U4: =+'4007ES(Addr)'!$Q$67*'4007ES(Addr)'!$AF$67 -> 0 | V4: =+'4007ES(Addr)'!$Q$67*'4007ES(Addr)'!$AG$67 -> 0 | W4: =+'4007ES(Addr)'!$R$67*'4007ES(Addr)'!$AF$67 -> 0 | X4: =+'4007ES(Addr)'!$R$67*'4007ES(Addr)'!$AG$67 -> 0 | Y4: =+'4007ES(Addr)'!$S$67*'4007ES(Addr)'!$AF$67 -> 0 | Z4: =+'4007ES(Addr)'!$S$67*'4007ES(Addr)'!$AG$67 -> 0 | AA4: =+'4007ES(Addr)'!$T$67*'4007ES(Addr)'!$AF$67 -> 0 | AB4: =+'4007ES(Addr)'!$T$67*'4007ES(Addr)'!$AG$67 -> 0 | AC4: =+'4007ES(Addr)'!$U$67*'4007ES(Addr)'!$AF$67 -> 0 | AD4: =+'4007ES(Addr)'!$U$67*'4007ES(Addr)'!$AG$67 -> 0 | AE4: =+'4007ES(Addr)'!$V$67*'4007ES(Addr)'!$AF$67 -> 0 | AF4: =+'4007ES(Addr)'!$V$67*'4007ES(Addr)'!$AG$67 -> 0 | AG4: =+'4007ES(Addr)'!$W$67*'4007ES(Addr)'!$AF$67 -> 0 | AH4: =+'4007ES(Addr)'!$W$67*'4007ES(Addr)'!$AG$67 -> 0 | AI4: =+'4007ES(Addr)'!$X$67*'4007ES(Addr)'!$AF$67 -> 0 | AJ4: =+'4007ES(Addr)'!$X$67*'4007ES(Addr)'!$AG$67 -> 0 | AK4: =+'4007ES(Addr)'!$Y$67*'4007ES(Addr)'!$AF$67 -> 0 | AL4: =+'4007ES(Addr)'!$Y$67*'4007ES(Addr)'!$AG$67 -> 0 | AM4: =+'4007ES(Addr)'!$Z$67*'4007ES(Addr)'!$AF$67 -> 0 | AN4: =+'4007ES(Addr)'!$Z$67*'4007ES(Addr)'!$AG$67 -> 0 | AO4: =+'4007ES(Addr)'!$AA$67*'4007ES(Addr)'!$AF$67 -> 0 | AP4: =+'4007ES(Addr)'!$AA$67*'4007ES(Addr)'!$AG$67 -> 0
A5: =+'4007ES(Addr)'!I68 -> 1st Alarm Signage | B5: =+'4007ES(Addr)'!C68 -> Pre Release Display Signage | C5: =+'4007ES(Addr)'!$K$68*'4007ES(Addr)'!$AF$68 -> 0 | D5: =+'4007ES(Addr)'!$K$68*'4007ES(Addr)'!$AG$68 -> 0 | E5: =+'4007ES(Addr)'!L$68*'4007ES(Addr)'!$AF$68 -> 0 | F5: =+'4007ES(Addr)'!L$68*'4007ES(Addr)'!$AG$68 -> 0 | G5: =+'4007ES(Addr)'!M$68*'4007ES(Addr)'!$AF$68 -> 0 | H5: =+'4007ES(Addr)'!M$68*'4007ES(Addr)'!$AG$68 -> 0 | I5: =+'4007ES(Addr)'!N$68*'4007ES(Addr)'!$AF$68 -> 0 | J5: =+'4007ES(Addr)'!N$68*'4007ES(Addr)'!$AG$68 -> 0 | K5: =+'4007ES(Addr)'!$O$68*'4007ES(Addr)'!$AF$68 -> 0 | L5: =+'4007ES(Addr)'!$O$68*'4007ES(Addr)'!$AG$68 -> 0 | M5: =+'4007ES(Addr)'!$P$68*'4007ES(Addr)'!$AF$68 -> 0 | N5: =+'4007ES(Addr)'!$P$68*'4007ES(Addr)'!$AG$68 -> 0 | O5: =+'4007ES(Addr)'!$Q$68*'4007ES(Addr)'!$AF$68 -> 0 | P5: =+'4007ES(Addr)'!$Q$68*'4007ES(Addr)'!$AG$68 -> 0 | Q5: =+'4007ES(Addr)'!$R$68*'4007ES(Addr)'!$AF$68 -> 0 | R5: =+'4007ES(Addr)'!$R$68*'4007ES(Addr)'!$AG$68 -> 0 | S5: =+'4007ES(Addr)'!$P$68*'4007ES(Addr)'!$AF$68 -> 0 | T5: =+'4007ES(Addr)'!$P$68*'4007ES(Addr)'!$AG$68 -> 0 | U5: =+'4007ES(Addr)'!$Q$68*'4007ES(Addr)'!$AF$68 -> 0 | V5: =+'4007ES(Addr)'!$Q$68*'4007ES(Addr)'!$AG$68 -> 0 | W5: =+'4007ES(Addr)'!$R$68*'4007ES(Addr)'!$AF$68 -> 0 | X5: =+'4007ES(Addr)'!$R$68*'4007ES(Addr)'!$AG$68 -> 0 | Y5: =+'4007ES(Addr)'!$S$68*'4007ES(Addr)'!$AF$68 -> 0 | Z5: =+'4007ES(Addr)'!$S$68*'4007ES(Addr)'!$AG$68 -> 0 | AA5: =+'4007ES(Addr)'!$T$68*'4007ES(Addr)'!$AF$68 -> 0 | AB5: =+'4007ES(Addr)'!$T$68*'4007ES(Addr)'!$AG$68 -> 0 | AC5: =+'4007ES(Addr)'!$U$68*'4007ES(Addr)'!$AF$68 -> 0 | AD5: =+'4007ES(Addr)'!$U$68*'4007ES(Addr)'!$AG$68 -> 0 | AE5: =+'4007ES(Addr)'!$V$68*'4007ES(Addr)'!$AF$68 -> 0 | AF5: =+'4007ES(Addr)'!$V$68*'4007ES(Addr)'!$AG$68 -> 0 | AG5: =+'4007ES(Addr)'!$W$68*'4007ES(Addr)'!$AF$68 -> 0 | AH5: =+'4007ES(Addr)'!$W$68*'4007ES(Addr)'!$AG$68 -> 0 | AI5: =+'4007ES(Addr)'!$X$68*'4007ES(Addr)'!$AF$68 -> 0 | AJ5: =+'4007ES(Addr)'!$X$68*'4007ES(Addr)'!$AG$68 -> 0 | AK5: =+'4007ES(Addr)'!$Y$68*'4007ES(Addr)'!$AF$68 -> 0 | AL5: =+'4007ES(Addr)'!$Y$68*'4007ES(Addr)'!$AG$68 -> 0 | AM5: =+'4007ES(Addr)'!$Z$68*'4007ES(Addr)'!$AF$68 -> 0 | AN5: =+'4007ES(Addr)'!$Z$68*'4007ES(Addr)'!$AG$68 -> 0 | AO5: =+'4007ES(Addr)'!$AA$68*'4007ES(Addr)'!$AF$68 -> 0 | AP5: =+'4007ES(Addr)'!$AA$68*'4007ES(Addr)'!$AG$68 -> 0
A6: =+'4007ES(Addr)'!I96 -> 4098-VEP-A00-1P | B6: =+'4007ES(Addr)'!C96 -> Addressable 4098-VEP-A00-1P | C6: =+'4007ES(Addr)'!$K$96*'4007ES(Addr)'!$AF$96 -> 0 | D6: =+'4007ES(Addr)'!$K$96*'4007ES(Addr)'!$AG$96 -> 0 | E6: =+'4007ES(Addr)'!L$96*'4007ES(Addr)'!$AF$96 -> 0 | F6: =+'4007ES(Addr)'!L$96*'4007ES(Addr)'!$AG$96 -> 0 | G6: =+'4007ES(Addr)'!M$96*'4007ES(Addr)'!$AF$96 -> 0 | H6: =+'4007ES(Addr)'!M$96*'4007ES(Addr)'!$AG$96 -> 0 | I6: =+'4007ES(Addr)'!N$96*'4007ES(Addr)'!$AF$96 -> 0 | J6: =+'4007ES(Addr)'!N$96*'4007ES(Addr)'!$AG$96 -> 0 | K6: =+'4007ES(Addr)'!$O$96*'4007ES(Addr)'!$AF$96 -> 0 | L6: =+'4007ES(Addr)'!$O$96*'4007ES(Addr)'!$AG$96 -> 0 | M6: =+'4007ES(Addr)'!$P$96*'4007ES(Addr)'!$AF$96 -> 0 | N6: =+'4007ES(Addr)'!$P$96*'4007ES(Addr)'!$AG$96 -> 0 | O6: =+'4007ES(Addr)'!$Q$96*'4007ES(Addr)'!$AF$96 -> 0 | P6: =+'4007ES(Addr)'!$Q$96*'4007ES(Addr)'!$AG$96 -> 0 | Q6: =+'4007ES(Addr)'!$R$96*'4007ES(Addr)'!$AF$96 -> 0 | R6: =+'4007ES(Addr)'!$R$96*'4007ES(Addr)'!$AG$96 -> 0 | S6: =+'4007ES(Addr)'!$P$96*'4007ES(Addr)'!$AF$96 -> 0 | T6: =+'4007ES(Addr)'!$P$96*'4007ES(Addr)'!$AG$96 -> 0 | U6: =+'4007ES(Addr)'!$Q$96*'4007ES(Addr)'!$AF$96 -> 0 | V6: =+'4007ES(Addr)'!$Q$96*'4007ES(Addr)'!$AG$96 -> 0 | W6: =+'4007ES(Addr)'!$R$96*'4007ES(Addr)'!$AF$96 -> 0 | X6: =+'4007ES(Addr)'!$R$96*'4007ES(Addr)'!$AG$96 -> 0 | Y6: =+'4007ES(Addr)'!$S$96*'4007ES(Addr)'!$AF$96 -> 0 | Z6: =+'4007ES(Addr)'!$S$96*'4007ES(Addr)'!$AG$96 -> 0 | AA6: =+'4007ES(Addr)'!$T$96*'4007ES(Addr)'!$AF$96 -> 0 | AB6: =+'4007ES(Addr)'!$T$96*'4007ES(Addr)'!$AG$96 -> 0 | AC6: =+'4007ES(Addr)'!$U$96*'4007ES(Addr)'!$AF$96 -> 0 | AD6: =+'4007ES(Addr)'!$U$96*'4007ES(Addr)'!$AG$96 -> 0 | AE6: =+'4007ES(Addr)'!$V$96*'4007ES(Addr)'!$AF$96 -> 0 | AF6: =+'4007ES(Addr)'!$V$96*'4007ES(Addr)'!$AG$96 -> 0 | AG6: =+'4007ES(Addr)'!$W$96*'4007ES(Addr)'!$AF$96 -> 0 | AH6: =+'4007ES(Addr)'!$W$96*'4007ES(Addr)'!$AG$96 -> 0 | AI6: =+'4007ES(Addr)'!$X$96*'4007ES(Addr)'!$AF$96 -> 0 | AJ6: =+'4007ES(Addr)'!$X$96*'4007ES(Addr)'!$AG$96 -> 0 | AK6: =+'4007ES(Addr)'!$Y$96*'4007ES(Addr)'!$AF$96 -> 0 | AL6: =+'4007ES(Addr)'!$Y$96*'4007ES(Addr)'!$AG$96 -> 0 | AM6: =+'4007ES(Addr)'!$Z$96*'4007ES(Addr)'!$AF$96 -> 0 | AN6: =+'4007ES(Addr)'!$Z$96*'4007ES(Addr)'!$AG$96 -> 0 | AO6: =+'4007ES(Addr)'!$AA$96*'4007ES(Addr)'!$AF$96 -> 0 | AP6: =+'4007ES(Addr)'!$AA$96*'4007ES(Addr)'!$AG$96 -> 0
A7: =+'4007ES(Addr)'!I97 -> 4098-VEP-A00-P | B7: =+'4007ES(Addr)'!C97 -> Addressable 4098-VEP-A00-P | C7: =+'4007ES(Addr)'!$K$97*'4007ES(Addr)'!$AF$97 -> 0 | D7: =+'4007ES(Addr)'!$K$97*'4007ES(Addr)'!$AG$97 -> 0 | E7: =+'4007ES(Addr)'!L$97*'4007ES(Addr)'!$AF$97 -> 0 | F7: =+'4007ES(Addr)'!L$97*'4007ES(Addr)'!$AG$97 -> 0 | G7: =+'4007ES(Addr)'!M$97*'4007ES(Addr)'!$AF$97 -> 0 | H7: =+'4007ES(Addr)'!M$97*'4007ES(Addr)'!$AG$97 -> 0 | I7: =+'4007ES(Addr)'!N$97*'4007ES(Addr)'!$AF$97 -> 0 | J7: =+'4007ES(Addr)'!N$97*'4007ES(Addr)'!$AG$97 -> 0 | K7: =+'4007ES(Addr)'!$O$97*'4007ES(Addr)'!$AF$97 -> 0 | L7: =+'4007ES(Addr)'!$O$97*'4007ES(Addr)'!$AG$97 -> 0 | M7: =+'4007ES(Addr)'!$P$97*'4007ES(Addr)'!$AF$97 -> 0 | N7: =+'4007ES(Addr)'!$P$97*'4007ES(Addr)'!$AG$97 -> 0 | O7: =+'4007ES(Addr)'!$Q$97*'4007ES(Addr)'!$AF$97 -> 0 | P7: =+'4007ES(Addr)'!$Q$97*'4007ES(Addr)'!$AG$97 -> 0 | Q7: =+'4007ES(Addr)'!$R$97*'4007ES(Addr)'!$AF$97 -> 0 | R7: =+'4007ES(Addr)'!$R$97*'4007ES(Addr)'!$AG$97 -> 0 | S7: =+'4007ES(Addr)'!$P$97*'4007ES(Addr)'!$AF$97 -> 0 | T7: =+'4007ES(Addr)'!$P$97*'4007ES(Addr)'!$AG$97 -> 0 | U7: =+'4007ES(Addr)'!$Q$97*'4007ES(Addr)'!$AF$97 -> 0 | V7: =+'4007ES(Addr)'!$Q$97*'4007ES(Addr)'!$AG$97 -> 0 | W7: =+'4007ES(Addr)'!$R$97*'4007ES(Addr)'!$AF$97 -> 0 | X7: =+'4007ES(Addr)'!$R$97*'4007ES(Addr)'!$AG$97 -> 0 | Y7: =+'4007ES(Addr)'!$S$97*'4007ES(Addr)'!$AF$97 -> 0 | Z7: =+'4007ES(Addr)'!$S$97*'4007ES(Addr)'!$AG$97 -> 0 | AA7: =+'4007ES(Addr)'!$T$97*'4007ES(Addr)'!$AF$97 -> 0 | AB7: =+'4007ES(Addr)'!$T$97*'4007ES(Addr)'!$AG$97 -> 0 | AC7: =+'4007ES(Addr)'!$U$97*'4007ES(Addr)'!$AF$97 -> 0 | AD7: =+'4007ES(Addr)'!$U$97*'4007ES(Addr)'!$AG$97 -> 0 | AE7: =+'4007ES(Addr)'!$V$97*'4007ES(Addr)'!$AF$97 -> 0 | AF7: =+'4007ES(Addr)'!$V$97*'4007ES(Addr)'!$AG$97 -> 0 | AG7: =+'4007ES(Addr)'!$W$97*'4007ES(Addr)'!$AF$97 -> 0 | AH7: =+'4007ES(Addr)'!$W$97*'4007ES(Addr)'!$AG$97 -> 0 | AI7: =+'4007ES(Addr)'!$X$97*'4007ES(Addr)'!$AF$97 -> 0 | AJ7: =+'4007ES(Addr)'!$X$97*'4007ES(Addr)'!$AG$97 -> 0 | AK7: =+'4007ES(Addr)'!$Y$97*'4007ES(Addr)'!$AF$97 -> 0 | AL7: =+'4007ES(Addr)'!$Y$97*'4007ES(Addr)'!$AG$97 -> 0 | AM7: =+'4007ES(Addr)'!$Z$97*'4007ES(Addr)'!$AF$97 -> 0 | AN7: =+'4007ES(Addr)'!$Z$97*'4007ES(Addr)'!$AG$97 -> 0 | AO7: =+'4007ES(Addr)'!$AA$97*'4007ES(Addr)'!$AF$97 -> 0 | AP7: =+'4007ES(Addr)'!$AA$97*'4007ES(Addr)'!$AG$97 -> 0
A8: =+'4007ES(Addr)'!I98 -> 4098-VEP-A10-P | B8: =+'4007ES(Addr)'!C98 -> Addressable 4098-VEP-A10-P | C8: =+'4007ES(Addr)'!$K$98*'4007ES(Addr)'!$AF$98 -> 0 | D8: =+'4007ES(Addr)'!$K$98*'4007ES(Addr)'!$AG$98 -> 0 | E8: =+'4007ES(Addr)'!L$98*'4007ES(Addr)'!$AF$98 -> 0 | F8: =+'4007ES(Addr)'!L$98*'4007ES(Addr)'!$AG$98 -> 0 | G8: =+'4007ES(Addr)'!M$98*'4007ES(Addr)'!$AF$98 -> 0 | H8: =+'4007ES(Addr)'!M$98*'4007ES(Addr)'!$AG$98 -> 0 | I8: =+'4007ES(Addr)'!N$98*'4007ES(Addr)'!$AF$98 -> 0 | J8: =+'4007ES(Addr)'!N$98*'4007ES(Addr)'!$AG$98 -> 0 | K8: =+'4007ES(Addr)'!$O$98*'4007ES(Addr)'!$AF$98 -> 0 | L8: =+'4007ES(Addr)'!$O$98*'4007ES(Addr)'!$AG$98 -> 0 | M8: =+'4007ES(Addr)'!$P$98*'4007ES(Addr)'!$AF$98 -> 0 | N8: =+'4007ES(Addr)'!$P$98*'4007ES(Addr)'!$AG$98 -> 0 | O8: =+'4007ES(Addr)'!$Q$98*'4007ES(Addr)'!$AF$98 -> 0 | P8: =+'4007ES(Addr)'!$Q$98*'4007ES(Addr)'!$AG$98 -> 0 | Q8: =+'4007ES(Addr)'!$R$98*'4007ES(Addr)'!$AF$98 -> 0 | R8: =+'4007ES(Addr)'!$R$98*'4007ES(Addr)'!$AG$98 -> 0 | S8: =+'4007ES(Addr)'!$P$98*'4007ES(Addr)'!$AF$98 -> 0 | T8: =+'4007ES(Addr)'!$P$98*'4007ES(Addr)'!$AG$98 -> 0 | U8: =+'4007ES(Addr)'!$Q$98*'4007ES(Addr)'!$AF$98 -> 0 | V8: =+'4007ES(Addr)'!$Q$98*'4007ES(Addr)'!$AG$98 -> 0 | W8: =+'4007ES(Addr)'!$R$98*'4007ES(Addr)'!$AF$98 -> 0 | X8: =+'4007ES(Addr)'!$R$98*'4007ES(Addr)'!$AG$98 -> 0 | Y8: =+'4007ES(Addr)'!$S$98*'4007ES(Addr)'!$AF$98 -> 0 | Z8: =+'4007ES(Addr)'!$S$98*'4007ES(Addr)'!$AG$98 -> 0 | AA8: =+'4007ES(Addr)'!$T$98*'4007ES(Addr)'!$AF$98 -> 0 | AB8: =+'4007ES(Addr)'!$T$98*'4007ES(Addr)'!$AG$98 -> 0 | AC8: =+'4007ES(Addr)'!$U$98*'4007ES(Addr)'!$AF$98 -> 0 | AD8: =+'4007ES(Addr)'!$U$98*'4007ES(Addr)'!$AG$98 -> 0 | AE8: =+'4007ES(Addr)'!$V$98*'4007ES(Addr)'!$AF$98 -> 0 | AF8: =+'4007ES(Addr)'!$V$98*'4007ES(Addr)'!$AG$98 -> 0 | AG8: =+'4007ES(Addr)'!$W$98*'4007ES(Addr)'!$AF$98 -> 0 | AH8: =+'4007ES(Addr)'!$W$98*'4007ES(Addr)'!$AG$98 -> 0 | AI8: =+'4007ES(Addr)'!$X$98*'4007ES(Addr)'!$AF$98 -> 0 | AJ8: =+'4007ES(Addr)'!$X$98*'4007ES(Addr)'!$AG$98 -> 0 | AK8: =+'4007ES(Addr)'!$Y$98*'4007ES(Addr)'!$AF$98 -> 0 | AL8: =+'4007ES(Addr)'!$Y$98*'4007ES(Addr)'!$AG$98 -> 0 | AM8: =+'4007ES(Addr)'!$Z$98*'4007ES(Addr)'!$AF$98 -> 0 | AN8: =+'4007ES(Addr)'!$Z$98*'4007ES(Addr)'!$AG$98 -> 0 | AO8: =+'4007ES(Addr)'!$AA$98*'4007ES(Addr)'!$AF$98 -> 0 | AP8: =+'4007ES(Addr)'!$AA$98*'4007ES(Addr)'!$AG$98 -> 0
A9: =+'4007ES(Addr)'!I99 -> 4098-VEU-A00 | B9: =+'4007ES(Addr)'!C99 -> Addressable 4098-VEU-A00 | C9: =+'4007ES(Addr)'!$K$99*'4007ES(Addr)'!$AF$99 -> 0 | D9: =+'4007ES(Addr)'!$K$99*'4007ES(Addr)'!$AG$99 -> 0 | E9: =+'4007ES(Addr)'!L$99*'4007ES(Addr)'!$AF$99 -> 0 | F9: =+'4007ES(Addr)'!L$99*'4007ES(Addr)'!$AG$99 -> 0 | G9: =+'4007ES(Addr)'!M$99*'4007ES(Addr)'!$AF$99 -> 0 | H9: =+'4007ES(Addr)'!M$99*'4007ES(Addr)'!$AG$99 -> 0 | I9: =+'4007ES(Addr)'!N$99*'4007ES(Addr)'!$AF$99 -> 0 | J9: =+'4007ES(Addr)'!N$99*'4007ES(Addr)'!$AG$99 -> 0 | K9: =+'4007ES(Addr)'!$O$99*'4007ES(Addr)'!$AF$99 -> 0 | L9: =+'4007ES(Addr)'!$O$99*'4007ES(Addr)'!$AG$99 -> 0 | M9: =+'4007ES(Addr)'!$P$99*'4007ES(Addr)'!$AF$99 -> 0 | N9: =+'4007ES(Addr)'!$P$99*'4007ES(Addr)'!$AG$99 -> 0 | O9: =+'4007ES(Addr)'!$Q$99*'4007ES(Addr)'!$AF$99 -> 0 | P9: =+'4007ES(Addr)'!$Q$99*'4007ES(Addr)'!$AG$99 -> 0 | Q9: =+'4007ES(Addr)'!$R$99*'4007ES(Addr)'!$AF$99 -> 0 | R9: =+'4007ES(Addr)'!$R$99*'4007ES(Addr)'!$AG$99 -> 0 | S9: =+'4007ES(Addr)'!$P$99*'4007ES(Addr)'!$AF$99 -> 0 | T9: =+'4007ES(Addr)'!$P$99*'4007ES(Addr)'!$AG$99 -> 0 | U9: =+'4007ES(Addr)'!$Q$99*'4007ES(Addr)'!$AF$99 -> 0 | V9: =+'4007ES(Addr)'!$Q$99*'4007ES(Addr)'!$AG$99 -> 0 | W9: =+'4007ES(Addr)'!$R$99*'4007ES(Addr)'!$AF$99 -> 0 | X9: =+'4007ES(Addr)'!$R$99*'4007ES(Addr)'!$AG$99 -> 0 | Y9: =+'4007ES(Addr)'!$S$99*'4007ES(Addr)'!$AF$99 -> 0 | Z9: =+'4007ES(Addr)'!$S$99*'4007ES(Addr)'!$AG$99 -> 0 | AA9: =+'4007ES(Addr)'!$T$99*'4007ES(Addr)'!$AF$99 -> 0 | AB9: =+'4007ES(Addr)'!$T$99*'4007ES(Addr)'!$AG$99 -> 0 | AC9: =+'4007ES(Addr)'!$U$99*'4007ES(Addr)'!$AF$99 -> 0 | AD9: =+'4007ES(Addr)'!$U$99*'4007ES(Addr)'!$AG$99 -> 0 | AE9: =+'4007ES(Addr)'!$V$99*'4007ES(Addr)'!$AF$99 -> 0 | AF9: =+'4007ES(Addr)'!$V$99*'4007ES(Addr)'!$AG$99 -> 0 | AG9: =+'4007ES(Addr)'!$W$99*'4007ES(Addr)'!$AF$99 -> 0 | AH9: =+'4007ES(Addr)'!$W$99*'4007ES(Addr)'!$AG$99 -> 0 | AI9: =+'4007ES(Addr)'!$X$99*'4007ES(Addr)'!$AF$99 -> 0 | AJ9: =+'4007ES(Addr)'!$X$99*'4007ES(Addr)'!$AG$99 -> 0 | AK9: =+'4007ES(Addr)'!$Y$99*'4007ES(Addr)'!$AF$99 -> 0 | AL9: =+'4007ES(Addr)'!$Y$99*'4007ES(Addr)'!$AG$99 -> 0 | AM9: =+'4007ES(Addr)'!$Z$99*'4007ES(Addr)'!$AF$99 -> 0 | AN9: =+'4007ES(Addr)'!$Z$99*'4007ES(Addr)'!$AG$99 -> 0 | AO9: =+'4007ES(Addr)'!$AA$99*'4007ES(Addr)'!$AF$99 -> 0 | AP9: =+'4007ES(Addr)'!$AA$99*'4007ES(Addr)'!$AG$99 -> 0
A10: =+'4007ES(Addr)'!I100 -> 4098-VEU-A10 | B10: =+'4007ES(Addr)'!C100 -> Addressable 4098-VEU-A10 | C10: =+'4007ES(Addr)'!$K$100*'4007ES(Addr)'!$AF$100 -> 0 | D10: =+'4007ES(Addr)'!$K$100*'4007ES(Addr)'!$AG$100 -> 0 | E10: =+'4007ES(Addr)'!L$100*'4007ES(Addr)'!$AF$100 -> 0 | F10: =+'4007ES(Addr)'!L$100*'4007ES(Addr)'!$AG$100 -> 0 | G10: =+'4007ES(Addr)'!M$100*'4007ES(Addr)'!$AF$100 -> 0 | H10: =+'4007ES(Addr)'!M$100*'4007ES(Addr)'!$AG$100 -> 0 | I10: =+'4007ES(Addr)'!N$100*'4007ES(Addr)'!$AF$100 -> 0 | J10: =+'4007ES(Addr)'!N$100*'4007ES(Addr)'!$AG$100 -> 0 | K10: =+'4007ES(Addr)'!$O$100*'4007ES(Addr)'!$AF$100 -> 0 | L10: =+'4007ES(Addr)'!$O$100*'4007ES(Addr)'!$AG$100 -> 0 | M10: =+'4007ES(Addr)'!$P$100*'4007ES(Addr)'!$AF$100 -> 0 | N10: =+'4007ES(Addr)'!$P$100*'4007ES(Addr)'!$AG$100 -> 0 | O10: =+'4007ES(Addr)'!$Q$100*'4007ES(Addr)'!$AF$100 -> 0 | P10: =+'4007ES(Addr)'!$Q$100*'4007ES(Addr)'!$AG$100 -> 0 | Q10: =+'4007ES(Addr)'!$R$100*'4007ES(Addr)'!$AF$100 -> 0 | R10: =+'4007ES(Addr)'!$R$100*'4007ES(Addr)'!$AG$100 -> 0 | S10: =+'4007ES(Addr)'!$P$100*'4007ES(Addr)'!$AF$100 -> 0 | T10: =+'4007ES(Addr)'!$P$100*'4007ES(Addr)'!$AG$100 -> 0 | U10: =+'4007ES(Addr)'!$Q$100*'4007ES(Addr)'!$AF$100 -> 0 | V10: =+'4007ES(Addr)'!$Q$100*'4007ES(Addr)'!$AG$100 -> 0 | W10: =+'4007ES(Addr)'!$R$100*'4007ES(Addr)'!$AF$100 -> 0 | X10: =+'4007ES(Addr)'!$R$100*'4007ES(Addr)'!$AG$100 -> 0 | Y10: =+'4007ES(Addr)'!$S$100*'4007ES(Addr)'!$AF$100 -> 0 | Z10: =+'4007ES(Addr)'!$S$100*'4007ES(Addr)'!$AG$100 -> 0 | AA10: =+'4007ES(Addr)'!$T$100*'4007ES(Addr)'!$AF$100 -> 0 | AB10: =+'4007ES(Addr)'!$T$100*'4007ES(Addr)'!$AG$100 -> 0 | AC10: =+'4007ES(Addr)'!$U$100*'4007ES(Addr)'!$AF$100 -> 0 | AD10: =+'4007ES(Addr)'!$U$100*'4007ES(Addr)'!$AG$100 -> 0 | AE10: =+'4007ES(Addr)'!$V$100*'4007ES(Addr)'!$AF$100 -> 0 | AF10: =+'4007ES(Addr)'!$V$100*'4007ES(Addr)'!$AG$100 -> 0 | AG10: =+'4007ES(Addr)'!$W$100*'4007ES(Addr)'!$AF$100 -> 0 | AH10: =+'4007ES(Addr)'!$W$100*'4007ES(Addr)'!$AG$100 -> 0 | AI10: =+'4007ES(Addr)'!$X$100*'4007ES(Addr)'!$AF$100 -> 0 | AJ10: =+'4007ES(Addr)'!$X$100*'4007ES(Addr)'!$AG$100 -> 0 | AK10: =+'4007ES(Addr)'!$Y$100*'4007ES(Addr)'!$AF$100 -> 0 | AL10: =+'4007ES(Addr)'!$Y$100*'4007ES(Addr)'!$AG$100 -> 0 | AM10: =+'4007ES(Addr)'!$Z$100*'4007ES(Addr)'!$AF$100 -> 0 | AN10: =+'4007ES(Addr)'!$Z$100*'4007ES(Addr)'!$AG$100 -> 0 | AO10: =+'4007ES(Addr)'!$AA$100*'4007ES(Addr)'!$AF$100 -> 0 | AP10: =+'4007ES(Addr)'!$AA$100*'4007ES(Addr)'!$AG$100 -> 0
A11: =+'4007ES(Addr)'!I101 -> 4098-VES-A00-P | B11: =+'4007ES(Addr)'!C101 -> Addressable 4098-VES-A00-P | C11: =+'4007ES(Addr)'!$K$101*'4007ES(Addr)'!$AF$101 -> 0 | D11: =+'4007ES(Addr)'!$K$101*'4007ES(Addr)'!$AG$101 -> 0 | E11: =+'4007ES(Addr)'!L$101*'4007ES(Addr)'!$AF$101 -> 0 | F11: =+'4007ES(Addr)'!L$101*'4007ES(Addr)'!$AG$101 -> 0 | G11: =+'4007ES(Addr)'!M$101*'4007ES(Addr)'!$AF$101 -> 0 | H11: =+'4007ES(Addr)'!M$101*'4007ES(Addr)'!$AG$101 -> 0 | I11: =+'4007ES(Addr)'!N$101*'4007ES(Addr)'!$AF$101 -> 0 | J11: =+'4007ES(Addr)'!N$101*'4007ES(Addr)'!$AG$101 -> 0 | K11: =+'4007ES(Addr)'!$O$101*'4007ES(Addr)'!$AF$101 -> 0 | L11: =+'4007ES(Addr)'!$O$101*'4007ES(Addr)'!$AG$101 -> 0 | M11: =+'4007ES(Addr)'!$P$101*'4007ES(Addr)'!$AF$101 -> 0 | N11: =+'4007ES(Addr)'!$P$101*'4007ES(Addr)'!$AG$101 -> 0 | O11: =+'4007ES(Addr)'!$Q$101*'4007ES(Addr)'!$AF$101 -> 0 | P11: =+'4007ES(Addr)'!$Q$101*'4007ES(Addr)'!$AG$101 -> 0 | Q11: =+'4007ES(Addr)'!$R$101*'4007ES(Addr)'!$AF$101 -> 0 | R11: =+'4007ES(Addr)'!$R$101*'4007ES(Addr)'!$AG$101 -> 0 | S11: =+'4007ES(Addr)'!$P$101*'4007ES(Addr)'!$AF$101 -> 0 | T11: =+'4007ES(Addr)'!$P$101*'4007ES(Addr)'!$AG$101 -> 0 | U11: =+'4007ES(Addr)'!$Q$101*'4007ES(Addr)'!$AF$101 -> 0 | V11: =+'4007ES(Addr)'!$Q$101*'4007ES(Addr)'!$AG$101 -> 0 | W11: =+'4007ES(Addr)'!$R$101*'4007ES(Addr)'!$AF$101 -> 0 | X11: =+'4007ES(Addr)'!$R$101*'4007ES(Addr)'!$AG$101 -> 0 | Y11: =+'4007ES(Addr)'!$S$101*'4007ES(Addr)'!$AF$101 -> 0 | Z11: =+'4007ES(Addr)'!$S$101*'4007ES(Addr)'!$AG$101 -> 0 | AA11: =+'4007ES(Addr)'!$T$101*'4007ES(Addr)'!$AF$101 -> 0 | AB11: =+'4007ES(Addr)'!$T$101*'4007ES(Addr)'!$AG$101 -> 0 | AC11: =+'4007ES(Addr)'!$U$101*'4007ES(Addr)'!$AF$101 -> 0 | AD11: =+'4007ES(Addr)'!$U$101*'4007ES(Addr)'!$AG$101 -> 0 | AE11: =+'4007ES(Addr)'!$V$101*'4007ES(Addr)'!$AF$101 -> 0 | AF11: =+'4007ES(Addr)'!$V$101*'4007ES(Addr)'!$AG$101 -> 0 | AG11: =+'4007ES(Addr)'!$W$101*'4007ES(Addr)'!$AF$101 -> 0 | AH11: =+'4007ES(Addr)'!$W$101*'4007ES(Addr)'!$AG$101 -> 0 | AI11: =+'4007ES(Addr)'!$X$101*'4007ES(Addr)'!$AF$101 -> 0 | AJ11: =+'4007ES(Addr)'!$X$101*'4007ES(Addr)'!$AG$101 -> 0 | AK11: =+'4007ES(Addr)'!$Y$101*'4007ES(Addr)'!$AF$101 -> 0 | AL11: =+'4007ES(Addr)'!$Y$101*'4007ES(Addr)'!$AG$101 -> 0 | AM11: =+'4007ES(Addr)'!$Z$101*'4007ES(Addr)'!$AF$101 -> 0 | AN11: =+'4007ES(Addr)'!$Z$101*'4007ES(Addr)'!$AG$101 -> 0 | AO11: =+'4007ES(Addr)'!$AA$101*'4007ES(Addr)'!$AF$101 -> 0 | AP11: =+'4007ES(Addr)'!$AA$101*'4007ES(Addr)'!$AG$101 -> 0
A12: =+'4007ES(Addr)'!I102 -> 4098-XAD | B12: =+'4007ES(Addr)'!C102 -> Addressable 4098-XAD | C12: =+'4007ES(Addr)'!$K$102*'4007ES(Addr)'!$AF$102 -> 0 | D12: =+'4007ES(Addr)'!$K$102*'4007ES(Addr)'!$AG$102 -> 0 | E12: =+'4007ES(Addr)'!L$102*'4007ES(Addr)'!$AF$102 -> 0 | F12: =+'4007ES(Addr)'!L$102*'4007ES(Addr)'!$AG$102 -> 0 | G12: =+'4007ES(Addr)'!M$102*'4007ES(Addr)'!$AF$102 -> 0 | H12: =+'4007ES(Addr)'!M$102*'4007ES(Addr)'!$AG$102 -> 0 | I12: =+'4007ES(Addr)'!N$102*'4007ES(Addr)'!$AF$102 -> 0 | J12: =+'4007ES(Addr)'!N$102*'4007ES(Addr)'!$AG$102 -> 0 | K12: =+'4007ES(Addr)'!$O$102*'4007ES(Addr)'!$AF$102 -> 0 | L12: =+'4007ES(Addr)'!$O$102*'4007ES(Addr)'!$AG$102 -> 0 | M12: =+'4007ES(Addr)'!$P$102*'4007ES(Addr)'!$AF$102 -> 0 | N12: =+'4007ES(Addr)'!$P$102*'4007ES(Addr)'!$AG$102 -> 0 | O12: =+'4007ES(Addr)'!$Q$102*'4007ES(Addr)'!$AF$102 -> 0 | P12: =+'4007ES(Addr)'!$Q$102*'4007ES(Addr)'!$AG$102 -> 0 | Q12: =+'4007ES(Addr)'!$R$102*'4007ES(Addr)'!$AF$102 -> 0 | R12: =+'4007ES(Addr)'!$R$102*'4007ES(Addr)'!$AG$102 -> 0 | S12: =+'4007ES(Addr)'!$P$102*'4007ES(Addr)'!$AF$102 -> 0 | T12: =+'4007ES(Addr)'!$P$102*'4007ES(Addr)'!$AG$102 -> 0 | U12: =+'4007ES(Addr)'!$Q$102*'4007ES(Addr)'!$AF$102 -> 0 | V12: =+'4007ES(Addr)'!$Q$102*'4007ES(Addr)'!$AG$102 -> 0 | W12: =+'4007ES(Addr)'!$R$102*'4007ES(Addr)'!$AF$102 -> 0 | X12: =+'4007ES(Addr)'!$R$102*'4007ES(Addr)'!$AG$102 -> 0 | Y12: =+'4007ES(Addr)'!$S$102*'4007ES(Addr)'!$AF$102 -> 0 | Z12: =+'4007ES(Addr)'!$S$102*'4007ES(Addr)'!$AG$102 -> 0 | AA12: =+'4007ES(Addr)'!$T$102*'4007ES(Addr)'!$AF$102 -> 0 | AB12: =+'4007ES(Addr)'!$T$102*'4007ES(Addr)'!$AG$102 -> 0 | AC12: =+'4007ES(Addr)'!$U$102*'4007ES(Addr)'!$AF$102 -> 0 | AD12: =+'4007ES(Addr)'!$U$102*'4007ES(Addr)'!$AG$102 -> 0 | AE12: =+'4007ES(Addr)'!$V$102*'4007ES(Addr)'!$AF$102 -> 0 | AF12: =+'4007ES(Addr)'!$V$102*'4007ES(Addr)'!$AG$102 -> 0 | AG12: =+'4007ES(Addr)'!$W$102*'4007ES(Addr)'!$AF$102 -> 0 | AH12: =+'4007ES(Addr)'!$W$102*'4007ES(Addr)'!$AG$102 -> 0 | AI12: =+'4007ES(Addr)'!$X$102*'4007ES(Addr)'!$AF$102 -> 0 | AJ12: =+'4007ES(Addr)'!$X$102*'4007ES(Addr)'!$AG$102 -> 0 | AK12: =+'4007ES(Addr)'!$Y$102*'4007ES(Addr)'!$AF$102 -> 0 | AL12: =+'4007ES(Addr)'!$Y$102*'4007ES(Addr)'!$AG$102 -> 0 | AM12: =+'4007ES(Addr)'!$Z$102*'4007ES(Addr)'!$AF$102 -> 0 | AN12: =+'4007ES(Addr)'!$Z$102*'4007ES(Addr)'!$AG$102 -> 0 | AO12: =+'4007ES(Addr)'!$AA$102*'4007ES(Addr)'!$AF$102 -> 0 | AP12: =+'4007ES(Addr)'!$AA$102*'4007ES(Addr)'!$AG$102 -> 0
A13: =+'4007ES(Addr)'!I$115 -> FV400 | B13: =+'4007ES(Addr)'!C$115 -> FV400 Triple IR Flame Detector | C13: =+'4007ES(Addr)'!$K$115*'4007ES(Addr)'!$AF$115 -> 0 | D13: =+'4007ES(Addr)'!$K$115*'4007ES(Addr)'!$AG$115 -> 0 | E13: =+'4007ES(Addr)'!L$115*'4007ES(Addr)'!$AF$115 -> 0 | F13: =+'4007ES(Addr)'!L$115*'4007ES(Addr)'!$AG$115 -> 0 | G13: =+'4007ES(Addr)'!M$115*'4007ES(Addr)'!$AF$115 -> 0 | H13: =+'4007ES(Addr)'!M$115*'4007ES(Addr)'!$AG$115 -> 0 | I13: =+'4007ES(Addr)'!N$115*'4007ES(Addr)'!$AF$115 -> 0 | J13: =+'4007ES(Addr)'!N$115*'4007ES(Addr)'!$AG$115 -> 0 | K13: =+'4007ES(Addr)'!$O$115*'4007ES(Addr)'!$AF$115 -> 0 | L13: =+'4007ES(Addr)'!$O$115*'4007ES(Addr)'!$AG$115 -> 0 | M13: =+'4007ES(Addr)'!$P$115*'4007ES(Addr)'!$AF$115 -> 0 | N13: =+'4007ES(Addr)'!$P$115*'4007ES(Addr)'!$AG$115 -> 0 | O13: =+'4007ES(Addr)'!$Q$115*'4007ES(Addr)'!$AF$115 -> 0 | P13: =+'4007ES(Addr)'!$Q$115*'4007ES(Addr)'!$AG$115 -> 0 | Q13: =+'4007ES(Addr)'!$R$115*'4007ES(Addr)'!$AF$115 -> 0 | R13: =+'4007ES(Addr)'!$R$115*'4007ES(Addr)'!$AG$115 -> 0 | S13: =+'4007ES(Addr)'!$P$115*'4007ES(Addr)'!$AF$115 -> 0 | T13: =+'4007ES(Addr)'!$P$115*'4007ES(Addr)'!$AG$115 -> 0 | U13: =+'4007ES(Addr)'!$Q$115*'4007ES(Addr)'!$AF$115 -> 0 | V13: =+'4007ES(Addr)'!$Q$115*'4007ES(Addr)'!$AG$115 -> 0 | W13: =+'4007ES(Addr)'!$R$115*'4007ES(Addr)'!$AF$115 -> 0 | X13: =+'4007ES(Addr)'!$R$115*'4007ES(Addr)'!$AG$115 -> 0 | Y13: =+'4007ES(Addr)'!$S$115*'4007ES(Addr)'!$AF$115 -> 0 | Z13: =+'4007ES(Addr)'!$S$115*'4007ES(Addr)'!$AG$115 -> 0 | AA13: =+'4007ES(Addr)'!$T$115*'4007ES(Addr)'!$AF$115 -> 0 | AB13: =+'4007ES(Addr)'!$T$115*'4007ES(Addr)'!$AG$115 -> 0 | AC13: =+'4007ES(Addr)'!$U$115*'4007ES(Addr)'!$AF$115 -> 0 | AD13: =+'4007ES(Addr)'!$U$115*'4007ES(Addr)'!$AG$115 -> 0 | AE13: =+'4007ES(Addr)'!$V$115*'4007ES(Addr)'!$AF$115 -> 0 | AF13: =+'4007ES(Addr)'!$V$115*'4007ES(Addr)'!$AG$115 -> 0 | AG13: =+'4007ES(Addr)'!$W$115*'4007ES(Addr)'!$AF$115 -> 0 | AH13: =+'4007ES(Addr)'!$W$115*'4007ES(Addr)'!$AG$115 -> 0 | AI13: =+'4007ES(Addr)'!$X$115*'4007ES(Addr)'!$AF$115 -> 0 | AJ13: =+'4007ES(Addr)'!$X$115*'4007ES(Addr)'!$AG$115 -> 0 | AK13: =+'4007ES(Addr)'!$Y$115*'4007ES(Addr)'!$AF$115 -> 0 | AL13: =+'4007ES(Addr)'!$Y$115*'4007ES(Addr)'!$AG$115 -> 0 | AM13: =+'4007ES(Addr)'!$Z$115*'4007ES(Addr)'!$AF$115 -> 0 | AN13: =+'4007ES(Addr)'!$Z$115*'4007ES(Addr)'!$AG$115 -> 0 | AO13: =+'4007ES(Addr)'!$AA$115*'4007ES(Addr)'!$AF$115 -> 0 | AP13: =+'4007ES(Addr)'!$AA$115*'4007ES(Addr)'!$AG$115 -> 0
A14: =+'4007ES(Addr)'!I$116 -> ProReact | B14: =+'4007ES(Addr)'!C$116 -> ProReact Copper Linear Heat Detector(ProReact) | C14: =+'4007ES(Addr)'!$K$116*'4007ES(Addr)'!$AF$116 -> 0 | D14: =+'4007ES(Addr)'!$K$116*'4007ES(Addr)'!$AG$116 -> 0 | E14: =+'4007ES(Addr)'!L$116*'4007ES(Addr)'!$AF$116 -> 0 | F14: =+'4007ES(Addr)'!L$116*'4007ES(Addr)'!$AG$116 -> 0 | G14: =+'4007ES(Addr)'!M$116*'4007ES(Addr)'!$AF$116 -> 0 | H14: =+'4007ES(Addr)'!M$116*'4007ES(Addr)'!$AG$116 -> 0 | I14: =+'4007ES(Addr)'!N$116*'4007ES(Addr)'!$AF$116 -> 0 | J14: =+'4007ES(Addr)'!N$116*'4007ES(Addr)'!$AG$116 -> 0 | K14: =+'4007ES(Addr)'!$O$116*'4007ES(Addr)'!$AF$116 -> 0 | L14: =+'4007ES(Addr)'!$O$116*'4007ES(Addr)'!$AG$116 -> 0 | M14: =+'4007ES(Addr)'!$P$116*'4007ES(Addr)'!$AF$116 -> 0 | N14: =+'4007ES(Addr)'!$P$116*'4007ES(Addr)'!$AG$116 -> 0 | O14: =+'4007ES(Addr)'!$Q$116*'4007ES(Addr)'!$AF$116 -> 0 | P14: =+'4007ES(Addr)'!$Q$116*'4007ES(Addr)'!$AG$116 -> 0 | Q14: =+'4007ES(Addr)'!$R$116*'4007ES(Addr)'!$AF$116 -> 0 | R14: =+'4007ES(Addr)'!$R$116*'4007ES(Addr)'!$AG$116 -> 0 | S14: =+'4007ES(Addr)'!$P$116*'4007ES(Addr)'!$AF$116 -> 0 | T14: =+'4007ES(Addr)'!$P$116*'4007ES(Addr)'!$AG$116 -> 0 | U14: =+'4007ES(Addr)'!$Q$116*'4007ES(Addr)'!$AF$116 -> 0 | V14: =+'4007ES(Addr)'!$Q$116*'4007ES(Addr)'!$AG$116 -> 0 | W14: =+'4007ES(Addr)'!$R$116*'4007ES(Addr)'!$AF$116 -> 0 | X14: =+'4007ES(Addr)'!$R$116*'4007ES(Addr)'!$AG$116 -> 0 | Y14: =+'4007ES(Addr)'!$S$116*'4007ES(Addr)'!$AF$116 -> 0 | Z14: =+'4007ES(Addr)'!$S$116*'4007ES(Addr)'!$AG$116 -> 0 | AA14: =+'4007ES(Addr)'!$T$116*'4007ES(Addr)'!$AF$116 -> 0 | AB14: =+'4007ES(Addr)'!$T$116*'4007ES(Addr)'!$AG$116 -> 0 | AC14: =+'4007ES(Addr)'!$U$116*'4007ES(Addr)'!$AF$116 -> 0 | AD14: =+'4007ES(Addr)'!$U$116*'4007ES(Addr)'!$AG$116 -> 0 | AE14: =+'4007ES(Addr)'!$V$116*'4007ES(Addr)'!$AF$116 -> 0 | AF14: =+'4007ES(Addr)'!$V$116*'4007ES(Addr)'!$AG$116 -> 0 | AG14: =+'4007ES(Addr)'!$W$116*'4007ES(Addr)'!$AF$116 -> 0 | AH14: =+'4007ES(Addr)'!$W$116*'4007ES(Addr)'!$AG$116 -> 0 | AI14: =+'4007ES(Addr)'!$X$116*'4007ES(Addr)'!$AF$116 -> 0 | AJ14: =+'4007ES(Addr)'!$X$116*'4007ES(Addr)'!$AG$116 -> 0 | AK14: =+'4007ES(Addr)'!$Y$116*'4007ES(Addr)'!$AF$116 -> 0 | AL14: =+'4007ES(Addr)'!$Y$116*'4007ES(Addr)'!$AG$116 -> 0 | AM14: =+'4007ES(Addr)'!$Z$116*'4007ES(Addr)'!$AF$116 -> 0 | AN14: =+'4007ES(Addr)'!$Z$116*'4007ES(Addr)'!$AG$116 -> 0 | AO14: =+'4007ES(Addr)'!$AA$116*'4007ES(Addr)'!$AF$116 -> 0 | AP14: =+'4007ES(Addr)'!$AA$116*'4007ES(Addr)'!$AG$116 -> 0
A15: =+'4007ES(Addr)'!I$117 -> APSensing | B15: =+'4007ES(Addr)'!C$117 -> APSensing Fiber Optic Linear Heat Detector | C15: =+'4007ES(Addr)'!$K$117*'4007ES(Addr)'!$AF$117 -> 0 | D15: =+'4007ES(Addr)'!$K$117*'4007ES(Addr)'!$AG$117 -> 0 | E15: =+'4007ES(Addr)'!L$117*'4007ES(Addr)'!$AF$117 -> 0 | F15: =+'4007ES(Addr)'!L$117*'4007ES(Addr)'!$AG$117 -> 0 | G15: =+'4007ES(Addr)'!M$117*'4007ES(Addr)'!$AF$117 -> 0 | H15: =+'4007ES(Addr)'!M$117*'4007ES(Addr)'!$AG$117 -> 0 | I15: =+'4007ES(Addr)'!N$117*'4007ES(Addr)'!$AF$117 -> 0 | J15: =+'4007ES(Addr)'!N$117*'4007ES(Addr)'!$AG$117 -> 0 | K15: =+'4007ES(Addr)'!$O$117*'4007ES(Addr)'!$AF$117 -> 0 | L15: =+'4007ES(Addr)'!$O$117*'4007ES(Addr)'!$AG$117 -> 0 | M15: =+'4007ES(Addr)'!$P$117*'4007ES(Addr)'!$AF$117 -> 0 | N15: =+'4007ES(Addr)'!$P$117*'4007ES(Addr)'!$AG$117 -> 0 | O15: =+'4007ES(Addr)'!$Q$117*'4007ES(Addr)'!$AF$117 -> 0 | P15: =+'4007ES(Addr)'!$Q$117*'4007ES(Addr)'!$AG$117 -> 0 | Q15: =+'4007ES(Addr)'!$R$117*'4007ES(Addr)'!$AF$117 -> 0 | R15: =+'4007ES(Addr)'!$R$117*'4007ES(Addr)'!$AG$117 -> 0 | S15: =+'4007ES(Addr)'!$P$117*'4007ES(Addr)'!$AF$117 -> 0 | T15: =+'4007ES(Addr)'!$P$117*'4007ES(Addr)'!$AG$117 -> 0 | U15: =+'4007ES(Addr)'!$Q$117*'4007ES(Addr)'!$AF$117 -> 0 | V15: =+'4007ES(Addr)'!$Q$117*'4007ES(Addr)'!$AG$117 -> 0 | W15: =+'4007ES(Addr)'!$R$117*'4007ES(Addr)'!$AF$117 -> 0 | X15: =+'4007ES(Addr)'!$R$117*'4007ES(Addr)'!$AG$117 -> 0 | Y15: =+'4007ES(Addr)'!$S$117*'4007ES(Addr)'!$AF$117 -> 0 | Z15: =+'4007ES(Addr)'!$S$117*'4007ES(Addr)'!$AG$117 -> 0 | AA15: =+'4007ES(Addr)'!$T$117*'4007ES(Addr)'!$AF$117 -> 0 | AB15: =+'4007ES(Addr)'!$T$117*'4007ES(Addr)'!$AG$117 -> 0 | AC15: =+'4007ES(Addr)'!$U$117*'4007ES(Addr)'!$AF$117 -> 0 | AD15: =+'4007ES(Addr)'!$U$117*'4007ES(Addr)'!$AG$117 -> 0 | AE15: =+'4007ES(Addr)'!$V$117*'4007ES(Addr)'!$AF$117 -> 0 | AF15: =+'4007ES(Addr)'!$V$117*'4007ES(Addr)'!$AG$117 -> 0 | AG15: =+'4007ES(Addr)'!$W$117*'4007ES(Addr)'!$AF$117 -> 0 | AH15: =+'4007ES(Addr)'!$W$117*'4007ES(Addr)'!$AG$117 -> 0 | AI15: =+'4007ES(Addr)'!$X$117*'4007ES(Addr)'!$AF$117 -> 0 | AJ15: =+'4007ES(Addr)'!$X$117*'4007ES(Addr)'!$AG$117 -> 0 | AK15: =+'4007ES(Addr)'!$Y$117*'4007ES(Addr)'!$AF$117 -> 0 | AL15: =+'4007ES(Addr)'!$Y$117*'4007ES(Addr)'!$AG$117 -> 0 | AM15: =+'4007ES(Addr)'!$Z$117*'4007ES(Addr)'!$AF$117 -> 0 | AN15: =+'4007ES(Addr)'!$Z$117*'4007ES(Addr)'!$AG$117 -> 0 | AO15: =+'4007ES(Addr)'!$AA$117*'4007ES(Addr)'!$AF$117 -> 0 | AP15: =+'4007ES(Addr)'!$AA$117*'4007ES(Addr)'!$AG$117 -> 0
A16: =+'4007ES(Addr)'!I$118 -> FireRay1 | B16: =+'4007ES(Addr)'!C$118 -> Fireray Beam Detector | C16: =+'4007ES(Addr)'!$K$118*'4007ES(Addr)'!$AF$118 -> 0 | D16: =+'4007ES(Addr)'!$K$118*'4007ES(Addr)'!$AG$118 -> 0 | E16: =+'4007ES(Addr)'!L$118*'4007ES(Addr)'!$AF$118 -> 0 | F16: =+'4007ES(Addr)'!L$118*'4007ES(Addr)'!$AG$118 -> 0 | G16: =+'4007ES(Addr)'!M$118*'4007ES(Addr)'!$AF$118 -> 0 | H16: =+'4007ES(Addr)'!M$118*'4007ES(Addr)'!$AG$118 -> 0 | I16: =+'4007ES(Addr)'!N$118*'4007ES(Addr)'!$AF$118 -> 0 | J16: =+'4007ES(Addr)'!N$118*'4007ES(Addr)'!$AG$118 -> 0 | K16: =+'4007ES(Addr)'!$O$118*'4007ES(Addr)'!$AF$118 -> 0 | L16: =+'4007ES(Addr)'!$O$118*'4007ES(Addr)'!$AG$118 -> 0 | M16: =+'4007ES(Addr)'!$P$118*'4007ES(Addr)'!$AF$118 -> 0 | N16: =+'4007ES(Addr)'!$P$118*'4007ES(Addr)'!$AG$118 -> 0 | O16: =+'4007ES(Addr)'!$Q$118*'4007ES(Addr)'!$AF$118 -> 0 | P16: =+'4007ES(Addr)'!$Q$118*'4007ES(Addr)'!$AG$118 -> 0 | Q16: =+'4007ES(Addr)'!$R$118*'4007ES(Addr)'!$AF$118 -> 0 | R16: =+'4007ES(Addr)'!$R$118*'4007ES(Addr)'!$AG$118 -> 0 | S16: =+'4007ES(Addr)'!$P$118*'4007ES(Addr)'!$AF$118 -> 0 | T16: =+'4007ES(Addr)'!$P$118*'4007ES(Addr)'!$AG$118 -> 0 | U16: =+'4007ES(Addr)'!$Q$118*'4007ES(Addr)'!$AF$118 -> 0 | V16: =+'4007ES(Addr)'!$Q$118*'4007ES(Addr)'!$AG$118 -> 0 | W16: =+'4007ES(Addr)'!$R$118*'4007ES(Addr)'!$AF$118 -> 0 | X16: =+'4007ES(Addr)'!$R$118*'4007ES(Addr)'!$AG$118 -> 0 | Y16: =+'4007ES(Addr)'!$S$118*'4007ES(Addr)'!$AF$118 -> 0 | Z16: =+'4007ES(Addr)'!$S$118*'4007ES(Addr)'!$AG$118 -> 0 | AA16: =+'4007ES(Addr)'!$T$118*'4007ES(Addr)'!$AF$118 -> 0 | AB16: =+'4007ES(Addr)'!$T$118*'4007ES(Addr)'!$AG$118 -> 0 | AC16: =+'4007ES(Addr)'!$U$118*'4007ES(Addr)'!$AF$118 -> 0 | AD16: =+'4007ES(Addr)'!$U$118*'4007ES(Addr)'!$AG$118 -> 0 | AE16: =+'4007ES(Addr)'!$V$118*'4007ES(Addr)'!$AF$118 -> 0 | AF16: =+'4007ES(Addr)'!$V$118*'4007ES(Addr)'!$AG$118 -> 0 | AG16: =+'4007ES(Addr)'!$W$118*'4007ES(Addr)'!$AF$118 -> 0 | AH16: =+'4007ES(Addr)'!$W$118*'4007ES(Addr)'!$AG$118 -> 0 | AI16: =+'4007ES(Addr)'!$X$118*'4007ES(Addr)'!$AF$118 -> 0 | AJ16: =+'4007ES(Addr)'!$X$118*'4007ES(Addr)'!$AG$118 -> 0 | AK16: =+'4007ES(Addr)'!$Y$118*'4007ES(Addr)'!$AF$118 -> 0 | AL16: =+'4007ES(Addr)'!$Y$118*'4007ES(Addr)'!$AG$118 -> 0 | AM16: =+'4007ES(Addr)'!$Z$118*'4007ES(Addr)'!$AF$118 -> 0 | AN16: =+'4007ES(Addr)'!$Z$118*'4007ES(Addr)'!$AG$118 -> 0 | AO16: =+'4007ES(Addr)'!$AA$118*'4007ES(Addr)'!$AF$118 -> 0 | AP16: =+'4007ES(Addr)'!$AA$118*'4007ES(Addr)'!$AG$118 -> 0
A17: =+'4007ES(Addr)'!I$151 -> 4606-9205(BA) | B17: =+'4007ES(Addr)'!C$151 -> Remote Color Touchscreen LCD Annunciator-Beige - Max 6 | C17: =IF('4007ES(Addr)'!G151=1,1,0)*'4007ES(Addr)'!AF151 -> 0 | D17: =IF('4007ES(Addr)'!G151=1,1,0)*'4007ES(Addr)'!AG151 -> 0 | E17: =+'4007ES(Addr)'!L$151*'4007ES(Addr)'!$AF$151 -> 0 | F17: =+'4007ES(Addr)'!L$149*'4007ES(Addr)'!$AG$149 -> 0 | G17: =+'4007ES(Addr)'!M$151*'4007ES(Addr)'!$AF$151 -> 0 | H17: =+'4007ES(Addr)'!M$151*'4007ES(Addr)'!$AG$151 -> 0 | I17: =+'4007ES(Addr)'!O$151*'4007ES(Addr)'!$AF$151 -> 0 | J17: =+'4007ES(Addr)'!O$151*'4007ES(Addr)'!$AG$151 -> 0 | K17: =+'4007ES(Addr)'!$O$151*'4007ES(Addr)'!$AF$151 -> 0 | L17: =+'4007ES(Addr)'!$O$151*'4007ES(Addr)'!$AG$151 -> 0 | M17: =+'4007ES(Addr)'!$P$151*'4007ES(Addr)'!$AF$151 -> 0 | N17: =+'4007ES(Addr)'!$P$151*'4007ES(Addr)'!$AG$151 -> 0 | O17: =+'4007ES(Addr)'!$Q$151*'4007ES(Addr)'!$AF$151 -> 0 | P17: =+'4007ES(Addr)'!$Q$151*'4007ES(Addr)'!$AG$151 -> 0 | Q17: =+'4007ES(Addr)'!$R$151*'4007ES(Addr)'!$AF$151 -> 0 | R17: =+'4007ES(Addr)'!$R$151*'4007ES(Addr)'!$AG$151 -> 0 | S17: =+'4007ES(Addr)'!$P$151*'4007ES(Addr)'!$AF$151 -> 0 | T17: =+'4007ES(Addr)'!$P$151*'4007ES(Addr)'!$AG$151 -> 0 | U17: =+'4007ES(Addr)'!$Q$151*'4007ES(Addr)'!$AF$151 -> 0 | V17: =+'4007ES(Addr)'!$Q$151*'4007ES(Addr)'!$AG$151 -> 0 | W17: =+'4007ES(Addr)'!$R$151*'4007ES(Addr)'!$AF$151 -> 0 | X17: =+'4007ES(Addr)'!$R$151*'4007ES(Addr)'!$AG$151 -> 0 | Y17: =+'4007ES(Addr)'!$S$151*'4007ES(Addr)'!$AF$151 -> 0 | Z17: =+'4007ES(Addr)'!$S$151*'4007ES(Addr)'!$AG$151 -> 0 | AA17: =+'4007ES(Addr)'!$T$151*'4007ES(Addr)'!$AF$151 -> 0 | AB17: =+'4007ES(Addr)'!$T$151*'4007ES(Addr)'!$AG$151 -> 0 | AC17: =+'4007ES(Addr)'!$U$151*'4007ES(Addr)'!$AF$151 -> 0 | AD17: =+'4007ES(Addr)'!$U$151*'4007ES(Addr)'!$AG$151 -> 0 | AE17: =+'4007ES(Addr)'!$V$151*'4007ES(Addr)'!$AF$151 -> 0 | AF17: =+'4007ES(Addr)'!$V$151*'4007ES(Addr)'!$AG$151 -> 0 | AG17: =+'4007ES(Addr)'!$W$151*'4007ES(Addr)'!$AF$151 -> 0 | AH17: =+'4007ES(Addr)'!$W$151*'4007ES(Addr)'!$AG$151 -> 0 | AI17: =+'4007ES(Addr)'!$X$151*'4007ES(Addr)'!$AF$151 -> 0 | AJ17: =+'4007ES(Addr)'!$X$151*'4007ES(Addr)'!$AG$151 -> 0 | AK17: =+'4007ES(Addr)'!$Y$151*'4007ES(Addr)'!$AF$151 -> 0 | AL17: =+'4007ES(Addr)'!$Y$151*'4007ES(Addr)'!$AG$151 -> 0 | AM17: =+'4007ES(Addr)'!$Z$151*'4007ES(Addr)'!$AF$151 -> 0 | AN17: =+'4007ES(Addr)'!$Z$151*'4007ES(Addr)'!$AG$151 -> 0 | AO17: =+'4007ES(Addr)'!$AA$151*'4007ES(Addr)'!$AF$151 -> 0 | AP17: =+'4007ES(Addr)'!$AA$151*'4007ES(Addr)'!$AG$151 -> 0
A18: =+'4007ES(Addr)'!I149 -> Local countdown | B18: =+'4007ES(Addr)'!C149 -> Localised Count down Timer | C18: =+'4007ES(Addr)'!$K$149*'4007ES(Addr)'!$AF$149 -> 0 | D18: =+'4007ES(Addr)'!$K$149*'4007ES(Addr)'!$AG$149 -> 0 | E18: =+'4007ES(Addr)'!$L$149*'4007ES(Addr)'!$AF$149 -> 0 | F18: =+'4007ES(Addr)'!L$149*'4007ES(Addr)'!$AG$149 -> 0 | G18: =+'4007ES(Addr)'!$M$149*'4007ES(Addr)'!$AF$149 -> 0 | H18: =+'4007ES(Addr)'!$M$149*'4007ES(Addr)'!$AG$149 -> 0 | I18: =+'4007ES(Addr)'!$N$149*'4007ES(Addr)'!$AF$149 -> 0 | J18: =+'4007ES(Addr)'!$N$149*'4007ES(Addr)'!$AG$149 -> 0 | K18: =+'4007ES(Addr)'!$O$149*'4007ES(Addr)'!$AF$149 -> 0 | L18: =+'4007ES(Addr)'!$O$149*'4007ES(Addr)'!$AG$149 -> 0 | M18: =+'4007ES(Addr)'!$P$149*'4007ES(Addr)'!$AF$149 -> 0 | N18: =+'4007ES(Addr)'!$P$149*'4007ES(Addr)'!$AG$149 -> 0 | O18: =+'4007ES(Addr)'!$Q$149*'4007ES(Addr)'!$AF$149 -> 0 | P18: =+'4007ES(Addr)'!$Q$149*'4007ES(Addr)'!$AG$149 -> 0 | Q18: =+'4007ES(Addr)'!$R$149*'4007ES(Addr)'!$AF$149 -> 0 | R18: =+'4007ES(Addr)'!$R$149*'4007ES(Addr)'!$AG$149 -> 0 | S18: =+'4007ES(Addr)'!$S$149*'4007ES(Addr)'!$AF$149 -> 0 | T18: =+'4007ES(Addr)'!$S$149*'4007ES(Addr)'!$AG$149 -> 0 | U18: =+'4007ES(Addr)'!$T$149*'4007ES(Addr)'!$AF$149 -> 0 | V18: =+'4007ES(Addr)'!$T$149*'4007ES(Addr)'!$AG$149 -> 0 | W18: =+'4007ES(Addr)'!$U$149*'4007ES(Addr)'!$AF$149 -> 0 | X18: =+'4007ES(Addr)'!$U$149*'4007ES(Addr)'!$AG$149 -> 0 | Y18: =+'4007ES(Addr)'!$V$149*'4007ES(Addr)'!$AF$149 -> 0 | Z18: =+'4007ES(Addr)'!$V$149*'4007ES(Addr)'!$AG$149 -> 0 | AA18: =+'4007ES(Addr)'!$W$149*'4007ES(Addr)'!$AF$149 -> 0 | AB18: =+'4007ES(Addr)'!$W$149*'4007ES(Addr)'!$AG$149 -> 0 | AC18: =+'4007ES(Addr)'!$X$149*'4007ES(Addr)'!$AF$149 -> 0 | AD18: =+'4007ES(Addr)'!$Y$149*'4007ES(Addr)'!$AG$149 -> 0 | AE18: =+'4007ES(Addr)'!$Y$149*'4007ES(Addr)'!$AF$149 -> 0 | AF18: =+'4007ES(Addr)'!$Z$149*'4007ES(Addr)'!$AG$149 -> 0 | AG18: =+'4007ES(Addr)'!$Z$149*'4007ES(Addr)'!$AF$149 -> 0 | AH18: =+'4007ES(Addr)'!$AA$149*'4007ES(Addr)'!$AG$149 -> 0 | AI18: =+'4007ES(Addr)'!$AA$149*'4007ES(Addr)'!$AF$149 -> 0 | AJ18: =+'4007ES(Addr)'!$AB$149*'4007ES(Addr)'!$AG$149 -> 0 | AK18: =+'4007ES(Addr)'!$AC$149*'4007ES(Addr)'!$AF$149 -> 0 | AL18: =+'4007ES(Addr)'!$AC$149*'4007ES(Addr)'!$AG$149 -> 0 | AM18: =+'4007ES(Addr)'!$AD$149*'4007ES(Addr)'!$AF$149 -> 0 | AN18: =+'4007ES(Addr)'!$AD$149*'4007ES(Addr)'!$AG$149 -> 0 | AO18: =+'4007ES(Addr)'!$AE$149*'4007ES(Addr)'!$AF$149 -> 0 | AP18: =+'4007ES(Addr)'!$AE$149*'4007ES(Addr)'!$AG$149 -> 0
A19: =+'4007ES(Addr)'!I70 -> Customised 3 | B19: =+'4007ES(Addr)'!C70 -> Releasing Peripherals Input3B | C19: =+'4007ES(Addr)'!$K$70*'4007ES(Addr)'!$AF$70 -> 0 | D19: =+'4007ES(Addr)'!$K$70*'4007ES(Addr)'!$AG$70 -> 0 | E19: =+'4007ES(Addr)'!$L$70*'4007ES(Addr)'!$AF$70 -> 0 | F19: =+'4007ES(Addr)'!L$70*'4007ES(Addr)'!$AG$70 -> 0 | G19: =+'4007ES(Addr)'!$M$70*'4007ES(Addr)'!$AF$70 -> 0 | H19: =+'4007ES(Addr)'!$M$70*'4007ES(Addr)'!$AG$70 -> 0 | I19: =+'4007ES(Addr)'!$N$70*'4007ES(Addr)'!$AF$70 -> 0 | J19: =+'4007ES(Addr)'!$N$70*'4007ES(Addr)'!$AG$70 -> 0 | K19: =+'4007ES(Addr)'!$O$70*'4007ES(Addr)'!$AF$70 -> 0 | L19: =+'4007ES(Addr)'!$O$70*'4007ES(Addr)'!$AG$70 -> 0 | M19: =+'4007ES(Addr)'!$P$70*'4007ES(Addr)'!$AF$70 -> 0 | N19: =+'4007ES(Addr)'!$P$70*'4007ES(Addr)'!$AG$70 -> 0 | O19: =+'4007ES(Addr)'!$Q$70*'4007ES(Addr)'!$AF$70 -> 0 | P19: =+'4007ES(Addr)'!$Q$70*'4007ES(Addr)'!$AG$70 -> 0 | Q19: =+'4007ES(Addr)'!$R$70*'4007ES(Addr)'!$AF$70 -> 0 | R19: =+'4007ES(Addr)'!$R$70*'4007ES(Addr)'!$AG$70 -> 0 | S19: =+'4007ES(Addr)'!$S$70*'4007ES(Addr)'!$AF$70 -> 0 | T19: =+'4007ES(Addr)'!$S$70*'4007ES(Addr)'!$AG$70 -> 0 | U19: =+'4007ES(Addr)'!$T$70*'4007ES(Addr)'!$AF$70 -> 0 | V19: =+'4007ES(Addr)'!$T$70*'4007ES(Addr)'!$AG$70 -> 0 | W19: =+'4007ES(Addr)'!$U$70*'4007ES(Addr)'!$AF$70 -> 0 | X19: =+'4007ES(Addr)'!$U$70*'4007ES(Addr)'!$AG$70 -> 0 | Y19: =+'4007ES(Addr)'!$V$70*'4007ES(Addr)'!$AF$70 -> 0 | Z19: =+'4007ES(Addr)'!$V$70*'4007ES(Addr)'!$AG$70 -> 0 | AA19: =+'4007ES(Addr)'!$W$70*'4007ES(Addr)'!$AF$70 -> 0 | AB19: =+'4007ES(Addr)'!$W$70*'4007ES(Addr)'!$AG$70 -> 0 | AC19: =+'4007ES(Addr)'!$X$70*'4007ES(Addr)'!$AF$70 -> 0 | AD19: =+'4007ES(Addr)'!$Y$70*'4007ES(Addr)'!$AG$70 -> 0 | AE19: =+'4007ES(Addr)'!$Y$70*'4007ES(Addr)'!$AF$70 -> 0 | AF19: =+'4007ES(Addr)'!$Z$70*'4007ES(Addr)'!$AG$70 -> 0 | AG19: =+'4007ES(Addr)'!$Z$70*'4007ES(Addr)'!$AF$70 -> 0 | AH19: =+'4007ES(Addr)'!$AA$70*'4007ES(Addr)'!$AG$70 -> 0 | AI19: =+'4007ES(Addr)'!$AA$70*'4007ES(Addr)'!$AF$70 -> 0 | AJ19: =+'4007ES(Addr)'!$AB$70*'4007ES(Addr)'!$AG$70 -> 0 | AK19: =+'4007ES(Addr)'!$AC$70*'4007ES(Addr)'!$AF$70 -> 0 | AL19: =+'4007ES(Addr)'!$AC$70*'4007ES(Addr)'!$AG$70 -> 0 | AM19: =+'4007ES(Addr)'!$AD$70*'4007ES(Addr)'!$AF$70 -> 0 | AN19: =+'4007ES(Addr)'!$AD$70*'4007ES(Addr)'!$AG$70 -> 0 | AO19: =+'4007ES(Addr)'!$AE$70*'4007ES(Addr)'!$AF$70 -> 0 | AP19: =+'4007ES(Addr)'!$AE$70*'4007ES(Addr)'!$AG$70 -> 0
A20: =+'4007ES(Addr)'!I71 -> Customised 4 | B20: =+'4007ES(Addr)'!C71 -> Releasing Peripherals Input4B | C20: =+'4007ES(Addr)'!$K$71*'4007ES(Addr)'!$AF$71 -> 0 | D20: =+'4007ES(Addr)'!$K$71*'4007ES(Addr)'!$AG$71 -> 0 | E20: =+'4007ES(Addr)'!$L$71*'4007ES(Addr)'!$AF$71 -> 0 | F20: =+'4007ES(Addr)'!L$71*'4007ES(Addr)'!$AG$71 -> 0 | G20: =+'4007ES(Addr)'!$M$71*'4007ES(Addr)'!$AF$71 -> 0 | H20: =+'4007ES(Addr)'!$M$71*'4007ES(Addr)'!$AG$71 -> 0 | I20: =+'4007ES(Addr)'!$N$71*'4007ES(Addr)'!$AF$71 -> 0 | J20: =+'4007ES(Addr)'!$N$71*'4007ES(Addr)'!$AG$71 -> 0 | K20: =+'4007ES(Addr)'!$O$71*'4007ES(Addr)'!$AF$71 -> 0 | L20: =+'4007ES(Addr)'!$O$71*'4007ES(Addr)'!$AG$71 -> 0 | M20: =+'4007ES(Addr)'!$P$71*'4007ES(Addr)'!$AF$71 -> 0 | N20: =+'4007ES(Addr)'!$P$71*'4007ES(Addr)'!$AG$71 -> 0 | O20: =+'4007ES(Addr)'!$Q$71*'4007ES(Addr)'!$AF$71 -> 0 | P20: =+'4007ES(Addr)'!$Q$71*'4007ES(Addr)'!$AG$71 -> 0 | Q20: =+'4007ES(Addr)'!$R$71*'4007ES(Addr)'!$AF$71 -> 0 | R20: =+'4007ES(Addr)'!$R$71*'4007ES(Addr)'!$AG$71 -> 0 | S20: =+'4007ES(Addr)'!$S$71*'4007ES(Addr)'!$AF$71 -> 0 | T20: =+'4007ES(Addr)'!$S$71*'4007ES(Addr)'!$AG$71 -> 0 | U20: =+'4007ES(Addr)'!$T$71*'4007ES(Addr)'!$AF$71 -> 0 | V20: =+'4007ES(Addr)'!$T$71*'4007ES(Addr)'!$AG$71 -> 0 | W20: =+'4007ES(Addr)'!$U$71*'4007ES(Addr)'!$AF$71 -> 0 | X20: =+'4007ES(Addr)'!$U$71*'4007ES(Addr)'!$AG$71 -> 0 | Y20: =+'4007ES(Addr)'!$V$71*'4007ES(Addr)'!$AF$71 -> 0 | Z20: =+'4007ES(Addr)'!$V$71*'4007ES(Addr)'!$AG$71 -> 0 | AA20: =+'4007ES(Addr)'!$W$71*'4007ES(Addr)'!$AF$71 -> 0 | AB20: =+'4007ES(Addr)'!$W$71*'4007ES(Addr)'!$AG$71 -> 0 | AC20: =+'4007ES(Addr)'!$X$71*'4007ES(Addr)'!$AF$71 -> 0 | AD20: =+'4007ES(Addr)'!$Y$71*'4007ES(Addr)'!$AG$71 -> 0 | AE20: =+'4007ES(Addr)'!$Y$71*'4007ES(Addr)'!$AF$71 -> 0 | AF20: =+'4007ES(Addr)'!$Z$71*'4007ES(Addr)'!$AG$71 -> 0 | AG20: =+'4007ES(Addr)'!$Z$71*'4007ES(Addr)'!$AF$71 -> 0 | AH20: =+'4007ES(Addr)'!$AA$71*'4007ES(Addr)'!$AG$71 -> 0 | AI20: =+'4007ES(Addr)'!$AA$71*'4007ES(Addr)'!$AF$71 -> 0 | AJ20: =+'4007ES(Addr)'!$AB$71*'4007ES(Addr)'!$AG$71 -> 0 | AK20: =+'4007ES(Addr)'!$AC$71*'4007ES(Addr)'!$AF$71 -> 0 | AL20: =+'4007ES(Addr)'!$AC$71*'4007ES(Addr)'!$AG$71 -> 0 | AM20: =+'4007ES(Addr)'!$AD$71*'4007ES(Addr)'!$AF$71 -> 0 | AN20: =+'4007ES(Addr)'!$AD$71*'4007ES(Addr)'!$AG$71 -> 0 | AO20: =+'4007ES(Addr)'!$AE$71*'4007ES(Addr)'!$AF$71 -> 0 | AP20: =+'4007ES(Addr)'!$AE$71*'4007ES(Addr)'!$AG$71 -> 0
A21: =+'4007ES(Addr)'!I72 -> Customised 5 | B21: =+'4007ES(Addr)'!C72 -> Releasing Peripherals Input5B | C21: =+'4007ES(Addr)'!$K$72*'4007ES(Addr)'!$AF$72 -> 0 | D21: =+'4007ES(Addr)'!$K$72*'4007ES(Addr)'!$AG$72 -> 0 | E21: =+'4007ES(Addr)'!$L$72*'4007ES(Addr)'!$AF$72 -> 0 | F21: =+'4007ES(Addr)'!L$72*'4007ES(Addr)'!$AG$72 -> 0 | G21: =+'4007ES(Addr)'!$M$72*'4007ES(Addr)'!$AF$72 -> 0 | H21: =+'4007ES(Addr)'!$M$72*'4007ES(Addr)'!$AG$72 -> 0 | I21: =+'4007ES(Addr)'!$N$72*'4007ES(Addr)'!$AF$72 -> 0 | J21: =+'4007ES(Addr)'!$N$72*'4007ES(Addr)'!$AG$72 -> 0 | K21: =+'4007ES(Addr)'!$O$72*'4007ES(Addr)'!$AF$72 -> 0 | L21: =+'4007ES(Addr)'!$O$72*'4007ES(Addr)'!$AG$72 -> 0 | M21: =+'4007ES(Addr)'!$P$72*'4007ES(Addr)'!$AF$72 -> 0 | N21: =+'4007ES(Addr)'!$P$72*'4007ES(Addr)'!$AG$72 -> 0 | O21: =+'4007ES(Addr)'!$Q$72*'4007ES(Addr)'!$AF$72 -> 0 | P21: =+'4007ES(Addr)'!$Q$72*'4007ES(Addr)'!$AG$72 -> 0 | Q21: =+'4007ES(Addr)'!$R$72*'4007ES(Addr)'!$AF$72 -> 0 | R21: =+'4007ES(Addr)'!$R$72*'4007ES(Addr)'!$AG$72 -> 0 | S21: =+'4007ES(Addr)'!$S$72*'4007ES(Addr)'!$AF$72 -> 0 | T21: =+'4007ES(Addr)'!$S$72*'4007ES(Addr)'!$AG$72 -> 0 | U21: =+'4007ES(Addr)'!$T$72*'4007ES(Addr)'!$AF$72 -> 0 | V21: =+'4007ES(Addr)'!$T$72*'4007ES(Addr)'!$AG$72 -> 0 | W21: =+'4007ES(Addr)'!$U$72*'4007ES(Addr)'!$AF$72 -> 0 | X21: =+'4007ES(Addr)'!$U$72*'4007ES(Addr)'!$AG$72 -> 0 | Y21: =+'4007ES(Addr)'!$V$72*'4007ES(Addr)'!$AF$72 -> 0 | Z21: =+'4007ES(Addr)'!$V$72*'4007ES(Addr)'!$AG$72 -> 0 | AA21: =+'4007ES(Addr)'!$W$72*'4007ES(Addr)'!$AF$72 -> 0 | AB21: =+'4007ES(Addr)'!$W$72*'4007ES(Addr)'!$AG$72 -> 0 | AC21: =+'4007ES(Addr)'!$X$72*'4007ES(Addr)'!$AF$72 -> 0 | AD21: =+'4007ES(Addr)'!$Y$72*'4007ES(Addr)'!$AG$72 -> 0 | AE21: =+'4007ES(Addr)'!$Y$72*'4007ES(Addr)'!$AF$72 -> 0 | AF21: =+'4007ES(Addr)'!$Z$72*'4007ES(Addr)'!$AG$72 -> 0 | AG21: =+'4007ES(Addr)'!$Z$72*'4007ES(Addr)'!$AF$72 -> 0 | AH21: =+'4007ES(Addr)'!$AA$72*'4007ES(Addr)'!$AG$72 -> 0 | AI21: =+'4007ES(Addr)'!$AA$72*'4007ES(Addr)'!$AF$72 -> 0 | AJ21: =+'4007ES(Addr)'!$AB$72*'4007ES(Addr)'!$AG$72 -> 0 | AK21: =+'4007ES(Addr)'!$AC$72*'4007ES(Addr)'!$AF$72 -> 0 | AL21: =+'4007ES(Addr)'!$AC$72*'4007ES(Addr)'!$AG$72 -> 0 | AM21: =+'4007ES(Addr)'!$AD$72*'4007ES(Addr)'!$AF$72 -> 0 | AN21: =+'4007ES(Addr)'!$AD$72*'4007ES(Addr)'!$AG$72 -> 0 | AO21: =+'4007ES(Addr)'!$AE$72*'4007ES(Addr)'!$AF$72 -> 0 | AP21: =+'4007ES(Addr)'!$AE$72*'4007ES(Addr)'!$AG$72 -> 0
A22: =+'4007ES(Addr)'!I73 -> Customised 6 | B22: =+'4007ES(Addr)'!C73 -> Releasing Peripherals Input6B | C22: =+'4007ES(Addr)'!$K$73*'4007ES(Addr)'!$AF$73 -> 0 | D22: =+'4007ES(Addr)'!$K$73*'4007ES(Addr)'!$AG$73 -> 0 | E22: =+'4007ES(Addr)'!$L$73*'4007ES(Addr)'!$AF$73 -> 0 | F22: =+'4007ES(Addr)'!L$73*'4007ES(Addr)'!$AG$73 -> 0 | G22: =+'4007ES(Addr)'!$M$73*'4007ES(Addr)'!$AF$73 -> 0 | H22: =+'4007ES(Addr)'!$M$73*'4007ES(Addr)'!$AG$73 -> 0 | I22: =+'4007ES(Addr)'!$N$73*'4007ES(Addr)'!$AF$73 -> 0 | J22: =+'4007ES(Addr)'!$N$73*'4007ES(Addr)'!$AG$73 -> 0 | K22: =+'4007ES(Addr)'!$O$73*'4007ES(Addr)'!$AF$73 -> 0 | L22: =+'4007ES(Addr)'!$O$73*'4007ES(Addr)'!$AG$73 -> 0 | M22: =+'4007ES(Addr)'!$P$73*'4007ES(Addr)'!$AF$73 -> 0 | N22: =+'4007ES(Addr)'!$P$73*'4007ES(Addr)'!$AG$73 -> 0 | O22: =+'4007ES(Addr)'!$Q$73*'4007ES(Addr)'!$AF$73 -> 0 | P22: =+'4007ES(Addr)'!$Q$73*'4007ES(Addr)'!$AG$73 -> 0 | Q22: =+'4007ES(Addr)'!$R$73*'4007ES(Addr)'!$AF$73 -> 0 | R22: =+'4007ES(Addr)'!$R$73*'4007ES(Addr)'!$AG$73 -> 0 | S22: =+'4007ES(Addr)'!$S$73*'4007ES(Addr)'!$AF$73 -> 0 | T22: =+'4007ES(Addr)'!$S$73*'4007ES(Addr)'!$AG$73 -> 0 | U22: =+'4007ES(Addr)'!$T$73*'4007ES(Addr)'!$AF$73 -> 0 | V22: =+'4007ES(Addr)'!$T$73*'4007ES(Addr)'!$AG$73 -> 0 | W22: =+'4007ES(Addr)'!$U$73*'4007ES(Addr)'!$AF$73 -> 0 | X22: =+'4007ES(Addr)'!$U$73*'4007ES(Addr)'!$AG$73 -> 0 | Y22: =+'4007ES(Addr)'!$V$73*'4007ES(Addr)'!$AF$73 -> 0 | Z22: =+'4007ES(Addr)'!$V$73*'4007ES(Addr)'!$AG$73 -> 0 | AA22: =+'4007ES(Addr)'!$W$73*'4007ES(Addr)'!$AF$73 -> 0 | AB22: =+'4007ES(Addr)'!$W$73*'4007ES(Addr)'!$AG$73 -> 0 | AC22: =+'4007ES(Addr)'!$X$73*'4007ES(Addr)'!$AF$73 -> 0 | AD22: =+'4007ES(Addr)'!$Y$73*'4007ES(Addr)'!$AG$73 -> 0 | AE22: =+'4007ES(Addr)'!$Y$73*'4007ES(Addr)'!$AF$73 -> 0 | AF22: =+'4007ES(Addr)'!$Z$73*'4007ES(Addr)'!$AG$73 -> 0 | AG22: =+'4007ES(Addr)'!$Z$73*'4007ES(Addr)'!$AF$73 -> 0 | AH22: =+'4007ES(Addr)'!$AA$73*'4007ES(Addr)'!$AG$73 -> 0 | AI22: =+'4007ES(Addr)'!$AA$73*'4007ES(Addr)'!$AF$73 -> 0 | AJ22: =+'4007ES(Addr)'!$AB$73*'4007ES(Addr)'!$AG$73 -> 0 | AK22: =+'4007ES(Addr)'!$AC$73*'4007ES(Addr)'!$AF$73 -> 0 | AL22: =+'4007ES(Addr)'!$AC$73*'4007ES(Addr)'!$AG$73 -> 0 | AM22: =+'4007ES(Addr)'!$AD$73*'4007ES(Addr)'!$AF$73 -> 0 | AN22: =+'4007ES(Addr)'!$AD$73*'4007ES(Addr)'!$AG$73 -> 0 | AO22: =+'4007ES(Addr)'!$AE$73*'4007ES(Addr)'!$AF$73 -> 0 | AP22: =+'4007ES(Addr)'!$AE$73*'4007ES(Addr)'!$AG$73 -> 0
A23: =+'4007ES(Addr)'!I119 -> Customised 1 | B23: =+'4007ES(Addr)'!C119 -> Special Device Input1B | C23: =+'4007ES(Addr)'!$K$119*'4007ES(Addr)'!$AF$119 -> 0 | D23: =+'4007ES(Addr)'!$K$119*'4007ES(Addr)'!$AG$119 -> 0 | E23: =+'4007ES(Addr)'!$L$119*'4007ES(Addr)'!$AF$119 -> 0 | F23: =+'4007ES(Addr)'!L$119*'4007ES(Addr)'!$AG$119 -> 0 | G23: =+'4007ES(Addr)'!$M$119*'4007ES(Addr)'!$AF$119 -> 0 | H23: =+'4007ES(Addr)'!$M$119*'4007ES(Addr)'!$AG$119 -> 0 | I23: =+'4007ES(Addr)'!$N$119*'4007ES(Addr)'!$AF$119 -> 0 | J23: =+'4007ES(Addr)'!$N$119*'4007ES(Addr)'!$AG$119 -> 0 | K23: =+'4007ES(Addr)'!$O$119*'4007ES(Addr)'!$AF$119 -> 0 | L23: =+'4007ES(Addr)'!$O$119*'4007ES(Addr)'!$AG$119 -> 0 | M23: =+'4007ES(Addr)'!$P$119*'4007ES(Addr)'!$AF$119 -> 0 | N23: =+'4007ES(Addr)'!$P$119*'4007ES(Addr)'!$AG$119 -> 0 | O23: =+'4007ES(Addr)'!$Q$119*'4007ES(Addr)'!$AF$119 -> 0 | P23: =+'4007ES(Addr)'!$Q$119*'4007ES(Addr)'!$AG$119 -> 0 | Q23: =+'4007ES(Addr)'!$R$119*'4007ES(Addr)'!$AF$119 -> 0 | R23: =+'4007ES(Addr)'!$R$119*'4007ES(Addr)'!$AG$119 -> 0 | S23: =+'4007ES(Addr)'!$S$119*'4007ES(Addr)'!$AF$119 -> 0 | T23: =+'4007ES(Addr)'!$S$119*'4007ES(Addr)'!$AG$119 -> 0 | U23: =+'4007ES(Addr)'!$T$119*'4007ES(Addr)'!$AF$119 -> 0 | V23: =+'4007ES(Addr)'!$T$119*'4007ES(Addr)'!$AG$119 -> 0 | W23: =+'4007ES(Addr)'!$U$119*'4007ES(Addr)'!$AF$119 -> 0 | X23: =+'4007ES(Addr)'!$U$119*'4007ES(Addr)'!$AG$119 -> 0 | Y23: =+'4007ES(Addr)'!$V$119*'4007ES(Addr)'!$AF$119 -> 0 | Z23: =+'4007ES(Addr)'!$V$119*'4007ES(Addr)'!$AG$119 -> 0 | AA23: =+'4007ES(Addr)'!$W$119*'4007ES(Addr)'!$AF$119 -> 0 | AB23: =+'4007ES(Addr)'!$W$119*'4007ES(Addr)'!$AG$119 -> 0 | AC23: =+'4007ES(Addr)'!$X$119*'4007ES(Addr)'!$AF$119 -> 0 | AD23: =+'4007ES(Addr)'!$Y$119*'4007ES(Addr)'!$AG$119 -> 0 | AE23: =+'4007ES(Addr)'!$Y$119*'4007ES(Addr)'!$AF$119 -> 0 | AF23: =+'4007ES(Addr)'!$Z$119*'4007ES(Addr)'!$AG$119 -> 0 | AG23: =+'4007ES(Addr)'!$Z$119*'4007ES(Addr)'!$AF$119 -> 0 | AH23: =+'4007ES(Addr)'!$AA$119*'4007ES(Addr)'!$AG$119 -> 0 | AI23: =+'4007ES(Addr)'!$AA$119*'4007ES(Addr)'!$AF$119 -> 0 | AJ23: =+'4007ES(Addr)'!$AB$119*'4007ES(Addr)'!$AG$119 -> 0 | AK23: =+'4007ES(Addr)'!$AC$119*'4007ES(Addr)'!$AF$119 -> 0 | AL23: =+'4007ES(Addr)'!$AC$119*'4007ES(Addr)'!$AG$119 -> 0 | AM23: =+'4007ES(Addr)'!$AD$119*'4007ES(Addr)'!$AF$119 -> 0 | AN23: =+'4007ES(Addr)'!$AD$119*'4007ES(Addr)'!$AG$119 -> 0 | AO23: =+'4007ES(Addr)'!$AE$119*'4007ES(Addr)'!$AF$119 -> 0 | AP23: =+'4007ES(Addr)'!$AE$119*'4007ES(Addr)'!$AG$119 -> 0
A24: =+'4007ES(Addr)'!I120 -> Customised 2 | B24: =+'4007ES(Addr)'!C120 -> Special Device Input2B | C24: =+'4007ES(Addr)'!$K$120*'4007ES(Addr)'!$AF$120 -> 0 | D24: =+'4007ES(Addr)'!$K$120*'4007ES(Addr)'!$AG$120 -> 0 | E24: =+'4007ES(Addr)'!$L$120*'4007ES(Addr)'!$AF$120 -> 0 | F24: =+'4007ES(Addr)'!L$120*'4007ES(Addr)'!$AG$120 -> 0 | G24: =+'4007ES(Addr)'!$M$120*'4007ES(Addr)'!$AF$120 -> 0 | H24: =+'4007ES(Addr)'!$M$120*'4007ES(Addr)'!$AG$120 -> 0 | I24: =+'4007ES(Addr)'!$N$120*'4007ES(Addr)'!$AF$120 -> 0 | J24: =+'4007ES(Addr)'!$N$120*'4007ES(Addr)'!$AG$120 -> 0 | K24: =+'4007ES(Addr)'!$O$120*'4007ES(Addr)'!$AF$120 -> 0 | L24: =+'4007ES(Addr)'!$O$120*'4007ES(Addr)'!$AG$120 -> 0 | M24: =+'4007ES(Addr)'!$P$120*'4007ES(Addr)'!$AF$120 -> 0 | N24: =+'4007ES(Addr)'!$P$120*'4007ES(Addr)'!$AG$120 -> 0 | O24: =+'4007ES(Addr)'!$Q$120*'4007ES(Addr)'!$AF$120 -> 0 | P24: =+'4007ES(Addr)'!$Q$120*'4007ES(Addr)'!$AG$120 -> 0 | Q24: =+'4007ES(Addr)'!$R$120*'4007ES(Addr)'!$AF$120 -> 0 | R24: =+'4007ES(Addr)'!$R$120*'4007ES(Addr)'!$AG$120 -> 0 | S24: =+'4007ES(Addr)'!$S$120*'4007ES(Addr)'!$AF$120 -> 0 | T24: =+'4007ES(Addr)'!$S$120*'4007ES(Addr)'!$AG$120 -> 0 | U24: =+'4007ES(Addr)'!$T$120*'4007ES(Addr)'!$AF$120 -> 0 | V24: =+'4007ES(Addr)'!$T$120*'4007ES(Addr)'!$AG$120 -> 0 | W24: =+'4007ES(Addr)'!$U$120*'4007ES(Addr)'!$AF$120 -> 0 | X24: =+'4007ES(Addr)'!$U$120*'4007ES(Addr)'!$AG$120 -> 0 | Y24: =+'4007ES(Addr)'!$V$120*'4007ES(Addr)'!$AF$120 -> 0 | Z24: =+'4007ES(Addr)'!$V$120*'4007ES(Addr)'!$AG$120 -> 0 | AA24: =+'4007ES(Addr)'!$W$120*'4007ES(Addr)'!$AF$120 -> 0 | AB24: =+'4007ES(Addr)'!$W$120*'4007ES(Addr)'!$AG$120 -> 0 | AC24: =+'4007ES(Addr)'!$X$120*'4007ES(Addr)'!$AF$120 -> 0 | AD24: =+'4007ES(Addr)'!$Y$120*'4007ES(Addr)'!$AG$120 -> 0 | AE24: =+'4007ES(Addr)'!$Y$120*'4007ES(Addr)'!$AF$120 -> 0 | AF24: =+'4007ES(Addr)'!$Z$120*'4007ES(Addr)'!$AG$120 -> 0 | AG24: =+'4007ES(Addr)'!$Z$120*'4007ES(Addr)'!$AF$120 -> 0 | AH24: =+'4007ES(Addr)'!$AA$120*'4007ES(Addr)'!$AG$120 -> 0 | AI24: =+'4007ES(Addr)'!$AA$120*'4007ES(Addr)'!$AF$120 -> 0 | AJ24: =+'4007ES(Addr)'!$AB$120*'4007ES(Addr)'!$AG$120 -> 0 | AK24: =+'4007ES(Addr)'!$AC$120*'4007ES(Addr)'!$AF$120 -> 0 | AL24: =+'4007ES(Addr)'!$AC$120*'4007ES(Addr)'!$AG$120 -> 0 | AM24: =+'4007ES(Addr)'!$AD$120*'4007ES(Addr)'!$AF$120 -> 0 | AN24: =+'4007ES(Addr)'!$AD$120*'4007ES(Addr)'!$AG$120 -> 0 | AO24: =+'4007ES(Addr)'!$AE$120*'4007ES(Addr)'!$AF$120 -> 0 | AP24: =+'4007ES(Addr)'!$AE$120*'4007ES(Addr)'!$AG$120 -> 0
A25: =+'4007ES(Addr)'!I121 -> Customised 3 | B25: =+'4007ES(Addr)'!C121 -> Special Device Input3B | C25: =+'4007ES(Addr)'!$K$121*'4007ES(Addr)'!$AF$121 -> 0 | D25: =+'4007ES(Addr)'!$K$121*'4007ES(Addr)'!$AG$121 -> 0 | E25: =+'4007ES(Addr)'!$L$121*'4007ES(Addr)'!$AF$121 -> 0 | F25: =+'4007ES(Addr)'!L$121*'4007ES(Addr)'!$AG$121 -> 0 | G25: =+'4007ES(Addr)'!$M$121*'4007ES(Addr)'!$AF$121 -> 0 | H25: =+'4007ES(Addr)'!$M$121*'4007ES(Addr)'!$AG$121 -> 0 | I25: =+'4007ES(Addr)'!$N$121*'4007ES(Addr)'!$AF$121 -> 0 | J25: =+'4007ES(Addr)'!$N$121*'4007ES(Addr)'!$AG$121 -> 0 | K25: =+'4007ES(Addr)'!$O$121*'4007ES(Addr)'!$AF$121 -> 0 | L25: =+'4007ES(Addr)'!$O$121*'4007ES(Addr)'!$AG$121 -> 0 | M25: =+'4007ES(Addr)'!$P$121*'4007ES(Addr)'!$AF$121 -> 0 | N25: =+'4007ES(Addr)'!$P$121*'4007ES(Addr)'!$AG$121 -> 0 | O25: =+'4007ES(Addr)'!$Q$121*'4007ES(Addr)'!$AF$121 -> 0 | P25: =+'4007ES(Addr)'!$Q$121*'4007ES(Addr)'!$AG$121 -> 0 | Q25: =+'4007ES(Addr)'!$R$121*'4007ES(Addr)'!$AF$121 -> 0 | R25: =+'4007ES(Addr)'!$R$121*'4007ES(Addr)'!$AG$121 -> 0 | S25: =+'4007ES(Addr)'!$S$121*'4007ES(Addr)'!$AF$121 -> 0 | T25: =+'4007ES(Addr)'!$S$121*'4007ES(Addr)'!$AG$121 -> 0 | U25: =+'4007ES(Addr)'!$T$121*'4007ES(Addr)'!$AF$121 -> 0 | V25: =+'4007ES(Addr)'!$T$121*'4007ES(Addr)'!$AG$121 -> 0 | W25: =+'4007ES(Addr)'!$U$121*'4007ES(Addr)'!$AF$121 -> 0 | X25: =+'4007ES(Addr)'!$U$121*'4007ES(Addr)'!$AG$121 -> 0 | Y25: =+'4007ES(Addr)'!$V$121*'4007ES(Addr)'!$AF$121 -> 0 | Z25: =+'4007ES(Addr)'!$V$121*'4007ES(Addr)'!$AG$121 -> 0 | AA25: =+'4007ES(Addr)'!$W$121*'4007ES(Addr)'!$AF$121 -> 0 | AB25: =+'4007ES(Addr)'!$W$121*'4007ES(Addr)'!$AG$121 -> 0 | AC25: =+'4007ES(Addr)'!$X$121*'4007ES(Addr)'!$AF$121 -> 0 | AD25: =+'4007ES(Addr)'!$Y$121*'4007ES(Addr)'!$AG$121 -> 0 | AE25: =+'4007ES(Addr)'!$Y$121*'4007ES(Addr)'!$AF$121 -> 0 | AF25: =+'4007ES(Addr)'!$Z$121*'4007ES(Addr)'!$AG$121 -> 0 | AG25: =+'4007ES(Addr)'!$Z$121*'4007ES(Addr)'!$AF$121 -> 0 | AH25: =+'4007ES(Addr)'!$AA$121*'4007ES(Addr)'!$AG$121 -> 0 | AI25: =+'4007ES(Addr)'!$AA$121*'4007ES(Addr)'!$AF$121 -> 0 | AJ25: =+'4007ES(Addr)'!$AB$121*'4007ES(Addr)'!$AG$121 -> 0 | AK25: =+'4007ES(Addr)'!$AC$121*'4007ES(Addr)'!$AF$121 -> 0 | AL25: =+'4007ES(Addr)'!$AC$121*'4007ES(Addr)'!$AG$121 -> 0 | AM25: =+'4007ES(Addr)'!$AD$121*'4007ES(Addr)'!$AF$121 -> 0 | AN25: =+'4007ES(Addr)'!$AD$121*'4007ES(Addr)'!$AG$121 -> 0 | AO25: =+'4007ES(Addr)'!$AE$121*'4007ES(Addr)'!$AF$121 -> 0 | AP25: =+'4007ES(Addr)'!$AE$121*'4007ES(Addr)'!$AG$121 -> 0
A26: =+'4007ES(Addr)'!I122 -> Customised 4 | B26: =+'4007ES(Addr)'!C122 -> Special Device Input4B | C26: =+'4007ES(Addr)'!$K$122*'4007ES(Addr)'!$AF$122 -> 0 | D26: =+'4007ES(Addr)'!$K$122*'4007ES(Addr)'!$AG$122 -> 0 | E26: =+'4007ES(Addr)'!$L$122*'4007ES(Addr)'!$AF$122 -> 0 | F26: =+'4007ES(Addr)'!L$122*'4007ES(Addr)'!$AG$122 -> 0 | G26: =+'4007ES(Addr)'!$M$122*'4007ES(Addr)'!$AF$122 -> 0 | H26: =+'4007ES(Addr)'!$M$122*'4007ES(Addr)'!$AG$122 -> 0 | I26: =+'4007ES(Addr)'!$N$122*'4007ES(Addr)'!$AF$122 -> 0 | J26: =+'4007ES(Addr)'!$N$122*'4007ES(Addr)'!$AG$122 -> 0 | K26: =+'4007ES(Addr)'!$O$122*'4007ES(Addr)'!$AF$122 -> 0 | L26: =+'4007ES(Addr)'!$O$122*'4007ES(Addr)'!$AG$122 -> 0 | M26: =+'4007ES(Addr)'!$P$122*'4007ES(Addr)'!$AF$122 -> 0 | N26: =+'4007ES(Addr)'!$P$122*'4007ES(Addr)'!$AG$122 -> 0 | O26: =+'4007ES(Addr)'!$Q$122*'4007ES(Addr)'!$AF$122 -> 0 | P26: =+'4007ES(Addr)'!$Q$122*'4007ES(Addr)'!$AG$122 -> 0 | Q26: =+'4007ES(Addr)'!$R$122*'4007ES(Addr)'!$AF$122 -> 0 | R26: =+'4007ES(Addr)'!$R$122*'4007ES(Addr)'!$AG$122 -> 0 | S26: =+'4007ES(Addr)'!$S$122*'4007ES(Addr)'!$AF$122 -> 0 | T26: =+'4007ES(Addr)'!$S$122*'4007ES(Addr)'!$AG$122 -> 0 | U26: =+'4007ES(Addr)'!$T$122*'4007ES(Addr)'!$AF$122 -> 0 | V26: =+'4007ES(Addr)'!$T$122*'4007ES(Addr)'!$AG$122 -> 0 | W26: =+'4007ES(Addr)'!$U$122*'4007ES(Addr)'!$AF$122 -> 0 | X26: =+'4007ES(Addr)'!$U$122*'4007ES(Addr)'!$AG$122 -> 0 | Y26: =+'4007ES(Addr)'!$V$122*'4007ES(Addr)'!$AF$122 -> 0 | Z26: =+'4007ES(Addr)'!$V$122*'4007ES(Addr)'!$AG$122 -> 0 | AA26: =+'4007ES(Addr)'!$W$122*'4007ES(Addr)'!$AF$122 -> 0 | AB26: =+'4007ES(Addr)'!$W$122*'4007ES(Addr)'!$AG$122 -> 0 | AC26: =+'4007ES(Addr)'!$X$122*'4007ES(Addr)'!$AF$122 -> 0 | AD26: =+'4007ES(Addr)'!$Y$122*'4007ES(Addr)'!$AG$122 -> 0 | AE26: =+'4007ES(Addr)'!$Y$122*'4007ES(Addr)'!$AF$122 -> 0 | AF26: =+'4007ES(Addr)'!$Z$122*'4007ES(Addr)'!$AG$122 -> 0 | AG26: =+'4007ES(Addr)'!$Z$122*'4007ES(Addr)'!$AF$122 -> 0 | AH26: =+'4007ES(Addr)'!$AA$122*'4007ES(Addr)'!$AG$122 -> 0 | AI26: =+'4007ES(Addr)'!$AA$122*'4007ES(Addr)'!$AF$122 -> 0 | AJ26: =+'4007ES(Addr)'!$AB$122*'4007ES(Addr)'!$AG$122 -> 0 | AK26: =+'4007ES(Addr)'!$AC$122*'4007ES(Addr)'!$AF$122 -> 0 | AL26: =+'4007ES(Addr)'!$AC$122*'4007ES(Addr)'!$AG$122 -> 0 | AM26: =+'4007ES(Addr)'!$AD$122*'4007ES(Addr)'!$AF$122 -> 0 | AN26: =+'4007ES(Addr)'!$AD$122*'4007ES(Addr)'!$AG$122 -> 0 | AO26: =+'4007ES(Addr)'!$AE$122*'4007ES(Addr)'!$AF$122 -> 0 | AP26: =+'4007ES(Addr)'!$AE$122*'4007ES(Addr)'!$AG$122 -> 0
A27: =+'4007ES(Addr)'!I123 -> Customised 5 | B27: =+'4007ES(Addr)'!C123 -> Special Device Input5B | C27: =+'4007ES(Addr)'!$K$123*'4007ES(Addr)'!$AF$123 -> 0 | D27: =+'4007ES(Addr)'!$K$123*'4007ES(Addr)'!$AG$123 -> 0 | E27: =+'4007ES(Addr)'!$L$123*'4007ES(Addr)'!$AF$123 -> 0 | F27: =+'4007ES(Addr)'!L$123*'4007ES(Addr)'!$AG$123 -> 0 | G27: =+'4007ES(Addr)'!$M$123*'4007ES(Addr)'!$AF$123 -> 0 | H27: =+'4007ES(Addr)'!$M$123*'4007ES(Addr)'!$AG$123 -> 0 | I27: =+'4007ES(Addr)'!$N$123*'4007ES(Addr)'!$AF$123 -> 0 | J27: =+'4007ES(Addr)'!$N$123*'4007ES(Addr)'!$AG$123 -> 0 | K27: =+'4007ES(Addr)'!$O$123*'4007ES(Addr)'!$AF$123 -> 0 | L27: =+'4007ES(Addr)'!$O$123*'4007ES(Addr)'!$AG$123 -> 0 | M27: =+'4007ES(Addr)'!$P$123*'4007ES(Addr)'!$AF$123 -> 0 | N27: =+'4007ES(Addr)'!$P$123*'4007ES(Addr)'!$AG$123 -> 0 | O27: =+'4007ES(Addr)'!$Q$123*'4007ES(Addr)'!$AF$123 -> 0 | P27: =+'4007ES(Addr)'!$Q$123*'4007ES(Addr)'!$AG$123 -> 0 | Q27: =+'4007ES(Addr)'!$R$123*'4007ES(Addr)'!$AF$123 -> 0 | R27: =+'4007ES(Addr)'!$R$123*'4007ES(Addr)'!$AG$123 -> 0 | S27: =+'4007ES(Addr)'!$S$123*'4007ES(Addr)'!$AF$123 -> 0 | T27: =+'4007ES(Addr)'!$S$123*'4007ES(Addr)'!$AG$123 -> 0 | U27: =+'4007ES(Addr)'!$T$123*'4007ES(Addr)'!$AF$123 -> 0 | V27: =+'4007ES(Addr)'!$T$123*'4007ES(Addr)'!$AG$123 -> 0 | W27: =+'4007ES(Addr)'!$U$123*'4007ES(Addr)'!$AF$123 -> 0 | X27: =+'4007ES(Addr)'!$U$123*'4007ES(Addr)'!$AG$123 -> 0 | Y27: =+'4007ES(Addr)'!$V$123*'4007ES(Addr)'!$AF$123 -> 0 | Z27: =+'4007ES(Addr)'!$V$123*'4007ES(Addr)'!$AG$123 -> 0 | AA27: =+'4007ES(Addr)'!$W$123*'4007ES(Addr)'!$AF$123 -> 0 | AB27: =+'4007ES(Addr)'!$W$123*'4007ES(Addr)'!$AG$123 -> 0 | AC27: =+'4007ES(Addr)'!$X$123*'4007ES(Addr)'!$AF$123 -> 0 | AD27: =+'4007ES(Addr)'!$Y$123*'4007ES(Addr)'!$AG$123 -> 0 | AE27: =+'4007ES(Addr)'!$Y$123*'4007ES(Addr)'!$AF$123 -> 0 | AF27: =+'4007ES(Addr)'!$Z$123*'4007ES(Addr)'!$AG$123 -> 0 | AG27: =+'4007ES(Addr)'!$Z$123*'4007ES(Addr)'!$AF$123 -> 0 | AH27: =+'4007ES(Addr)'!$AA$123*'4007ES(Addr)'!$AG$123 -> 0 | AI27: =+'4007ES(Addr)'!$AA$123*'4007ES(Addr)'!$AF$123 -> 0 | AJ27: =+'4007ES(Addr)'!$AB$123*'4007ES(Addr)'!$AG$123 -> 0 | AK27: =+'4007ES(Addr)'!$AC$123*'4007ES(Addr)'!$AF$123 -> 0 | AL27: =+'4007ES(Addr)'!$AC$123*'4007ES(Addr)'!$AG$123 -> 0 | AM27: =+'4007ES(Addr)'!$AD$123*'4007ES(Addr)'!$AF$123 -> 0 | AN27: =+'4007ES(Addr)'!$AD$123*'4007ES(Addr)'!$AG$123 -> 0 | AO27: =+'4007ES(Addr)'!$AE$123*'4007ES(Addr)'!$AF$123 -> 0 | AP27: =+'4007ES(Addr)'!$AE$123*'4007ES(Addr)'!$AG$123 -> 0
B32: G
B33: Subtotal Current by Type | C33: =SUM(C3:C32) -> 0 | D33: =SUM(D3:D32) -> 0 | E33: =SUM(E3:E32) -> 0 | F33: 0 | G33: 0 | H33: 0 | I33: 0 | J33: 0 | K33: 0 | L33: 0 | M33: 0 | N33: 0 | O33: 0 | P33: 0 | Q33: 0 | R33: 0 | S33: 0 | T33: 0 | U33: 0 | V33: 0 | W33: 0 | X33: 0 | Y33: 0 | Z33: 0 | AA33: 0 | AB33: 0 | AC33: 0 | AD33: 0 | AE33: 0 | AF33: 0 | AG33: 0 | AH33: 0 | AI33: 0 | AJ33: 0 | AK33: 0 | AL33: 0 | AM33: 0 | AN33: 0 | AO33: 0 | AP33: 0
B34: Details | C34: H1 | D34: H2 | E34: H3 | F34: H4 | G34: H5 | H34: H6 | I34: H7 | J34: H8 | K34: H9 | L34: H10 | M34: H11 | N34: H12 | O34: H13 | P34: H14 | Q34: H15 | R34: H16 | S34: H17 | T34: H18 | U34: H19 | V34: H20
C35: =_xlfn.IFS('4007ES(Addr)'!K$19='Aux & `Panel Current'!$B$38,6,'4007ES(Addr)'!K$19='Aux & `Panel Current'!$B$39,1,'4007ES(Addr)'!K$19='Aux & `Panel Current'!$B$40,2,'4007ES(Addr)'!K$19='Aux & `Panel Current'!$B$41,3,'4007ES(Addr)'!K$19='Aux & `Panel Current'!$B$42,4,'4007ES(Addr)'!K$19='Aux & `Panel Current'!$B$43,5,'4007ES(Addr)'!K$19='Aux & `Panel Current'!$B$44,0) -> 0 | D35: =_xlfn.IFS('4007ES(Addr)'!L$19='Aux & `Panel Current'!$B$38,6,'4007ES(Addr)'!L$19='Aux & `Panel Current'!$B$39,1,'4007ES(Addr)'!L$19='Aux & `Panel Current'!$B$40,2,'4007ES(Addr)'!L$19='Aux & `Panel Current'!$B$41,3,'4007ES(Addr)'!L$19='Aux & `Panel Current'!$B$42,4,'4007ES(Addr)'!L$19='Aux & `Panel Current'!$B$43,5,'4007ES(Addr)'!L$19='Aux & `Panel Current'!$B$44,0) -> 0 | E35: =_xlfn.IFS('4007ES(Addr)'!M$19='Aux & `Panel Current'!$B$38,6,'4007ES(Addr)'!M$19='Aux & `Panel Current'!$B$39,1,'4007ES(Addr)'!M$19='Aux & `Panel Current'!$B$40,2,'4007ES(Addr)'!M$19='Aux & `Panel Current'!$B$41,3,'4007ES(Addr)'!M$19='Aux & `Panel Current'!$B$42,4,'4007ES(Addr)'!M$19='Aux & `Panel Current'!$B$43,5,'4007ES(Addr)'!M$19='Aux & `Panel Current'!$B$44,0) -> 0 | F35: =_xlfn.IFS('4007ES(Addr)'!N$19='Aux & `Panel Current'!$B$38,6,'4007ES(Addr)'!N$19='Aux & `Panel Current'!$B$39,1,'4007ES(Addr)'!N$19='Aux & `Panel Current'!$B$40,2,'4007ES(Addr)'!N$19='Aux & `Panel Current'!$B$41,3,'4007ES(Addr)'!N$19='Aux & `Panel Current'!$B$42,4,'4007ES(Addr)'!N$19='Aux & `Panel Current'!$B$43,5,'4007ES(Addr)'!N$19='Aux & `Panel Current'!$B$44,0) -> 0 | G35: =_xlfn.IFS('4007ES(Addr)'!O$19='Aux & `Panel Current'!$B$38,6,'4007ES(Addr)'!O$19='Aux & `Panel Current'!$B$39,1,'4007ES(Addr)'!O$19='Aux & `Panel Current'!$B$40,2,'4007ES(Addr)'!O$19='Aux & `Panel Current'!$B$41,3,'4007ES(Addr)'!O$19='Aux & `Panel Current'!$B$42,4,'4007ES(Addr)'!O$19='Aux & `Panel Current'!$B$43,5,'4007ES(Addr)'!O$19='Aux & `Panel Current'!$B$44,0) -> 0 | H35: =_xlfn.IFS('4007ES(Addr)'!P$19='Aux & `Panel Current'!$B$38,6,'4007ES(Addr)'!P$19='Aux & `Panel Current'!$B$39,1,'4007ES(Addr)'!P$19='Aux & `Panel Current'!$B$40,2,'4007ES(Addr)'!P$19='Aux & `Panel Current'!$B$41,3,'4007ES(Addr)'!P$19='Aux & `Panel Current'!$B$42,4,'4007ES(Addr)'!P$19='Aux & `Panel Current'!$B$43,5,'4007ES(Addr)'!P$19='Aux & `Panel Current'!$B$44,0) -> 0 | I35: =_xlfn.IFS('4007ES(Addr)'!Q$19='Aux & `Panel Current'!$B$38,6,'4007ES(Addr)'!Q$19='Aux & `Panel Current'!$B$39,1,'4007ES(Addr)'!Q$19='Aux & `Panel Current'!$B$40,2,'4007ES(Addr)'!Q$19='Aux & `Panel Current'!$B$41,3,'4007ES(Addr)'!Q$19='Aux & `Panel Current'!$B$42,4,'4007ES(Addr)'!Q$19='Aux & `Panel Current'!$B$43,5,'4007ES(Addr)'!Q$19='Aux & `Panel Current'!$B$44,0) -> 0 | J35: =_xlfn.IFS('4007ES(Addr)'!R$19='Aux & `Panel Current'!$B$38,6,'4007ES(Addr)'!R$19='Aux & `Panel Current'!$B$39,1,'4007ES(Addr)'!R$19='Aux & `Panel Current'!$B$40,2,'4007ES(Addr)'!R$19='Aux & `Panel Current'!$B$41,3,'4007ES(Addr)'!R$19='Aux & `Panel Current'!$B$42,4,'4007ES(Addr)'!R$19='Aux & `Panel Current'!$B$43,5,'4007ES(Addr)'!R$19='Aux & `Panel Current'!$B$44,0) -> 0 | K35: =_xlfn.IFS('4007ES(Addr)'!S$19='Aux & `Panel Current'!$B$38,6,'4007ES(Addr)'!S$19='Aux & `Panel Current'!$B$39,1,'4007ES(Addr)'!S$19='Aux & `Panel Current'!$B$40,2,'4007ES(Addr)'!S$19='Aux & `Panel Current'!$B$41,3,'4007ES(Addr)'!S$19='Aux & `Panel Current'!$B$42,4,'4007ES(Addr)'!S$19='Aux & `Panel Current'!$B$43,5,'4007ES(Addr)'!S$19='Aux & `Panel Current'!$B$44,0) -> 0 | L35: =_xlfn.IFS('4007ES(Addr)'!T$19='Aux & `Panel Current'!$B$38,6,'4007ES(Addr)'!T$19='Aux & `Panel Current'!$B$39,1,'4007ES(Addr)'!T$19='Aux & `Panel Current'!$B$40,2,'4007ES(Addr)'!T$19='Aux & `Panel Current'!$B$41,3,'4007ES(Addr)'!T$19='Aux & `Panel Current'!$B$42,4,'4007ES(Addr)'!T$19='Aux & `Panel Current'!$B$43,5,'4007ES(Addr)'!T$19='Aux & `Panel Current'!$B$44,0) -> 0 | M35: =_xlfn.IFS('4007ES(Addr)'!U$19='Aux & `Panel Current'!$B$38,6,'4007ES(Addr)'!U$19='Aux & `Panel Current'!$B$39,1,'4007ES(Addr)'!U$19='Aux & `Panel Current'!$B$40,2,'4007ES(Addr)'!U$19='Aux & `Panel Current'!$B$41,3,'4007ES(Addr)'!U$19='Aux & `Panel Current'!$B$42,4,'4007ES(Addr)'!U$19='Aux & `Panel Current'!$B$43,5,'4007ES(Addr)'!U$19='Aux & `Panel Current'!$B$44,0) -> 0 | N35: =_xlfn.IFS('4007ES(Addr)'!V$19='Aux & `Panel Current'!$B$38,6,'4007ES(Addr)'!V$19='Aux & `Panel Current'!$B$39,1,'4007ES(Addr)'!V$19='Aux & `Panel Current'!$B$40,2,'4007ES(Addr)'!V$19='Aux & `Panel Current'!$B$41,3,'4007ES(Addr)'!V$19='Aux & `Panel Current'!$B$42,4,'4007ES(Addr)'!V$19='Aux & `Panel Current'!$B$43,5,'4007ES(Addr)'!V$19='Aux & `Panel Current'!$B$44,0) -> 0 | O35: =_xlfn.IFS('4007ES(Addr)'!W$19='Aux & `Panel Current'!$B$38,6,'4007ES(Addr)'!W$19='Aux & `Panel Current'!$B$39,1,'4007ES(Addr)'!W$19='Aux & `Panel Current'!$B$40,2,'4007ES(Addr)'!W$19='Aux & `Panel Current'!$B$41,3,'4007ES(Addr)'!W$19='Aux & `Panel Current'!$B$42,4,'4007ES(Addr)'!W$19='Aux & `Panel Current'!$B$43,5,'4007ES(Addr)'!W$19='Aux & `Panel Current'!$B$44,0) -> 0 | P35: =_xlfn.IFS('4007ES(Addr)'!X$19='Aux & `Panel Current'!$B$38,6,'4007ES(Addr)'!X$19='Aux & `Panel Current'!$B$39,1,'4007ES(Addr)'!X$19='Aux & `Panel Current'!$B$40,2,'4007ES(Addr)'!X$19='Aux & `Panel Current'!$B$41,3,'4007ES(Addr)'!X$19='Aux & `Panel Current'!$B$42,4,'4007ES(Addr)'!X$19='Aux & `Panel Current'!$B$43,5,'4007ES(Addr)'!X$19='Aux & `Panel Current'!$B$44,0) -> 0 | Q35: =_xlfn.IFS('4007ES(Addr)'!Y$19='Aux & `Panel Current'!$B$38,6,'4007ES(Addr)'!Y$19='Aux & `Panel Current'!$B$39,1,'4007ES(Addr)'!Y$19='Aux & `Panel Current'!$B$40,2,'4007ES(Addr)'!Y$19='Aux & `Panel Current'!$B$41,3,'4007ES(Addr)'!Y$19='Aux & `Panel Current'!$B$42,4,'4007ES(Addr)'!Y$19='Aux & `Panel Current'!$B$43,5,'4007ES(Addr)'!Y$19='Aux & `Panel Current'!$B$44,0) -> 0 | R35: =_xlfn.IFS('4007ES(Addr)'!Z$19='Aux & `Panel Current'!$B$38,6,'4007ES(Addr)'!Z$19='Aux & `Panel Current'!$B$39,1,'4007ES(Addr)'!Z$19='Aux & `Panel Current'!$B$40,2,'4007ES(Addr)'!Z$19='Aux & `Panel Current'!$B$41,3,'4007ES(Addr)'!Z$19='Aux & `Panel Current'!$B$42,4,'4007ES(Addr)'!Z$19='Aux & `Panel Current'!$B$43,5,'4007ES(Addr)'!Z$19='Aux & `Panel Current'!$B$44,0) -> 0 | S35: =_xlfn.IFS('4007ES(Addr)'!AA$19='Aux & `Panel Current'!$B$38,6,'4007ES(Addr)'!AA$19='Aux & `Panel Current'!$B$39,1,'4007ES(Addr)'!AA$19='Aux & `Panel Current'!$B$40,2,'4007ES(Addr)'!AA$19='Aux & `Panel Current'!$B$41,3,'4007ES(Addr)'!AA$19='Aux & `Panel Current'!$B$42,4,'4007ES(Addr)'!AA$19='Aux & `Panel Current'!$B$43,5,'4007ES(Addr)'!AA$19='Aux & `Panel Current'!$B$44,0) -> 0 | T35: =_xlfn.IFS('4007ES(Addr)'!AB$19='Aux & `Panel Current'!$B$38,6,'4007ES(Addr)'!AB$19='Aux & `Panel Current'!$B$39,1,'4007ES(Addr)'!AB$19='Aux & `Panel Current'!$B$40,2,'4007ES(Addr)'!AB$19='Aux & `Panel Current'!$B$41,3,'4007ES(Addr)'!AB$19='Aux & `Panel Current'!$B$42,4,'4007ES(Addr)'!AB$19='Aux & `Panel Current'!$B$43,5,'4007ES(Addr)'!AB$19='Aux & `Panel Current'!$B$44,0) -> 0 | U35: =_xlfn.IFS('4007ES(Addr)'!AC$19='Aux & `Panel Current'!$B$38,6,'4007ES(Addr)'!AC$19='Aux & `Panel Current'!$B$39,1,'4007ES(Addr)'!AC$19='Aux & `Panel Current'!$B$40,2,'4007ES(Addr)'!AC$19='Aux & `Panel Current'!$B$41,3,'4007ES(Addr)'!AC$19='Aux & `Panel Current'!$B$42,4,'4007ES(Addr)'!AC$19='Aux & `Panel Current'!$B$43,5,'4007ES(Addr)'!AC$19='Aux & `Panel Current'!$B$44,0) -> 0 | V35: =_xlfn.IFS('4007ES(Addr)'!AD$19='Aux & `Panel Current'!$B$38,6,'4007ES(Addr)'!AD$19='Aux & `Panel Current'!$B$39,1,'4007ES(Addr)'!AD$19='Aux & `Panel Current'!$B$40,2,'4007ES(Addr)'!AD$19='Aux & `Panel Current'!$B$41,3,'4007ES(Addr)'!AD$19='Aux & `Panel Current'!$B$42,4,'4007ES(Addr)'!AD$19='Aux & `Panel Current'!$B$43,5,'4007ES(Addr)'!AD$19='Aux & `Panel Current'!$B$44,0) -> 0
C36: Auxillary PS | E36: Panel PS | G36: RAC & NAC | I36: Total Panel only
B37: Summary of Power Consumption by Panel | C37: Standby | D37: Alarm | E37: Standby | F37: Alarm | G37: RAC | H37: NAC | I37: Stby | J37: Alm
B38: 4007ES | C38: =+'4007ES(Addr)'!AW48 -> 0 | D38: =+'4007ES(Addr)'!AV48 -> 0 | E38: =+C78 -> 0 | F38: =+D78 -> 0 | G38: =+'4007ES(Addr)'!AT48 -> 0 | H38: =+'4007ES(Addr)'!AU48 -> 0 | I38: =SUM(E38+C38) -> 0 | J38: =+H38+G38+F38+D38 -> 0
B39: NAC Repeat 1 | C39: =+'4007ES(Addr)'!AW49 -> 0 | D39: =+'4007ES(Addr)'!AV49 -> 0 | E39: =+E78 -> 0 | F39: =+F78 -> 0 | G39: =+'4007ES(Addr)'!AT49 -> 0 | H39: =+'4007ES(Addr)'!AU49 -> 0 | I39: =SUM(E39+C39) -> 0 | J39: =+H39+G39+F39+D39 -> 0
B40: NAC Repeat 2 | C40: =+'4007ES(Addr)'!AW50 -> 0 | D40: =+'4007ES(Addr)'!AV50 -> 0 | E40: =+G78 -> 0 | F40: =+H78 -> 0 | G40: =+'4007ES(Addr)'!AT50 -> 0 | H40: =+'4007ES(Addr)'!AU50 -> 0 | I40: 0 | J40: 0
B41: NAC Repeat 3 | C41: =+'4007ES(Addr)'!AW51 -> 0 | D41: =+'4007ES(Addr)'!AV51 -> 0 | E41: =+I78 -> 0 | F41: =+J78 -> 0 | G41: =+'4007ES(Addr)'!AT51 -> 0 | H41: =+'4007ES(Addr)'!AU51 -> 0 | I41: 0 | J41: 0
B42: NAC Repeat 4 | C42: =+'4007ES(Addr)'!AW52 -> 0 | D42: =+'4007ES(Addr)'!AV52 -> 0 | E42: =+K78 -> 0 | F42: =+L78 -> 0 | G42: =+'4007ES(Addr)'!AT52 -> 0 | H42: =+'4007ES(Addr)'!AU52 -> 0 | I42: 0 | J42: 0
B43: NAC Repeat 5 | C43: =+'4007ES(Addr)'!AW53 -> 0 | D43: =+'4007ES(Addr)'!AV53 -> 0 | E43: =+M78 -> 0 | F43: =+N78 -> 0 | G43: =+'4007ES(Addr)'!AT53 -> 0 | H43: =+'4007ES(Addr)'!AU53 -> 0 | I43: 0 | J43: 0
B44: No Selection
A46: Panel Current summary | C46: =('4007ES(Addr)'!K134+'4007ES(Addr)'!K135++'4007ES(Addr)'!K136)/8 -> 0 | D46: =ROUNDUP(C46,0) -> 0
A47: PID | B47: Description | C47: P Stby | D47: P Alm | E47: NR1 Stby | F47: NR1 Alam | G47: NR2 Stby | H47: NR2 Alam | I47: NR3 Stby | J47: NR3 Alm | K47: NR4 Stby | L47: NR4 Alm | M47: NR5 Stby | N47: NR5Alm
A48: 4007ES Panel PCB Current Consumption | C48: 4007ES Panel
A49: =+'4007ES(Addr)'!I29 -> 4007-9102 | B49: =+'4007ES(Addr)'!C29 -> 4007ES Suppression Panel Platinium(Std Offering) | C49: =+'4007ES(Addr)'!K24*'4007ES(Addr)'!AF29 -> 0 | D49: =+'4007ES(Addr)'!AG29*'4007ES(Addr)'!K24 -> 0
A50: =+'4007ESConfigurator'!D12 -> Addr Loop Card | B50: =+'4007ESConfigurator'!E12 -> Idnet 100 points (Std Offering) | C50: =+'4007ES(Addr)'!K24*'4007ES(Addr)'!AF131 -> 0 | D50: =+'4007ES(Addr)'!AG131*'4007ES(Addr)'!K24 -> 0
A51: =+'4007ESConfigurator'!C13 -> 4007-9803 | B51: =+'4007ESConfigurator'!E13 -> Idnet 75 points (Option) | C51: =+'4007ES(Addr)'!K132*'4007ES(Addr)'!AF132 -> 0 | D51: =+'4007ES(Addr)'!K132*'4007ES(Addr)'!AG132 -> 0
A52: =+'4007ES(Addr)'!I134 -> 4007-9801 | B52: =+'4007ES(Addr)'!C134 -> Class B Conventional Zones | C52: =D46*'4007ES(Addr)'!AF134 -> 0 | D52: =D46*'4007ES(Addr)'!AF135 -> 0
A53: 4007-9802 | B53: 25V Zone Regulator Module | C53: =IF('4007ES(Addr)'!K137="Yes",1,0)*'4007ES(Addr)'!AF137 -> 0 | D53: =IF('4007ES(Addr)'!K137="Yes",1,0)*'4007ES(Addr)'!AG137 -> 0
A54: 4007-9812 | B54: Optional : RS 232 Card for Printer | C54: =IF('4007ES(Addr)'!K138="Yes",1,0)*'4007ES(Addr)'!AF138 -> 0 | D54: =IF('4007ES(Addr)'!K138="Yes",1,0)*'4007ES(Addr)'!AG138 -> 0
A55: =+'4007ES(Addr)'!I147 -> 4007-9805 | B55: =+'4007ES(Addr)'!C147 -> Panel Mounted 48 LED Annunciator | C55: =IF('4007ES(Addr)'!G147=1,1,0)*'4007ES(Addr)'!AF147 -> 0 | D55: =IF('4007ES(Addr)'!G148=1,1,0)*'4007ES(Addr)'!AG147 -> 0
A56: =+'4007ES(Addr)'!I148 -> LED Loading | B56: =+'4007ES(Addr)'!C148 -> Enter Number of LEDs on in Alarm | C56: =IF('4007ES(Addr)'!G148=1,1,0)*'4007ES(Addr)'!AF148 -> 0 | D56: =IF('4007ES(Addr)'!G148=1,1,0)*'4007ES(Addr)'!AG148*'4007ES(Addr)'!K148 -> 0
A57: Panel ES Network Cards
A58: =+'4007ES(Addr)'!I140 -> 4007-9817 | B58: =+'4007ES(Addr)'!C140 -> ESNet Network Main Card | C58: =IF('4007ES(Addr)'!G140=1,1,0)*'4007ES(Addr)'!AF140 -> 0 | D58: =IF('4007ES(Addr)'!G140=1,1,0)*'4007ES(Addr)'!AG140 -> 0
A59: =+'4007ES(Addr)'!I141 -> Not Selected | B59: =+'4007ES(Addr)'!C141 -> ESNet Slot 1 Media Card - Requires only 1 | C59: =IF('4007ES(Addr)'!G141=1,1,0)*'4007ES(Addr)'!AF141 -> 0 | D59: =IF('4007ES(Addr)'!G141=1,1,0)*'4007ES(Addr)'!AG141 -> 0
A60: =+'4007ES(Addr)'!I142 -> Not Selected | B60: =+'4007ES(Addr)'!C142 -> ESNet Slot 2 Media Card - Requires only 1 | C60: =IF('4007ES(Addr)'!G142=1,1,0)*'4007ES(Addr)'!AF142 -> 0 | D60: =IF('4007ES(Addr)'!G142=1,1,0)*'4007ES(Addr)'!AG142 -> 0
A61: Panel 4120 Network Cards
A62: =+'4007ESConfigurator'!C28 -> 4007-9810 | B62: =+'4007ESConfigurator'!E28 -> 4120 Network Main Card | C62: =IF('4007ES(Addr)'!G143=1,1,0)*'4007ESConfigurator'!L28 -> 0 | D62: =IF('4007ES(Addr)'!G143=1,1,0)*'4007ESConfigurator'!M28 -> 0
A63: =+'4007ESConfigurator'!C29 -> 4007-9813 | B63: =+'4007ESConfigurator'!E29 -> 4120 Network Media Card - Hard Wired | C63: =(IF('4007ES(Addr)'!K144="RS485",1,0)*IF('4007ES(Addr)'!G144=1,1,0)*'4007ESConfigurator'!L29)+IF('4007ES(Addr)'!K145="RS485",1,0)*IF('4007ES(Addr)'!G145=1,1,0)*'4007ESConfigurator'!L29 -> 0 | D63: =(IF('4007ES(Addr)'!K144="RS485",1,0)*IF('4007ES(Addr)'!G144=1,1,0)*'4007ESConfigurator'!M29)+IF('4007ES(Addr)'!K145="RS485",1,0)*IF('4007ES(Addr)'!G145=1,1,0)*'4007ESConfigurator'!M29 -> 0
A64: =+'4007ESConfigurator'!C30 -> 4007-6303 | B64: =+'4007ESConfigurator'!E30 -> 4120 Network Media Card - Multi mode Fiber Optic - Left | C64: =IF('4007ES(Addr)'!K144="MM Fiber",1,0)*(IF('4007ES(Addr)'!G144=1,1,0))*('4007ESConfigurator'!L30) -> 0 | D64: =IF('4007ES(Addr)'!K144="MM Fiber",1,0)*(IF('4007ES(Addr)'!G144=1,1,0))*('4007ESConfigurator'!M30) -> 0
A65: =+'4007ESConfigurator'!C31 -> 4007-6304 | B65: =+'4007ESConfigurator'!E31 -> 4120 Network Media Card - Multi mode Fiber Optic - Right | C65: =IF('4007ES(Addr)'!K145="MM Fiber",1,0)*(IF('4007ES(Addr)'!G145=1,1,0))*('4007ESConfigurator'!L31) -> 0 | D65: =IF('4007ES(Addr)'!K145="MM Fiber",1,0)*(IF('4007ES(Addr)'!G145=1,1,0))*('4007ESConfigurator'!M31) -> 0
A66: =+'4007ESConfigurator'!C32 -> 4007-6301 | B66: =+'4007ESConfigurator'!E32 -> 4120 Network Media Card - Single mode Fiber Optic - Left | C66: =IF('4007ES(Addr)'!K144="SM Fiber",1,0)*(IF('4007ES(Addr)'!G144=1,1,0))*('4007ESConfigurator'!L32) -> 0 | D66: =IF('4007ES(Addr)'!K144="SM Fiber",1,0)*(IF('4007ES(Addr)'!G144=1,1,0))*('4007ESConfigurator'!M32) -> 0
A67: =+'4007ESConfigurator'!C33 -> 4007-6302 | B67: =+'4007ESConfigurator'!E33 -> 4120 Network Media Card - Single mode Fibre Optic - Right | C67: =IF('4007ES(Addr)'!K145="SM Fiber",1,0)*(IF('4007ES(Addr)'!G145=1,1,0))*('4007ESConfigurator'!L33) -> 0 | D67: =IF('4007ES(Addr)'!K145="SM Fiber",1,0)*(IF('4007ES(Addr)'!G145=1,1,0))*('4007ESConfigurator'!M33) -> 0
A69: NAC Repeater Panel PCB Current Consumption | E69: NAC Repeater 1 | G69: NAC Repeater 2 | I69: NAC Repeater 3 | K69: NAC Repeater 4 | M69: NAC Repeater 5
A70: 4009-9201 | B70: 4009 IDNet NAC Extender with 4, Class B NACs and 8 A PS - 120V | E70: =(IF('4007ES(Addr)'!$G$30>0,'4007ES(Addr)'!$AF$30,0))*'4007ES(Addr)'!$L$24 -> 0 | F70: =(IF('4007ES(Addr)'!$G$30>0,'4007ES(Addr)'!$AG$30,0))*'4007ES(Addr)'!$L$24 -> 0 | G70: =(IF('4007ES(Addr)'!$G$30>0,'4007ES(Addr)'!$AF$30,0))*'4007ES(Addr)'!$M$24 -> 0 | H70: =(IF('4007ES(Addr)'!$G$30>0,'4007ES(Addr)'!$AG$30,0))*'4007ES(Addr)'!$M$24 -> 0 | I70: =(IF('4007ES(Addr)'!$G$30>0,'4007ES(Addr)'!$AF$30,0))*'4007ES(Addr)'!$N$24 -> 0 | J70: =(IF('4007ES(Addr)'!G30>0,'4007ES(Addr)'!$AG$30,0))*'4007ES(Addr)'!$N$24 -> 0 | K70: =(IF('4007ES(Addr)'!$G$30>0,'4007ES(Addr)'!$AF$30,0))*'4007ES(Addr)'!$O$24 -> 0 | L70: =(IF('4007ES(Addr)'!G30>0,'4007ES(Addr)'!$AG$30,0))*'4007ES(Addr)'!$O$24 -> 0 | M70: =(IF('4007ES(Addr)'!$G$30>0,'4007ES(Addr)'!$AF$30,0))*'4007ES(Addr)'!$P$24 -> 0 | N70: =(IF('4007ES(Addr)'!G30>0,'4007ES(Addr)'!$AG$30,0))*'4007ES(Addr)'!$P$24 -> 0
A71: 4009-9301 | B71: 4009 IDNet NAC Extender with 4, Class B NACs and 8 A PS - 240V | E71: =(IF('4007ES(Addr)'!$G$31>0,'4007ES(Addr)'!$AF$31,0))*'4007ES(Addr)'!$L$24 -> 0 | F71: =(IF('4007ES(Addr)'!$G$31>0,'4007ES(Addr)'!$AG$31,0))*'4007ES(Addr)'!$L$24 -> 0 | G71: =(IF('4007ES(Addr)'!$G$31>0,'4007ES(Addr)'!$AF$31,0))*'4007ES(Addr)'!$M$24 -> 0 | H71: =(IF('4007ES(Addr)'!$G$31>0,'4007ES(Addr)'!$AG$31,0))*'4007ES(Addr)'!$M$24 -> 0 | I71: =(IF('4007ES(Addr)'!$G$31>0,'4007ES(Addr)'!$AF$31,0))*'4007ES(Addr)'!$N$24 -> 0 | J71: =(IF('4007ES(Addr)'!G31>0,'4007ES(Addr)'!$AG$31,0))*'4007ES(Addr)'!$N$24 -> 0 | K71: =(IF('4007ES(Addr)'!$G$31>0,'4007ES(Addr)'!$AF$31,0))*'4007ES(Addr)'!$O$24 -> 0 | L71: =(IF('4007ES(Addr)'!G31>0,'4007ES(Addr)'!$AG$31,0))*'4007ES(Addr)'!$O$24 -> 0 | M71: =(IF('4007ES(Addr)'!$G$31>0,'4007ES(Addr)'!$AF$31,0))*'4007ES(Addr)'!$P$24 -> 0 | N71: =(IF('4007ES(Addr)'!G31>0,'4007ES(Addr)'!$AG$31,0))*'4007ES(Addr)'!$P$24 -> 0
A72: 4009-9807 | B72: Additional four point NAC module(NAC5-8-Rated 1.5A & NAC 1-4 - Rated 2 Amp) | E72: =+'4007ES(Addr)'!$AF$32*'4007ES(Addr)'!$L$32 -> 0 | F72: =+'4007ES(Addr)'!$AG$32*'4007ES(Addr)'!$L$32 -> 0 | G72: =+'4007ES(Addr)'!$AF$32*'4007ES(Addr)'!$M$32 -> 0 | H72: =+'4007ES(Addr)'!$AG$32*'4007ES(Addr)'!$M$32 -> 0 | I72: =+'4007ES(Addr)'!$AF$32*'4007ES(Addr)'!$N$32 -> 0 | J72: =+'4007ES(Addr)'!$AG$32*'4007ES(Addr)'!$N$32 -> 0 | K72: =+'4007ES(Addr)'!$AF$32*'4007ES(Addr)'!$O$32 -> 0 | L72: =+'4007ES(Addr)'!$AG$32*'4007ES(Addr)'!$O$32 -> 0 | M72: =+'4007ES(Addr)'!$AF$32*'4007ES(Addr)'!$P$32 -> 0 | N72: =+'4007ES(Addr)'!$AG$32*'4007ES(Addr)'!$P$32 -> 0
A73: 4009-9808 | B73: Dual Class A adapter(No Additional Current) | E73: =+'4007ES(Addr)'!$AF$33*'4007ES(Addr)'!$L$33 -> 0 | F73: =+'4007ES(Addr)'!$AG$33 -> 0 | G73: =+'4007ES(Addr)'!$AF$33*'4007ES(Addr)'!$L$33 -> 0 | H73: =+'4007ES(Addr)'!$AG$33 -> 0 | I73: =+'4007ES(Addr)'!$AF$33*'4007ES(Addr)'!$L$33 -> 0 | J73: =+'4007ES(Addr)'!$AG$33 -> 0 | K73: =+'4007ES(Addr)'!$AF$33*'4007ES(Addr)'!$L$33 -> 0 | L73: =+'4007ES(Addr)'!$AG$33 -> 0 | M73: =+'4007ES(Addr)'!$AF$33*'4007ES(Addr)'!$P$33 -> 0 | N73: =+'4007ES(Addr)'!$AG$33 -> 0
A74: 4009-9809 | B74: IDNet Repeater, output is Class A or Class B(If Required due to distance) | E74: =+'4007ES(Addr)'!$AF$34 -> 0 | F74: =+'4007ES(Addr)'!$AG$34*'4007ES(Addr)'!$L$34 -> 0 | G74: =+'4007ES(Addr)'!$AF$34 -> 0 | H74: =+'4007ES(Addr)'!$AG$34*'4007ES(Addr)'!$M$34 -> 0 | I74: =+'4007ES(Addr)'!$AF$34 -> 0 | J74: =+'4007ES(Addr)'!$AG$34*'4007ES(Addr)'!$N$34 -> 0 | K74: =+'4007ES(Addr)'!$AF$34 -> 0 | L74: =+'4007ES(Addr)'!$AG$34*'4007ES(Addr)'!$O$34 -> 0 | M74: =+'4007ES(Addr)'!$AF$34 -> 0 | N74: =+'4007ES(Addr)'!$AG$34*'4007ES(Addr)'!$P$34 -> 0
B78: Subtotal Current by Type | C78: =SUM(C49:C77) -> 0 | D78: 0 | E78: 0 | F78: 0 | G78: 0 | H78: 0 | I78: 0 | J78: 0 | K78: 0 | L78: 0 | M78: 0 | N78: 0

Sheet Solenoid Nos Reference
A1: Solenoid Reference number to use for input to 4004R or 4007ES Design Tools
A4: Ref No | B4: Brand | C4: Releasing Actuators | D4: Current | E4: Remarks
A5: =+'4004RConfigurator'!B83 -> R2 | B5: =+'4004RConfigurator'!D83 -> RAC2 | C5: =+'4004RConfigurator'!E83 -> The RAC2 is being used for Discharge Display Signal. | D5: =+'4004RConfigurator'!M83 -> 0 | E5: Only for 4004R
A6: =+'4004RConfigurator'!B84 -> 0 | B6: =+'4004RConfigurator'!D84 -> No Selection | C6: =+'4004RConfigurator'!E84 -> No Actuator Selected | D6: =+'4004RConfigurator'!M84 -> 0 | E6: Both 4004R and 4007ES
A7: =+'4004RConfigurator'!B85 -> 1 | B7: =+'4004RConfigurator'!D85 -> Ansul | C7: =+'4004RConfigurator'!E85 -> AUTOMAN II-C Assembly (solenoid 17728; coil 25924) | D7: =+'4004RConfigurator'!M85 -> 750 | E7: =+E6 -> Both 4004R and 4007ES
A8: =+'4004RConfigurator'!B86 -> 2 | B8: =+'4004RConfigurator'!D86 -> Ansul | C8: =+'4004RConfigurator'!E86 -> AUTOMAN II-C Explosion-Proof Releasing Device (solenoid 31492; coil 31438) | D8: =+'4004RConfigurator'!M86 -> 750 | E8: =+E7 -> Both 4004R and 4007ES
A9: =+'4004RConfigurator'!B87 -> 3 | B9: =+'4004RConfigurator'!D87 -> Ansul | C9: =+'4004RConfigurator'!E87 -> AUTOMAN II-C Assembly (solenoid 68739; coil 25924) | D9: =+'4004RConfigurator'!M87 -> 750 | E9: Both 4004R and 4007ES
A10: =+'4004RConfigurator'!B88 -> 4 | B10: =+'4004RConfigurator'!D88 -> Ansul | C10: =+'4004RConfigurator'!E88 -> Solenoid Electric Actuator (solenoid 73111; coil 73097) | D10: =+'4004RConfigurator'!M88 -> 1000 | E10: Both 4004R and 4007ES
A11: =+'4004RConfigurator'!B89 -> 5 | B11: =+'4004RConfigurator'!D89 -> Ansul | C11: =+'4004RConfigurator'!E89 -> *CV90 HF Electric Actuator 73327 | D11: =+'4004RConfigurator'!M89 -> 570 | E11: Both 4004R and 4007ES
A12: =+'4004RConfigurator'!B90 -> 6 | B12: =+'4004RConfigurator'!D90 -> Ansul | C12: =+'4004RConfigurator'!E90 -> LP CO2 w/ASCO solenoid 422934 | D12: =+'4004RConfigurator'!M90 -> 442 | E12: Both 4004R and 4007ES
A13: =+'4004RConfigurator'!B91 -> 7 | B13: =+'4004RConfigurator'!D91 -> Ansul | C13: =+'4004RConfigurator'!E91 -> LP CO2 double action 24 VDC solenoid 430948 | D13: =+'4004RConfigurator'!M91 -> 438 | E13: Both 4004R and 4007ES
A14: =+'4004RConfigurator'!B92 -> 8 | B14: =+'4004RConfigurator'!D92 -> Ansul | C14: =+'4004RConfigurator'!E92 -> LP CO2 3-way selector valve solenoid 433419 | D14: =+'4004RConfigurator'!M92 -> 438 | E14: Both 4004R and 4007ES
A15: =+'4004RConfigurator'!B93 -> 9 | B15: =+'4004RConfigurator'!D93 -> Ansul | C15: =+'4004RConfigurator'!E93 -> Electric Actuator 24 VDC solenoid 570537 | D15: =+'4004RConfigurator'!M93 -> 250 | E15: Both 4004R and 4007ES
A16: =+'4004RConfigurator'!B94 -> 10 | B16: =+'4004RConfigurator'!D94 -> ASCO | C16: =+'4004RConfigurator'!E94 -> 8210A107 (097617-005D coil) | D16: =+'4004RConfigurator'!M94 -> 750 | E16: Both 4004R and 4007ES
A17: =+'4004RConfigurator'!B95 -> 11 | B17: =+'4004RConfigurator'!D95 -> ASCO | C17: =+'4004RConfigurator'!E95 -> 8210G207 (238310 coil) | D17: =+'4004RConfigurator'!M95 -> 438 | E17: Both 4004R and 4007ES
A18: =+'4004RConfigurator'!B96 -> 12 | B18: =+'4004RConfigurator'!D96 -> ASCO | C18: =+'4004RConfigurator'!E96 -> 8211A107 (097617-005D coil) | D18: =+'4004RConfigurator'!M96 -> 750 | E18: Both 4004R and 4007ES
A19: =+'4004RConfigurator'!B97 -> 13 | B19: =+'4004RConfigurator'!D97 -> ASCO | C19: =+'4004RConfigurator'!E97 -> 8262H182 (238910 coil) | D19: =+'4004RConfigurator'!M97 -> 483 | E19: Both 4004R and 4007ES
A20: =+'4004RConfigurator'!B98 -> 14 | B20: =+'4004RConfigurator'!D98 -> ASCO | C20: =+'4004RConfigurator'!E98 -> EF8210G001MBMO | D20: =+'4004RConfigurator'!M98 -> 450 | E20: Both 4004R and 4007ES
A21: =+'4004RConfigurator'!B99 -> 15 | B21: =+'4004RConfigurator'!D99 -> ASCO | C21: =+'4004RConfigurator'!E99 -> HV2628571 (23810 coil) | D21: =+'4004RConfigurator'!M99 -> 442 | E21: Both 4004R and 4007ES
A22: =+'4004RConfigurator'!B100 -> 16 | B22: =+'4004RConfigurator'!D100 -> ASCO | C22: =+'4004RConfigurator'!E100 -> HV2648581 (23810 coil) | D22: =+'4004RConfigurator'!M100 -> 442 | E22: Both 4004R and 4007ES
A23: =+'4004RConfigurator'!B101 -> 17 | B23: =+'4004RConfigurator'!D101 -> ASCO | C23: =+'4004RConfigurator'!E101 -> R8210A107 (097617-005D coil) | D23: =+'4004RConfigurator'!M101 -> 700 | E23: Both 4004R and 4007ES
A24: =+'4004RConfigurator'!B102 -> 18 | B24: =+'4004RConfigurator'!D102 -> ASCO | C24: =+'4004RConfigurator'!E102 -> T8210A107 (097617-005D coil) | D24: =+'4004RConfigurator'!M102 -> 700 | E24: Both 4004R and 4007ES
A25: =+'4004RConfigurator'!B103 -> 19 | B25: =+'4004RConfigurator'!D103 -> Hygood | C25: =+'4004RConfigurator'!E103 -> 304.205.010 – Electrical Actuator Suppression Diode | D25: =+'4004RConfigurator'!M103 -> 250 | E25: Both 4004R and 4007ES
A26: =+'4004RConfigurator'!B104 -> 20 | B26: =+'4004RConfigurator'!D104 -> Hygood | C26: =+'4004RConfigurator'!E104 -> 304.209.001 – Electrical Actuator Bridge Rectifier | D26: =+'4004RConfigurator'!M104 -> 250 | E26: Both 4004R and 4007ES
A27: =+'4004RConfigurator'!B105 -> 21 | B27: =+'4004RConfigurator'!D105 -> Pyrochem | C27: =+'4004RConfigurator'!E105 -> ECH Electrical Control Head (551201) | D27: =+'4004RConfigurator'!M105 -> 1700 | E27: Both 4004R and 4007ES
A28: =+'4004RConfigurator'!B106 -> 22 | B28: =+'4004RConfigurator'!D106 -> Pyrochem | C28: =+'4004RConfigurator'!E106 -> Explosion-Proof Electric Actuator (570147) | D28: =+'4004RConfigurator'!M106 -> 396 | E28: Both 4004R and 4007ES
A29: =+'4004RConfigurator'!B107 -> 23 | B29: =+'4004RConfigurator'!D107 -> Pyrochem | C29: =+'4004RConfigurator'!E107 -> Removable Electric Actuator (570209) | D29: =+'4004RConfigurator'!M107 -> 200 | E29: Both 4004R and 4007ES
A30: =+'4004RConfigurator'!B108 -> 24 | B30: =+'4004RConfigurator'!D108 -> Skinner | C30: =+'4004RConfigurator'!E108 -> 71395SN2ENJ1N0H111C2 (Skinner coil H111C2) | D30: =+'4004RConfigurator'!M108 -> 420 | E30: Both 4004R and 4007ES
A31: =+'4004RConfigurator'!B109 -> 25 | B31: =+'4004RConfigurator'!D109 -> Skinner | C31: =+'4004RConfigurator'!E109 -> 73212BN4TN00N0C111C2 (Skinner coil C111C2) | D31: =+'4004RConfigurator'!M109 -> 420 | E31: Both 4004R and 4007ES
A32: =+'4004RConfigurator'!B110 -> 26 | B32: =+'4004RConfigurator'!D110 -> Skinner | C32: =+'4004RConfigurator'!E110 -> 73212BN4TNLVN0C322C2 (Skinner coil C322C2) | D32: =+'4004RConfigurator'!M110 -> 830 | E32: Both 4004R and 4007ES
A33: =+'4004RConfigurator'!B111 -> 27 | B33: =+'4004RConfigurator'!D111 -> Skinner | C33: =+'4004RConfigurator'!E111 -> 73218BN4UNLVN0H111C2 (Skinner coil H111C2) | D33: =+'4004RConfigurator'!M111 -> 410 | E33: Both 4004R and 4007ES
A34: =+'4004RConfigurator'!B112 -> 28 | B34: =+'4004RConfigurator'!D112 -> Skinner | C34: =+'4004RConfigurator'!E112 -> 73218BN4UNLVN0C111C2 (Skinner coil C111C2) | D34: =+'4004RConfigurator'!M112 -> 410 | E34: Both 4004R and 4007ES
A35: =+'4004RConfigurator'!B113 -> 29 | B35: =+'4004RConfigurator'!D113 -> Minimax | C35: =+'4004RConfigurator'!E113 -> MX1230 without diode | D35: =+'4004RConfigurator'!M113 -> 420 | E35: Both 4004R and 4007ES
A36: =+'4004RConfigurator'!B114 -> 30 | B36: =+'4004RConfigurator'!D114 -> Burkert | C36: =+'4004RConfigurator'!E114 -> 5282 2/2-Way Solenoid Valve | D36: =+'4004RConfigurator'!M114 -> 333 | E36: Both 4004R and 4007ES
A37: =+'4004RConfigurator'!B115 -> 31 | B37: =+'4004RConfigurator'!D115 -> Versa | C37: =+'4004RConfigurator'!E115 -> CGS-4292-NB3-S20000 | D37: =+'4004RConfigurator'!M115 -> 438 | E37: Both 4004R and 4007ES
A38: =+'4004RConfigurator'!B116 -> 32 | B38: =+'4004RConfigurator'!D116 -> Tyco | C38: =+'4004RConfigurator'!E116 -> Model TSP 304205030 | D38: =+'4004RConfigurator'!M116 -> 500 | E38: Both 4004R and 4007ES
A39: =+'4004RConfigurator'!B117 -> 33 | B39: =+'4004RConfigurator'!D117 -> Tyco | C39: =+'4004RConfigurator'!E117 -> Model TSP 304700001 | D39: =+'4004RConfigurator'!M117 -> 830 | E39: Both 4004R and 4007ES
A40: =+'4004RConfigurator'!B118 -> 34 | B40: =+'4004RConfigurator'!D118 -> Masteco | C40: =+'4004RConfigurator'!E118 -> Model MSC-01 | D40: =+'4004RConfigurator'!M118 -> 1700 | E40: Both 4004R and 4007ES
A41: =+'4004RConfigurator'!B119 -> 35 | B41: =+'4004RConfigurator'!D119 -> Alan Customised 1 | C41: =+'4004RConfigurator'!E119 -> Alan Test Release Actuators'1250mA | D41: =+'4004RConfigurator'!M119 -> 1250 | E41: Both 4004R and 4007ES
A42: =+'4004RConfigurator'!B120 -> 36 | B42: =+'4004RConfigurator'!D120 -> Test2 | C42: =+'4004RConfigurator'!E120 -> Release Actuators'1500mA | D42: =+'4004RConfigurator'!M120 -> 1500 | E42: Both 4004R and 4007ES
A43: =+'4004RConfigurator'!B121 -> 37 | B43: =+'4004RConfigurator'!D121 -> Test2 | C43: =+'4004RConfigurator'!E121 -> Release Actuators'1750mA | D43: =+'4004RConfigurator'!M121 -> 1750 | E43: Both 4004R and 4007ES
A44: =+'4004RConfigurator'!B122 -> 38 | B44: =+'4004RConfigurator'!D122 -> Test2 | C44: =+'4004RConfigurator'!E122 -> Release Actuators2000mA | D44: =+'4004RConfigurator'!M122 -> 2000 | E44: Both 4004R and 4007ES
A45: =+'4004RConfigurator'!B123 -> 39 | B45: =+'4004RConfigurator'!D123 -> Input5A | C45: =+'4004RConfigurator'!E123 -> Release Actuators Input5B | D45: =+'4004RConfigurator'!M123 -> 0 | E45: Both 4004R and 4007ES
A46: =+'4004RConfigurator'!B124 -> 40 | B46: =+'4004RConfigurator'!D124 -> Input6A | C46: =+'4004RConfigurator'!E124 -> Release ActuatorsInput6B | D46: =+'4004RConfigurator'!M124 -> 0 | E46: Both 4004R and 4007ES
A47: =+'4004RConfigurator'!B125 -> 41 | B47: =+'4004RConfigurator'!D125 -> Input7A | C47: =+'4004RConfigurator'!E125 -> Release ActuatorsInput7B | D47: =+'4004RConfigurator'!M125 -> 0 | E47: Both 4004R and 4007ES
A48: =+'4004RConfigurator'!B126 -> 42 | B48: =+'4004RConfigurator'!D126 -> Input8A | C48: =+'4004RConfigurator'!E126 -> Release ActuatorsInput8B | D48: =+'4004RConfigurator'!M126 -> 0 | E48: Both 4004R and 4007ES
A49: =+'4004RConfigurator'!B127 -> 43 | B49: =+'4004RConfigurator'!D127 -> Input9A | C49: =+'4004RConfigurator'!E127 -> Release ActuatorsInput9B | D49: =+'4004RConfigurator'!M127 -> 0 | E49: Both 4004R and 4007ES
A50: =+'4004RConfigurator'!B128 -> 44 | B50: =+'4004RConfigurator'!D128 -> Input10A | C50: =+'4004RConfigurator'!E128 -> Release ActuatorsInput10B | D50: =+'4004RConfigurator'!M128 -> 0 | E50: Both 4004R and 4007ES
A51: =+'4004RConfigurator'!B129 -> 45 | B51: =+'4004RConfigurator'!D129 -> Input11A | C51: =+'4004RConfigurator'!E129 -> Release ActuatorsInput11B | D51: =+'4004RConfigurator'!M129 -> 0 | E51: Both 4004R and 4007ES
A52: =+'4004RConfigurator'!B130 -> 46 | B52: =+'4004RConfigurator'!D130 -> Input12A | C52: =+'4004RConfigurator'!E130 -> Release ActuatorsInput12B | D52: =+'4004RConfigurator'!M130 -> 0 | E52: Both 4004R and 4007ES

Sheet 4007ES(Addr)
A1: `
D2: ** Note: This tools have all the standard default devices requirement and you only have to change the following device and you still can overide all those in Blue highlighted cells. 1. IDC device could be other than smoke detectors. 2. The solenoid and you can add or modified as per in the Add in device tab.
A4: =+'4007ES(Addr)'!I$151 -> 4606-9205(BA) | B4: =+'4007ES(Addr)'!C$151 -> Remote Color Touchscreen LCD Annunciator-Beige - Max 6 | C4: =+'4007ES(Addr)'!$K$151*'4007ES(Addr)'!$AF$151 -> 0 | D4: =+'4007ES(Addr)'!$K$151*'4007ES(Addr)'!$AG$151 -> 0 | E4: =+'4007ES(Addr)'!L$151*'4007ES(Addr)'!$AF$151 -> 0 | F4: =+'4007ES(Addr)'!L$151*'4007ES(Addr)'!$AG$151 -> 0 | G4: =+'4007ES(Addr)'!M$151*'4007ES(Addr)'!$AF$151 -> 0 | H4: =+'4007ES(Addr)'!M$151*'4007ES(Addr)'!$AG$151 -> 0 | I4: =+'4007ES(Addr)'!N$151*'4007ES(Addr)'!$AF$151 -> 0 | K4: =+'4007ES(Addr)'!N$151*'4007ES(Addr)'!$AG$151 -> 0 | L4: =+'4007ES(Addr)'!$O$151*'4007ES(Addr)'!$AF$151 -> 0 | M4: =+'4007ES(Addr)'!$O$151*'4007ES(Addr)'!$AG$151 -> 0 | N4: =+'4007ES(Addr)'!$P$151*'4007ES(Addr)'!$AF$151 -> 0 | O4: =+'4007ES(Addr)'!$P$151*'4007ES(Addr)'!$AG$151 -> 0 | P4: =+'4007ES(Addr)'!$Q$151*'4007ES(Addr)'!$AF$151 -> 0 | Q4: =+'4007ES(Addr)'!$Q$151*'4007ES(Addr)'!$AG$151 -> 0 | R4: =+'4007ES(Addr)'!$R$151*'4007ES(Addr)'!$AF$151 -> 0 | S4: =+'4007ES(Addr)'!$R$151*'4007ES(Addr)'!$AG$151 -> 0 | T4: =+'4007ES(Addr)'!$P$151*'4007ES(Addr)'!$AF$151 -> 0 | U4: =+'4007ES(Addr)'!$P$151*'4007ES(Addr)'!$AG$151 -> 0 | V4: =+'4007ES(Addr)'!$Q$151*'4007ES(Addr)'!$AF$151 -> 0 | W4: =+'4007ES(Addr)'!$Q$151*'4007ES(Addr)'!$AG$151 -> 0 | X4: =+'4007ES(Addr)'!$R$151*'4007ES(Addr)'!$AF$151 -> 0 | Y4: =+'4007ES(Addr)'!$R$151*'4007ES(Addr)'!$AG$151 -> 0 | Z4: =+'4007ES(Addr)'!$S$151*'4007ES(Addr)'!$AF$151 -> 0 | AA4: =+'4007ES(Addr)'!$S$151*'4007ES(Addr)'!$AG$151 -> 0 | AB4: =+'4007ES(Addr)'!$T$151*'4007ES(Addr)'!$AF$151 -> 0 | AC4: =+'4007ES(Addr)'!$T$151*'4007ES(Addr)'!$AG$151 -> 0 | AD4: =+'4007ES(Addr)'!$U$151*'4007ES(Addr)'!$AF$151 -> 0 | AE4: =+'4007ES(Addr)'!$U$151*'4007ES(Addr)'!$AG$151 -> 0 | AF4: =+'4007ES(Addr)'!$V$151*'4007ES(Addr)'!$AF$151 -> 0 | AG4: =+'4007ES(Addr)'!$V$151*'4007ES(Addr)'!$AG$151 -> 0 | AH4: =+'4007ES(Addr)'!$W$151*'4007ES(Addr)'!$AF$151 -> 0 | AI4: =+'4007ES(Addr)'!$W$151*'4007ES(Addr)'!$AG$151 -> 0 | AJ4: =+'4007ES(Addr)'!$X$151*'4007ES(Addr)'!$AF$151 -> 0 | AK4: =+'4007ES(Addr)'!$X$151*'4007ES(Addr)'!$AG$151 -> 0 | AL4: =+'4007ES(Addr)'!$Y$151*'4007ES(Addr)'!$AF$151 -> 0 | AM4: =+'4007ES(Addr)'!$Y$151*'4007ES(Addr)'!$AG$151 -> 0 | AN4: =+'4007ES(Addr)'!$Z$151*'4007ES(Addr)'!$AF$151 -> 0 | AO4: =+'4007ES(Addr)'!$Z$151*'4007ES(Addr)'!$AG$151 -> 0 | AP4: =+'4007ES(Addr)'!$AA$151*'4007ES(Addr)'!$AF$151 -> 0 | AQ4: =+'4007ES(Addr)'!$AA$151*'4007ES(Addr)'!$AG$151 -> 0
B10: 4007ES Addressable Suppression Panel Default of 100 Addressable Points, 8 Point Zone/Relay Card and 4 Conventional NACs(6 Amp) | BA10: Do not erase for hide and hide macros
BB12: From | BC12: To
F13: 1A. Enter Hazard Area Name | BA13: H20 | BB13: AD | BC13: AD
F14: Unhide More Hazard Zone Selection by Clicking on Buttons | BA14: H16-19 | BB14: Z | BC14: AC
K15: Hazard 1 | L15: Hazard 2 | M15: Hazard 3 | N15: Hazard 4 | O15: Hazard 5 | P15: Hazard 6 | Q15: Hazard 7 | R15: Hazard 8 | S15: Hazard 9 | T15: Hazard 10 | U15: Hazard 11 | V15: Hazard 12 | W15: Hazard 13 | X15: Hazard 14 | Y15: Hazard 15 | Z15: Hazard 16 | AA15: Hazard 17 | AB15: Hazard 18 | AC15: Hazard 19 | AD15: Hazard 20 | AF15: Standby/Aux | AG15: Alarm/Aux | AH15: Remarks | AI15: =IF(AH15="Aux PS",1,0) -> 0 | BA15: H12-15 | BB15: V | BC15: Y | BN15: Hazard 1 | BO15: Hazard 2 | BP15: Hazard 3 | BQ15: Hazard 4 | BR15: Hazard 5 | BS15: Hazard 6 | BT15: Hazard 7 | BU15: Hazard 8 | BV15: Hazard 9 | BW15: Hazard 10 | BX15: Hazard 11 | BY15: Hazard 12 | BZ15: Hazard 13 | CA15: Hazard 14 | CB15: Hazard 15 | CC15: Hazard 16 | CD15: Hazard 17 | CE15: Hazard 18 | CF15: Hazard 19 | CG15: Hazard 20
C16: Step 1A: Assign 1 for Zone to be valid | F16: Selecting Preaction Result in 1. Class A NAC 2. 90Ah Battery | I16: Hazard Zone Auto Assign | K16: =IF(K$19="No Selection",0,1) -> 0 | L16: 0 | M16: 0 | N16: 0 | O16: 0 | P16: 0 | Q16: 0 | R16: 0 | S16: 0 | T16: 0 | U16: 0 | V16: 0 | W16: 0 | X16: 0 | Y16: 0 | Z16: 0 | AA16: 0 | AB16: 0 | AC16: 0 | AD16: =IF(AD$19="No Selection",0,1) -> 0 | AE16: =+'4007ES(Addr)'!$U$151*'4007ES(Addr)'!$AG$151 -> 0 | AF16: =+'4007ES(Addr)'!$V$151*'4007ES(Addr)'!$AF$151 -> 0 | AG16: =+'4007ES(Addr)'!$V$151*'4007ES(Addr)'!$AG$151 -> 0 | AH16: =+'4007ES(Addr)'!$W$151*'4007ES(Addr)'!$AF$151 -> 0 | AI16: =+'4007ES(Addr)'!$W$151*'4007ES(Addr)'!$AG$151 -> 0 | AJ16: =+'4007ES(Addr)'!$X$151*'4007ES(Addr)'!$AF$151 -> 0 | AK16: =+'4007ES(Addr)'!$X$151*'4007ES(Addr)'!$AG$151 -> 0 | AL16: =+'4007ES(Addr)'!$Y$151*'4007ES(Addr)'!$AF$151 -> 0 | AM16: =+'4007ES(Addr)'!$Y$151*'4007ES(Addr)'!$AG$151 -> 0 | AN16: =+'4007ES(Addr)'!$Z$151*'4007ES(Addr)'!$AF$151 -> 0 | AO16: =+'4007ES(Addr)'!$Z$151*'4007ES(Addr)'!$AG$151 -> 0 | AP16: =+'4007ES(Addr)'!$AA$151*'4007ES(Addr)'!$AF$151 -> 0 | AQ16: =+'4007ES(Addr)'!$AA$151*'4007ES(Addr)'!$AG$151 -> 0 | BA16: H8-11 | BB16: R | BC16: U | BN16: =IF(BN$19="No Selection",0,1) -> 0 | BO16: =IF(BO$19="No Selection",0,1) -> 0 | BP16: =IF(BP$19="No Selection",0,1) -> 0 | BQ16: =IF(BQ$19="No Selection",0,1) -> 0 | BR16: 0 | BS16: 0 | BT16: 0 | BU16: 0 | BV16: 0 | BW16: 0 | BX16: 0 | BY16: 0 | BZ16: 0 | CA16: 0 | CB16: 0 | CC16: 0 | CD16: 0 | CE16: 0 | CF16: 0 | CG16: 0
C17: Step 1B: Is this a Gas or Preaction/Deluige Application | I17: 1B. GAS or Water Suppression | K17: Gas | L17: Gas | M17: Gas | N17: Gas | O17: Gas | P17: Gas | Q17: Gas | R17: Gas | S17: Gas | T17: Gas | U17: Gas | V17: Gas | W17: Gas | X17: Gas | Y17: Gas | Z17: Gas | AA17: Gas | AB17: Gas | AC17: Gas | AD17: Gas | AE17: =+'4007ES(Addr)'!$U$151*'4007ES(Addr)'!$AG$151 -> 0 | AF17: =+'4007ES(Addr)'!$V$151*'4007ES(Addr)'!$AF$151 -> 0 | AG17: =+'4007ES(Addr)'!$V$151*'4007ES(Addr)'!$AG$151 -> 0 | AH17: =+'4007ES(Addr)'!$W$151*'4007ES(Addr)'!$AF$151 -> 0 | AI17: =+'4007ES(Addr)'!$W$151*'4007ES(Addr)'!$AG$151 -> 0 | AJ17: =+'4007ES(Addr)'!$X$151*'4007ES(Addr)'!$AF$151 -> 0 | AK17: =+'4007ES(Addr)'!$X$151*'4007ES(Addr)'!$AG$151 -> 0 | AL17: =+'4007ES(Addr)'!$Y$151*'4007ES(Addr)'!$AF$151 -> 0 | AM17: =+'4007ES(Addr)'!$Y$151*'4007ES(Addr)'!$AG$151 -> 0 | AN17: =+'4007ES(Addr)'!$Z$151*'4007ES(Addr)'!$AF$151 -> 0 | AO17: =+'4007ES(Addr)'!$Z$151*'4007ES(Addr)'!$AG$151 -> 0 | AP17: =+'4007ES(Addr)'!$AA$151*'4007ES(Addr)'!$AF$151 -> 0 | AQ17: =+'4007ES(Addr)'!$AA$151*'4007ES(Addr)'!$AG$151 -> 0 | BA17: H4-7 | BB17: N | BC17: Q | BM17: 1 | BN17: Gas | BO17: Gas | BP17: Gas | BQ17: Gas | BR17: Gas | BS17: Gas | BT17: Gas | BU17: Gas | BV17: Gas | BW17: Gas | BX17: Gas | BY17: Gas | BZ17: Gas | CA17: Gas | CB17: Gas | CC17: Gas | CD17: Gas | CE17: Gas | CF17: Gas | CG17: Gas
C18: Total Hazard Zones Selected | I18: =+K18+N18+V18+Z18+AD18 -> 0 | K18: =SUM(BN18:BP18) -> 0 | N18: =SUM(BQ18:BT18) -> 0 | R18: =SUM(BU18:BX18) -> 0 | V18: =SUM(CB18:CE18) -> 0 | Z18: =+'4007ES(Addr)'!$S$151*'4007ES(Addr)'!$AF$151 -> 0 | AD18: =+CG18 -> 0 | AE18: =+'4007ES(Addr)'!$U$151*'4007ES(Addr)'!$AG$151 -> 0 | AF18: =+'4007ES(Addr)'!$V$151*'4007ES(Addr)'!$AF$151 -> 0 | AG18: =+'4007ES(Addr)'!$V$151*'4007ES(Addr)'!$AG$151 -> 0 | AH18: =+'4007ES(Addr)'!$W$151*'4007ES(Addr)'!$AF$151 -> 0 | AI18: =+'4007ES(Addr)'!$W$151*'4007ES(Addr)'!$AG$151 -> 0 | AJ18: =+'4007ES(Addr)'!$X$151*'4007ES(Addr)'!$AF$151 -> 0 | AK18: =+'4007ES(Addr)'!$X$151*'4007ES(Addr)'!$AG$151 -> 0 | AL18: =+'4007ES(Addr)'!$Y$151*'4007ES(Addr)'!$AF$151 -> 0 | AM18: =+'4007ES(Addr)'!$Y$151*'4007ES(Addr)'!$AG$151 -> 0 | AN18: =+'4007ES(Addr)'!$Z$151*'4007ES(Addr)'!$AF$151 -> 0 | AO18: =+'4007ES(Addr)'!$Z$151*'4007ES(Addr)'!$AG$151 -> 0 | AP18: =+'4007ES(Addr)'!$AA$151*'4007ES(Addr)'!$AF$151 -> 0 | AQ18: =+'4007ES(Addr)'!$AA$151*'4007ES(Addr)'!$AG$151 -> 0 | BA18: H4-20 | BB18: N | BC18: AD | BN18: =SUM(DQ18:DS18) -> 0 | BQ18: =SUM(DT18:DW18) -> 0 | BU18: =SUM(DX18:EA18) -> 0 | BY18: =SUM(EE18:EH18) -> 0 | CC18: =+'4007ES(Addr)'!$S$151*'4007ES(Addr)'!$AF$151 -> 0 | CG18: =+EJ18 -> 0
C19: Step 1C: | I19: 1C. Allocate Panel to Hazard Zone | K19: No Selection | L19: No Selection | M19: No Selection | N19: No Selection | O19: No Selection | P19: No Selection | Q19: No Selection | R19: No Selection | S19: No Selection | T19: No Selection | U19: No Selection | V19: No Selection | W19: No Selection | X19: No Selection | Y19: No Selection | Z19: No Selection | AA19: No Selection | AB19: No Selection | AC19: No Selection | AD19: No Selection | AE19: =+'4007ES(Addr)'!$U$151*'4007ES(Addr)'!$AG$151 -> 0 | AF19: =+'4007ES(Addr)'!$V$151*'4007ES(Addr)'!$AF$151 -> 0 | AG19: =+'4007ES(Addr)'!$V$151*'4007ES(Addr)'!$AG$151 -> 0 | AH19: =+'4007ES(Addr)'!$W$151*'4007ES(Addr)'!$AF$151 -> 0 | AI19: =+'4007ES(Addr)'!$W$151*'4007ES(Addr)'!$AG$151 -> 0 | AJ19: =+'4007ES(Addr)'!$X$151*'4007ES(Addr)'!$AF$151 -> 0 | AK19: =+'4007ES(Addr)'!$X$151*'4007ES(Addr)'!$AG$151 -> 0 | AL19: =+'4007ES(Addr)'!$Y$151*'4007ES(Addr)'!$AF$151 -> 0 | AM19: =+'4007ES(Addr)'!$Y$151*'4007ES(Addr)'!$AG$151 -> 0 | AN19: =+'4007ES(Addr)'!$Z$151*'4007ES(Addr)'!$AF$151 -> 0 | AO19: =+'4007ES(Addr)'!$Z$151*'4007ES(Addr)'!$AG$151 -> 0 | AP19: =+'4007ES(Addr)'!$AA$151*'4007ES(Addr)'!$AF$151 -> 0 | AQ19: =+'4007ES(Addr)'!$AA$151*'4007ES(Addr)'!$AG$151 -> 0 | BM19: 2 | BN19: No Selection | BO19: No Selection | BP19: No Selection | BQ19: No Selection | BR19: No Selection | BS19: No Selection | BT19: No Selection | BU19: No Selection | BV19: No Selection | BW19: No Selection | BX19: No Selection | BY19: No Selection | BZ19: No Selection | CA19: No Selection | CB19: No Selection | CC19: No Selection | CD19: No Selection | CE19: No Selection | CF19: No Selection | CG19: No Selection | CI19: 4007ES
C20: For NAC Repeater you could select Other Repeater Circuits to Maximised | K20: =IF(BN19="4007ES",1,(IF(LEFT(BQ19,3)="NAC",0,1)))+BL21 -> 1 | L20: =IF(BO19="4007ES",1,0)+BL22 -> 0 | M20: =IF(BP19="4007ES",1,0)+BL23 -> 0 | N20: =IF(LEFT(BQ19,3)="NAC",1,0) -> 0 | O20: =IF(LEFT(O19,3)="NAC",1,0) -> 0 | P20: 0 | Q20: 0 | R20: 0 | S20: 0 | T20: 0 | U20: 0 | V20: 0 | W20: 0 | X20: 0 | Y20: 0 | Z20: 0 | AA20: 0 | AB20: 0 | AC20: 0 | AD20: 0 | AI20: 0 | AR20: Do Not erase, for summarising Gas or Preaction according to Panel linked to Hazard Zone(Min 01 Zone to Qualfied. | BN20: =IF(DQ19="4007ES",1,(IF(LEFT(DT19,3)="NAC",0,1)))+DO21 -> 1 | BO20: =IF(DR19="4007ES",1,0)+DO22 -> 0 | BP20: =IF(DS19="4007ES",1,0)+DO23 -> 0 | BQ20: =IF(LEFT(DT19,3)="NAC",1,0) -> 0 | BR20: =IF(LEFT(BR19,3)="NAC",1,0) -> 0 | BS20: 0 | BT20: 0 | BU20: 0 | BV20: 0 | BW20: 0 | BX20: 0 | BY20: 0 | BZ20: 0 | CA20: 0 | CB20: 0 | CC20: 0 | CD20: 0 | CE20: 0 | CF20: 0 | CG20: 0
A21: =+AH21 -> 0 | I21: =IF(LEFT(K19,3)="NAC",1,0) -> 0 | K21: =IF($K$19="NAC Repeat 1",1,IF($K$19="NAC Repeat 2",2,IF($K$19="NAC Repeat 3",3,IF($K$19="NAC Repeat 4",4,IF($K$19="NAC Repeat 5",5,IF($K$19="4007ES",6,0)))))) -> 0 | L21: =IF($L$19="NAC Repeat 1",1,IF($L$19="NAC Repeat 2",2,IF($L$19="NAC Repeat 3",3,IF($L$19="NAC Repeat 4",4,IF($L$19="NAC Repeat 5",5,IF($L$19="4007ES",6,0)))))) -> 0 | M21: =IF(M$19="NAC Repeat 1",1,IF(M$19="NAC Repeat 2",2,IF(M$19="NAC Repeat 3",3,IF(M$19="NAC Repeat 4",4,IF(M$19="NAC Repeat 5",5,IF(M$19="4007ES",6,0)))))) -> 0 | N21: 0 | O21: 0 | P21: 0 | Q21: 0 | R21: 0 | S21: 0 | T21: 0 | U21: 0 | V21: 0 | W21: 0 | X21: 0 | Y21: 0 | Z21: 0 | AA21: 0 | AB21: 0 | AC21: 0 | AD21: 0 | AI21: 0 | BN21: =IF($K$19="NAC Repeat 1",1,IF($K$19="NAC Repeat 2",2,IF($K$19="NAC Repeat 3",3,IF($K$19="NAC Repeat 4",4,IF($K$19="NAC Repeat 5",5,IF($K$19="4007ES",6,0)))))) -> 0 | BO21: =IF($L$19="NAC Repeat 1",1,IF($L$19="NAC Repeat 2",2,IF($L$19="NAC Repeat 3",3,IF($L$19="NAC Repeat 4",4,IF($L$19="NAC Repeat 5",5,IF($L$19="4007ES",6,0)))))) -> 0 | BP21: =IF(BP$19="NAC Repeat 1",1,IF(BP$19="NAC Repeat 2",2,IF(BP$19="NAC Repeat 3",3,IF(BP$19="NAC Repeat 4",4,IF(BP$19="NAC Repeat 5",5,IF(BP$19="4007ES",6,0)))))) -> 0 | BQ21: 0 | BR21: 0 | BS21: 0 | BT21: 0 | BU21: 0 | BV21: 0 | BW21: 0 | BX21: 0 | BY21: 0 | BZ21: 0 | CA21: 0 | CB21: 0 | CC21: 0 | CD21: 0 | CE21: 0 | CF21: 0 | CG21: 0
A22: 0 | I22: =IF(LEFT(L19,3)="NAC",1,0) -> 0 | K22: =IF(K17="Gas",0,1) -> 0 | L22: 0 | M22: 0 | N22: 0 | O22: 0 | P22: 0 | Q22: 0 | R22: 0 | S22: 0 | T22: 0 | U22: 0 | V22: 0 | W22: 0 | X22: 0 | Y22: 0 | Z22: 0 | AA22: 0 | AB22: 0 | AC22: 0 | AD22: 0 | AI22: 0 | BN22: =IF(BN17="Gas",0,1) -> 0 | BO22: 0 | BP22: 0 | BQ22: 0 | BR22: 0 | BS22: 0 | BT22: 0 | BU22: 0 | BV22: 0 | BW22: 0 | BX22: 0 | BY22: 0 | BZ22: 0 | CA22: 0 | CB22: 0 | CC22: 0 | CD22: 0 | CE22: 0 | CF22: 0 | CG22: 0
A23: 0 | I23: =IF(LEFT(M19,3)="NAC",1,0) -> 0 | K23: =_xlfn.IFS(K21=0,K22*K21,K21=1,K22*K21,K21=2,K22*K21,K21=3,K22*K21,K21=4,K22*K21,K21=5,K22*K21,K21=6,K22*K21) -> 0 | L23: =_xlfn.IFS(L21=0,L22*L21,L21=1,L22*L21,L21=2,L22*L21,L21=3,L22*L21,L21=4,L22*L21,L21=5,L22*L21,L21=6,L22*L21) -> 0 | M23: =_xlfn.IFS(M21=0,M22*M21,M21=1,M22*M21,M21=2,M22*M21,M21=3,M22*M21,M21=4,M22*M21,M21=5,M22*M21,M21=6,M22*M21) -> 0 | N23: =_xlfn.IFS(N21=0,N22*N21,N21=1,N22*N21,N21=2,N22*N21,N21=3,N22*N21,N21=4,N22*N21,N21=5,N22*N21,N21=6,N22*N21) -> 0 | O23: =_xlfn.IFS(O21=0,O22*O21,O21=1,O22*O21,O21=2,O22*O21,O21=3,O22*O21,O21=4,O22*O21,O21=5,O22*O21,O21=6,O22*O21) -> 0 | P23: =_xlfn.IFS(P21=0,P22*P21,P21=1,P22*P21,P21=2,P22*P21,P21=3,P22*P21,P21=4,P22*P21,P21=5,P22*P21,P21=6,P22*P21) -> 0 | Q23: =_xlfn.IFS(Q21=0,Q22*Q21,Q21=1,Q22*Q21,Q21=2,Q22*Q21,Q21=3,Q22*Q21,Q21=4,Q22*Q21,Q21=5,Q22*Q21,Q21=6,Q22*Q21) -> 0 | R23: =_xlfn.IFS(R21=0,R22*R21,R21=1,R22*R21,R21=2,R22*R21,R21=3,R22*R21,R21=4,R22*R21,R21=5,R22*R21,R21=6,R22*R21) -> 0 | S23: =_xlfn.IFS(S21=0,S22*S21,S21=1,S22*S21,S21=2,S22*S21,S21=3,S22*S21,S21=4,S22*S21,S21=5,S22*S21,S21=6,S22*S21) -> 0 | T23: =_xlfn.IFS(T21=0,T22*T21,T21=1,T22*T21,T21=2,T22*T21,T21=3,T22*T21,T21=4,T22*T21,T21=5,T22*T21,T21=6,T22*T21) -> 0 | U23: =_xlfn.IFS(U21=0,U22*U21,U21=1,U22*U21,U21=2,U22*U21,U21=3,U22*U21,U21=4,U22*U21,U21=5,U22*U21,U21=6,U22*U21) -> 0 | V23: =_xlfn.IFS(V21=0,V22*V21,V21=1,V22*V21,V21=2,V22*V21,V21=3,V22*V21,V21=4,V22*V21,V21=5,V22*V21,V21=6,V22*V21) -> 0 | W23: =_xlfn.IFS(W21=0,W22*W21,W21=1,W22*W21,W21=2,W22*W21,W21=3,W22*W21,W21=4,W22*W21,W21=5,W22*W21,W21=6,W22*W21) -> 0 | X23: =_xlfn.IFS(X21=0,X22*X21,X21=1,X22*X21,X21=2,X22*X21,X21=3,X22*X21,X21=4,X22*X21,X21=5,X22*X21,X21=6,X22*X21) -> 0 | Y23: =_xlfn.IFS(Y21=0,Y22*Y21,Y21=1,Y22*Y21,Y21=2,Y22*Y21,Y21=3,Y22*Y21,Y21=4,Y22*Y21,Y21=5,Y22*Y21,Y21=6,Y22*Y21) -> 0 | Z23: =_xlfn.IFS(Z21=0,Z22*Z21,Z21=1,Z22*Z21,Z21=2,Z22*Z21,Z21=3,Z22*Z21,Z21=4,Z22*Z21,Z21=5,Z22*Z21,Z21=6,Z22*Z21) -> 0 | AA23: =_xlfn.IFS(AA21=0,AA22*AA21,AA21=1,AA22*AA21,AA21=2,AA22*AA21,AA21=3,AA22*AA21,AA21=4,AA22*AA21,AA21=5,AA22*AA21,AA21=6,AA22*AA21) -> 0 | AB23: =_xlfn.IFS(AB21=0,AB22*AB21,AB21=1,AB22*AB21,AB21=2,AB22*AB21,AB21=3,AB22*AB21,AB21=4,AB22*AB21,AB21=5,AB22*AB21,AB21=6,AB22*AB21) -> 0 | AC23: =_xlfn.IFS(AC21=0,AC22*AC21,AC21=1,AC22*AC21,AC21=2,AC22*AC21,AC21=3,AC22*AC21,AC21=4,AC22*AC21,AC21=5,AC22*AC21,AC21=6,AC22*AC21) -> 0 | AD23: =_xlfn.IFS(AD21=0,AD22*AD21,AD21=1,AD22*AD21,AD21=2,AD22*AD21,AD21=3,AD22*AD21,AD21=4,AD22*AD21,AD21=5,AD22*AD21,AD21=6,AD22*AD21) -> 0 | AI23: 0 | BN23: =_xlfn.IFS(BN21=0,BN22*BN21,BN21=1,BN22*BN21,BN21=2,BN22*BN21,BN21=3,BN22*BN21,BN21=4,BN22*BN21,BN21=5,BN22*BN21,BN21=6,BN22*BN21) -> 0 | BO23: =_xlfn.IFS(BO21=0,BO22*BO21,BO21=1,BO22*BO21,BO21=2,BO22*BO21,BO21=3,BO22*BO21,BO21=4,BO22*BO21,BO21=5,BO22*BO21,BO21=6,BO22*BO21) -> 0 | BP23: =_xlfn.IFS(BP21=0,BP22*BP21,BP21=1,BP22*BP21,BP21=2,BP22*BP21,BP21=3,BP22*BP21,BP21=4,BP22*BP21,BP21=5,BP22*BP21,BP21=6,BP22*BP21) -> 0 | BQ23: =_xlfn.IFS(BQ21=0,BQ22*BQ21,BQ21=1,BQ22*BQ21,BQ21=2,BQ22*BQ21,BQ21=3,BQ22*BQ21,BQ21=4,BQ22*BQ21,BQ21=5,BQ22*BQ21,BQ21=6,BQ22*BQ21) -> 0 | BR23: =_xlfn.IFS(BR21=0,BR22*BR21,BR21=1,BR22*BR21,BR21=2,BR22*BR21,BR21=3,BR22*BR21,BR21=4,BR22*BR21,BR21=5,BR22*BR21,BR21=6,BR22*BR21) -> 0 | BS23: =_xlfn.IFS(BS21=0,BS22*BS21,BS21=1,BS22*BS21,BS21=2,BS22*BS21,BS21=3,BS22*BS21,BS21=4,BS22*BS21,BS21=5,BS22*BS21,BS21=6,BS22*BS21) -> 0 | BT23: =_xlfn.IFS(BT21=0,BT22*BT21,BT21=1,BT22*BT21,BT21=2,BT22*BT21,BT21=3,BT22*BT21,BT21=4,BT22*BT21,BT21=5,BT22*BT21,BT21=6,BT22*BT21) -> 0 | BU23: =_xlfn.IFS(BU21=0,BU22*BU21,BU21=1,BU22*BU21,BU21=2,BU22*BU21,BU21=3,BU22*BU21,BU21=4,BU22*BU21,BU21=5,BU22*BU21,BU21=6,BU22*BU21) -> 0 | BV23: =_xlfn.IFS(BV21=0,BV22*BV21,BV21=1,BV22*BV21,BV21=2,BV22*BV21,BV21=3,BV22*BV21,BV21=4,BV22*BV21,BV21=5,BV22*BV21,BV21=6,BV22*BV21) -> 0 | BW23: =_xlfn.IFS(BW21=0,BW22*BW21,BW21=1,BW22*BW21,BW21=2,BW22*BW21,BW21=3,BW22*BW21,BW21=4,BW22*BW21,BW21=5,BW22*BW21,BW21=6,BW22*BW21) -> 0 | BX23: =_xlfn.IFS(BX21=0,BX22*BX21,BX21=1,BX22*BX21,BX21=2,BX22*BX21,BX21=3,BX22*BX21,BX21=4,BX22*BX21,BX21=5,BX22*BX21,BX21=6,BX22*BX21) -> 0 | BY23: =_xlfn.IFS(BY21=0,BY22*BY21,BY21=1,BY22*BY21,BY21=2,BY22*BY21,BY21=3,BY22*BY21,BY21=4,BY22*BY21,BY21=5,BY22*BY21,BY21=6,BY22*BY21) -> 0 | BZ23: =_xlfn.IFS(BZ21=0,BZ22*BZ21,BZ21=1,BZ22*BZ21,BZ21=2,BZ22*BZ21,BZ21=3,BZ22*BZ21,BZ21=4,BZ22*BZ21,BZ21=5,BZ22*BZ21,BZ21=6,BZ22*BZ21) -> 0 | CA23: =_xlfn.IFS(CA21=0,CA22*CA21,CA21=1,CA22*CA21,CA21=2,CA22*CA21,CA21=3,CA22*CA21,CA21=4,CA22*CA21,CA21=5,CA22*CA21,CA21=6,CA22*CA21) -> 0 | CB23: =_xlfn.IFS(CB21=0,CB22*CB21,CB21=1,CB22*CB21,CB21=2,CB22*CB21,CB21=3,CB22*CB21,CB21=4,CB22*CB21,CB21=5,CB22*CB21,CB21=6,CB22*CB21) -> 0 | CC23: =_xlfn.IFS(CC21=0,CC22*CC21,CC21=1,CC22*CC21,CC21=2,CC22*CC21,CC21=3,CC22*CC21,CC21=4,CC22*CC21,CC21=5,CC22*CC21,CC21=6,CC22*CC21) -> 0 | CD23: =_xlfn.IFS(CD21=0,CD22*CD21,CD21=1,CD22*CD21,CD21=2,CD22*CD21,CD21=3,CD22*CD21,CD21=4,CD22*CD21,CD21=5,CD22*CD21,CD21=6,CD22*CD21) -> 0 | CE23: =_xlfn.IFS(CE21=0,CE22*CE21,CE21=1,CE22*CE21,CE21=2,CE22*CE21,CE21=3,CE22*CE21,CE21=4,CE22*CE21,CE21=5,CE22*CE21,CE21=6,CE22*CE21) -> 0 | CF23: =_xlfn.IFS(CF21=0,CF22*CF21,CF21=1,CF22*CF21,CF21=2,CF22*CF21,CF21=3,CF22*CF21,CF21=4,CF22*CF21,CF21=5,CF22*CF21,CF21=6,CF22*CF21) -> 0 | CG23: =_xlfn.IFS(CG21=0,CG22*CG21,CG21=1,CG22*CG21,CG21=2,CG22*CG21,CG21=3,CG22*CG21,CG21=4,CG22*CG21,CG21=5,CG22*CG21,CG21=6,CG22*CG21) -> 0
C24: Calculated Quantities Allocation per Equipment as per Selection | G24: BOM | I24: Qty | K24: =IF((COUNTIF($K21:$AD$21,"=6"))>0.99,1,0) -> 0 | L24: =IF((COUNTIF($K21:$AD$21,"=1"))>0.99,1,0) -> 0 | M24: =IF((COUNTIF($K21:$AD$21,"=2"))>0.99,1,0) -> 0 | N24: =IF((COUNTIF($K21:$AD$21,"=3"))>0.99,1,0) -> 0 | O24: =IF((COUNTIF($K21:$AD$21,"=4"))>0.99,1,0) -> 0 | P24: =IF((COUNTIF($K21:$AD$21,"=5"))>0.99,1,0) -> 0 | AI24: 0 | AR24: Hazard | AS24: =+AS39 -> Hazard 1 | AT24: =+AT39 -> Hazard 2 | AU24: Hazard 3 | AV24: Hazard 4 | AW24: Hazard 5 | AX24: Hazard 6 | AY24: Hazard 7 | AZ24: Hazard 8 | BA24: Hazard 9 | BB24: Hazard 10 | BC24: Hazard 11 | BD24: Hazard 12 | BE24: Hazard 13 | BF24: Hazard 14 | BG24: Hazard 15 | BH24: Hazard 16 | BI24: Hazard 17 | BJ24: Hazard 18 | BK24: Hazard 19 | BL24: Hazard 20 | BN24: =IF((COUNTIF($K21:$AD$21,"=6"))>0.99,1,0) -> 0 | BO24: =IF((COUNTIF($K21:$AD$21,"=1"))>0.99,1,0) -> 0 | BP24: =IF((COUNTIF($K21:$AD$21,"=2"))>0.99,1,0) -> 0 | BQ24: =IF((COUNTIF($K21:$AD$21,"=3"))>0.99,1,0) -> 0 | BR24: =IF((COUNTIF($K21:$AD$21,"=4"))>0.99,1,0) -> 0 | BS24: =IF((COUNTIF($K21:$AD$21,"=5"))>0.99,1,0) -> 0
C25: Quantities Calculated by Software | I25: Equipment | K25: 4007ES | L25: NAC Repeat 1 | M25: NAC Repeat 2 | N25: NAC Repeat 3 | O25: NAC Repeat 4 | P25: NAC Repeat 5 | AI25: 0 | AR25: Panel | AS25: =+AS40 -> No Selection | AT25: =+AT40 -> No Selection | AU25: No Selection | AV25: No Selection | AW25: No Selection | AX25: No Selection | AY25: No Selection | AZ25: No Selection | BA25: No Selection | BB25: No Selection | BC25: No Selection | BD25: No Selection | BE25: No Selection | BF25: No Selection | BG25: No Selection | BH25: No Selection | BI25: No Selection | BJ25: No Selection | BK25: No Selection | BL25: No Selection | BN25: 4007ES | BO25: NAC Repeat 1 | BP25: NAC Repeat 2 | BQ25: NAC Repeat 3 | BR25: NAC Repeat 4 | BS25: NAC Repeat 5
C26: Equipment: 4007ES or NAC Repeater Related to above Quantities | I26: Color/Voltage | K26: Platinium | L26: 240VAC | M26: 240VAC | N26: 240VAC | O26: 240VAC | P26: 240VAC | AI26: 0 | AN26: 120VAC | AR26: Type | AS26: =+K17 -> Gas | AT26: =+L17 -> Gas | AU26: Gas | AV26: =+N17 -> Gas | AW26: Gas | AX26: Gas | AY26: Gas | AZ26: Gas | BA26: Gas | BB26: Gas | BC26: Gas | BD26: Gas | BE26: Gas | BF26: Gas | BG26: Gas | BH26: Gas | BI26: Gas | BJ26: Gas | BK26: Gas | BL26: =+AD17 -> Gas | BN26: Platinium | BO26: 240VAC | BP26: 240VAC | BQ26: 240VAC | BR26: 240VAC | BS26: 240VAC
C27: Check base on Quantities of RAC possible per NAC Repeater | I27: Check for RAC Limits | K27: =IF((COUNTIF(K21:AD21,6))>3.1,"Error", "OK") -> OK | L27: =IF((COUNTIF(K21:AD21,1))>8.1,"Error", "OK") -> OK | M27: =IF((COUNTIF(K21:AD21,2))>8.1,"Error", "OK") -> OK | N27: =IF((COUNTIF(K21:AD21,3))>8.1,"Error", "OK") -> OK | O27: =IF((COUNTIF(K21:AD21,4))>8.1,"Error", "OK") -> OK | P27: =IF((COUNTIF(K21:AD21,5))>8.1,"Error", "OK") -> OK | AI27: 0 | AN27: 240VAC | AR27: Gas | AS27: =IF(AS26="Gas",1,0) -> 1 | AT27: =IF(AT26="Gas",1,0) -> 1 | AU27: =IF(AU26="Gas",1,0) -> 1 | AV27: 1 | AW27: 1 | AX27: 1 | AY27: 1 | AZ27: 1 | BA27: 1 | BB27: 1 | BC27: 1 | BD27: 1 | BE27: 1 | BF27: 1 | BG27: 1 | BH27: 1 | BI27: 1 | BJ27: 1 | BK27: 1 | BL27: 1 | BN27: =IF((COUNTIF(BN21:CG21,6))>3.1,"Error", "OK") -> OK | BO27: =IF((COUNTIF(BN21:CG21,1))>8.1,"Error", "OK") -> OK | BP27: =IF((COUNTIF(BN21:CG21,2))>8.1,"Error", "OK") -> OK | BQ27: =IF((COUNTIF(BN21:CG21,3))>8.1,"Error", "OK") -> OK | BR27: =IF((COUNTIF(BN21:CG21,4))>8.1,"Error", "OK") -> OK | BS27: =IF((COUNTIF(BN21:CG21,5))>8.1,"Error", "OK") -> OK
C28: Automatic Panel and NAC Repeater Selection based on RAC requirements | K28: =IF((COUNTIF(K21:AD21,6))>3.1,"4007ES Exceed Power Limit", " ") ->  | AI28: 0 | AR28: Preaction | AS28: =1-AS27 -> 0 | AT28: =1-AT27 -> 0 | AU28: 0 | AV28: 0 | AW28: 0 | AX28: 0 | AY28: 0 | AZ28: 0 | BA28: 0 | BB28: 0 | BC28: 0 | BD28: 0 | BE28: 0 | BF28: 0 | BG28: 0 | BH28: 0 | BI28: 0 | BJ28: 0 | BK28: 0 | BL28: 0
B29: 1 | C29: =IF(K26="Red","4007ES Suppression Panel Red(Std Offering)","4007ES Suppression Panel Platinium(Std Offering)") -> 4007ES Suppression Panel Platinium(Std Offering) | D29: PDF | G29: =IF(K24>0,1,0) -> 0 | I29: =+IF(K26="Red",'4007ESConfigurator'!C8,'4007ESConfigurator'!C9) -> 4007-9102 | K29: Details | L29: NAC Repeat 1 | M29: NAC Repeat 2 | N29: NAC Repeat 3 | O29: NAC Repeat 4 | P29: NAC Repeat 5 | Q29: Takes up Idnet Addr | AF29: =IF($G29>0.9,'4007ESConfigurator'!L9,0) -> 0 | AG29: =IF($G29>0.9,'4007ESConfigurator'!M9,0) -> 0 | AH29: =IF($G29>0.9,'4007ESConfigurator'!N9,0) -> 0 | AI29: 0 | AR29: No Selection | AS29: =IF(AS25="No Selection",1,0) -> 1 | AT29: 1 | AU29: 1 | AV29: 1 | AW29: 1 | AX29: 1 | AY29: 1 | AZ29: 1 | BA29: 1 | BB29: 1 | BC29: 1 | BD29: 1 | BE29: 1 | BF29: 1 | BG29: 1 | BH29: 1 | BI29: 1 | BJ29: 1 | BK29: 1 | BL29: 1 | BN29: Details | BO29: NAC Repeat 1 | BP29: NAC Repeat 2 | BQ29: NAC Repeat 3 | BR29: NAC Repeat 4 | BS29: NAC Repeat 5 | BT29: Takes up Idnet Addr
B30: 2 | C30: 4009 IDNet NAC Extender with 4, Class B NACs and 8 A PS - 120V | D30: PDF | G30: =IF(L26="120VAC",1*L24,0)+IF(M26="120VAC",1*M24,0)+IF(N26="120VAC",1*N24,0)+IF(O26="120VAC",1*O24,0)+IF(P26="120VAC",1*P24,0) -> 0 | I30: =+'4007ESConfigurator'!C50 -> 4009-9201 | K30: NAC Repeat 120V | L30: =IF(L26="120VAC",L24,0) -> 0 | M30: =IF(M26="120VAC",M24,0) -> 0 | N30: =IF(N26="120VAC",N24,0) -> 0 | O30: =IF(O26="120VAC",O24,0) -> 0 | P30: =IF(P26="120VAC",P24,0) -> 0 | Q30: =SUM(L30:P30)*5 -> 0 | AF30: =+'4007ESConfigurator'!L50 -> 85 | AG30: =+'4007ESConfigurator'!M50 -> 185 | AH30: =+'4007ESConfigurator'!N50 -> Main AC & Idnet | AI30: 0 | BN30: NAC Repeat 120V | BO30: =IF(BO26="120VAC",BO24,0) -> 0 | BP30: =IF(BP26="120VAC",BP24,0) -> 0 | BQ30: =IF(BQ26="120VAC",BQ24,0) -> 0 | BR30: =IF(BR26="120VAC",BR24,0) -> 0 | BS30: =IF(BS26="120VAC",BS24,0) -> 0 | BT30: =SUM(BO30:BS30)*5 -> 0
B31: 3 | C31: 4009 IDNet NAC Extender with 4, Class B NACs and 8 A PS - 240V | G31: =IF(L26="240VAC",1*L24,0)+IF(M26="240VAC",1*M24,0)+IF(N26="240VAC",1*N24,0)+IF(O26="240VAC",1*O24,0)+IF(P26="240VAC",1*P24,0) -> 0 | I31: =+'4007ESConfigurator'!C51 -> 4009-9301 | K31: NAC Repeat 240V | L31: =IF(L26="240VAC",L24,0) -> 0 | M31: =IF(M26="240VAC",M24,0) -> 0 | N31: =IF(N26="240VAC",N24,0) -> 0 | O31: =IF(O26="240VAC",O24,0) -> 0 | P31: =IF(P26="240VAC",P24,0) -> 0 | Q31: =SUM(L31:P31)*5 -> 0 | AF31: =+'4007ESConfigurator'!L51 -> 85 | AG31: =+'4007ESConfigurator'!M51 -> 185 | AH31: =+'4007ESConfigurator'!N51 -> Main AC & Idnet | AI31: 0 | BN31: NAC Repeat 240V | BO31: =IF(BO26="240VAC",BO24,0) -> 0 | BP31: =IF(BP26="240VAC",BP24,0) -> 0 | BQ31: =IF(BQ26="240VAC",BQ24,0) -> 0 | BR31: =IF(BR26="240VAC",BR24,0) -> 0 | BS31: =IF(BS26="240VAC",BS24,0) -> 0 | BT31: =SUM(BO31:BS31)*5 -> 0
B32: 4 | C32: Additional four point NAC module(NAC5-8-Rated 1.5A & NAC 1-4 - Rated 2 Amp) | G32: =SUM(L32:P32) -> 0 | I32: =+'4007ESConfigurator'!C52 -> 4009-9807 | K32: NAC Module | L32: =IF((COUNTIF($K21:$AD$21,"=1"))>4.01,1,0) -> 0 | M32: =IF((COUNTIF($K21:$AD$21,"=2"))>4.01,1,0) -> 0 | N32: =IF((COUNTIF($K21:$AD$21,"=3"))>4.01,1,0) -> 0 | O32: =IF((COUNTIF($K21:$AD$21,"=4"))>4.01,1,0) -> 0 | P32: =IF((COUNTIF($K21:$AD$21,"=5"))>4.01,1,0) -> 0 | Q32: =SUM(L32:P32)*5 -> 0 | AF32: =+'4007ESConfigurator'!L52 -> 40 | AG32: =+'4007ESConfigurator'!M52 -> 40 | AH32: =+'4007ESConfigurator'!N52 -> Panel Powered | AI32: 0 | BN32: NAC Module | BO32: =IF((COUNTIF($K21:$AD$21,"=1"))>4.01,1,0) -> 0 | BP32: =IF((COUNTIF($K21:$AD$21,"=2"))>4.01,1,0) -> 0 | BQ32: =IF((COUNTIF($K21:$AD$21,"=3"))>4.01,1,0) -> 0 | BR32: =IF((COUNTIF($K21:$AD$21,"=4"))>4.01,1,0) -> 0 | BS32: =IF((COUNTIF($K21:$AD$21,"=5"))>4.01,1,0) -> 0 | BT32: =SUM(BO32:BS32)*5 -> 0
B33: 5 | C33: =+'4007ESConfigurator'!E53 -> Dual Class A adapter(No Additional Current) | G33: =SUM(L33:P33) -> 0 | I33: =+'4007ESConfigurator'!C53 -> 4009-9808 | K33: NAC Class A | L33: =ROUND((((COUNTIF($K$23:$AD23,"=1"))/2)),) -> 0 | M33: =ROUND((((COUNTIF($K$23:$AD23,"=2"))/2)),) -> 0 | N33: =ROUND((((COUNTIF($K$23:$AD23,"=3"))/2)),) -> 0 | O33: =ROUND((((COUNTIF($K$23:$AD23,"=4"))/2)),) -> 0 | P33: =ROUND((((COUNTIF($K$23:$AD23,"=5"))/2)),) -> 0 | Q33: NA | AF33: =+'4007ESConfigurator'!L53 -> 0 | AG33: =+'4007ESConfigurator'!M53 -> 0 | AH33: =+'4007ESConfigurator'!N53 -> Panel Powered | AI33: 0 | BN33: NAC Class A | BO33: =ROUND((((COUNTIF($K$23:$AD23,"=1"))/2)),) -> 0 | BP33: =ROUND((((COUNTIF($K$23:$AD23,"=2"))/2)),) -> 0 | BQ33: =ROUND((((COUNTIF($K$23:$AD23,"=3"))/2)),) -> 0 | BR33: =ROUND((((COUNTIF($K$23:$AD23,"=4"))/2)),) -> 0 | BS33: =ROUND((((COUNTIF($K$23:$AD23,"=5"))/2)),) -> 0 | BT33: NA
B34: 6 | C34: =+'4007ESConfigurator'!E54 -> IDNet Repeater, output is Class A or Class B(If Required due to distance) | G34: =SUM(L34:P34) -> 0 | I34: =+'4007ESConfigurator'!C54 -> 4009-9809 | K34: Idnet Repeater | L34: 0 | M34: 0 | N34: 0 | O34: 0 | P34: 0 | Q34: NA | AF34: =+'4007ESConfigurator'!L54 -> 0 | AG34: =+'4007ESConfigurator'!M54 -> 90 | AH34: =+'4007ESConfigurator'!N54 -> Panel Powered | AI34: 0 | AV34: =+AF34 -> 0 | BN34: Idnet Repeater | BO34: 0 | BP34: 0 | BQ34: 0 | BR34: 0 | BS34: 0 | BT34: NA
C35: Step 1D: Select Solenoid for RAC Circuits | K35: Hazard 1 | L35: Hazard 2 | M35: Hazard 3 | N35: Hazard 4 | O35: Hazard 5 | P35: Hazard 6 | Q35: Hazard 7 | R35: Hazard 8 | S35: Hazard 9 | T35: Hazard 10 | U35: Hazard 11 | V35: Hazard 12 | W35: Hazard 13 | X35: Hazard 14 | Y35: Hazard 15 | Z35: Hazard 16 | AA35: Hazard 17 | AB35: Hazard 18 | AC35: Hazard 19 | AD35: Hazard 20 | AI35: 0 | BN35: Hazard 1 | BO35: Hazard 2 | BP35: Hazard 3 | BQ35: Hazard 4 | BR35: Hazard 5 | BS35: Hazard 6 | BT35: Hazard 7 | BU35: Hazard 8 | BV35: Hazard 9 | BW35: Hazard 10 | BX35: Hazard 11 | BY35: Hazard 12 | BZ35: Hazard 13 | CA35: Hazard 14 | CB35: Hazard 15 | CC35: Hazard 16 | CD35: Hazard 17 | CE35: Hazard 18 | CF35: Hazard 19 | CG35: Hazard 20
I36: =+N36+N16 -> 0 | K36: =IF(K38=0,0,1) -> 0 | L36: =IF(L38>0,1,0) -> 0 | M36: 0 | N36: 0 | O36: 0 | P36: 0 | Q36: 0 | R36: 0 | S36: 0 | T36: 0 | U36: 0 | V36: 0 | W36: 0 | X36: 0 | Y36: 0 | Z36: 0 | AA36: 0 | AB36: 0 | AC36: 0 | AD36: 0 | BN36: =IF(BN38=0,0,1) -> 0 | BO36: =IF(BO38>0,1,0) -> 0 | BP36: 0 | BQ36: 0 | BR36: 0 | BS36: 0 | BT36: 0 | BU36: 0 | BV36: 0 | BW36: 0 | BX36: 0 | BY36: 0 | BZ36: 0 | CA36: 0 | CB36: 0 | CC36: 0 | CD36: 0 | CE36: 0 | CF36: 0 | CG36: 0
J37: =IF(J16=J36,"OK","Error") -> OK | K37: =IF(K16=K36,"OK","Error") -> OK | L37: OK | M37: OK | N37: OK | O37: OK | P37: OK | Q37: OK | R37: OK | S37: OK | T37: OK | U37: OK | V37: OK | W37: OK | X37: OK | Y37: OK | Z37: OK | AA37: OK | AB37: OK | AC37: OK | AD37: OK
B38: 1 | C38: =+L42 -> No Actuator Selected | D38: =VLOOKUP(C38,'4007ESConfigurator'!A193:E238,2) -> 1 | G38: =+O42 -> 0 | I38: 1D. Solenoid Selection | K38: 0 | L38: 0 | M38: 0 | N38: 0 | O38: 0 | P38: 0 | Q38: 0 | R38: 0 | S38: 0 | T38: 0 | U38: 0 | V38: 0 | W38: 0 | X38: 0 | Y38: 0 | Z38: 0 | AA38: 0 | AB38: 0 | AC38: 0 | AD38: 0 | AF38: 0 | AG38: 0 | AH38: RAC Powered | AI38: 0 | AR38: Do Not erase, for summarising according to type of panels the current usage as per listed | BM38: 3 | BN38: 0 | BO38: 0 | BP38: 0 | BQ38: 0 | BR38: 0 | BS38: 0 | BT38: 0 | BU38: 0 | BV38: 0 | BW38: 0 | BX38: 0 | BY38: 0 | BZ38: 0 | CA38: 0 | CB38: 0 | CC38: 0 | CD38: 0 | CE38: 0 | CF38: 0 | CG38: 0 | CI38: 1
B39: 2 | C39: =+L43 -> No Actuator Selected | G39: =+O43 -> 0 | I39: Solenoid Current] | K39: =VLOOKUP(K38,'[1]4007ESConfigurator'!$B$192:$M$280,12,TRUE) -> 0 | L39: =VLOOKUP(L38,'[1]4007ESConfigurator'!$B$192:$M$280,12,TRUE) -> 0 | M39: =VLOOKUP(M38,'[1]4007ESConfigurator'!$B$192:$M$280,12,TRUE) -> 0 | N39: =VLOOKUP(N38,'[1]4007ESConfigurator'!$B$192:$M$280,12,TRUE) -> 0 | O39: =VLOOKUP(O38,'[1]4007ESConfigurator'!$B$192:$M$280,12,TRUE) -> 0 | P39: =VLOOKUP(P38,'[1]4007ESConfigurator'!$B$192:$M$280,12,TRUE) -> 0 | Q39: =VLOOKUP(Q38,'[1]4007ESConfigurator'!$B$192:$M$280,12,TRUE) -> 0 | R39: =VLOOKUP(R38,'[1]4007ESConfigurator'!$B$192:$M$280,12,TRUE) -> 0 | S39: =VLOOKUP(S38,'[1]4007ESConfigurator'!$B$192:$M$280,12,TRUE) -> 0 | T39: =VLOOKUP(T38,'[1]4007ESConfigurator'!$B$192:$M$280,12,TRUE) -> 0 | U39: =VLOOKUP(U38,'[1]4007ESConfigurator'!$B$192:$M$280,12,TRUE) -> 0 | V39: =VLOOKUP(V38,'[1]4007ESConfigurator'!$B$192:$M$280,12,TRUE) -> 0 | W39: =VLOOKUP(W38,'[1]4007ESConfigurator'!$B$192:$M$280,12,TRUE) -> 0 | X39: =VLOOKUP(X38,'[1]4007ESConfigurator'!$B$192:$M$280,12,TRUE) -> 0 | Y39: =VLOOKUP(Y38,'[1]4007ESConfigurator'!$B$192:$M$280,12,TRUE) -> 0 | Z39: =VLOOKUP(Z38,'[1]4007ESConfigurator'!$B$192:$M$280,12,TRUE) -> 0 | AA39: =VLOOKUP(AA38,'[1]4007ESConfigurator'!$B$192:$M$280,12,TRUE) -> 0 | AB39: =VLOOKUP(AB38,'[1]4007ESConfigurator'!$B$192:$M$280,12,TRUE) -> 0 | AC39: =VLOOKUP(AC38,'[1]4007ESConfigurator'!$B$192:$M$280,12,TRUE) -> 0 | AD39: =VLOOKUP(AD38,'[1]4007ESConfigurator'!$B$192:$M$280,12,TRUE) -> 0 | AF39: 0 | AG39: 0 | AH39: RAC Powered | AI39: 0 | AR39: Hazard | AS39: =+K35 -> Hazard 1 | AT39: Hazard 2 | AU39: Hazard 3 | AV39: Hazard 4 | AW39: Hazard 5 | AX39: Hazard 6 | AY39: Hazard 7 | AZ39: Hazard 8 | BA39: Hazard 9 | BB39: Hazard 10 | BC39: Hazard 11 | BD39: Hazard 12 | BE39: Hazard 13 | BF39: Hazard 14 | BG39: Hazard 15 | BH39: Hazard 16 | BI39: Hazard 17 | BJ39: Hazard 18 | BK39: Hazard 19 | BL39: Hazard 20 | BN39: =VLOOKUP(BN38,'[1]4007ESConfigurator'!$B$192:$M$280,12,TRUE) -> 0 | BO39: =VLOOKUP(BO38,'[1]4007ESConfigurator'!$B$192:$M$280,12,TRUE) -> 0 | BP39: =VLOOKUP(BP38,'[1]4007ESConfigurator'!$B$192:$M$280,12,TRUE) -> 0 | BQ39: =VLOOKUP(BQ38,'[1]4007ESConfigurator'!$B$192:$M$280,12,TRUE) -> 0 | BR39: =VLOOKUP(BR38,'[1]4007ESConfigurator'!$B$192:$M$280,12,TRUE) -> 0 | BS39: =VLOOKUP(BS38,'[1]4007ESConfigurator'!$B$192:$M$280,12,TRUE) -> 0 | BT39: =VLOOKUP(BT38,'[1]4007ESConfigurator'!$B$192:$M$280,12,TRUE) -> 0 | BU39: =VLOOKUP(BU38,'[1]4007ESConfigurator'!$B$192:$M$280,12,TRUE) -> 0 | BV39: =VLOOKUP(BV38,'[1]4007ESConfigurator'!$B$192:$M$280,12,TRUE) -> 0 | BW39: =VLOOKUP(BW38,'[1]4007ESConfigurator'!$B$192:$M$280,12,TRUE) -> 0 | BX39: =VLOOKUP(BX38,'[1]4007ESConfigurator'!$B$192:$M$280,12,TRUE) -> 0 | BY39: =VLOOKUP(BY38,'[1]4007ESConfigurator'!$B$192:$M$280,12,TRUE) -> 0 | BZ39: =VLOOKUP(BZ38,'[1]4007ESConfigurator'!$B$192:$M$280,12,TRUE) -> 0 | CA39: =VLOOKUP(CA38,'[1]4007ESConfigurator'!$B$192:$M$280,12,TRUE) -> 0 | CB39: =VLOOKUP(CB38,'[1]4007ESConfigurator'!$B$192:$M$280,12,TRUE) -> 0 | CC39: =VLOOKUP(CC38,'[1]4007ESConfigurator'!$B$192:$M$280,12,TRUE) -> 0 | CD39: =VLOOKUP(CD38,'[1]4007ESConfigurator'!$B$192:$M$280,12,TRUE) -> 0 | CE39: =VLOOKUP(CE38,'[1]4007ESConfigurator'!$B$192:$M$280,12,TRUE) -> 0 | CF39: =VLOOKUP(CF38,'[1]4007ESConfigurator'!$B$192:$M$280,12,TRUE) -> 0 | CG39: =VLOOKUP(CG38,'[1]4007ESConfigurator'!$B$192:$M$280,12,TRUE) -> 0
B40: 3 | C40: =+L44 -> No Actuator Selected | G40: =+O44 -> 0 | I40: Max Cable Wiring Distance from 4007ES NAC to SRP | K40: =IF(K$38>0,(_xlfn.IFS(K$48="18AWG",'Actuator Cable Distance'!$C36,K$48="16AWG",'Actuator Cable Distance'!$D36,K$48="14AWG",'Actuator Cable Distance'!$E36,K$48="12AWG",'Actuator Cable Distance'!$F36,K$48="1.5mm2",'Actuator Cable Distance'!$G36,K$48="2.5mm2",'Actuator Cable Distance'!$H$36)),0) -> 0 | L40: =IF(L$38>0,(_xlfn.IFS(L$48="18AWG",'Actuator Cable Distance'!$C36,L$48="16AWG",'Actuator Cable Distance'!$D36,L$48="14AWG",'Actuator Cable Distance'!$E36,L$48="12AWG",'Actuator Cable Distance'!$F36,L$48="1.5mm2",'Actuator Cable Distance'!$G36,L$48="2.5mm2",'Actuator Cable Distance'!$H$36)),0) -> 0 | M40: =IF(M$38>0,(_xlfn.IFS(M$48="18AWG",'Actuator Cable Distance'!$C36,M$48="16AWG",'Actuator Cable Distance'!$D36,M$48="14AWG",'Actuator Cable Distance'!$E36,M$48="12AWG",'Actuator Cable Distance'!$F36,M$48="1.5mm2",'Actuator Cable Distance'!$G36,M$48="2.5mm2",'Actuator Cable Distance'!$H$36)),0) -> 0 | N40: =IF(N$38>0,(_xlfn.IFS(N$48="18AWG",'Actuator Cable Distance'!$C36,N$48="16AWG",'Actuator Cable Distance'!$D36,N$48="14AWG",'Actuator Cable Distance'!$E36,N$48="12AWG",'Actuator Cable Distance'!$F36,N$48="1.5mm2",'Actuator Cable Distance'!$G36,N$48="2.5mm2",'Actuator Cable Distance'!$H$36)),0) -> 0 | O40: =IF(O$38>0,(_xlfn.IFS(O$48="18AWG",'Actuator Cable Distance'!$C36,O$48="16AWG",'Actuator Cable Distance'!$D36,O$48="14AWG",'Actuator Cable Distance'!$E36,O$48="12AWG",'Actuator Cable Distance'!$F36,O$48="1.5mm2",'Actuator Cable Distance'!$G36,O$48="2.5mm2",'Actuator Cable Distance'!$H$36)),0) -> 0 | P40: =IF(P$38>0,(_xlfn.IFS(P$48="18AWG",'Actuator Cable Distance'!$C36,P$48="16AWG",'Actuator Cable Distance'!$D36,P$48="14AWG",'Actuator Cable Distance'!$E36,P$48="12AWG",'Actuator Cable Distance'!$F36,P$48="1.5mm2",'Actuator Cable Distance'!$G36,P$48="2.5mm2",'Actuator Cable Distance'!$H$36)),0) -> 0 | Q40: =IF(Q$38>0,(_xlfn.IFS(Q$48="18AWG",'Actuator Cable Distance'!$C36,Q$48="16AWG",'Actuator Cable Distance'!$D36,Q$48="14AWG",'Actuator Cable Distance'!$E36,Q$48="12AWG",'Actuator Cable Distance'!$F36,Q$48="1.5mm2",'Actuator Cable Distance'!$G36,Q$48="2.5mm2",'Actuator Cable Distance'!$H$36)),0) -> 0 | R40: =IF(R$38>0,(_xlfn.IFS(R$48="18AWG",'Actuator Cable Distance'!$C36,R$48="16AWG",'Actuator Cable Distance'!$D36,R$48="14AWG",'Actuator Cable Distance'!$E36,R$48="12AWG",'Actuator Cable Distance'!$F36,R$48="1.5mm2",'Actuator Cable Distance'!$G36,R$48="2.5mm2",'Actuator Cable Distance'!$H$36)),0) -> 0 | S40: =IF(S$38>0,(_xlfn.IFS(S$48="18AWG",'Actuator Cable Distance'!$C36,S$48="16AWG",'Actuator Cable Distance'!$D36,S$48="14AWG",'Actuator Cable Distance'!$E36,S$48="12AWG",'Actuator Cable Distance'!$F36,S$48="1.5mm2",'Actuator Cable Distance'!$G36,S$48="2.5mm2",'Actuator Cable Distance'!$H$36)),0) -> 0 | T40: =IF(T$38>0,(_xlfn.IFS(T$48="18AWG",'Actuator Cable Distance'!$C36,T$48="16AWG",'Actuator Cable Distance'!$D36,T$48="14AWG",'Actuator Cable Distance'!$E36,T$48="12AWG",'Actuator Cable Distance'!$F36,T$48="1.5mm2",'Actuator Cable Distance'!$G36,T$48="2.5mm2",'Actuator Cable Distance'!$H$36)),0) -> 0 | U40: =IF(U$38>0,(_xlfn.IFS(U$48="18AWG",'Actuator Cable Distance'!$C36,U$48="16AWG",'Actuator Cable Distance'!$D36,U$48="14AWG",'Actuator Cable Distance'!$E36,U$48="12AWG",'Actuator Cable Distance'!$F36,U$48="1.5mm2",'Actuator Cable Distance'!$G36,U$48="2.5mm2",'Actuator Cable Distance'!$H$36)),0) -> 0 | V40: =IF(V$38>0,(_xlfn.IFS(V$48="18AWG",'Actuator Cable Distance'!$C36,V$48="16AWG",'Actuator Cable Distance'!$D36,V$48="14AWG",'Actuator Cable Distance'!$E36,V$48="12AWG",'Actuator Cable Distance'!$F36,V$48="1.5mm2",'Actuator Cable Distance'!$G36,V$48="2.5mm2",'Actuator Cable Distance'!$H$36)),0) -> 0 | W40: =IF(W$38>0,(_xlfn.IFS(W$48="18AWG",'Actuator Cable Distance'!$C36,W$48="16AWG",'Actuator Cable Distance'!$D36,W$48="14AWG",'Actuator Cable Distance'!$E36,W$48="12AWG",'Actuator Cable Distance'!$F36,W$48="1.5mm2",'Actuator Cable Distance'!$G36,W$48="2.5mm2",'Actuator Cable Distance'!$H$36)),0) -> 0 | X40: =IF(X$38>0,(_xlfn.IFS(X$48="18AWG",'Actuator Cable Distance'!$C36,X$48="16AWG",'Actuator Cable Distance'!$D36,X$48="14AWG",'Actuator Cable Distance'!$E36,X$48="12AWG",'Actuator Cable Distance'!$F36,X$48="1.5mm2",'Actuator Cable Distance'!$G36,X$48="2.5mm2",'Actuator Cable Distance'!$H$36)),0) -> 0 | Y40: =IF(Y$38>0,(_xlfn.IFS(Y$48="18AWG",'Actuator Cable Distance'!$C36,Y$48="16AWG",'Actuator Cable Distance'!$D36,Y$48="14AWG",'Actuator Cable Distance'!$E36,Y$48="12AWG",'Actuator Cable Distance'!$F36,Y$48="1.5mm2",'Actuator Cable Distance'!$G36,Y$48="2.5mm2",'Actuator Cable Distance'!$H$36)),0) -> 0 | Z40: =IF(Z$38>0,(_xlfn.IFS(Z$48="18AWG",'Actuator Cable Distance'!$C36,Z$48="16AWG",'Actuator Cable Distance'!$D36,Z$48="14AWG",'Actuator Cable Distance'!$E36,Z$48="12AWG",'Actuator Cable Distance'!$F36,Z$48="1.5mm2",'Actuator Cable Distance'!$G36,Z$48="2.5mm2",'Actuator Cable Distance'!$H$36)),0) -> 0 | AA40: =IF(AA$38>0,(_xlfn.IFS(AA$48="18AWG",'Actuator Cable Distance'!$C36,AA$48="16AWG",'Actuator Cable Distance'!$D36,AA$48="14AWG",'Actuator Cable Distance'!$E36,AA$48="12AWG",'Actuator Cable Distance'!$F36,AA$48="1.5mm2",'Actuator Cable Distance'!$G36,AA$48="2.5mm2",'Actuator Cable Distance'!$H$36)),0) -> 0 | AB40: =IF(AB$38>0,(_xlfn.IFS(AB$48="18AWG",'Actuator Cable Distance'!$C36,AB$48="16AWG",'Actuator Cable Distance'!$D36,AB$48="14AWG",'Actuator Cable Distance'!$E36,AB$48="12AWG",'Actuator Cable Distance'!$F36,AB$48="1.5mm2",'Actuator Cable Distance'!$G36,AB$48="2.5mm2",'Actuator Cable Distance'!$H$36)),0) -> 0 | AC40: =IF(AC$38>0,(_xlfn.IFS(AC$48="18AWG",'Actuator Cable Distance'!$C36,AC$48="16AWG",'Actuator Cable Distance'!$D36,AC$48="14AWG",'Actuator Cable Distance'!$E36,AC$48="12AWG",'Actuator Cable Distance'!$F36,AC$48="1.5mm2",'Actuator Cable Distance'!$G36,AC$48="2.5mm2",'Actuator Cable Distance'!$H$36)),0) -> 0 | AD40: =IF(AD$38>0,(_xlfn.IFS(AD$48="18AWG",'Actuator Cable Distance'!$C36,AD$48="16AWG",'Actuator Cable Distance'!$D36,AD$48="14AWG",'Actuator Cable Distance'!$E36,AD$48="12AWG",'Actuator Cable Distance'!$F36,AD$48="1.5mm2",'Actuator Cable Distance'!$G36,AD$48="2.5mm2",'Actuator Cable Distance'!$H$36)),0) -> 0 | AF40: 0 | AG40: 0 | AH40: RAC Powered | AI40: 0 | AR40: Panel | AS40: =+K19 -> No Selection | AT40: No Selection | AU40: No Selection | AV40: No Selection | AW40: No Selection | AX40: No Selection | AY40: No Selection | AZ40: No Selection | BA40: No Selection | BB40: No Selection | BC40: No Selection | BD40: No Selection | BE40: No Selection | BF40: No Selection | BG40: No Selection | BH40: No Selection | BI40: No Selection | BJ40: No Selection | BK40: No Selection | BL40: No Selection | BN40: =IF(BN$38>0,(_xlfn.IFS(BN$48="18AWG",'Actuator Cable Distance'!$C36,BN$48="16AWG",'Actuator Cable Distance'!$D36,BN$48="14AWG",'Actuator Cable Distance'!$E36,BN$48="12AWG",'Actuator Cable Distance'!$F36,BN$48="1.5mm2",'Actuator Cable Distance'!$G36,BN$48="2.5mm2",'Actuator Cable Distance'!$H$36)),0) -> 0 | BO40: =IF(BO$38>0,(_xlfn.IFS(BO$48="18AWG",'Actuator Cable Distance'!$C36,BO$48="16AWG",'Actuator Cable Distance'!$D36,BO$48="14AWG",'Actuator Cable Distance'!$E36,BO$48="12AWG",'Actuator Cable Distance'!$F36,BO$48="1.5mm2",'Actuator Cable Distance'!$G36,BO$48="2.5mm2",'Actuator Cable Distance'!$H$36)),0) -> 0 | BP40: =IF(BP$38>0,(_xlfn.IFS(BP$48="18AWG",'Actuator Cable Distance'!$C36,BP$48="16AWG",'Actuator Cable Distance'!$D36,BP$48="14AWG",'Actuator Cable Distance'!$E36,BP$48="12AWG",'Actuator Cable Distance'!$F36,BP$48="1.5mm2",'Actuator Cable Distance'!$G36,BP$48="2.5mm2",'Actuator Cable Distance'!$H$36)),0) -> 0 | BQ40: =IF(BQ$38>0,(_xlfn.IFS(BQ$48="18AWG",'Actuator Cable Distance'!$C36,BQ$48="16AWG",'Actuator Cable Distance'!$D36,BQ$48="14AWG",'Actuator Cable Distance'!$E36,BQ$48="12AWG",'Actuator Cable Distance'!$F36,BQ$48="1.5mm2",'Actuator Cable Distance'!$G36,BQ$48="2.5mm2",'Actuator Cable Distance'!$H$36)),0) -> 0 | BR40: =IF(BR$38>0,(_xlfn.IFS(BR$48="18AWG",'Actuator Cable Distance'!$C36,BR$48="16AWG",'Actuator Cable Distance'!$D36,BR$48="14AWG",'Actuator Cable Distance'!$E36,BR$48="12AWG",'Actuator Cable Distance'!$F36,BR$48="1.5mm2",'Actuator Cable Distance'!$G36,BR$48="2.5mm2",'Actuator Cable Distance'!$H$36)),0) -> 0 | BS40: =IF(BS$38>0,(_xlfn.IFS(BS$48="18AWG",'Actuator Cable Distance'!$C36,BS$48="16AWG",'Actuator Cable Distance'!$D36,BS$48="14AWG",'Actuator Cable Distance'!$E36,BS$48="12AWG",'Actuator Cable Distance'!$F36,BS$48="1.5mm2",'Actuator Cable Distance'!$G36,BS$48="2.5mm2",'Actuator Cable Distance'!$H$36)),0) -> 0 | BT40: =IF(BT$38>0,(_xlfn.IFS(BT$48="18AWG",'Actuator Cable Distance'!$C36,BT$48="16AWG",'Actuator Cable Distance'!$D36,BT$48="14AWG",'Actuator Cable Distance'!$E36,BT$48="12AWG",'Actuator Cable Distance'!$F36,BT$48="1.5mm2",'Actuator Cable Distance'!$G36,BT$48="2.5mm2",'Actuator Cable Distance'!$H$36)),0) -> 0 | BU40: =IF(BU$38>0,(_xlfn.IFS(BU$48="18AWG",'Actuator Cable Distance'!$C36,BU$48="16AWG",'Actuator Cable Distance'!$D36,BU$48="14AWG",'Actuator Cable Distance'!$E36,BU$48="12AWG",'Actuator Cable Distance'!$F36,BU$48="1.5mm2",'Actuator Cable Distance'!$G36,BU$48="2.5mm2",'Actuator Cable Distance'!$H$36)),0) -> 0 | BV40: =IF(BV$38>0,(_xlfn.IFS(BV$48="18AWG",'Actuator Cable Distance'!$C36,BV$48="16AWG",'Actuator Cable Distance'!$D36,BV$48="14AWG",'Actuator Cable Distance'!$E36,BV$48="12AWG",'Actuator Cable Distance'!$F36,BV$48="1.5mm2",'Actuator Cable Distance'!$G36,BV$48="2.5mm2",'Actuator Cable Distance'!$H$36)),0) -> 0 | BW40: =IF(BW$38>0,(_xlfn.IFS(BW$48="18AWG",'Actuator Cable Distance'!$C36,BW$48="16AWG",'Actuator Cable Distance'!$D36,BW$48="14AWG",'Actuator Cable Distance'!$E36,BW$48="12AWG",'Actuator Cable Distance'!$F36,BW$48="1.5mm2",'Actuator Cable Distance'!$G36,BW$48="2.5mm2",'Actuator Cable Distance'!$H$36)),0) -> 0 | BX40: =IF(BX$38>0,(_xlfn.IFS(BX$48="18AWG",'Actuator Cable Distance'!$C36,BX$48="16AWG",'Actuator Cable Distance'!$D36,BX$48="14AWG",'Actuator Cable Distance'!$E36,BX$48="12AWG",'Actuator Cable Distance'!$F36,BX$48="1.5mm2",'Actuator Cable Distance'!$G36,BX$48="2.5mm2",'Actuator Cable Distance'!$H$36)),0) -> 0 | BY40: =IF(BY$38>0,(_xlfn.IFS(BY$48="18AWG",'Actuator Cable Distance'!$C36,BY$48="16AWG",'Actuator Cable Distance'!$D36,BY$48="14AWG",'Actuator Cable Distance'!$E36,BY$48="12AWG",'Actuator Cable Distance'!$F36,BY$48="1.5mm2",'Actuator Cable Distance'!$G36,BY$48="2.5mm2",'Actuator Cable Distance'!$H$36)),0) -> 0 | BZ40: =IF(BZ$38>0,(_xlfn.IFS(BZ$48="18AWG",'Actuator Cable Distance'!$C36,BZ$48="16AWG",'Actuator Cable Distance'!$D36,BZ$48="14AWG",'Actuator Cable Distance'!$E36,BZ$48="12AWG",'Actuator Cable Distance'!$F36,BZ$48="1.5mm2",'Actuator Cable Distance'!$G36,BZ$48="2.5mm2",'Actuator Cable Distance'!$H$36)),0) -> 0 | CA40: =IF(CA$38>0,(_xlfn.IFS(CA$48="18AWG",'Actuator Cable Distance'!$C36,CA$48="16AWG",'Actuator Cable Distance'!$D36,CA$48="14AWG",'Actuator Cable Distance'!$E36,CA$48="12AWG",'Actuator Cable Distance'!$F36,CA$48="1.5mm2",'Actuator Cable Distance'!$G36,CA$48="2.5mm2",'Actuator Cable Distance'!$H$36)),0) -> 0 | CB40: =IF(CB$38>0,(_xlfn.IFS(CB$48="18AWG",'Actuator Cable Distance'!$C36,CB$48="16AWG",'Actuator Cable Distance'!$D36,CB$48="14AWG",'Actuator Cable Distance'!$E36,CB$48="12AWG",'Actuator Cable Distance'!$F36,CB$48="1.5mm2",'Actuator Cable Distance'!$G36,CB$48="2.5mm2",'Actuator Cable Distance'!$H$36)),0) -> 0 | CC40: =IF(CC$38>0,(_xlfn.IFS(CC$48="18AWG",'Actuator Cable Distance'!$C36,CC$48="16AWG",'Actuator Cable Distance'!$D36,CC$48="14AWG",'Actuator Cable Distance'!$E36,CC$48="12AWG",'Actuator Cable Distance'!$F36,CC$48="1.5mm2",'Actuator Cable Distance'!$G36,CC$48="2.5mm2",'Actuator Cable Distance'!$H$36)),0) -> 0 | CD40: =IF(CD$38>0,(_xlfn.IFS(CD$48="18AWG",'Actuator Cable Distance'!$C36,CD$48="16AWG",'Actuator Cable Distance'!$D36,CD$48="14AWG",'Actuator Cable Distance'!$E36,CD$48="12AWG",'Actuator Cable Distance'!$F36,CD$48="1.5mm2",'Actuator Cable Distance'!$G36,CD$48="2.5mm2",'Actuator Cable Distance'!$H$36)),0) -> 0 | CE40: =IF(CE$38>0,(_xlfn.IFS(CE$48="18AWG",'Actuator Cable Distance'!$C36,CE$48="16AWG",'Actuator Cable Distance'!$D36,CE$48="14AWG",'Actuator Cable Distance'!$E36,CE$48="12AWG",'Actuator Cable Distance'!$F36,CE$48="1.5mm2",'Actuator Cable Distance'!$G36,CE$48="2.5mm2",'Actuator Cable Distance'!$H$36)),0) -> 0 | CF40: =IF(CF$38>0,(_xlfn.IFS(CF$48="18AWG",'Actuator Cable Distance'!$C36,CF$48="16AWG",'Actuator Cable Distance'!$D36,CF$48="14AWG",'Actuator Cable Distance'!$E36,CF$48="12AWG",'Actuator Cable Distance'!$F36,CF$48="1.5mm2",'Actuator Cable Distance'!$G36,CF$48="2.5mm2",'Actuator Cable Distance'!$H$36)),0) -> 0 | CG40: =IF(CG$38>0,(_xlfn.IFS(CG$48="18AWG",'Actuator Cable Distance'!$C36,CG$48="16AWG",'Actuator Cable Distance'!$D36,CG$48="14AWG",'Actuator Cable Distance'!$E36,CG$48="12AWG",'Actuator Cable Distance'!$F36,CG$48="1.5mm2",'Actuator Cable Distance'!$G36,CG$48="2.5mm2",'Actuator Cable Distance'!$H$36)),0) -> 0
B41: 4 | C41: =+L45 -> No Actuator Selected | G41: =+O45 -> 0 | I41: Max Cable Wiring Distance from SRP to Solenoid | K41: =IF(K$38>0,(_xlfn.IFS(K$53="18AWG",'Actuator Cable Distance'!$L36,K$53="16AWG",'Actuator Cable Distance'!$M36,K$53="14AWG",'Actuator Cable Distance'!$N36,K$53="12AWG",'Actuator Cable Distance'!$O36,K$53="1.5mm2",'Actuator Cable Distance'!$P36,K$53="2.5mm2",'Actuator Cable Distance'!$H$36)),0) -> 0 | L41: =IF(L$38>0,(_xlfn.IFS(L$53="18AWG",'Actuator Cable Distance'!$L36,L$53="16AWG",'Actuator Cable Distance'!$M36,L$53="14AWG",'Actuator Cable Distance'!$N36,L$53="12AWG",'Actuator Cable Distance'!$O36,L$53="1.5mm2",'Actuator Cable Distance'!$P36,L$53="2.5mm2",'Actuator Cable Distance'!$H$36)),0) -> 0 | M41: =IF(M$38>0,(_xlfn.IFS(M$53="18AWG",'Actuator Cable Distance'!$L36,M$53="16AWG",'Actuator Cable Distance'!$M36,M$53="14AWG",'Actuator Cable Distance'!$N36,M$53="12AWG",'Actuator Cable Distance'!$O36,M$53="1.5mm2",'Actuator Cable Distance'!$P36,M$53="2.5mm2",'Actuator Cable Distance'!$H$36)),0) -> 0 | N41: =IF(N$38>0,(_xlfn.IFS(N$53="18AWG",'Actuator Cable Distance'!$L36,N$53="16AWG",'Actuator Cable Distance'!$M36,N$53="14AWG",'Actuator Cable Distance'!$N36,N$53="12AWG",'Actuator Cable Distance'!$O36,N$53="1.5mm2",'Actuator Cable Distance'!$P36,N$53="2.5mm2",'Actuator Cable Distance'!$H$36)),0) -> 0 | O41: =IF(O$38>0,(_xlfn.IFS(O$53="18AWG",'Actuator Cable Distance'!$L36,O$53="16AWG",'Actuator Cable Distance'!$M36,O$53="14AWG",'Actuator Cable Distance'!$N36,O$53="12AWG",'Actuator Cable Distance'!$O36,O$53="1.5mm2",'Actuator Cable Distance'!$P36,O$53="2.5mm2",'Actuator Cable Distance'!$H$36)),0) -> 0 | P41: =IF(P$38>0,(_xlfn.IFS(P$53="18AWG",'Actuator Cable Distance'!$L36,P$53="16AWG",'Actuator Cable Distance'!$M36,P$53="14AWG",'Actuator Cable Distance'!$N36,P$53="12AWG",'Actuator Cable Distance'!$O36,P$53="1.5mm2",'Actuator Cable Distance'!$P36,P$53="2.5mm2",'Actuator Cable Distance'!$H$36)),0) -> 0 | Q41: =IF(Q$38>0,(_xlfn.IFS(Q$53="18AWG",'Actuator Cable Distance'!$L36,Q$53="16AWG",'Actuator Cable Distance'!$M36,Q$53="14AWG",'Actuator Cable Distance'!$N36,Q$53="12AWG",'Actuator Cable Distance'!$O36,Q$53="1.5mm2",'Actuator Cable Distance'!$P36,Q$53="2.5mm2",'Actuator Cable Distance'!$H$36)),0) -> 0 | R41: =IF(R$38>0,(_xlfn.IFS(R$53="18AWG",'Actuator Cable Distance'!$L36,R$53="16AWG",'Actuator Cable Distance'!$M36,R$53="14AWG",'Actuator Cable Distance'!$N36,R$53="12AWG",'Actuator Cable Distance'!$O36,R$53="1.5mm2",'Actuator Cable Distance'!$P36,R$53="2.5mm2",'Actuator Cable Distance'!$H$36)),0) -> 0 | S41: =IF(S$38>0,(_xlfn.IFS(S$53="18AWG",'Actuator Cable Distance'!$L36,S$53="16AWG",'Actuator Cable Distance'!$M36,S$53="14AWG",'Actuator Cable Distance'!$N36,S$53="12AWG",'Actuator Cable Distance'!$O36,S$53="1.5mm2",'Actuator Cable Distance'!$P36,S$53="2.5mm2",'Actuator Cable Distance'!$H$36)),0) -> 0 | T41: =IF(T$38>0,(_xlfn.IFS(T$53="18AWG",'Actuator Cable Distance'!$L36,T$53="16AWG",'Actuator Cable Distance'!$M36,T$53="14AWG",'Actuator Cable Distance'!$N36,T$53="12AWG",'Actuator Cable Distance'!$O36,T$53="1.5mm2",'Actuator Cable Distance'!$P36,T$53="2.5mm2",'Actuator Cable Distance'!$H$36)),0) -> 0 | U41: =IF(U$38>0,(_xlfn.IFS(U$53="18AWG",'Actuator Cable Distance'!$L36,U$53="16AWG",'Actuator Cable Distance'!$M36,U$53="14AWG",'Actuator Cable Distance'!$N36,U$53="12AWG",'Actuator Cable Distance'!$O36,U$53="1.5mm2",'Actuator Cable Distance'!$P36,U$53="2.5mm2",'Actuator Cable Distance'!$H$36)),0) -> 0 | V41: =IF(V$38>0,(_xlfn.IFS(V$53="18AWG",'Actuator Cable Distance'!$L36,V$53="16AWG",'Actuator Cable Distance'!$M36,V$53="14AWG",'Actuator Cable Distance'!$N36,V$53="12AWG",'Actuator Cable Distance'!$O36,V$53="1.5mm2",'Actuator Cable Distance'!$P36,V$53="2.5mm2",'Actuator Cable Distance'!$H$36)),0) -> 0 | W41: =IF(W$38>0,(_xlfn.IFS(W$53="18AWG",'Actuator Cable Distance'!$L36,W$53="16AWG",'Actuator Cable Distance'!$M36,W$53="14AWG",'Actuator Cable Distance'!$N36,W$53="12AWG",'Actuator Cable Distance'!$O36,W$53="1.5mm2",'Actuator Cable Distance'!$P36,W$53="2.5mm2",'Actuator Cable Distance'!$H$36)),0) -> 0 | X41: =IF(X$38>0,(_xlfn.IFS(X$53="18AWG",'Actuator Cable Distance'!$L36,X$53="16AWG",'Actuator Cable Distance'!$M36,X$53="14AWG",'Actuator Cable Distance'!$N36,X$53="12AWG",'Actuator Cable Distance'!$O36,X$53="1.5mm2",'Actuator Cable Distance'!$P36,X$53="2.5mm2",'Actuator Cable Distance'!$H$36)),0) -> 0 | Y41: =IF(Y$38>0,(_xlfn.IFS(Y$53="18AWG",'Actuator Cable Distance'!$L36,Y$53="16AWG",'Actuator Cable Distance'!$M36,Y$53="14AWG",'Actuator Cable Distance'!$N36,Y$53="12AWG",'Actuator Cable Distance'!$O36,Y$53="1.5mm2",'Actuator Cable Distance'!$P36,Y$53="2.5mm2",'Actuator Cable Distance'!$H$36)),0) -> 0 | Z41: =IF(Z$38>0,(_xlfn.IFS(Z$53="18AWG",'Actuator Cable Distance'!$L36,Z$53="16AWG",'Actuator Cable Distance'!$M36,Z$53="14AWG",'Actuator Cable Distance'!$N36,Z$53="12AWG",'Actuator Cable Distance'!$O36,Z$53="1.5mm2",'Actuator Cable Distance'!$P36,Z$53="2.5mm2",'Actuator Cable Distance'!$H$36)),0) -> 0 | AA41: =IF(AA$38>0,(_xlfn.IFS(AA$53="18AWG",'Actuator Cable Distance'!$L36,AA$53="16AWG",'Actuator Cable Distance'!$M36,AA$53="14AWG",'Actuator Cable Distance'!$N36,AA$53="12AWG",'Actuator Cable Distance'!$O36,AA$53="1.5mm2",'Actuator Cable Distance'!$P36,AA$53="2.5mm2",'Actuator Cable Distance'!$H$36)),0) -> 0 | AB41: =IF(AB$38>0,(_xlfn.IFS(AB$53="18AWG",'Actuator Cable Distance'!$L36,AB$53="16AWG",'Actuator Cable Distance'!$M36,AB$53="14AWG",'Actuator Cable Distance'!$N36,AB$53="12AWG",'Actuator Cable Distance'!$O36,AB$53="1.5mm2",'Actuator Cable Distance'!$P36,AB$53="2.5mm2",'Actuator Cable Distance'!$H$36)),0) -> 0 | AC41: =IF(AC$38>0,(_xlfn.IFS(AC$53="18AWG",'Actuator Cable Distance'!$L36,AC$53="16AWG",'Actuator Cable Distance'!$M36,AC$53="14AWG",'Actuator Cable Distance'!$N36,AC$53="12AWG",'Actuator Cable Distance'!$O36,AC$53="1.5mm2",'Actuator Cable Distance'!$P36,AC$53="2.5mm2",'Actuator Cable Distance'!$H$36)),0) -> 0 | AD41: =IF(AD$38>0,(_xlfn.IFS(AD$53="18AWG",'Actuator Cable Distance'!$L36,AD$53="16AWG",'Actuator Cable Distance'!$M36,AD$53="14AWG",'Actuator Cable Distance'!$N36,AD$53="12AWG",'Actuator Cable Distance'!$O36,AD$53="1.5mm2",'Actuator Cable Distance'!$P36,AD$53="2.5mm2",'Actuator Cable Distance'!$H$36)),0) -> 0 | AF41: 0 | AG41: 0 | AH41: RAC Powered | AI41: 0 | AR41: RAC | AS41: =+K39 -> 0 | AT41: =+L39 -> 0 | AU41: 0 | AV41: 0 | AW41: 0 | AX41: 0 | AY41: 0 | AZ41: 0 | BA41: 0 | BB41: 0 | BC41: 0 | BD41: 0 | BE41: 0 | BF41: 0 | BG41: 0 | BH41: 0 | BI41: 0 | BJ41: 0 | BK41: 0 | BL41: 0 | BN41: =IF(BN$38>0,(_xlfn.IFS(BN$53="18AWG",'Actuator Cable Distance'!$L36,BN$53="16AWG",'Actuator Cable Distance'!$M36,BN$53="14AWG",'Actuator Cable Distance'!$N36,BN$53="12AWG",'Actuator Cable Distance'!$O36,BN$53="1.5mm2",'Actuator Cable Distance'!$P36,BN$53="2.5mm2",'Actuator Cable Distance'!$H$36)),0) -> 0 | BO41: =IF(BO$38>0,(_xlfn.IFS(BO$53="18AWG",'Actuator Cable Distance'!$L36,BO$53="16AWG",'Actuator Cable Distance'!$M36,BO$53="14AWG",'Actuator Cable Distance'!$N36,BO$53="12AWG",'Actuator Cable Distance'!$O36,BO$53="1.5mm2",'Actuator Cable Distance'!$P36,BO$53="2.5mm2",'Actuator Cable Distance'!$H$36)),0) -> 0 | BP41: =IF(BP$38>0,(_xlfn.IFS(BP$53="18AWG",'Actuator Cable Distance'!$L36,BP$53="16AWG",'Actuator Cable Distance'!$M36,BP$53="14AWG",'Actuator Cable Distance'!$N36,BP$53="12AWG",'Actuator Cable Distance'!$O36,BP$53="1.5mm2",'Actuator Cable Distance'!$P36,BP$53="2.5mm2",'Actuator Cable Distance'!$H$36)),0) -> 0 | BQ41: =IF(BQ$38>0,(_xlfn.IFS(BQ$53="18AWG",'Actuator Cable Distance'!$L36,BQ$53="16AWG",'Actuator Cable Distance'!$M36,BQ$53="14AWG",'Actuator Cable Distance'!$N36,BQ$53="12AWG",'Actuator Cable Distance'!$O36,BQ$53="1.5mm2",'Actuator Cable Distance'!$P36,BQ$53="2.5mm2",'Actuator Cable Distance'!$H$36)),0) -> 0 | BR41: =IF(BR$38>0,(_xlfn.IFS(BR$53="18AWG",'Actuator Cable Distance'!$L36,BR$53="16AWG",'Actuator Cable Distance'!$M36,BR$53="14AWG",'Actuator Cable Distance'!$N36,BR$53="12AWG",'Actuator Cable Distance'!$O36,BR$53="1.5mm2",'Actuator Cable Distance'!$P36,BR$53="2.5mm2",'Actuator Cable Distance'!$H$36)),0) -> 0 | BS41: =IF(BS$38>0,(_xlfn.IFS(BS$53="18AWG",'Actuator Cable Distance'!$L36,BS$53="16AWG",'Actuator Cable Distance'!$M36,BS$53="14AWG",'Actuator Cable Distance'!$N36,BS$53="12AWG",'Actuator Cable Distance'!$O36,BS$53="1.5mm2",'Actuator Cable Distance'!$P36,BS$53="2.5mm2",'Actuator Cable Distance'!$H$36)),0) -> 0 | BT41: =IF(BT$38>0,(_xlfn.IFS(BT$53="18AWG",'Actuator Cable Distance'!$L36,BT$53="16AWG",'Actuator Cable Distance'!$M36,BT$53="14AWG",'Actuator Cable Distance'!$N36,BT$53="12AWG",'Actuator Cable Distance'!$O36,BT$53="1.5mm2",'Actuator Cable Distance'!$P36,BT$53="2.5mm2",'Actuator Cable Distance'!$H$36)),0) -> 0 | BU41: =IF(BU$38>0,(_xlfn.IFS(BU$53="18AWG",'Actuator Cable Distance'!$L36,BU$53="16AWG",'Actuator Cable Distance'!$M36,BU$53="14AWG",'Actuator Cable Distance'!$N36,BU$53="12AWG",'Actuator Cable Distance'!$O36,BU$53="1.5mm2",'Actuator Cable Distance'!$P36,BU$53="2.5mm2",'Actuator Cable Distance'!$H$36)),0) -> 0 | BV41: =IF(BV$38>0,(_xlfn.IFS(BV$53="18AWG",'Actuator Cable Distance'!$L36,BV$53="16AWG",'Actuator Cable Distance'!$M36,BV$53="14AWG",'Actuator Cable Distance'!$N36,BV$53="12AWG",'Actuator Cable Distance'!$O36,BV$53="1.5mm2",'Actuator Cable Distance'!$P36,BV$53="2.5mm2",'Actuator Cable Distance'!$H$36)),0) -> 0 | BW41: =IF(BW$38>0,(_xlfn.IFS(BW$53="18AWG",'Actuator Cable Distance'!$L36,BW$53="16AWG",'Actuator Cable Distance'!$M36,BW$53="14AWG",'Actuator Cable Distance'!$N36,BW$53="12AWG",'Actuator Cable Distance'!$O36,BW$53="1.5mm2",'Actuator Cable Distance'!$P36,BW$53="2.5mm2",'Actuator Cable Distance'!$H$36)),0) -> 0 | BX41: =IF(BX$38>0,(_xlfn.IFS(BX$53="18AWG",'Actuator Cable Distance'!$L36,BX$53="16AWG",'Actuator Cable Distance'!$M36,BX$53="14AWG",'Actuator Cable Distance'!$N36,BX$53="12AWG",'Actuator Cable Distance'!$O36,BX$53="1.5mm2",'Actuator Cable Distance'!$P36,BX$53="2.5mm2",'Actuator Cable Distance'!$H$36)),0) -> 0 | BY41: =IF(BY$38>0,(_xlfn.IFS(BY$53="18AWG",'Actuator Cable Distance'!$L36,BY$53="16AWG",'Actuator Cable Distance'!$M36,BY$53="14AWG",'Actuator Cable Distance'!$N36,BY$53="12AWG",'Actuator Cable Distance'!$O36,BY$53="1.5mm2",'Actuator Cable Distance'!$P36,BY$53="2.5mm2",'Actuator Cable Distance'!$H$36)),0) -> 0 | BZ41: =IF(BZ$38>0,(_xlfn.IFS(BZ$53="18AWG",'Actuator Cable Distance'!$L36,BZ$53="16AWG",'Actuator Cable Distance'!$M36,BZ$53="14AWG",'Actuator Cable Distance'!$N36,BZ$53="12AWG",'Actuator Cable Distance'!$O36,BZ$53="1.5mm2",'Actuator Cable Distance'!$P36,BZ$53="2.5mm2",'Actuator Cable Distance'!$H$36)),0) -> 0 | CA41: =IF(CA$38>0,(_xlfn.IFS(CA$53="18AWG",'Actuator Cable Distance'!$L36,CA$53="16AWG",'Actuator Cable Distance'!$M36,CA$53="14AWG",'Actuator Cable Distance'!$N36,CA$53="12AWG",'Actuator Cable Distance'!$O36,CA$53="1.5mm2",'Actuator Cable Distance'!$P36,CA$53="2.5mm2",'Actuator Cable Distance'!$H$36)),0) -> 0 | CB41: =IF(CB$38>0,(_xlfn.IFS(CB$53="18AWG",'Actuator Cable Distance'!$L36,CB$53="16AWG",'Actuator Cable Distance'!$M36,CB$53="14AWG",'Actuator Cable Distance'!$N36,CB$53="12AWG",'Actuator Cable Distance'!$O36,CB$53="1.5mm2",'Actuator Cable Distance'!$P36,CB$53="2.5mm2",'Actuator Cable Distance'!$H$36)),0) -> 0 | CC41: =IF(CC$38>0,(_xlfn.IFS(CC$53="18AWG",'Actuator Cable Distance'!$L36,CC$53="16AWG",'Actuator Cable Distance'!$M36,CC$53="14AWG",'Actuator Cable Distance'!$N36,CC$53="12AWG",'Actuator Cable Distance'!$O36,CC$53="1.5mm2",'Actuator Cable Distance'!$P36,CC$53="2.5mm2",'Actuator Cable Distance'!$H$36)),0) -> 0 | CD41: =IF(CD$38>0,(_xlfn.IFS(CD$53="18AWG",'Actuator Cable Distance'!$L36,CD$53="16AWG",'Actuator Cable Distance'!$M36,CD$53="14AWG",'Actuator Cable Distance'!$N36,CD$53="12AWG",'Actuator Cable Distance'!$O36,CD$53="1.5mm2",'Actuator Cable Distance'!$P36,CD$53="2.5mm2",'Actuator Cable Distance'!$H$36)),0) -> 0 | CE41: =IF(CE$38>0,(_xlfn.IFS(CE$53="18AWG",'Actuator Cable Distance'!$L36,CE$53="16AWG",'Actuator Cable Distance'!$M36,CE$53="14AWG",'Actuator Cable Distance'!$N36,CE$53="12AWG",'Actuator Cable Distance'!$O36,CE$53="1.5mm2",'Actuator Cable Distance'!$P36,CE$53="2.5mm2",'Actuator Cable Distance'!$H$36)),0) -> 0 | CF41: =IF(CF$38>0,(_xlfn.IFS(CF$53="18AWG",'Actuator Cable Distance'!$L36,CF$53="16AWG",'Actuator Cable Distance'!$M36,CF$53="14AWG",'Actuator Cable Distance'!$N36,CF$53="12AWG",'Actuator Cable Distance'!$O36,CF$53="1.5mm2",'Actuator Cable Distance'!$P36,CF$53="2.5mm2",'Actuator Cable Distance'!$H$36)),0) -> 0 | CG41: =IF(CG$38>0,(_xlfn.IFS(CG$53="18AWG",'Actuator Cable Distance'!$L36,CG$53="16AWG",'Actuator Cable Distance'!$M36,CG$53="14AWG",'Actuator Cable Distance'!$N36,CG$53="12AWG",'Actuator Cable Distance'!$O36,CG$53="1.5mm2",'Actuator Cable Distance'!$P36,CG$53="2.5mm2",'Actuator Cable Distance'!$H$36)),0) -> 0
B42: 5 | C42: =+L46 -> No Actuator Selected | G42: =+O46 -> 0 | I42: =IF(I46>0,"**You have either " & I46 & " Missing Solenoid or Missing Allocation of Panel to hazard Zone","") ->  | K42: Solenoid 1 | L42: =VLOOKUP($K38,'4007ESConfigurator'!$B$192:$M$280,4,TRUE) -> No Actuator Selected | O42: =IF(L42="No Actuator Selected",0,1) -> 0 | P42: Solenoid 6 | Q42: =VLOOKUP($P38,'4007ESConfigurator'!$B$192:$M$280,4,TRUE) -> No Actuator Selected | T42: =IF(Q42="No Actuator Selected",0,1) -> 0 | U42: Solenoid 11 | V42: =VLOOKUP($U38,'4007ESConfigurator'!$B$192:$M$280,4,TRUE) -> No Actuator Selected | Y42: =IF(V42="No Actuator Selected",0,1) -> 0 | Z42: Solenoid 16 | AA42: =VLOOKUP($Z38,'4007ESConfigurator'!$B$192:$M$280,4,TRUE) -> No Actuator Selected | AD42: =IF(AA42="No Actuator Selected",0,1) -> 0 | AF42: 0 | AG42: 0 | AH42: RAC Powered | AI42: 0 | BN42: Solenoid 1 | BO42: =VLOOKUP($K38,'4007ESConfigurator'!$B$192:$M$280,4,TRUE) -> No Actuator Selected | BR42: =IF(BO42="No Actuator Selected",0,1) -> 0 | BS42: Solenoid 6 | BT42: =VLOOKUP($P38,'4007ESConfigurator'!$B$192:$M$280,4,TRUE) -> No Actuator Selected | BW42: =IF(BT42="No Actuator Selected",0,1) -> 0 | BX42: Solenoid 11 | BY42: =VLOOKUP($U38,'4007ESConfigurator'!$B$192:$M$280,4,TRUE) -> No Actuator Selected | CB42: =IF(BY42="No Actuator Selected",0,1) -> 0 | CC42: Solenoid 16 | CD42: =VLOOKUP($Z38,'4007ESConfigurator'!$B$192:$M$280,4,TRUE) -> No Actuator Selected | CG42: =IF(CD42="No Actuator Selected",0,1) -> 0
B43: 6 | C43: =+Q42 -> No Actuator Selected | G43: =+T42 -> 0 | K43: Solenoid 2 | L43: =VLOOKUP($L38,'4007ESConfigurator'!$B$192:$M$280,4,TRUE) -> No Actuator Selected | O43: =IF(L43="No Actuator Selected",0,1) -> 0 | P43: Solenoid 7 | Q43: =VLOOKUP($Q38,'4007ESConfigurator'!$B$192:$M$280,4,TRUE) -> No Actuator Selected | T43: =IF(Q43="No Actuator Selected",0,1) -> 0 | U43: Solenoid 12 | V43: =VLOOKUP($V38,'4007ESConfigurator'!$B$192:$M$280,4,TRUE) -> No Actuator Selected | Y43: =IF(V43="No Actuator Selected",0,1) -> 0 | Z43: Solenoid 17 | AA43: =VLOOKUP($AA38,'4007ESConfigurator'!$B$192:$M$280,4,TRUE) -> No Actuator Selected | AD43: =IF(AA43="No Actuator Selected",0,1) -> 0 | AF43: 0 | AG43: 0 | AH43: RAC Powered | AI43: 0 | AR43: Hazard | AS43: =+K35 -> Hazard 1 | AT43: =+L35 -> Hazard 2 | AU43: =+M$35 -> Hazard 3 | AV43: =+N$35 -> Hazard 4 | AW43: Hazard 5 | AX43: Hazard 6 | AY43: Hazard 7 | AZ43: Hazard 8 | BA43: Hazard 9 | BB43: Hazard 10 | BC43: Hazard 11 | BD43: Hazard 12 | BE43: Hazard 13 | BF43: Hazard 14 | BG43: Hazard 15 | BH43: Hazard 16 | BI43: Hazard 17 | BJ43: Hazard 18 | BK43: Hazard 19 | BL43: Hazard 20 | BN43: Solenoid 2 | BO43: =VLOOKUP($L38,'4007ESConfigurator'!$B$192:$M$280,4,TRUE) -> No Actuator Selected | BR43: =IF(BO43="No Actuator Selected",0,1) -> 0 | BS43: Solenoid 7 | BT43: =VLOOKUP($Q38,'4007ESConfigurator'!$B$192:$M$280,4,TRUE) -> No Actuator Selected | BW43: =IF(BT43="No Actuator Selected",0,1) -> 0 | BX43: Solenoid 12 | BY43: =VLOOKUP($V38,'4007ESConfigurator'!$B$192:$M$280,4,TRUE) -> No Actuator Selected | CB43: =IF(BY43="No Actuator Selected",0,1) -> 0 | CC43: Solenoid 17 | CD43: =VLOOKUP($AA38,'4007ESConfigurator'!$B$192:$M$280,4,TRUE) -> No Actuator Selected | CG43: =IF(CD43="No Actuator Selected",0,1) -> 0
B44: 7 | C44: =+Q43 -> No Actuator Selected | G44: =+T43 -> 0 | K44: Solenoid 3 | L44: =VLOOKUP($M38,'4007ESConfigurator'!$B$192:$M$280,4,TRUE) -> No Actuator Selected | O44: 0 | P44: Solenoid 8 | Q44: =VLOOKUP($R38,'4007ESConfigurator'!$B$192:$M$280,4,TRUE) -> No Actuator Selected | T44: 0 | U44: Solenoid 13 | V44: =VLOOKUP($W38,'4007ESConfigurator'!$B$192:$M$280,4,TRUE) -> No Actuator Selected | Y44: 0 | Z44: Solenoid 18 | AA44: =VLOOKUP($AB38,'4007ESConfigurator'!$B$192:$M$280,4,TRUE) -> No Actuator Selected | AD44: 0 | AF44: 0 | AG44: 0 | AH44: RAC Powered | AI44: 0 | AR44: Panel | AS44: =+K$19 -> No Selection | AT44: =+L$19 -> No Selection | AU44: No Selection | AV44: No Selection | AW44: No Selection | AX44: No Selection | AY44: No Selection | AZ44: =+R$19 -> No Selection | BA44: No Selection | BB44: No Selection | BC44: No Selection | BD44: No Selection | BE44: No Selection | BF44: No Selection | BG44: No Selection | BH44: No Selection | BI44: No Selection | BJ44: No Selection | BK44: No Selection | BL44: No Selection | BN44: Solenoid 3 | BO44: =VLOOKUP($M38,'4007ESConfigurator'!$B$192:$M$280,4,TRUE) -> No Actuator Selected | BR44: 0 | BS44: Solenoid 8 | BT44: =VLOOKUP($R38,'4007ESConfigurator'!$B$192:$M$280,4,TRUE) -> No Actuator Selected | BW44: 0 | BX44: Solenoid 13 | BY44: =VLOOKUP($W38,'4007ESConfigurator'!$B$192:$M$280,4,TRUE) -> No Actuator Selected | CB44: 0 | CC44: Solenoid 18 | CD44: =VLOOKUP($AB38,'4007ESConfigurator'!$B$192:$M$280,4,TRUE) -> No Actuator Selected | CG44: 0
B45: 8 | C45: =+Q44 -> No Actuator Selected | G45: =+T44 -> 0 | I45: ** This Check is for matching Hazard Zone have matching Solenoid assigned | K45: Solenoid 4 | L45: =VLOOKUP($N38,'4007ESConfigurator'!$B$192:$M$280,4,TRUE) -> No Actuator Selected | O45: 0 | P45: Solenoid 9 | Q45: =VLOOKUP($S38,'4007ESConfigurator'!$B$192:$M$280,4,TRUE) -> No Actuator Selected | T45: 0 | U45: Solenoid 14 | V45: =VLOOKUP($X38,'4007ESConfigurator'!$B$192:$M$280,4,TRUE) -> No Actuator Selected | Y45: 0 | Z45: Solenoid 19 | AA45: =VLOOKUP($AC38,'4007ESConfigurator'!$B$192:$M$280,4,TRUE) -> No Actuator Selected | AD45: 0 | AF45: 0 | AG45: 0 | AH45: RAC Powered | AI45: 0 | AR45: NAC | AS45: =+K175 -> 0 | AT45: =+L175 -> 0 | AU45: 0 | AV45: 0 | AW45: 0 | AX45: 0 | AY45: 0 | AZ45: 0 | BA45: 0 | BB45: 0 | BC45: 0 | BD45: 0 | BE45: 0 | BF45: 0 | BG45: 0 | BH45: 0 | BI45: 0 | BJ45: 0 | BK45: 0 | BL45: 0 | BN45: Solenoid 4 | BO45: =VLOOKUP($N38,'4007ESConfigurator'!$B$192:$M$280,4,TRUE) -> No Actuator Selected | BR45: 0 | BS45: Solenoid 9 | BT45: =VLOOKUP($S38,'4007ESConfigurator'!$B$192:$M$280,4,TRUE) -> No Actuator Selected | BW45: 0 | BX45: Solenoid 14 | BY45: =VLOOKUP($X38,'4007ESConfigurator'!$B$192:$M$280,4,TRUE) -> No Actuator Selected | CB45: 0 | CC45: Solenoid 19 | CD45: =VLOOKUP($AC38,'4007ESConfigurator'!$B$192:$M$280,4,TRUE) -> No Actuator Selected | CG45: 0
B46: 9 | C46: =+Q45 -> No Actuator Selected | G46: =+T45 -> 0 | K46: Solenoid 5 | L46: =VLOOKUP($O38,'4007ESConfigurator'!$B$192:$M$280,4,TRUE) -> No Actuator Selected | O46: 0 | P46: Solenoid 10 | Q46: =VLOOKUP($T38,'4007ESConfigurator'!$B$192:$M$280,4,TRUE) -> No Actuator Selected | T46: 0 | U46: Solenoid 15 | V46: =VLOOKUP($Y38,'4007ESConfigurator'!$B$192:$M$280,4,TRUE) -> No Actuator Selected | Y46: 0 | Z46: Solenoid 20 | AA46: =VLOOKUP($AD38,'4007ESConfigurator'!$B$192:$M$280,4,TRUE) -> No Actuator Selected | AD46: 0 | AF46: 0 | AG46: 0 | AH46: RAC Powered | AI46: 0 | AV46: Auxillary PS | BN46: Solenoid 5 | BO46: =VLOOKUP($O38,'4007ESConfigurator'!$B$192:$M$280,4,TRUE) -> No Actuator Selected | BR46: 0 | BS46: Solenoid 10 | BT46: =VLOOKUP($T38,'4007ESConfigurator'!$B$192:$M$280,4,TRUE) -> No Actuator Selected | BW46: 0 | BX46: Solenoid 15 | BY46: =VLOOKUP($Y38,'4007ESConfigurator'!$B$192:$M$280,4,TRUE) -> No Actuator Selected | CB46: 0 | CC46: Solenoid 20 | CD46: =VLOOKUP($AD38,'4007ESConfigurator'!$B$192:$M$280,4,TRUE) -> No Actuator Selected | CG46: 0
B47: 10 | C47: =+Q46 -> No Actuator Selected | G47: =+T46 -> 0 | I47: 4007ES NAC Wiring to Addr SRP Modules | K47: Cable Selection for 4007ES NAC to RAC Suppression Release Peripheral Modules | AF47: 0 | AG47: 0 | AH47: RAC Powered | AI47: 0 | AS47: Panel | AT47: RAC | AU47: NAC | AV47: Alarm | AW47: Standby | AX47: Type | AY47: Gas | AZ47: Preaction | BN47: Cable Selection for 4007ES NAC to RAC Suppression Release Peripheral Modules
B48: 11 | C48: =+V42 -> No Actuator Selected | G48: =+Y42 -> 0 | I48: RAC Wire Gauge Selection | K48: 2.5mm2 | L48: 2.5mm2 | M48: 2.5mm2 | N48: 2.5mm2 | O48: 2.5mm2 | P48: 2.5mm2 | Q48: 2.5mm2 | R48: 2.5mm2 | S48: 2.5mm2 | T48: 2.5mm2 | U48: 2.5mm2 | V48: 2.5mm2 | W48: 2.5mm2 | X48: 2.5mm2 | Y48: 2.5mm2 | Z48: 2.5mm2 | AA48: 2.5mm2 | AB48: 2.5mm2 | AC48: 2.5mm2 | AD48: 2.5mm2 | AF48: 0 | AG48: 0 | AH48: RAC Powered | AI48: 0 | AS48: 4007ES | AT48: =SUMPRODUCT(--($AS$40:$BL$40="4007ES")*($AS$41:$BL$41)) -> 0 | AU48: =SUMPRODUCT(--($AS$44:$BL$44="4007ES")*($AS$45:$BL$45)) -> 0 | AV48: =SUMPRODUCT(--($AS$56:$BL$56="4007ES")*($AS$57:$BL$73)) -> 0 | AW48: =SUMPRODUCT(--($AS$77:$BL$77="4007ES")*($AS$78:$BL$93)) -> 0 | AX48: =IF(AZ48>0.9,"Preaction","Gas") -> Gas | AY48: =(((SUMPRODUCT(--($AS$25:$BL$25="4007ES")*($AS$27:$BL$27))))) -> 0 | AZ48: =(((SUMPRODUCT(--($AS$25:$BL$25="4007ES")*($AS$28:$BL$28))))) -> 0 | BM48: 4 | BN48: 16AWG | BO48: 16AWG | BP48: 16AWG | BQ48: 16AWG | BR48: 16AWG | BS48: 16AWG | BT48: 16AWG | BU48: 16AWG | BV48: 16AWG | BW48: 16AWG | BX48: 16AWG | BY48: 16AWG | BZ48: 16AWG | CA48: 16AWG | CB48: 16AWG | CC48: 16AWG | CD48: 16AWG | CE48: 16AWG | CF48: 16AWG | CG48: 16AWG
B49: 12 | C49: =+V43 -> No Actuator Selected | G49: =+Y43 -> 0 | I49: Max Line Resistance | K49: Max Line Resistance | L49: Max Line Resistance | M49: Max Line Resistance | N49: Max Line Resistance | O49: Max Line Resistance | P49: Max Line Resistance | Q49: Max Line Resistance | R49: Max Line Resistance | S49: Max Line Resistance | T49: Max Line Resistance | U49: Max Line Resistance | V49: Max Line Resistance | W49: Max Line Resistance | X49: Max Line Resistance | Y49: Max Line Resistance | Z49: Max Line Resistance | AA49: Max Line Resistance | AB49: Max Line Resistance | AC49: Max Line Resistance | AD49: Max Line Resistance | AF49: 0 | AG49: 0 | AH49: RAC Powered | AI49: 0 | AS49: NAC Repeat 1 | AT49: =SUMPRODUCT(--($AS$40:$BL$40="NAC REPEAT 1")*($AS$41:$BL$41)) -> 0 | AU49: =SUMPRODUCT(--($AS$44:$BL$44="NAC REPEAT 1")*($AS$45:$BL$45)) -> 0 | AV49: =SUMPRODUCT(--($AS$56:$BL$56="NAC REPEAT 1")*($AS$57:$BL$73)) -> 0 | AW49: =SUMPRODUCT(--($AS$77:$BL$77="NAC Repeat 1")*($AS$78:$BL$93)) -> 0 | AX49: =IF(AZ49>0.9,"Preaction","Gas") -> Gas | AY49: =(((SUMPRODUCT(--($AS$25:$BL$25="NAC Repeat 1")*($AS$27:$BL$27))))) -> 0 | AZ49: =(((SUMPRODUCT(--($AS$25:$BL$25="NAC Repeat 1")*($AS$28:$BL$28))))) -> 0 | BN49: Max Line Resistance | BO49: Max Line Resistance | BP49: Max Line Resistance | BQ49: Max Line Resistance | BR49: Max Line Resistance | BS49: Max Line Resistance | BT49: Max Line Resistance | BU49: Max Line Resistance | BV49: Max Line Resistance | BW49: Max Line Resistance | BX49: Max Line Resistance | BY49: Max Line Resistance | BZ49: Max Line Resistance | CA49: Max Line Resistance | CB49: Max Line Resistance | CC49: Max Line Resistance | CD49: Max Line Resistance | CE49: Max Line Resistance | CF49: Max Line Resistance | CG49: Max Line Resistance
B50: 13 | C50: =+V44 -> No Actuator Selected | G50: =+Y44 -> 0 | I50: Affected by Solenoid Current Rating | K50: =_xlfn.IFS(K$39>1999,'[1]Actuator Cable Distance'!$M$10,K$39>1749,'[1]Actuator Cable Distance'!$M$9,K$39>1499,'[1]Actuator Cable Distance'!$M$8,K$39>1249,'[1]Actuator Cable Distance'!$M$7,K$39>999,'[1]Actuator Cable Distance'!$M$6,K$39>749,'[1]Actuator Cable Distance'!$M$5,K$39>499,'[1]Actuator Cable Distance'!$M$4,K$39>249,'[1]Actuator Cable Distance'!$M$4,K38<1,0) -> 0 | L50: =_xlfn.IFS(L$39>1999,'Actuator Cable Distance'!$M$22,L$39>1749,'Actuator Cable Distance'!$M$21,L$39>1499,'Actuator Cable Distance'!$M$20,L$39>1249,'Actuator Cable Distance'!$M$19,L$39>999,'Actuator Cable Distance'!$M$18,L$39>749,'Actuator Cable Distance'!$M$17,L$39>499,'Actuator Cable Distance'!$M$16,L$39>249,'Actuator Cable Distance'!$M$16,L38<1,0) -> 0 | M50: =_xlfn.IFS(M$39>1999,'Actuator Cable Distance'!$M$22,M$39>1749,'Actuator Cable Distance'!$M$21,M$39>1499,'Actuator Cable Distance'!$M$20,M$39>1249,'Actuator Cable Distance'!$M$19,M$39>999,'Actuator Cable Distance'!$M$18,M$39>749,'Actuator Cable Distance'!$M$17,M$39>499,'Actuator Cable Distance'!$M$16,M$39>249,'Actuator Cable Distance'!$M$16,M38<1,0) -> 0 | N50: =_xlfn.IFS(N$39>1999,'Actuator Cable Distance'!$M$22,N$39>1749,'Actuator Cable Distance'!$M$21,N$39>1499,'Actuator Cable Distance'!$M$20,N$39>1249,'Actuator Cable Distance'!$M$19,N$39>999,'Actuator Cable Distance'!$M$18,N$39>749,'Actuator Cable Distance'!$M$17,N$39>499,'Actuator Cable Distance'!$M$16,N$39>249,'Actuator Cable Distance'!$M$16,N38<1,0) -> 0 | O50: =_xlfn.IFS(O$39>1999,'Actuator Cable Distance'!$M$22,O$39>1749,'Actuator Cable Distance'!$M$21,O$39>1499,'Actuator Cable Distance'!$M$20,O$39>1249,'Actuator Cable Distance'!$M$19,O$39>999,'Actuator Cable Distance'!$M$18,O$39>749,'Actuator Cable Distance'!$M$17,O$39>499,'Actuator Cable Distance'!$M$16,O$39>249,'Actuator Cable Distance'!$M$16,O38<1,0) -> 0 | P50: =_xlfn.IFS(P$39>1999,'Actuator Cable Distance'!$M$22,P$39>1749,'Actuator Cable Distance'!$M$21,P$39>1499,'Actuator Cable Distance'!$M$20,P$39>1249,'Actuator Cable Distance'!$M$19,P$39>999,'Actuator Cable Distance'!$M$18,P$39>749,'Actuator Cable Distance'!$M$17,P$39>499,'Actuator Cable Distance'!$M$16,P$39>249,'Actuator Cable Distance'!$M$16,P38<1,0) -> 0 | Q50: =_xlfn.IFS(Q$39>1999,'Actuator Cable Distance'!$M$22,Q$39>1749,'Actuator Cable Distance'!$M$21,Q$39>1499,'Actuator Cable Distance'!$M$20,Q$39>1249,'Actuator Cable Distance'!$M$19,Q$39>999,'Actuator Cable Distance'!$M$18,Q$39>749,'Actuator Cable Distance'!$M$17,Q$39>499,'Actuator Cable Distance'!$M$16,Q$39>249,'Actuator Cable Distance'!$M$16,Q38<1,0) -> 0 | R50: =_xlfn.IFS(R$39>1999,'Actuator Cable Distance'!$M$22,R$39>1749,'Actuator Cable Distance'!$M$21,R$39>1499,'Actuator Cable Distance'!$M$20,R$39>1249,'Actuator Cable Distance'!$M$19,R$39>999,'Actuator Cable Distance'!$M$18,R$39>749,'Actuator Cable Distance'!$M$17,R$39>499,'Actuator Cable Distance'!$M$16,R$39>249,'Actuator Cable Distance'!$M$16,R38<1,0) -> 0 | S50: =_xlfn.IFS(S$39>1999,'Actuator Cable Distance'!$M$22,S$39>1749,'Actuator Cable Distance'!$M$21,S$39>1499,'Actuator Cable Distance'!$M$20,S$39>1249,'Actuator Cable Distance'!$M$19,S$39>999,'Actuator Cable Distance'!$M$18,S$39>749,'Actuator Cable Distance'!$M$17,S$39>499,'Actuator Cable Distance'!$M$16,S$39>249,'Actuator Cable Distance'!$M$16,S38<1,0) -> 0 | T50: =_xlfn.IFS(T$39>1999,'Actuator Cable Distance'!$M$22,T$39>1749,'Actuator Cable Distance'!$M$21,T$39>1499,'Actuator Cable Distance'!$M$20,T$39>1249,'Actuator Cable Distance'!$M$19,T$39>999,'Actuator Cable Distance'!$M$18,T$39>749,'Actuator Cable Distance'!$M$17,T$39>499,'Actuator Cable Distance'!$M$16,T$39>249,'Actuator Cable Distance'!$M$16,T38<1,0) -> 0 | U50: =_xlfn.IFS(U$39>1999,'Actuator Cable Distance'!$M$22,U$39>1749,'Actuator Cable Distance'!$M$21,U$39>1499,'Actuator Cable Distance'!$M$20,U$39>1249,'Actuator Cable Distance'!$M$19,U$39>999,'Actuator Cable Distance'!$M$18,U$39>749,'Actuator Cable Distance'!$M$17,U$39>499,'Actuator Cable Distance'!$M$16,U$39>249,'Actuator Cable Distance'!$M$16,U38<1,0) -> 0 | V50: =_xlfn.IFS(V$39>1999,'Actuator Cable Distance'!$M$22,V$39>1749,'Actuator Cable Distance'!$M$21,V$39>1499,'Actuator Cable Distance'!$M$20,V$39>1249,'Actuator Cable Distance'!$M$19,V$39>999,'Actuator Cable Distance'!$M$18,V$39>749,'Actuator Cable Distance'!$M$17,V$39>499,'Actuator Cable Distance'!$M$16,V$39>249,'Actuator Cable Distance'!$M$16,V38<1,0) -> 0 | W50: =_xlfn.IFS(W$39>1999,'Actuator Cable Distance'!$M$22,W$39>1749,'Actuator Cable Distance'!$M$21,W$39>1499,'Actuator Cable Distance'!$M$20,W$39>1249,'Actuator Cable Distance'!$M$19,W$39>999,'Actuator Cable Distance'!$M$18,W$39>749,'Actuator Cable Distance'!$M$17,W$39>499,'Actuator Cable Distance'!$M$16,W$39>249,'Actuator Cable Distance'!$M$16,W38<1,0) -> 0 | X50: =_xlfn.IFS(X$39>1999,'Actuator Cable Distance'!$M$22,X$39>1749,'Actuator Cable Distance'!$M$21,X$39>1499,'Actuator Cable Distance'!$M$20,X$39>1249,'Actuator Cable Distance'!$M$19,X$39>999,'Actuator Cable Distance'!$M$18,X$39>749,'Actuator Cable Distance'!$M$17,X$39>499,'Actuator Cable Distance'!$M$16,X$39>249,'Actuator Cable Distance'!$M$16,X38<1,0) -> 0 | Y50: =_xlfn.IFS(Y$39>1999,'Actuator Cable Distance'!$M$22,Y$39>1749,'Actuator Cable Distance'!$M$21,Y$39>1499,'Actuator Cable Distance'!$M$20,Y$39>1249,'Actuator Cable Distance'!$M$19,Y$39>999,'Actuator Cable Distance'!$M$18,Y$39>749,'Actuator Cable Distance'!$M$17,Y$39>499,'Actuator Cable Distance'!$M$16,Y$39>249,'Actuator Cable Distance'!$M$16,Y38<1,0) -> 0 | Z50: =_xlfn.IFS(Z$39>1999,'Actuator Cable Distance'!$M$22,Z$39>1749,'Actuator Cable Distance'!$M$21,Z$39>1499,'Actuator Cable Distance'!$M$20,Z$39>1249,'Actuator Cable Distance'!$M$19,Z$39>999,'Actuator Cable Distance'!$M$18,Z$39>749,'Actuator Cable Distance'!$M$17,Z$39>499,'Actuator Cable Distance'!$M$16,Z$39>249,'Actuator Cable Distance'!$M$16,Z38<1,0) -> 0 | AA50: =_xlfn.IFS(AA$39>1999,'Actuator Cable Distance'!$M$22,AA$39>1749,'Actuator Cable Distance'!$M$21,AA$39>1499,'Actuator Cable Distance'!$M$20,AA$39>1249,'Actuator Cable Distance'!$M$19,AA$39>999,'Actuator Cable Distance'!$M$18,AA$39>749,'Actuator Cable Distance'!$M$17,AA$39>499,'Actuator Cable Distance'!$M$16,AA$39>249,'Actuator Cable Distance'!$M$16,AA38<1,0) -> 0 | AB50: =_xlfn.IFS(AB$39>1999,'Actuator Cable Distance'!$M$22,AB$39>1749,'Actuator Cable Distance'!$M$21,AB$39>1499,'Actuator Cable Distance'!$M$20,AB$39>1249,'Actuator Cable Distance'!$M$19,AB$39>999,'Actuator Cable Distance'!$M$18,AB$39>749,'Actuator Cable Distance'!$M$17,AB$39>499,'Actuator Cable Distance'!$M$16,AB$39>249,'Actuator Cable Distance'!$M$16,AB38<1,0) -> 0 | AC50: =_xlfn.IFS(AC$39>1999,'Actuator Cable Distance'!$M$22,AC$39>1749,'Actuator Cable Distance'!$M$21,AC$39>1499,'Actuator Cable Distance'!$M$20,AC$39>1249,'Actuator Cable Distance'!$M$19,AC$39>999,'Actuator Cable Distance'!$M$18,AC$39>749,'Actuator Cable Distance'!$M$17,AC$39>499,'Actuator Cable Distance'!$M$16,AC$39>249,'Actuator Cable Distance'!$M$16,AC38<1,0) -> 0 | AD50: =_xlfn.IFS(AD$39>1999,'Actuator Cable Distance'!$M$22,AD$39>1749,'Actuator Cable Distance'!$M$21,AD$39>1499,'Actuator Cable Distance'!$M$20,AD$39>1249,'Actuator Cable Distance'!$M$19,AD$39>999,'Actuator Cable Distance'!$M$18,AD$39>749,'Actuator Cable Distance'!$M$17,AD$39>499,'Actuator Cable Distance'!$M$16,AD$39>249,'Actuator Cable Distance'!$M$16,AD38<1,0) -> 0 | AF50: 0 | AG50: 0 | AH50: RAC Powered | AI50: 0 | AS50: NAC Repeat 2 | AT50: =SUMPRODUCT(--($AS$40:$BL$40="NAC REPEAT 2")*($AS$41:$BL$41)) -> 0 | AU50: =SUMPRODUCT(--($AS$44:$BL$44="NAC REPEAT 2")*($AS$45:$BL$45)) -> 0 | AV50: =SUMPRODUCT(--($AS$56:$BL$56="NAC REPEAT 2")*($AS$57:$BL$73)) -> 0 | AW50: =SUMPRODUCT(--($AS$77:$BL$77="NAC Repeat 2")*($AS$78:$BL$93)) -> 0 | AX50: Gas | AY50: =(((SUMPRODUCT(--($AS$25:$BL$25="4007ES")*($AS$27:$BL$27))))) -> 0 | AZ50: =(((SUMPRODUCT(--($AS$25:$BL$25="NAC Repeat 2")*($AS$28:$BL$28))))) -> 0 | BN50: =_xlfn.IFS(BN$39>1999,'Actuator Cable Distance'!$M$10,BN$39>1749,'Actuator Cable Distance'!$M$9,BN$39>1499,'Actuator Cable Distance'!$M$8,BN$39>1249,'Actuator Cable Distance'!$M$7,BN$39>999,'Actuator Cable Distance'!$M$6,BN$39>749,'Actuator Cable Distance'!$M$5,BN$39>499,'Actuator Cable Distance'!$M$4,BN$39>249,'Actuator Cable Distance'!$M$4,BN38<1,0) -> 0 | BO50: =_xlfn.IFS(BO$39>1999,'Actuator Cable Distance'!$M$22,BO$39>1749,'Actuator Cable Distance'!$M$21,BO$39>1499,'Actuator Cable Distance'!$M$20,BO$39>1249,'Actuator Cable Distance'!$M$19,BO$39>999,'Actuator Cable Distance'!$M$18,BO$39>749,'Actuator Cable Distance'!$M$17,BO$39>499,'Actuator Cable Distance'!$M$16,BO$39>249,'Actuator Cable Distance'!$M$16,BO38<1,0) -> 0 | BP50: =_xlfn.IFS(BP$39>1999,'Actuator Cable Distance'!$M$22,BP$39>1749,'Actuator Cable Distance'!$M$21,BP$39>1499,'Actuator Cable Distance'!$M$20,BP$39>1249,'Actuator Cable Distance'!$M$19,BP$39>999,'Actuator Cable Distance'!$M$18,BP$39>749,'Actuator Cable Distance'!$M$17,BP$39>499,'Actuator Cable Distance'!$M$16,BP$39>249,'Actuator Cable Distance'!$M$16,BP38<1,0) -> 0 | BQ50: =_xlfn.IFS(BQ$39>1999,'Actuator Cable Distance'!$M$22,BQ$39>1749,'Actuator Cable Distance'!$M$21,BQ$39>1499,'Actuator Cable Distance'!$M$20,BQ$39>1249,'Actuator Cable Distance'!$M$19,BQ$39>999,'Actuator Cable Distance'!$M$18,BQ$39>749,'Actuator Cable Distance'!$M$17,BQ$39>499,'Actuator Cable Distance'!$M$16,BQ$39>249,'Actuator Cable Distance'!$M$16,BQ38<1,0) -> 0 | BR50: =_xlfn.IFS(BR$39>1999,'Actuator Cable Distance'!$M$22,BR$39>1749,'Actuator Cable Distance'!$M$21,BR$39>1499,'Actuator Cable Distance'!$M$20,BR$39>1249,'Actuator Cable Distance'!$M$19,BR$39>999,'Actuator Cable Distance'!$M$18,BR$39>749,'Actuator Cable Distance'!$M$17,BR$39>499,'Actuator Cable Distance'!$M$16,BR$39>249,'Actuator Cable Distance'!$M$16,BR38<1,0) -> 0 | BS50: =_xlfn.IFS(BS$39>1999,'Actuator Cable Distance'!$M$22,BS$39>1749,'Actuator Cable Distance'!$M$21,BS$39>1499,'Actuator Cable Distance'!$M$20,BS$39>1249,'Actuator Cable Distance'!$M$19,BS$39>999,'Actuator Cable Distance'!$M$18,BS$39>749,'Actuator Cable Distance'!$M$17,BS$39>499,'Actuator Cable Distance'!$M$16,BS$39>249,'Actuator Cable Distance'!$M$16,BS38<1,0) -> 0 | BT50: =_xlfn.IFS(BT$39>1999,'Actuator Cable Distance'!$M$22,BT$39>1749,'Actuator Cable Distance'!$M$21,BT$39>1499,'Actuator Cable Distance'!$M$20,BT$39>1249,'Actuator Cable Distance'!$M$19,BT$39>999,'Actuator Cable Distance'!$M$18,BT$39>749,'Actuator Cable Distance'!$M$17,BT$39>499,'Actuator Cable Distance'!$M$16,BT$39>249,'Actuator Cable Distance'!$M$16,BT38<1,0) -> 0 | BU50: =_xlfn.IFS(BU$39>1999,'Actuator Cable Distance'!$M$22,BU$39>1749,'Actuator Cable Distance'!$M$21,BU$39>1499,'Actuator Cable Distance'!$M$20,BU$39>1249,'Actuator Cable Distance'!$M$19,BU$39>999,'Actuator Cable Distance'!$M$18,BU$39>749,'Actuator Cable Distance'!$M$17,BU$39>499,'Actuator Cable Distance'!$M$16,BU$39>249,'Actuator Cable Distance'!$M$16,BU38<1,0) -> 0 | BV50: =_xlfn.IFS(BV$39>1999,'Actuator Cable Distance'!$M$22,BV$39>1749,'Actuator Cable Distance'!$M$21,BV$39>1499,'Actuator Cable Distance'!$M$20,BV$39>1249,'Actuator Cable Distance'!$M$19,BV$39>999,'Actuator Cable Distance'!$M$18,BV$39>749,'Actuator Cable Distance'!$M$17,BV$39>499,'Actuator Cable Distance'!$M$16,BV$39>249,'Actuator Cable Distance'!$M$16,BV38<1,0) -> 0 | BW50: =_xlfn.IFS(BW$39>1999,'Actuator Cable Distance'!$M$22,BW$39>1749,'Actuator Cable Distance'!$M$21,BW$39>1499,'Actuator Cable Distance'!$M$20,BW$39>1249,'Actuator Cable Distance'!$M$19,BW$39>999,'Actuator Cable Distance'!$M$18,BW$39>749,'Actuator Cable Distance'!$M$17,BW$39>499,'Actuator Cable Distance'!$M$16,BW$39>249,'Actuator Cable Distance'!$M$16,BW38<1,0) -> 0 | BX50: =_xlfn.IFS(BX$39>1999,'Actuator Cable Distance'!$M$22,BX$39>1749,'Actuator Cable Distance'!$M$21,BX$39>1499,'Actuator Cable Distance'!$M$20,BX$39>1249,'Actuator Cable Distance'!$M$19,BX$39>999,'Actuator Cable Distance'!$M$18,BX$39>749,'Actuator Cable Distance'!$M$17,BX$39>499,'Actuator Cable Distance'!$M$16,BX$39>249,'Actuator Cable Distance'!$M$16,BX38<1,0) -> 0 | BY50: =_xlfn.IFS(BY$39>1999,'Actuator Cable Distance'!$M$22,BY$39>1749,'Actuator Cable Distance'!$M$21,BY$39>1499,'Actuator Cable Distance'!$M$20,BY$39>1249,'Actuator Cable Distance'!$M$19,BY$39>999,'Actuator Cable Distance'!$M$18,BY$39>749,'Actuator Cable Distance'!$M$17,BY$39>499,'Actuator Cable Distance'!$M$16,BY$39>249,'Actuator Cable Distance'!$M$16,BY38<1,0) -> 0 | BZ50: =_xlfn.IFS(BZ$39>1999,'Actuator Cable Distance'!$M$22,BZ$39>1749,'Actuator Cable Distance'!$M$21,BZ$39>1499,'Actuator Cable Distance'!$M$20,BZ$39>1249,'Actuator Cable Distance'!$M$19,BZ$39>999,'Actuator Cable Distance'!$M$18,BZ$39>749,'Actuator Cable Distance'!$M$17,BZ$39>499,'Actuator Cable Distance'!$M$16,BZ$39>249,'Actuator Cable Distance'!$M$16,BZ38<1,0) -> 0 | CA50: =_xlfn.IFS(CA$39>1999,'Actuator Cable Distance'!$M$22,CA$39>1749,'Actuator Cable Distance'!$M$21,CA$39>1499,'Actuator Cable Distance'!$M$20,CA$39>1249,'Actuator Cable Distance'!$M$19,CA$39>999,'Actuator Cable Distance'!$M$18,CA$39>749,'Actuator Cable Distance'!$M$17,CA$39>499,'Actuator Cable Distance'!$M$16,CA$39>249,'Actuator Cable Distance'!$M$16,CA38<1,0) -> 0 | CB50: =_xlfn.IFS(CB$39>1999,'Actuator Cable Distance'!$M$22,CB$39>1749,'Actuator Cable Distance'!$M$21,CB$39>1499,'Actuator Cable Distance'!$M$20,CB$39>1249,'Actuator Cable Distance'!$M$19,CB$39>999,'Actuator Cable Distance'!$M$18,CB$39>749,'Actuator Cable Distance'!$M$17,CB$39>499,'Actuator Cable Distance'!$M$16,CB$39>249,'Actuator Cable Distance'!$M$16,CB38<1,0) -> 0 | CC50: =_xlfn.IFS(CC$39>1999,'Actuator Cable Distance'!$M$22,CC$39>1749,'Actuator Cable Distance'!$M$21,CC$39>1499,'Actuator Cable Distance'!$M$20,CC$39>1249,'Actuator Cable Distance'!$M$19,CC$39>999,'Actuator Cable Distance'!$M$18,CC$39>749,'Actuator Cable Distance'!$M$17,CC$39>499,'Actuator Cable Distance'!$M$16,CC$39>249,'Actuator Cable Distance'!$M$16,CC38<1,0) -> 0 | CD50: =_xlfn.IFS(CD$39>1999,'Actuator Cable Distance'!$M$22,CD$39>1749,'Actuator Cable Distance'!$M$21,CD$39>1499,'Actuator Cable Distance'!$M$20,CD$39>1249,'Actuator Cable Distance'!$M$19,CD$39>999,'Actuator Cable Distance'!$M$18,CD$39>749,'Actuator Cable Distance'!$M$17,CD$39>499,'Actuator Cable Distance'!$M$16,CD$39>249,'Actuator Cable Distance'!$M$16,CD38<1,0) -> 0 | CE50: =_xlfn.IFS(CE$39>1999,'Actuator Cable Distance'!$M$22,CE$39>1749,'Actuator Cable Distance'!$M$21,CE$39>1499,'Actuator Cable Distance'!$M$20,CE$39>1249,'Actuator Cable Distance'!$M$19,CE$39>999,'Actuator Cable Distance'!$M$18,CE$39>749,'Actuator Cable Distance'!$M$17,CE$39>499,'Actuator Cable Distance'!$M$16,CE$39>249,'Actuator Cable Distance'!$M$16,CE38<1,0) -> 0 | CF50: =_xlfn.IFS(CF$39>1999,'Actuator Cable Distance'!$M$22,CF$39>1749,'Actuator Cable Distance'!$M$21,CF$39>1499,'Actuator Cable Distance'!$M$20,CF$39>1249,'Actuator Cable Distance'!$M$19,CF$39>999,'Actuator Cable Distance'!$M$18,CF$39>749,'Actuator Cable Distance'!$M$17,CF$39>499,'Actuator Cable Distance'!$M$16,CF$39>249,'Actuator Cable Distance'!$M$16,CF38<1,0) -> 0 | CG50: =_xlfn.IFS(CG$39>1999,'Actuator Cable Distance'!$M$22,CG$39>1749,'Actuator Cable Distance'!$M$21,CG$39>1499,'Actuator Cable Distance'!$M$20,CG$39>1249,'Actuator Cable Distance'!$M$19,CG$39>999,'Actuator Cable Distance'!$M$18,CG$39>749,'Actuator Cable Distance'!$M$17,CG$39>499,'Actuator Cable Distance'!$M$16,CG$39>249,'Actuator Cable Distance'!$M$16,CG38<1,0) -> 0
B51: 14 | C51: =+V45 -> No Actuator Selected | G51: =+Y45 -> 0 | I51: Max Volt -Affected by Solenoid Current Rating | K51: =IF(K$38>0,(IF(K$39<1751,"Vdrop=3.4V","Vdrop=1.2V")),0) -> 0 | L51: 0 | M51: 0 | N51: 0 | O51: 0 | P51: 0 | Q51: 0 | R51: 0 | S51: 0 | T51: 0 | U51: 0 | V51: 0 | W51: 0 | X51: 0 | Y51: 0 | Z51: 0 | AA51: 0 | AB51: 0 | AC51: 0 | AD51: 0 | AF51: 0 | AG51: 0 | AH51: RAC Powered | AI51: 0 | AS51: NAC Repeat 3 | AT51: =SUMPRODUCT(--($AS$40:$BL$40="NAC REPEAT 3")*($AS$41:$BL$41)) -> 0 | AU51: =SUMPRODUCT(--($AS$44:$BL$44="NAC REPEAT 4")*($AS$45:$BL$45)) -> 0 | AV51: =SUMPRODUCT(--($AS$56:$BL$56="NAC REPEAT 3")*($AS$57:$BL$73)) -> 0 | AW51: =SUMPRODUCT(--($AS$77:$BL$77="NAC Repeat 3")*($AS$78:$BL$93)) -> 0 | AX51: Gas | AY51: =(((SUMPRODUCT(--($AS$25:$BL$25="4007ES")*($AS$27:$BL$27))))) -> 0 | AZ51: =(((SUMPRODUCT(--($AS$25:$BL$25="NAC Repeat 3")*($AS$28:$BL$28))))) -> 0 | BN51: =IF(BN$38>0,(IF(BN$39<1751,"Vdrop=3.4V","Vdrop=1.2V")),0) -> 0 | BO51: 0 | BP51: 0 | BQ51: 0 | BR51: 0 | BS51: 0 | BT51: 0 | BU51: 0 | BV51: 0 | BW51: 0 | BX51: 0 | BY51: 0 | BZ51: 0 | CA51: 0 | CB51: 0 | CC51: 0 | CD51: 0 | CE51: 0 | CF51: 0 | CG51: 0
B52: 15 | C52: =+V46 -> No Actuator Selected | G52: =+Y46 -> 0 | I52: Addr SRP Modules Wiring to Solenoid | K52: Cable Selection for Addressable Suppression Release Peripheral Modules to Solenoid | AF52: 0 | AG52: 0 | AH52: RAC Powered | AI52: 0 | AS52: NAC Repeat 4 | AT52: =SUMPRODUCT(--($AS$40:$BL$40="NAC REPEAT 4")*($AS$41:$BL$41)) -> 0 | AU52: =SUMPRODUCT(--($AS$44:$BL$44="NAC REPEAT 4")*($AS$45:$BL$45)) -> 0 | AV52: =SUMPRODUCT(--($AS$56:$BL$56="NAC REPEAT 4")*($AS$57:$BL$73)) -> 0 | AW52: =SUMPRODUCT(--($AS$77:$BL$77="NAC Repeat 4")*($AS$78:$BL$93)) -> 0 | AX52: Gas | AY52: =(((SUMPRODUCT(--($AS$25:$BL$25="4007ES")*($AS$27:$BL$27))))) -> 0 | AZ52: =(((SUMPRODUCT(--($AS$25:$BL$25="NAC Repeat 4")*($AS$28:$BL$28))))) -> 0 | BN52: Cable Selection for Addressable Suppression Release Peripheral Modules to Solenoid
B53: 16 | C53: =+AA42 -> No Actuator Selected | G53: =+AD42 -> 0 | I53: NAC Wire Gauge Selection | K53: 2.5mm2 | L53: 2.5mm2 | M53: 2.5mm2 | N53: 2.5mm2 | O53: 2.5mm2 | P53: 2.5mm2 | Q53: 2.5mm2 | R53: 2.5mm2 | S53: 2.5mm2 | T53: 2.5mm2 | U53: 2.5mm2 | V53: 2.5mm2 | W53: 2.5mm2 | X53: 2.5mm2 | Y53: 2.5mm2 | Z53: 2.5mm2 | AA53: 2.5mm2 | AB53: 2.5mm2 | AC53: 2.5mm2 | AD53: 2.5mm2 | AF53: 0 | AG53: 0 | AH53: RAC Powered | AI53: 0 | AS53: NAC Repeat 5 | AT53: =SUMPRODUCT(--($AS$40:$BL$40="NAC REPEAT 5")*($AS$41:$BL$41)) -> 0 | AU53: =SUMPRODUCT(--($AS$44:$BL$44="NAC REPEAT 5")*($AS$45:$BL$45)) -> 0 | AV53: =SUMPRODUCT(--($AS$56:$BL$56="NAC REPEAT 5")*($AS$57:$BL$73)) -> 0 | AW53: =SUMPRODUCT(--($AS$77:$BL$77="NAC Repeat 5")*($AS$78:$BL$93)) -> 0 | AX53: Gas | AY53: =(((SUMPRODUCT(--($AS$25:$BL$25="4007ES")*($AS$27:$BL$27))))) -> 0 | AZ53: =(((SUMPRODUCT(--($AS$25:$BL$25="NAC Repeat 5")*($AS$28:$BL$28))))) -> 0 | BN53: 16AWG | BO53: 16AWG | BP53: 16AWG | BQ53: 16AWG | BR53: 16AWG | BS53: 16AWG | BT53: 16AWG | BU53: 16AWG | BV53: 16AWG | BW53: 16AWG | BX53: 16AWG | BY53: 16AWG | BZ53: 16AWG | CA53: 16AWG | CB53: 16AWG | CC53: 16AWG | CD53: 16AWG | CE53: 16AWG | CF53: 16AWG | CG53: 16AWG
